Workbook

Sheet Control Panel
M1: Dominion Energy Utah
M2: Docket No. 23-057-03
M3: DEU Exhibit 1.9
M4: Pass Through Model
A6: GO TO
A7: Utah | C7: FILING INFORMATION | J7: Model Checks
A8: 1.1 p1 | J8: (Must Be 0)
A9: 1.1 p2 | E9: UTAH | J9: ='Model Checks'!D7 -> 0.2772239149
A10: 1.2 p1 | D10: Current Case No. | E10: 23-057-25
A11: 1.2 p2 | D11: Filing Date | E11: 2023-12-28
A12: 1.2 p3 | D12: Test-Year Ending | E12: 2025-01-31
A13: 1.2 p4 | D13: Proposed Effective Date | E13: 2024-02-01
A14: 1.2 p5 | D14: Prior Case No. | E14: 23-057-03
A15: 1.2 p6 | J15: Go To
A16: 1.3 | C16: Total Increase (Decrease) | E16: ='Utah Summary-by class'!R27 -> -19235183.09 | G16: =E16-F16 -> -19235183.09 | J16: Model Checks'
A17: 1.4 p1
A18: 1.4 p2
A19: 1.4 p3 | C19: Typical Customer's Bill | J19: Old Ut Data color
A20: 1.4 p4
A21: 1.5 p1 | D21: Previous | E21: ='Ut 1.6'!F30 -> 946.95 | J21: New Data color
A22: 1.5 p2 | D22: Proposed | E22: ='Ut 1.6'!H30 -> 936.15
A23: 1.5 p3 | D23: Difference | E23: ='Ut 1.6'!J30 -> -10.8 | G23: =E23-F23 -> -10.8
A24: 1.5 p4 | D24: % Difference | E24: ='Ut 1.6'!J32 -> -1.14 | G24: =E24-F24 -> -1.14
A25: 1.5 p5
A26: 1.5 p6
A27: 1.6
A29: Monthly Inputs
A30: Other Inputs
A31: Expenses
A32: Rate Base
C34: DEU Exhibit Headings
C36: UTAH
E37: Dominion Energy Utah
E38: ="Docket No. "&E10 -> Docket No. 23-057-25
C40: Test-Year (enter as text)
D41: from | E41: 2024-02-01
D42: to | E42: 2025-01-31

Sheet Monthly Inputs
A1: MONTHLY INPUTS
G2: TEST-YEAR COLUMNS | S2: 12-Month
E3: Dec23 | F3: Jan24 | G3: Feb24 | H3: Mar24 | I3: Apr24 | J3: May24 | K3: Jun24 | L3: Jul24 | M3: Aug24 | N3: Sep24 | O3: Oct24 | P3: Nov24 | Q3: Dec24 | R3: Jan25 | S3: =R3 -> Jan25
E4: 12 | F4: 1 | G4: =MONTH(G3) -> 2 | H4: 3 | I4: 4 | J4: 5 | K4: =MONTH(K3) -> 6 | L4: =MONTH(L3) -> 7 | M4: 8 | N4: 9 | O4: 10 | P4: 11 | Q4: 12 | R4: 1
A5: QGC Company Produced Gas In MDth | I5: Updated: | J5: 2023-11-29
A6: WEXPRO I
B7: Company Production In Dth | E7: 3408000.509 | F7: 3637668.792 | G7: 3098183.143 | H7: 3242235.467 | I7: 3077928.415 | J7: 3124665.225 | K7: 2669289.763 | L7: 2731224.794 | M7: 2703536.66 | N7: 2590409.378 | O7: 2650729.903 | P7: 2715907.023 | Q7: 2756829.911 | R7: 2714552.186 | S7: =SUM(G7:R7) -> 34075491.87
B8: Gathering | E8: 739171.7112 | F8: 788985.1714 | G8: =G7/$S$7*$S$8 -> 792364.8246 | H8: =H7/$S$7*$S$8 -> 829206.4151 | I8: =I7/$S$7*$S$8 -> 787184.6486 | J8: 799137.6555 | K8: =K7/$S$7*$S$8 -> 682674.7217 | L8: =L7/$S$7*$S$8 -> 698514.6955 | M8: 691433.4153 | N8: 662500.9492 | O8: 677928.0105 | P8: 694597.1535 | Q8: 705063.2414 | R8: 694250.652 | S8: =+'WEXPRO Royalty Detail'!E1 -> 8714856.383
A11: WEXPRO II
B12: Company Production In Dth | E12: 1994506.462 | F12: 1886941.987 | G12: 1686170.579 | H12: 1734468.803 | I12: 1622519.165 | J12: 1626333.516 | K12: 1530918.592 | L12: 1542245.589 | M12: 1506357.033 | N12: 1426086.87 | O12: 1443537.536 | P12: 2069459.246 | Q12: 2013689.608 | R12: 1919132.834 | S12: =SUM(G12:R12) -> 20120919.37
B13: Gathering | E13: 764357.9419 | F13: 723135.8338 | G13: =G12/$S$12*$S$13 -> 723781.07 | H13: =H12/$S$12*$S$13 -> 744512.8634 | I13: 696458.9893 | J13: 698096.2824 | K13: =K12/$S$12*$S$13 -> 657139.859 | L13: =L12/$S$12*$S$13 -> 662001.921 | M13: 646596.9212 | N13: 612141.3183 | O13: 619631.9373 | P13: 888305.9913 | Q13: 864367.127 | R13: 823779.0607 | S13: =+'WEXPRO Royalty Detail'!L1 -> 8636813.341
B16: Injections in Dth
C17: Chalk Creek | E17: 0 | F17: 59000 | G17: 44310 | H17: 0 | I17: 0 | J17: 0 | K17: 0 | L17: 0 | M17: 0 | N17: 40000 | O17: 114000 | P17: 90000 | Q17: 44900 | R17: 0 | S17: =SUM(G17:R17) -> 333210
C18: Clay Basin | E18: 0 | F18: 0 | G18: 0 | H18: 0 | I18: 0 | J18: 1358748 | K18: 2340000 | L18: 2418000 | M18: 1901417 | N18: 2340000 | O18: 1836696 | P18: 0 | Q18: 0 | R18: 0 | S18: 12194861
C19: Coalville | E19: 0 | F19: 0 | G19: 170000 | H19: 348750 | I19: 0 | J19: 0 | K19: 0 | L19: 0 | M19: 0 | N19: 42000 | O19: 280800 | P19: 37386 | Q19: 0 | R19: 0 | S19: 878936
C20: Leroy | E20: 50998 | F20: 0 | G20: 146800 | H20: 376152 | I20: 0 | J20: 0 | K20: 0 | L20: 0 | M20: 0 | N20: 47500 | O20: 45000 | P20: 300000 | Q20: 50998 | R20: 0 | S20: 966450
C21: Spire | E21: 0 | F21: 0 | G21: 0 | H21: 0 | I21: 0 | J21: 0 | K21: 341730 | L21: 353120 | M21: 353120 | N21: 341730 | O21: 353119 | P21: 0 | Q21: 0 | R21: 0 | S21: 1742819
C22: Total Injections | E22: =SUM(E17:E21) -> 50998 | F22: =SUM(F17:F21) -> 59000 | G22: =SUM(G17:G21) -> 361110 | H22: 724902 | I22: 0 | J22: 1358748 | K22: =SUM(K17:K21) -> 2681730 | L22: =SUM(L17:L21) -> 2771120 | M22: 2254537 | N22: 2811230 | O22: 2629615 | P22: 427386 | Q22: 95898 | R22: 0 | S22: 16116276
B24: Withdrawls In Dth
C25: Chalk Creek | E25: 0 | F25: 0 | G25: 110250 | H25: 98400 | I25: 0 | J25: 0 | K25: 0 | L25: 0 | M25: 0 | N25: 0 | O25: 0 | P25: 0 | Q25: 45004 | R25: 79556 | S25: =SUM(G25:R25) -> 333210
C26: Clay Basin | E26: 4086000 | F26: 3410050 | G26: 585580 | H26: 268380 | I26: 0 | J26: 0 | K26: 0 | L26: 0 | M26: 0 | N26: 0 | O26: 0 | P26: 4798645 | Q26: 3414494 | R26: 3410050 | S26: 12477149
C27: Coalville | E27: 0 | F27: 410186 | G27: 468750 | H27: 0 | I27: 0 | J27: 0 | K27: 0 | L27: 0 | M27: 0 | N27: 0 | O27: 0 | P27: 0 | Q27: 60079 | R27: 350107 | S27: 878936
C28: Leroy | E28: 0 | F28: 470298 | G28: 496152 | H28: 0 | I28: 0 | J28: 0 | K28: 0 | L28: 0 | M28: 0 | N28: 0 | O28: 0 | P28: 0 | Q28: 78943 | R28: 391355 | S28: 966450
C29: Spire | E29: 0 | F29: 0 | G29: 0 | H29: 0 | I29: 0 | J29: 0 | K29: 0 | L29: 0 | M29: 0 | N29: 0 | O29: 0 | P29: 491400 | Q29: 514600 | R29: 514600 | S29: 1520600
C30: Total Withdrawls | E30: =SUM(E25:E29) -> 4086000 | F30: 4290534 | G30: 1660732 | H30: 366780 | I30: 0 | J30: 0 | K30: 0 | L30: 0 | M30: 0 | N30: 0 | O30: 0 | P30: 5290045 | Q30: 4113120 | R30: 4745668 | S30: 16176345
A32: LNG
B33: Injections in Dth | E33: 0 | F33: 0 | G33: 0 | H33: 0 | I33: 0 | J33: 0 | K33: 0 | L33: 0 | M33: 0 | N33: 9000 | O33: 227680 | P33: 10125 | Q33: 0 | R33: 0 | S33: =SUM(G33:R33) -> 246805
B34: Withdrawls In Dth | E34: 0 | G34: 19575 | H34: 20894 | I34: 20220 | J34: 20894 | K34: 20220 | L34: 20894 | M34: 20894 | N34: 20220 | O34: 20894 | P34: 20250 | Q34: 20925 | R34: 20925 | S34: =SUM(G34:R34) -> 246805
A37: Injection and Withdrawl Used, Lost and Unaccounted For
D38: Gas Use
D39: %
B40: Injections in Dth
C41: Chalk Creek | D41: ='Other Inputs'!E174 -> 0.0146 | E41: =E17*-$D41 -> 0 | F41: -861.4 | G41: =G17*-$D41 -> -646.926 | H41: 0 | I41: 0 | J41: 0 | K41: =K17*-$D41 -> 0 | L41: 0 | M41: 0 | N41: -584 | O41: -1664.4 | P41: -1314 | Q41: -655.54 | R41: 0 | S41: =SUM(G41:R41) -> -4864.866
C42: Clay Basin | D42: ='Other Inputs'!E173 -> 0.009748533 | E42: 0 | F42: 0 | G42: =G18*-$D42 -> 0 | H42: 0 | I42: 0 | J42: -13245.79972 | K42: -22811.56722 | L42: -23571.95279 | M42: -18536.02637 | N42: -22811.56722 | O42: -17905.09157 | P42: 0 | Q42: 0 | R42: 0 | S42: =SUM(G42:R42) -> -118882.0049
C43: Coalville | D43: ='Other Inputs'!E175 -> 0.0097 | E43: 0 | F43: 0 | G43: =G19*-$D43 -> -1649 | H43: -3382.875 | I43: 0 | J43: 0 | K43: 0 | L43: 0 | M43: 0 | N43: -407.4 | O43: -2723.76 | P43: -362.6442 | Q43: 0 | R43: 0 | S43: =SUM(G43:R43) -> -8525.6792
C44: Leroy | D44: ='Other Inputs'!E176 -> 0.0294 | E44: -1499.3412 | F44: 0 | G44: =G20*-$D44 -> -4315.92 | H44: -11058.8688 | I44: 0 | J44: 0 | K44: 0 | L44: 0 | M44: 0 | N44: -1396.5 | O44: -1323 | P44: -8820 | Q44: -1499.3412 | R44: 0 | S44: =SUM(G44:R44) -> -28413.63
D45: ='Other Inputs'!E178 -> 0 | E45: 0 | F45: 0 | G45: =G21*-$D45 -> 0 | H45: 0 | I45: 0 | J45: 0 | K45: 0 | L45: 0 | M45: 0 | N45: 0 | O45: 0 | P45: 0 | Q45: 0 | R45: 0 | S45: =SUM(G45:R45) -> 0
C46: Total Injections | E46: =SUM(E41:E45) -> -1499.3412 | F46: -861.4 | G46: -6611.846 | H46: -14441.7438 | I46: 0 | J46: -13245.79972 | K46: -22811.56722 | L46: -23571.95279 | M46: -18536.02637 | N46: -25199.46722 | O46: -23616.25157 | P46: -10496.6442 | Q46: -2154.8812 | R46: 0 | S46: -160686.1801
B48: Withdrawls In Dth
C49: Chalk Creek | D49: ='Other Inputs'!F174 -> 0.0184 | E49: =E25*-$D49 -> 0 | F49: 0 | G49: -2028.6 | H49: -1810.56 | I49: 0 | J49: 0 | K49: 0 | L49: 0 | M49: 0 | N49: 0 | O49: 0 | P49: 0 | Q49: -828.0736 | R49: -1463.8304 | S49: =SUM(G49:R49) -> -6131.064
C50: Clay Basin | D50: ='Other Inputs'!F173 -> 0.0032987 | E50: =E26*-$D50 -> -13478.4882 | F50: -11248.73193 | G50: -1931.652746 | H50: -885.305106 | I50: 0 | J50: 0 | K50: 0 | L50: 0 | M50: 0 | N50: 0 | O50: 0 | P50: -15829.29026 | Q50: -11263.39136 | R50: -11248.73193 | S50: =SUM(G50:R50) -> -41158.37141
C51: Coalville | D51: ='Other Inputs'!F175 -> 0.0131 | E51: =E27*-$D51 -> 0 | F51: -5373.4366 | G51: -6140.625 | H51: 0 | I51: 0 | J51: 0 | K51: 0 | L51: 0 | M51: 0 | N51: 0 | O51: 0 | P51: 0 | Q51: -787.0349 | R51: -4586.4017 | S51: =SUM(G51:R51) -> -11514.0616
C52: Leroy | D52: ='Other Inputs'!F176 -> 0.0144 | E52: =E28*-$D52 -> 0 | F52: -6772.2912 | G52: -7144.5888 | H52: 0 | I52: 0 | J52: 0 | K52: 0 | L52: 0 | M52: 0 | N52: 0 | O52: 0 | P52: 0 | Q52: -1136.7792 | R52: -5635.512 | S52: =SUM(G52:R52) -> -13916.88
D53: ='Other Inputs'!F178 -> 0 | E53: =E29*-$D53 -> 0 | F53: 0 | G53: 0 | H53: 0 | I53: 0 | J53: 0 | K53: 0 | L53: 0 | M53: 0 | N53: 0 | O53: 0 | P53: 0 | Q53: 0 | R53: 0 | S53: =SUM(G53:R53) -> 0
C54: Total Withdrawls | E54: =SUM(E49:E53) -> -13478.4882 | F54: -23394.45973 | G54: -17245.46655 | H54: -2695.865106 | I54: 0 | J54: 0 | K54: 0 | L54: 0 | M54: 0 | N54: 0 | O54: 0 | P54: -15829.29026 | Q54: -14015.27906 | R54: -22934.47603 | S54: -72720.37701
B56: Williams Transportation Loss
C57: Chalk Creek | D57: ='Other Inputs'!$E$183 -> 0.009 | E57: =E25*-$D57 -> 0 | F57: 0 | G57: -992.25 | H57: -885.6 | I57: 0 | J57: 0 | K57: 0 | L57: 0 | M57: 0 | N57: 0 | O57: 0 | P57: 0 | Q57: -405.036 | R57: -716.004 | S57: =SUM(G57:R57) -> -2998.89
C58: Clay Basin | D58: ='Other Inputs'!$E$183 -> 0.009 | E58: =E26*-$D58 -> -36774 | F58: -30690.45 | G58: -5270.22 | H58: -2415.42 | I58: 0 | J58: 0 | K58: 0 | L58: 0 | M58: 0 | N58: 0 | O58: 0 | P58: -43187.805 | Q58: -30730.446 | R58: -30690.45 | S58: =SUM(G58:R58) -> -112294.341
C59: Coalville | D59: ='Other Inputs'!$E$183 -> 0.009 | E59: =E27*-$D59 -> 0 | F59: -3691.674 | G59: -4218.75 | H59: 0 | I59: 0 | J59: 0 | K59: 0 | L59: 0 | M59: 0 | N59: 0 | O59: 0 | P59: 0 | Q59: -540.711 | R59: -3150.963 | S59: =SUM(G59:R59) -> -7910.424
C60: Leroy | D60: ='Other Inputs'!$E$183 -> 0.009 | E60: =E28*-$D60 -> 0 | F60: -4232.682 | G60: -4465.368 | H60: 0 | I60: 0 | J60: 0 | K60: 0 | L60: 0 | M60: 0 | N60: 0 | O60: 0 | P60: 0 | Q60: -710.487 | R60: -3522.195 | S60: =SUM(G60:R60) -> -8698.05
D61: ='Other Inputs'!$E$183 -> 0.009 | E61: =E29*-$D61 -> 0 | F61: 0 | G61: 0 | H61: 0 | I61: 0 | J61: 0 | K61: 0 | L61: 0 | M61: 0 | N61: 0 | O61: 0 | P61: -4422.6 | Q61: -4631.4 | R61: -4631.4 | S61: =SUM(G61:R61) -> -13685.4
C62: Total Withdrawls | E62: =SUM(E57:E61) -> -36774 | F62: -38614.806 | G62: -14946.588 | H62: -3301.02 | I62: 0 | J62: 0 | K62: 0 | L62: 0 | M62: 0 | N62: 0 | O62: 0 | P62: -47610.405 | Q62: -37018.08 | R62: -42711.012 | S62: -145587.105
B65: Total Injections & Withdrawls | E65: =E46+E54 -> -14977.8294 | F65: -24255.85973 | G65: -23857.31255 | H65: -17137.60891 | I65: 0 | J65: -13245.79972 | K65: -22811.56722 | L65: -23571.95279 | M65: -18536.02637 | N65: -25199.46722 | O65: -23616.25157 | P65: -26325.93446 | Q65: -16170.16026 | R65: -22934.47603 | S65: -233406.5571
R67: Fuel Factor | S67: =-S65/(S30+S22) -> 0.007227860417
S68: 12-Month
E69: Sep22 | F69: Oct22 | G69: Nov22 | H69: Dec22 | I69: Jan23 | J69: Feb23 | K69: Mar23 | L69: Apr23 | M69: May23 | N69: Jun23 | O69: Jul23 | P69: Aug23 | Q69: Sep23 | R69: Oct23 | S69: Total
I71: Updated: | J71: 2022-09-14 | K71: EXH 1.2
A72: Natural Gas Spot Price Forecast - Average of GI, IHS & Platts | G72: (Forecast --->)
B73: Kern River Opal, Wyoming | E73: 7.68 | F73: 7.56 | G73: 8.36 | H73: 9.56 | I73: 9.96 | J73: 8.96 | K73: 6.75 | L73: 4.86 | M73: 4.36 | N73: 4.43 | O73: 4.68 | P73: 4.71 | Q73: 4.39 | R73: 4.3
B76: Spot Purchases from IRP | G76: 6971.241 | H76: 619.755 | I76: 530.286 | J76: 1271.426 | K76: 8732.721 | L76: 4825.15 | M76: 3597.915 | N76: 917.119 | O76: 308.463 | P76: 167.9039 | Q76: 920.846 | R76: 4894.842 | S76: =SUM(G76:R76) -> 33757.6679
C77: In DTH | G77: =G76*1000 -> 6971241 | H77: =H76*1000 -> 619755 | I77: 530286 | J77: 1271426 | K77: 8732721 | L77: =L76*1000 -> 4825150 | M77: =M76*1000 -> 3597915 | N77: 917119 | O77: =O76*1000 -> 308463 | P77: 167903.9 | Q77: 920846 | R77: 4894842 | S77: =SUM(G77:R77) -> 33757667.9
C78: In $ | G78: =G77*G73 -> 58279574.76 | H78: 5924857.8 | I78: 5281648.56 | J78: 11391976.96 | K78: 58945866.75 | L78: 23450229 | M78: 15686909.4 | N78: 4062837.17 | O78: 1443606.84 | P78: 790827.369 | Q78: 4042513.94 | R78: 21047820.6 | S78: =SUM(G78:R78) -> 210348669.1
A81: CONTRACT PURCHASES | I81: Updated: | J81: 2022-09-08
B82: RESET FORMULAS TO WORKSHEET
B83: Peaking Purchases (DTH) | G83: 1000000 | H83: 4000000 | I83: 5000000 | J83: 3000000 | K83: 0 | L83: 0 | M83: 0 | N83: 0 | O83: 0 | P83: 0 | Q83: 0 | R83: 0 | S83: =SUM(G83:R83) -> 13000000
B84: Peaking Purchases ($) | G84: 9208929.664 | H84: 42095767.59 | I84: 54811396.54 | J84: 29599307.34 | K84: 0 | L84: 0 | M84: 0 | N84: 0 | O84: 0 | P84: 0 | Q84: 0 | R84: 0 | S84: =SUM(G84:R84) -> 135715401.1
B86: Term Purchases (DTH) | G86: 270000 | H86: 4464000 | I86: 4464000 | J86: 4032000 | K86: 279000 | L86: 0 | M86: 0 | N86: 0 | O86: 0 | P86: 0 | Q86: 0 | R86: 0 | S86: =SUM(G86:R86) -> 13509000
B87: Term Purchases ($) | G87: 2321000.337 | H87: 43258605.03 | I87: 45096462.56 | J87: 36582287.88 | K87: 1935943.235 | L87: 0 | M87: 0 | N87: 0 | O87: 0 | P87: 0 | Q87: 0 | R87: 0 | S87: =SUM(G87:R87) -> 129194299
B88: Stabilization Costs (Winter Months - Oct to Mar) | G88: 0 | H88: 0 | I88: 0 | J88: 0 | K88: 0 | L88: 0 | M88: 0 | N88: 0 | O88: 0 | P88: 0 | Q88: 0 | R88: 0 | S88: =SUM(G88:R88) -> 0
B90: Fixed Price Term Purchases (DTH) | G90: 0 | H90: 2015000 | I90: 2015000 | J90: 1820000 | K90: 0 | L90: 0 | M90: 0 | N90: 0 | O90: 0 | P90: 0 | Q90: 0 | R90: 0 | S90: =SUM(G90:R90) -> 5850000
B91: Fixed Price Term Purchases ($) | G91: 0 | H91: 16012275 | I91: 16500525 | J91: 14525700 | K91: 0 | L91: 0 | M91: 0 | N91: 0 | O91: 0 | P91: 0 | Q91: 0 | R91: 0 | S91: =SUM(G91:R91) -> 47038500
B94: Total Purchases (DTH) | E94: 0 | F94: 0 | G94: =G83+G86+G90 -> 1270000 | H94: 10479000 | I94: 11479000 | J94: 8852000 | K94: 279000 | L94: 0 | M94: 0 | N94: 0 | O94: 0 | P94: 0 | Q94: 0 | R94: 0 | S94: =SUM(G94:R94) -> 32359000
B95: Total Purchases ($) | E95: 0 | F95: 0 | G95: =G84+G87+G91 -> 11529930 | H95: =H84+H87+H91 -> 101366647.6 | I95: 116408384.1 | J95: 80707295.23 | K95: 1935943.235 | L95: 0 | M95: 0 | N95: 0 | O95: 0 | P95: 0 | Q95: 0 | R95: 0 | S95: =SUM(G95:R95) -> 311948200.2
A98: Typical Customer Monthly Usage in Dth
B99: Utah | G99: =VLOOKUP(MONTH(G3),$F$112:$G$123,2,FALSE) -> 10.9 | H99: 8.8 | I99: 7.3 | J99: 3.8 | K99: =VLOOKUP(MONTH(K3),$F$112:$G$123,2,FALSE) -> 2.7 | L99: =VLOOKUP(MONTH(L3),$F$112:$G$123,2,FALSE) -> 1.8 | M99: 1.6 | N99: 1.8 | O99: 2.7 | P99: 5.5 | Q99: 10.1 | R99: 13 | S99: =SUM(G99:R99) -> 70
A101: INPUTS FROM WEXPRO | G101: Nov22 | H101: Dec22 | I101: Jan23 | J101: Feb23 | K101: Mar23 | L101: Apr23 | M101: May23 | N101: Jun23 | O101: Jul23 | P101: Aug23 | Q101: Sep23 | R101: Oct23 | S101: 12-Month
S102: Total
A103: Wexpro I Operator Fee (Wexpro forecast) | E103: Updated: | F103: 2022-09-14 | G103: 12595562.84 | H103: 12840971.38 | I103: 14516376.04 | J103: 14953245.83 | K103: 14797786.15 | L103: 13986358.55 | M103: 13388008.31 | N103: 33333477.84 | O103: 12378422.63 | P103: 12151871.78 | Q103: 12442912.5 | R103: 12729968.54 | S103: 180114962.4
A105: Wexpro II Operator Fee (Wexpro forecast) | E105: Updated: | F105: 2022-09-14 | G105: 5378086.58 | H105: 5393669.764 | I105: 5480513.947 | J105: 4928069.752 | K105: 4715614.086 | L105: 4269108.003 | M105: 4171749.098 | N105: 4058889.321 | O105: 4079181.298 | P105: 4015353.761 | Q105: 3911515.944 | R105: 3903317.257 | S105: 54305068.81
G110: UT
F111: Typical UPC | G111: GS
F112: 1 | G112: 13
F113: 2 | G113: 10.9
F114: 3 | G114: 8.8
F115: 4 | G115: 7.3
F116: 5 | G116: 3.8
F117: 6 | G117: 2.7
F118: 7 | G118: 1.8
F119: 8 | G119: 1.6
F120: 9 | G120: 1.8
F121: 10 | G121: 2.7
F122: 11 | G122: 5.5
F123: 12 | G123: 10.1
F124: Total | G124: =SUM(G112:G123) -> 70

Sheet Other Inputs
H1: Used In
A2: INPUT SECTION | H2: Ut | I2: Wy
A3: INPUTS FROM TARIFF AND CONTRACTS
B5: Storage Commodity Rates | E5: Rate | F5: Effective
B6: Peaking Injections | E6: 0.03872 | F6: 2023-01-01 | H6: 1.3.2 | I6: 1.3p2
B7: Peaking Withdrawals | E7: 0.03872 | F7: =$F$6 -> 2023-01-01 | H7: 1.3.2 | I7: 1.3p2
B8: Spire Injections | E8: 0.015 | F8: 2024-04-01
B9: Spire Withdrawals | E9: 0.01 | F9: =F8 -> 2024-04-01
B10: Clay Basin Injections | E10: 0.01049 | F10: =$F$6 -> 2023-01-01 | H10: 1.3.2 | I10: 1.3p2
B11: Clay Basin Withdrawals | E11: 0.01781 | F11: =$F$6 -> 2023-01-01 | H11: 1.3.2 | I11: 1.3p2
B13: Storage Field Reservation Charges
B14: Peaking Storage Fields Demand (Leroy, Chalk Creek, Coalville) | E14: 2.87375 | F14: =$F$6 -> 2023-01-01 | H14: 1.3.2 | I14: 1.3p2
B15: Spire | E15: 0.2 | F15: =F8 -> 2024-04-01
B16: Clay Basin Demand | E16: 2.85338 | F16: =$F$6 -> 2023-01-01 | H16: 1.3.2 | I16: 1.3p2
B17: Clay Basin Capacity | E17: 0.02378 | F17: =$F$6 -> 2023-01-01 | H17: 1.3.2 | I17: 1.3p2
B19: Peak Hour Service
B20: Kern River | C20: 15 | D20: 28752 | E20: 3 | F20: =+F21*E21/E20 -> 18.0596
B21: mid Nov - mid Feb | C21: 31 | E21: =16+31+31+14 -> 92 | F21: 0.5889
B23: Williams - Pipeline | C23: 15 | D23: =(170000+54000)/24*8 -> 74666.66667 | E23: 3 | F23: =+F24*E24/E23 -> 7.357482143
B24: mid Nov - mid Feb | E24: =16+31+31+14 -> 92 | F24: 0.239917896
B27: FIRM TRANSPORTATION | D27: Contract Dth | E27: Months | F27: Maximum Rate | G27: Effective
B28: T-1 Transportation - Yearly (MT241) | D28: =798902 -> 798902 | E28: 12 | F28: 5.28804 | G28: 2023-01-01 | H28: 1.3p1
B29: T-1 Transportation - Yearly (Mainline 104) | D29: 30000 | E29: 12 | F29: 5.28804 | G29: =$G$28 -> 2023-01-01
B30: T-1 Transportation - Yearly (Tieline 112) | D30: 12000 | E30: 12 | F30: 5.28804 | G30: =$G$28 -> 2023-01-01 | H30: 1.3p1
B31: T-1 Transportation - Nov-Mar | D31: 75000 | E31: 5 | F31: 6.80887 | G31: =$G$28 -> 2023-01-01
B32: T-1 Transportation - Yearly (Hyrum) | D32: 100000 | E32: 12 | F32: 5.28804 | G32: =$G$28 -> 2023-01-01
B33: Total Yearly T-1 Transportation | D33: =SUM(D28:D32) -> 1015902 | E33: 12
B35: No-Notice Transportation (BASE TARIFF RATE) | D35: 203542 | E35: 12 | F35: 0.86753 | G35: =$G$28 -> 2023-01-01 | H35: 1.3p1
A37: Williams - Overthrust Pipeline
B38: Jan- Dec #6546 | D38: 8542 | E38: 2 | F38: 1.62 | G38: 2023-12-01
B39: Systemwide Usage Charge | F39: 0.00167 | G39: =+G38 -> 2023-12-01
D40: 8542 | E40: 10 | F40: 1.505 | G40: 2024-04-01
F41: 0.0012
B43: TRANSPORTATION COMMODITY
B44: PIPELINE USAGE CHARGE TO VOLUMETRIC RELEASES
B45: Williams Commodity
B46: Williams Firm Transportation Usage Charge (Max & Min) (BASE TARIFF RATE) | F46: 0.00267 | G46: 2023-01-01 | H46: 1.3p1
B47: Williams (ANNUAL CHARGE ADJUSTMENT) | F47: 0.0014 | G47: 2023-10-01 | H47: 1.3p1
E49: Current | F49: Proposed
B50: INTER TRANS (T-2 PIPELINE BASE TARIFF) MAX | D50: Base Tariff | E50: 0.17652 | F50: 0.17652 | G50: 2023-01-01
D51: Annual Charge | E51: 0.0015 | F51: 0.0014 | G51: =+G47 -> 2023-10-01
D52: Total | E52: =SUM(E50:E51) -> 0.17802 | F52: =SUM(F50:F51) -> 0.17792
B55: Utah | E55: =ROUND((E52)/(1-$E180),5) -> 0.17924 | F55: =ROUND((F52)/(1-E180),5) -> 0.17913 | H55: 1.6.3
B56: Wyoming | F56: =ROUND((F52)/(1-E181),5) -> 0.18063
A58: INPUTS FROM KERN RIVER PIPELINE TARIFF AND CONTRACTS
B59: Kern River 2003 Expansion | D59: Contract Dth | E59: Months | F59: Maximum Rate | G59: Effective
F60: =0.2018-0.0222 -> 0.1796 | G60: 2021-01-01
B61: Jan - Dec #20029 | D61: 33000 | E61: 12 | F61: =F60*E64/E61 -> 5.4778 | H61: 1.3.1
B62: November - March #20029 | D62: 50000 | E62: 5 | F62: =F60*(30+31+31+29+31)/E62 -> 5.45984 | H62: Jan
B63: Jan - Dec #1829 | D63: 1885 | E63: 12 | F63: =F64*E64/E63 -> 5.5022
B64: Days in Tariff Rate | E64: 366 | F64: =0.2027-0.0223 -> 0.1804 | G64: =G60 -> 2021-01-01
B66: Citadel Energy Marketing
B67: Dec - Feb #20017 | D67: 56925 | E67: 3 | F67: =+E68*F68/E67 -> 8.796666667 | H67: 1.3.1
B68: Days in Tariff Rate | E68: =31+31+29 -> 91 | F68: 0.29
B69: Nov & Mar #20017 | D69: 6000 | E69: 2 | F69: =+F70*E70/E69 -> 8.845 | H69: Jan
B70: Days in Tariff Rate | E70: =30+31 -> 61 | F70: 0.29
B71: Nov - Mar #20024 | D71: 27000 | E71: 5 | F71: =+F72*E72/E71 -> 8.816 | H71: Jan
B72: Days in Tariff Rate | E72: =30+31+31+29+31 -> 152 | F72: 0.29
B74: Kern River 2003 Expansion | E74: Days in TEST PERIOD
B75: Jan - Dec | C75: 0.7315204195 | D75: =D61+D63 -> 34885 | E75: 366 | F75: 0.0044 | G75: 2023-04-01 | H75: 1.3p1
B76: November - March | C76: =C75 -> 0.7315204195 | D76: =D62 -> 50000 | E76: =30+31+31+29+31 -> 152 | F76: =+F75 -> 0.0044 | G76: =+G75 -> 2023-04-01 | H76: 1.3p1
B78: Kern River Original System Period Two Rates #20017
B79: Dec - Feb #20017 | C79: =+C75 -> 0.7315204195 | D79: 56925 | E79: =31+31+29 -> 91 | F79: =+F75 -> 0.0044 | G79: =+G76 -> 2023-04-01 | H79: 1.3.1
B80: Nov & Mar #20017 | C80: =+C75 -> 0.7315204195 | D80: 6000 | E80: 61 | F80: 0.0044 | G80: =+G76 -> 2023-04-01 | H80: 1.3.2
B81: Kern River 2002 Expansion Period Two Rates #20024
B82: Nov - Mar #20024 | C82: =+C75 -> 0.7315204195 | D82: 27000 | E82: =30+31+31+29+31 -> 152 | F82: =+F75 -> 0.0044 | G82: =+G76 -> 2023-04-01
A85: INPUTS FROM Dominion Energy GAS TARIFF
A88: Current SNG Rates
B89: UTAH | E89: Current SNG Base | F89: Current SNG Amort. | G89: Current SNG Total
B90: GS | D90: Winter | E90: 0.91359 | F90: 0.03321 | G90: =E90+F90 -> 0.9468
D91: Summer | E91: 0.38433 | F91: 0.01392 | G91: =E91+F91 -> 0.39825
B93: FS | D93: Winter | E93: 0.90016 | F93: 0.03283 | G93: =E93+F93 -> 0.93299
D94: Summer | E94: 0.75121 | F94: 0.02741 | G94: =E94+F94 -> 0.77862
B96: NGV | E96: 0.67962 | F96: 0.02481 | G96: =E96+F96 -> 0.70443
B98: (This includes bad debt adjustment) IS | E98: 0.17938 | G98: =E98+F98 -> 0.17938
A100: Current Rates
B101: Utah GS
B102: Block 1 | D102: Summer | F102: 2024-01-01 | G102: 11.60493
B103: Block 2 | D103: Summer | G103: 10.41669
B104: Block 1 | D104: Winter | G104: 12.71455
B105: Block 2 | D105: Winter | G105: 11.52631
B106: #1 BSF | G106: 6.75
B109: Wyoming GSS | G109: 11.94707
B110: BSF | G110: 12
B113: Wyoming GSL | G113: 10.44486
B114: BSF | G114: 12
A116: INPUTS FROM PREVIOUS PASSTHROUGH CASE
B117: PRIOR PERIOD COMPANY PRODUCTION AVERAGE GAS COST
E118: PROPOSED | F118: PRIOR CASE | G118: Most Recent
B119: VOLUMES DTH | E119: =+'Monthly Inputs'!S7+'Monthly Inputs'!S12 -> 54196411.24 | F119: 56062874.97 | G119: EXH Ut 1.2p1
B120: AMOUNT | E120: =+D216+D239 -> 292835638 | F120: 254726753.9 | G120: EXH Ut 1.2p1
B121: AVG COST | E121: =+E120/E119 -> 5.403229316 | F121: =ROUND(+F120/F119,5) -> 4.54359
B123: Utah Cost of Gas by Component
B124: Unit Cost Of Gas (GS/FS) | F124: 6.58934
B125: 191 Account Amortization (Line 8) | F125: 1.95949
B126: Tax Reform Surcredit 4 | F126: 0
B127: Total Unit Cost In Rates (Line 9) | F127: =SUM(F124:F126) -> 8.54883
B129: Wyoming Cost of Gas by Component
B130: Unit Cost Of Gas (Line 9) | F130: 6.61906
B131: 191 Account Amortization (Line 10) | F131: 2.00175
B132: Total Unit Cost In Rates (Line 11) | F132: =SUM(F130:F131) -> 8.62081
B134: Unit Cost Of Gas (IS/NGV) | F134: 6.57313
B135: UT NGV RIN Credit | F135: -0.48096
B137: Supplier non-gas Adder Rates | C137: TSS TSM TSL | D137: Base SNG Annual Demand | F137: 2.08116
D138: SNG Amortization | F138: 0.07578
D139: SNG Adder Annual | F139: =SUM(F137:F138) -> 2.15694
D140: SNG Adder Monthly | F140: =ROUND(F139/12,5) -> 0.17975
C142: TBF | D142: Base SNG Annual Demand | F142: 1.3865
D143: SNG Amortization | F143: 0.05049
D144: SNG Adder Annual | F144: =SUM(F142:F143) -> 1.43699
D145: SNG Adder Monthly | F145: =ROUND(F144/12,5) -> 0.11975
E147: Total
B148: Supplier Non-Gas Costs Recovered at Current Rates | E148: ='RevRun Fcst'!T$199 -> 95758695.96 | H148: 1.6.2
B149: MT Supplier Non-Gas | E149: ='RevRun Fcst'!T142 -> 0
B150: Net Supplier Non-Gas | E150: =E148-E149 -> 95758695.96
B151: UT Current Int Sales SNG Rate - not including Bad Debt adj. | E151: ='RevRun Fcst'!T102+'RevRun Fcst'!T93 -> 288434 | F151: 0.17902
A154: INPUTS FROM 191 ACCOUNT MONTH END BALANCE ACTUAL OR FORECAST | E154: Utah | F154: Wyoming
E155: =D159&" "&D158 -> November 2023 | F155: =+E155 -> November 2023
H156: 1.6.2
D157: current yr /mo(text)
B158: =E155&" 191 account (Actual/Forecast)" -> November 2023 191 account (Actual/Forecast) | D158: 2023 | E158: 307662766 | F158: 10782304 | H158: 1.6.1
B159: ="Supplier Non-Gas Cost Under (Over) Collected through "&E155&" (act/fcst)" -> Supplier Non-Gas Cost Under (Over) Collected through November 2023 (act/fcst) | D159: November | E159: -4134413 | H159: 1.6.2
B160: Commodity Cost Under (Over) Collected during YEAR (Act/Fcst) | E160: =E158-E159 -> 311797179
B162: SPRING SNG Amortization Balance March 2023 | D162: -28759603.29 | E162: -14000000 | F162: =+D162-E162 -> -14759603.29
B163: Previous SPRING SNG Amortization March 2022 | D163: -10777254 | E163: -14000000 | F163: =+D163-E163 -> 3222746
A165: INPUTS FROM IRP
B166: #1 Peak Day Demand Forecast | F166: Source
B167: Utah | E167: =E169-E168 -> 1242197 | F167: =E166&" IRP" -> IRP
B168: Wyoming | E168: 39267
B169: System Total Peak Day Demand Forecast | E169: 1281464 | H169: 1.5 | I169: 1.5
E171: Storage
A172: STORAGE FIELD INPUTS RESERVOIR FUEL | E172: Injected | F172: Withdrawal
B173: Clay Basin Factor | E173: 0.009748533 | F173: 0.0032987
B174: Chalk Creek Factor | E174: 0.0146 | F174: 0.0184
B175: Coalville Factor | E175: 0.0097 | F175: 0.0131
B176: Leroy Factor | E176: 0.0294 | F176: 0.0144
B177: LNG Factor | E177: 0 | F177: 0
B178: Spire Factor | E178: 0 | F178: 0
B180: DEU Lost & Unaccounted For % (Utah | E180: 0.00678 | H180: Q | I180: Q
B181: DEU Lost & Unaccounted For % (Wyoming) | E181: 0.015
B183: Williams Lost & Unaccounted For % | E183: 0.009 | H183: Q | I183: Q
B184: Gathering Lost & Unaccounted For | E184: 0.04 | H184: Q | I184: Q
B185: TOTAL | E185: =SUM(E183:E184) -> 0.049
B187: Williams Storage Field Reservation Charges | E187: Monthly Dth
B188: Peaking Storage Fields Maximum Daily Withdrawal Qty (Leroy, Chalk Creek, Coalville) | E188: 184625
B189: Spire Maximum Storage Qty | E189: 2000000
B190: Clay Basin Minimum Required Deliverability | E190: 111827
B191: Clay Basin Capacity | E191: 13419000
A193: GATHERING AND OTHER TRANSPORTATION INPUTS | D193: Revenue
B195: Birch Creek | D195: 271065.33 | E195: 2022-08-31
B196: Other gathering | D196: 1071219.471 | E196: 2022-08-31 | H196: JanB
B197: Total Gathering | D197: =SUM(D195:D196) -> 1342284.801 | H197: 1.3.1 | I197: 1.3P1
B199: Other Transportation | D199: 2140764.013 | E199: 2023-12-19 | H199: 1.3.1
B201: Forecast Future Contracts Premium over spot price | E201: 0.02
D203: Commodity | E203: Demand
D204: Charge | E204: Charge | F204: Effective
B205: Gathering Rates -System wide Gathering agreement #163 (SWGA) | D205: 1925206.066 | E205: 2887809.099 | F205: 2022-01-01 | I205: 1.3p1
B208: Gathering Rate Wexpro II | D208: 224616.4362 | I208: 1.3p1
A211: WEXPRO INPUTS | D211: Volume (Dth) | E211: Revenue
A212: WEXPRO I
B213: Dominion Energy Gas Production 1/ | D213: Current
B214: Test-Year Royalties | D214: ='Royalty Detail'!I1419 -> 42059579.63 | H214: 1.4.1 | I214: 1.4P1
B215: Operator Service Fee | D215: ='Monthly Inputs'!S103 -> 180114962.4 | H215: 1.4.1 | I215: 1.4P1
B216: Total Dominion Energy Gas Production Costs | D216: =SUM(D214:D215) -> 222174542
B218: Total Dominion Energy Gas Production Dth | D218: ='Royalty Detail'!F1424 -> 41233158.84
F219: Hot | G219: Hot
B220: Other Revenue Credits | D220: 1 | E220: 2 | F220: 2 | G220: 2 | I220: 1
D221: Historical | E221: Forecast | F221: =HLOOKUP(F$220,$D$220:$E$229,$I221) -> Forecast | G221: =HLOOKUP(G$220,$D$220:$E$229,$I221) -> Forecast | I221: 2
D222: 12 Mo Ending | E222: 12 Mo Ending | F222: Utah | G222: Wyoming | I222: 3
B223: 483 Sales for Resale | E223: 2608104.323 | F223: =HLOOKUP(F$220,$D$220:$E$229,$I223) -> 2608104.323 | G223: =HLOOKUP(G$220,$D$220:$E$229,$I223) -> 2608104.323 | I223: 4
B224: 490 Incidental Plant Prod Sales | E224: 7054646.295 | F224: =HLOOKUP(F$220,$D$220:$E$229,$I224) -> 7054646.295 | G224: 7054646.295 | I224: 5
B225: 492 Incidental Gasoline_Oil Sales | E225: 800670.2243 | F225: 800670.2243 | G225: 800670.2243 | I225: 6
B226: 4951 Overriding Royalty Revenue from Celsius | E226: 13230202.85 | F226: 13230202.85 | G226: 13230202.85 | I226: 7
B227: 4952 Oil Revenue Received from Wexpro | E227: 2393370.967 | F227: 2393370.967 | G227: 2393370.967 | I227: 8
B228: 3rd Party & Liquids Credits from MLPX Acquisiiton | E228: 4401796.663 | F228: =HLOOKUP(F$220,$D$220:$E$229,$I228) -> 4401796.663 | G228: 4401796.663 | I228: 9
B229: 758001 Gas Well Royalities - Other | E229: -113163.6978 | F229: -113163.6978 | G229: -113163.6978 | I229: 10
B230: EDIT Amortization | E230: 4770564 | F230: =HLOOKUP(F$220,$D$220:$E$230,$I230) -> 4770564 | G230: =HLOOKUP(G$220,$D$220:$E$230,$I230) -> 4770564 | I230: 11
B233: Total Other Revenue Credits | D233: =SUM(D223:D229) -> 0 | E233: =SUM(E223:E230) -> 35146191.62 | F233: =SUM(F223:F230) -> 35146191.62 | G233: =SUM(G223:G230) -> 35146191.62
A235: WEXPRO II
B236: Dominion Energy Gas Production 1/ | D236: Current
B237: Test-Year Royalties | D237: ='Royalty Detail'!I1691 -> 16356027.22 | H237: 1.4.1 | I237: 1.4P1
B238: Operator Service Fee | D238: ='Monthly Inputs'!S105 -> 54305068.81 | H238: 1.4.1 | I238: 1.4P1
B239: Total Dominion Energy Gas Production Costs | D239: =SUM(D237:D238) -> 70661096.03
B241: Total Dominion Energy Gas Production Dth | D241: ='Royalty Detail'!F1696 -> 17211193.11
F242: Hot | G242: Hot
B243: Other Revenue Credits | D243: 1 | E243: 2 | F243: 2 | G243: 2 | I243: 1
D244: Historical | E244: Forecast | F244: =HLOOKUP(F$220,$D$220:$E$229,$I244) -> Forecast | G244: =HLOOKUP(G$220,$D$220:$E$229,$I244) -> Forecast | I244: 2
D245: 12 Mo Ending | E245: 12 Mo Ending | F245: Utah | G245: Wyoming | I245: 3
B246: 483 Sales for Resale | E246: 0 | F246: =HLOOKUP(F$243,$D$243:$E$251,$I246) -> 0 | G246: 0 | I246: 4
B247: 490 Incidental Plant Prod Sales | E247: 1987413.025 | F247: 1987413.025 | G247: 1987413.025 | I247: 5
B248: 492 Incidental Gasoline_Oil Sales | E248: 1562109.906 | F248: 1562109.906 | G248: 1562109.906 | I248: 6
B249: 4951 Overriding Royalty Revenue from Celsius | E249: 0 | F249: 0 | G249: 0 | I249: 7
B250: 4952 Oil Revenue Received from Wexpro | E250: 881707.2207 | F250: 881707.2207 | G250: 881707.2207 | I250: 8
B251: 758001 Gas Well Royalities - Other | E251: -231586.5924 | F251: -231586.5924 | G251: -231586.5924 | I251: 9
B252: EDIT Amortization | E252: 96228 | F252: =HLOOKUP(F$243,$D$243:$E$252,$I252) -> 96228 | G252: =HLOOKUP(G$243,$D$243:$E$252,$I252) -> 96228 | I252: 10
B255: Total Other Revenue Credits | D255: =SUM(D246:D251) -> 0 | E255: =SUM(E246:E253) -> 4295871.56 | F255: =SUM(F246:F253) -> 4295871.56 | G255: =SUM(G246:G253) -> 4295871.56
E257: Proceeds | F257: Dths | G257: Price
B258: Sales of Wexpro Gas | E258: 0 | F258: 0 | G258: 0
A260: SUMMARY INPUTS RATE BASE, EXPENSES, ETC.
E263: ='Rate Base'!$Q$4 -> 2023-11-30
... 33 more rows

Sheet Calculations (hidden)
A1: GAS BALANCE FOR 12 MONTHS ENDING: _________________
D3: SALES VOLUMES IN DEKATHERMS (12 Months of Forecast)
D4: Forecast | E4: Forecast | F4: Forecast | G4: Forecast | H4: Forecast | I4: Forecast | J4: Forecast | K4: Forecast | L4: Forecast | M4: Forecast | N4: Forecast | O4: Forecast | P4: 12-Month
A5: RATE CLASS | D5: =+'Monthly Inputs'!G3 -> Feb24 | E5: =+'Monthly Inputs'!H3 -> Mar24 | F5: =+'Monthly Inputs'!I3 -> Apr24 | G5: =+'Monthly Inputs'!J3 -> May24 | H5: =+'Monthly Inputs'!K3 -> Jun24 | I5: =+'Monthly Inputs'!L3 -> Jul24 | J5: =+'Monthly Inputs'!M3 -> Aug24 | K5: =+'Monthly Inputs'!N3 -> Sep24 | L5: =+'Monthly Inputs'!O3 -> Oct24 | M5: =+'Monthly Inputs'!P3 -> Nov24 | N5: =+'Monthly Inputs'!Q3 -> Dec24 | O5: =+'Monthly Inputs'!R3 -> Jan25 | P5: Total | Q5: 1
A6: UTAH | D6: =MONTH(D5) -> 2 | E6: =MONTH(E5) -> 3 | F6: 4 | G6: 5 | H6: 6 | I6: 7 | J6: 8 | K6: 9 | L6: 10 | M6: 11 | N6: 12 | O6: 1 | Q6: 2
B7: GS | D7: ='RevRun Fcst'!H21 -> 17100703 | E7: ='RevRun Fcst'!I21 -> 13371325 | F7: ='RevRun Fcst'!J21 -> 9201477 | G7: ='RevRun Fcst'!K21 -> 5443611 | H7: ='RevRun Fcst'!L21 -> 2939922 | I7: ='RevRun Fcst'!M21 -> 2514770 | J7: ='RevRun Fcst'!N21 -> 2396381 | K7: ='RevRun Fcst'!O21 -> 2791366 | L7: ='RevRun Fcst'!P21 -> 7232818 | M7: ='RevRun Fcst'!Q21 -> 12742512 | N7: ='RevRun Fcst'!R21 -> 19691437 | O7: ='RevRun Fcst'!S21 -> 21293956 | P7: =SUM(D7:O7) -> 116720278 | Q7: 3
D8: ='RevRun Fcst'!H30 -> 0 | E8: ='RevRun Fcst'!I30 -> 0 | F8: ='RevRun Fcst'!J30 -> 0 | G8: ='RevRun Fcst'!K30 -> 0 | H8: ='RevRun Fcst'!L30 -> 0 | I8: ='RevRun Fcst'!M30 -> 0 | J8: ='RevRun Fcst'!N30 -> 0 | K8: ='RevRun Fcst'!O30 -> 0 | L8: ='RevRun Fcst'!P30 -> 0 | M8: ='RevRun Fcst'!Q30 -> 0 | N8: ='RevRun Fcst'!R30 -> 0 | O8: ='RevRun Fcst'!S30 -> 0 | P8: 0 | Q8: 4
D9: ='RevRun Fcst'!H39 -> 0 | E9: ='RevRun Fcst'!I39 -> 0 | F9: ='RevRun Fcst'!J39 -> 0 | G9: ='RevRun Fcst'!K39 -> 0 | H9: ='RevRun Fcst'!L39 -> 0 | I9: ='RevRun Fcst'!M39 -> 0 | J9: ='RevRun Fcst'!N39 -> 0 | K9: ='RevRun Fcst'!O39 -> 0 | L9: ='RevRun Fcst'!P39 -> 0 | M9: ='RevRun Fcst'!Q39 -> 0 | N9: ='RevRun Fcst'!R39 -> 0 | O9: ='RevRun Fcst'!S39 -> 0 | P9: 0 | Q9: 5
B10: FS | D10: ='RevRun Fcst'!H48 -> 282213 | E10: ='RevRun Fcst'!I48 -> 261575 | F10: ='RevRun Fcst'!J48 -> 209394 | G10: ='RevRun Fcst'!K48 -> 185229 | H10: ='RevRun Fcst'!L48 -> 178479 | I10: ='RevRun Fcst'!M48 -> 159446 | J10: ='RevRun Fcst'!N48 -> 164693 | K10: ='RevRun Fcst'!O48 -> 182958 | L10: ='RevRun Fcst'!P48 -> 266254 | M10: ='RevRun Fcst'!Q48 -> 195104 | N10: ='RevRun Fcst'!R48 -> 275246 | O10: ='RevRun Fcst'!S48 -> 311946 | P10: 2672537 | Q10: 6
D11: ='RevRun Fcst'!H75 -> 0 | E11: ='RevRun Fcst'!I75 -> 0 | F11: ='RevRun Fcst'!J75 -> 0 | G11: ='RevRun Fcst'!K75 -> 0 | H11: ='RevRun Fcst'!L75 -> 0 | I11: ='RevRun Fcst'!M75 -> 0 | J11: ='RevRun Fcst'!N75 -> 0 | K11: ='RevRun Fcst'!O75 -> 0 | L11: ='RevRun Fcst'!P75 -> 0 | M11: ='RevRun Fcst'!Q75 -> 0 | N11: ='RevRun Fcst'!R75 -> 0 | O11: ='RevRun Fcst'!S75 -> 0 | P11: 0 | Q11: 7
B12: NGV | D12: ='RevRun Fcst'!H66 -> 19744 | E12: ='RevRun Fcst'!I66 -> 22569 | F12: ='RevRun Fcst'!J66 -> 22091 | G12: ='RevRun Fcst'!K66 -> 21200 | H12: ='RevRun Fcst'!L66 -> 27383 | I12: ='RevRun Fcst'!M66 -> 21298 | J12: ='RevRun Fcst'!N66 -> 20855 | K12: ='RevRun Fcst'!O66 -> 26188 | L12: ='RevRun Fcst'!P66 -> 20902 | M12: ='RevRun Fcst'!Q66 -> 22361 | N12: ='RevRun Fcst'!R66 -> 18657 | O12: ='RevRun Fcst'!S66 -> 15905 | P12: 259153 | Q12: 8
A13: Total Firm Sales | D13: =SUM(D7:D12) -> 17402660 | E13: 13655469 | F13: =SUM(F7:F12) -> 9432962 | G13: 5650040 | H13: 3145784 | I13: 2695514 | J13: 2581929 | K13: 3000512 | L13: 7519974 | M13: 12959977 | N13: 19985340 | O13: 21621807 | P13: =SUM(P7:P12) -> 119651968 | Q13: 9
Q14: 10
B15: IS | D15: ='RevRun Fcst'!H102 -> 32781 | E15: ='RevRun Fcst'!I102 -> 31354 | F15: ='RevRun Fcst'!J102 -> 28757 | G15: ='RevRun Fcst'!K102 -> 21118 | H15: ='RevRun Fcst'!L102 -> 14879 | I15: ='RevRun Fcst'!M102 -> 13110 | J15: ='RevRun Fcst'!N102 -> 11629 | K15: ='RevRun Fcst'!O102 -> 13878 | L15: ='RevRun Fcst'!P102 -> 18994 | M15: ='RevRun Fcst'!Q102 -> 27536 | N15: ='RevRun Fcst'!R102 -> 33608 | O15: ='RevRun Fcst'!S102 -> 40790 | P15: =SUM(D15:O15) -> 288434 | Q15: 11
D16: ='RevRun Fcst'!H93 -> 0 | E16: ='RevRun Fcst'!I93 -> 0 | F16: ='RevRun Fcst'!J93 -> 0 | G16: ='RevRun Fcst'!K93 -> 0 | H16: ='RevRun Fcst'!L93 -> 0 | I16: ='RevRun Fcst'!M93 -> 0 | J16: ='RevRun Fcst'!N93 -> 0 | K16: ='RevRun Fcst'!O93 -> 0 | L16: ='RevRun Fcst'!P93 -> 0 | M16: ='RevRun Fcst'!Q93 -> 0 | N16: ='RevRun Fcst'!R93 -> 0 | O16: ='RevRun Fcst'!S93 -> 0 | P16: =SUM(D16:O16) -> 0 | Q16: 12
A17: Total Interruptible Sales | D17: =SUM(D15:D16) -> 32781 | E17: 31354 | F17: 28757 | G17: 21118 | H17: 14879 | I17: 13110 | J17: 11629 | K17: 13878 | L17: 18994 | M17: 27536 | N17: 33608 | O17: 40790 | P17: 288434 | Q17: 13
Q18: 14
Q19: 15
A20: Total Utah Sales | D20: =+D13+D17 -> 17435441 | E20: =+E13+E17 -> 13686823 | F20: =+F13+F17 -> 9461719 | G20: =+G13+G17 -> 5671158 | H20: 3160663 | I20: 2708624 | J20: 2593558 | K20: 3014390 | L20: 7538968 | M20: 12987513 | N20: 20018948 | O20: 21662597 | P20: =+P13+P17 -> 119940402 | Q20: 16
Q21: 17
A22: Total Utah Transportation | D22: ='RevRun Fcst'!H204 -> 9142297 | E22: ='RevRun Fcst'!I204 -> 8325424 | F22: ='RevRun Fcst'!J204 -> 7849355 | G22: ='RevRun Fcst'!K204 -> 7764572 | H22: ='RevRun Fcst'!L204 -> 8068267 | I22: ='RevRun Fcst'!M204 -> 8732165 | J22: ='RevRun Fcst'!N204 -> 8679777 | K22: ='RevRun Fcst'!O204 -> 7902081 | L22: ='RevRun Fcst'!P204 -> 8083310 | M22: ='RevRun Fcst'!Q204 -> 9231004 | N22: ='RevRun Fcst'!R204 -> 10289410 | O22: ='RevRun Fcst'!S204 -> 10415745 | P22: =SUM(D22:O22) -> 104483407 | Q22: 18
Q23: 19
Q24: 20
A25: Total Utah Sales & Trans | D25: =+D20+D22 -> 26577738 | E25: 22012247 | F25: 17311074 | G25: 13435730 | H25: 11228930 | I25: 11440789 | J25: 11273335 | K25: 10916471 | L25: 15622278 | M25: 22218517 | N25: 30308358 | O25: 32078342 | P25: =+P20+P22 -> 224423809 | Q25: 21
Q26: 22
A27: WYOMING | Q27: 23
A28: GSS | D28: ='RevRun Fcst'!H244 -> 359228 | E28: ='RevRun Fcst'!I244 -> 299470 | F28: ='RevRun Fcst'!J244 -> 221831 | G28: ='RevRun Fcst'!K244 -> 142396 | H28: ='RevRun Fcst'!L244 -> 60489 | I28: ='RevRun Fcst'!M244 -> 37945 | J28: ='RevRun Fcst'!N244 -> 37839 | K28: ='RevRun Fcst'!O244 -> 55287 | L28: ='RevRun Fcst'!P244 -> 135749 | M28: ='RevRun Fcst'!Q244 -> 269670 | N28: ='RevRun Fcst'!R244 -> 406165 | O28: ='RevRun Fcst'!S244 -> 409937 | P28: =SUM(D28:O28) -> 2436006 | Q28: 24
A29: GSL | D29: ='RevRun Fcst'!H271 -> 140445 | E29: ='RevRun Fcst'!I271 -> 119233 | F29: ='RevRun Fcst'!J271 -> 89756 | G29: ='RevRun Fcst'!K271 -> 58963 | H29: ='RevRun Fcst'!L271 -> 24549 | I29: ='RevRun Fcst'!M271 -> 15237 | J29: ='RevRun Fcst'!N271 -> 15227 | K29: ='RevRun Fcst'!O271 -> 23035 | L29: ='RevRun Fcst'!P271 -> 55417 | M29: ='RevRun Fcst'!Q271 -> 107631 | N29: ='RevRun Fcst'!R271 -> 159672 | O29: ='RevRun Fcst'!S271 -> 164987 | P29: =SUM(D29:O29) -> 974152 | Q29: 25
A30: FS | D30: ='RevRun Fcst'!H253 -> 24819 | E30: ='RevRun Fcst'!I253 -> 23783 | F30: ='RevRun Fcst'!J253 -> 17153 | G30: ='RevRun Fcst'!K253 -> 12708 | H30: ='RevRun Fcst'!L253 -> 11689 | I30: ='RevRun Fcst'!M253 -> 10928 | J30: ='RevRun Fcst'!N253 -> 10660 | K30: ='RevRun Fcst'!O253 -> 13434 | L30: ='RevRun Fcst'!P253 -> 14229 | M30: ='RevRun Fcst'!Q253 -> 23527 | N30: ='RevRun Fcst'!R253 -> 26362 | O30: ='RevRun Fcst'!S253 -> 23886 | P30: =SUM(D30:O30) -> 213178 | Q30: 26
A31: NGV | D31: ='RevRun Fcst'!H262 -> 208 | E31: ='RevRun Fcst'!I262 -> 242 | F31: ='RevRun Fcst'!J262 -> 326 | G31: ='RevRun Fcst'!K262 -> 285 | H31: ='RevRun Fcst'!L262 -> 465 | I31: ='RevRun Fcst'!M262 -> 335 | J31: ='RevRun Fcst'!N262 -> 330 | K31: ='RevRun Fcst'!O262 -> 302 | L31: ='RevRun Fcst'!P262 -> 244 | M31: ='RevRun Fcst'!Q262 -> 414 | N31: ='RevRun Fcst'!R262 -> 325 | O31: ='RevRun Fcst'!S262 -> 199 | P31: =SUM(D31:O31) -> 3675 | Q31: 27
A32: Total Firm Sales | D32: =SUM(D28:D31) -> 524700 | E32: 442728 | F32: 329066 | G32: 214352 | H32: 97192 | I32: 64445 | J32: 64056 | K32: 92058 | L32: 205639 | M32: 401242 | N32: 592524 | O32: 599009 | P32: 3627011 | Q32: 28
Q33: 29
A34: IS | D34: ='RevRun Fcst'!H280 -> 14474 | E34: ='RevRun Fcst'!I280 -> 15551 | F34: ='RevRun Fcst'!J280 -> 12490 | G34: ='RevRun Fcst'!K280 -> 9338 | H34: ='RevRun Fcst'!L280 -> 7396 | I34: ='RevRun Fcst'!M280 -> 5002 | J34: ='RevRun Fcst'!N280 -> 4437 | K34: ='RevRun Fcst'!O280 -> 3033 | L34: ='RevRun Fcst'!P280 -> 6647 | M34: ='RevRun Fcst'!Q280 -> 10945 | N34: ='RevRun Fcst'!R280 -> 13189 | O34: ='RevRun Fcst'!S280 -> 16403 | P34: =SUM(D34:O34) -> 118905 | Q34: 30
D35: ='RevRun Fcst'!H289 -> 0 | E35: ='RevRun Fcst'!I289 -> 0 | F35: ='RevRun Fcst'!J289 -> 0 | G35: ='RevRun Fcst'!K289 -> 0 | H35: ='RevRun Fcst'!L289 -> 0 | I35: ='RevRun Fcst'!M289 -> 0 | J35: ='RevRun Fcst'!N289 -> 0 | K35: ='RevRun Fcst'!O289 -> 0 | L35: ='RevRun Fcst'!P289 -> 0 | M35: ='RevRun Fcst'!Q289 -> 0 | N35: ='RevRun Fcst'!R289 -> 0 | O35: ='RevRun Fcst'!S289 -> 0 | P35: =SUM(D35:O35) -> 0 | Q35: 31
A36: Total Interruptible Sales | D36: =SUM(D34:D35) -> 14474 | E36: 15551 | F36: 12490 | G36: 9338 | H36: 7396 | I36: 5002 | J36: 4437 | K36: 3033 | L36: 6647 | M36: 10945 | N36: 13189 | O36: 16403 | P36: 118905 | Q36: 32
Q37: 33
Q38: 34
A39: Total Wyoming Sales | D39: =+D32+D36 -> 539174 | E39: =+E32+E36 -> 458279 | F39: 341556 | G39: 223690 | H39: 104588 | I39: 69447 | J39: 68493 | K39: 95091 | L39: 212286 | M39: 412187 | N39: 605713 | O39: 615412 | P39: 3745916 | Q39: 35
Q40: 36
A41: Total Wyoming Transportation | D41: ='RevRun Fcst'!H328 -> 39598 | E41: ='RevRun Fcst'!I328 -> 40008 | F41: ='RevRun Fcst'!J328 -> 40373 | G41: ='RevRun Fcst'!K328 -> 54262 | H41: ='RevRun Fcst'!L328 -> 24136 | I41: ='RevRun Fcst'!M328 -> 18227 | J41: ='RevRun Fcst'!N328 -> 59113 | K41: ='RevRun Fcst'!O328 -> 46006 | L41: ='RevRun Fcst'!P328 -> 25916 | M41: ='RevRun Fcst'!Q328 -> 35912 | N41: ='RevRun Fcst'!R328 -> 45054 | O41: ='RevRun Fcst'!S328 -> 44226 | P41: =SUM(D41:O41) -> 472831 | Q41: 37
Q42: 38
Q43: 39
A44: Total Wyoming Sales & Trans | D44: =+D39+D41 -> 578772 | E44: 498287 | F44: 381929 | G44: 277952 | H44: 128724 | I44: 87674 | J44: 127606 | K44: 141097 | L44: 238202 | M44: 448099 | N44: 650767 | O44: 659638 | P44: 4218747 | Q44: 40
Q45: 41
Q46: 42
A47: Total System Sales and Trans | D47: =+D25+D44 -> 27156510 | E47: 22510534 | F47: 17693003 | G47: 13713682 | H47: 11357654 | I47: 11528463 | J47: 11400941 | K47: 11057568 | L47: 15860480 | M47: 22666616 | N47: 30959125 | O47: =+O25+O44 -> 32737980 | P47: 228642556 | Q47: 43
Q48: 44
A49: Usage by Season | Q49: 45
C50: Month | D50: =MONTH(D5) -> 2 | E50: 3 | F50: 4 | G50: 5 | H50: 6 | I50: 7 | J50: 8 | K50: 9 | L50: 10 | M50: 11 | N50: 12 | O50: 1 | Q50: 46
A51: GS | C51: Season (0=Winter, 1=Summer) | D51: =IF(D$50<4,0,IF(D$50>10,0,1)) -> 0 | E51: =IF(E$50<4,0,IF(E$50>10,0,1)) -> 0 | F51: 1 | G51: 1 | H51: 1 | I51: 1 | J51: 1 | K51: 1 | L51: 1 | M51: 0 | N51: 0 | O51: 0 | P51: Total | Q51: 47
B52: Winter | D52: =IF(D51=0,D7+D8,0) -> 17100703 | E52: =IF(E51=0,E7+E8,0) -> 13371325 | F52: 0 | G52: 0 | H52: 0 | I52: 0 | J52: 0 | K52: 0 | L52: 0 | M52: 12742512 | N52: 19691437 | O52: 21293956 | P52: =SUM(D52:O52) -> 84199933 | Q52: 48
B53: Summer | D53: =IF(D51=1,D7+D8,0) -> 0 | E53: 0 | F53: 9201477 | G53: 5443611 | H53: 2939922 | I53: 2514770 | J53: 2396381 | K53: 2791366 | L53: 7232818 | M53: 0 | N53: 0 | O53: 0 | P53: =SUM(D53:O53) -> 32520345 | Q53: 49
Q54: 50
B55: Winter | D55: =IF(D51=0,D9,0) -> 0 | E55: 0 | F55: 0 | G55: 0 | H55: 0 | I55: 0 | J55: 0 | K55: 0 | L55: 0 | M55: 0 | N55: 0 | O55: 0 | P55: =SUM(D55:O55) -> 0 | Q55: 51
B56: Summer | D56: =IF(D51=1,D9,0) -> 0 | E56: 0 | F56: 0 | G56: 0 | H56: 0 | I56: 0 | J56: 0 | K56: 0 | L56: 0 | M56: 0 | N56: 0 | O56: 0 | P56: =SUM(D56:O56) -> 0 | Q56: 52
A57: FS | Q57: 53
B58: Winter | D58: =IF(D51=0,D10,0) -> 282213 | E58: 261575 | F58: 0 | G58: 0 | H58: 0 | I58: 0 | J58: 0 | K58: 0 | L58: 0 | M58: 195104 | N58: 275246 | O58: 311946 | P58: =SUM(D58:O58) -> 1326084 | Q58: 54
B59: Summer | D59: =IF(D51=1,D10,0) -> 0 | E59: 0 | F59: 209394 | G59: 185229 | H59: 178479 | I59: 159446 | J59: 164693 | K59: 182958 | L59: 266254 | M59: 0 | N59: 0 | O59: 0 | P59: =SUM(D59:O59) -> 1346453 | Q59: 55
Q60: 56
Q61: 57
B62: Rates: R050201.R1 | C62: WYOMING NON-CORE DNG REVENUES FROM DEMAND FORECAST AND CURRENTLY EFFECTIVE I-SALES GAS COST RATES | Q62: 58
D63: Forecast | E63: Forecast | F63: Forecast | G63: Forecast | H63: Forecast | I63: Forecast | J63: Forecast | K63: Forecast | L63: Forecast | M63: Forecast | N63: Forecast | O63: Forecast | P63: 12-Month | Q63: 59
D64: =D5 -> Feb24 | E64: =E5 -> Mar24 | F64: =F5 -> Apr24 | G64: May24 | H64: Jun24 | I64: Jul24 | J64: Aug24 | K64: Sep24 | L64: Oct24 | M64: Nov24 | N64: Dec24 | O64: Jan25 | P64: Total | Q64: 60
A65: I-T (Non-Gas Revenue) (Yearly) | D65: ='RevRun Fcst'!H273+'RevRun Fcst'!H282 -> 4398.93808 | E65: ='RevRun Fcst'!I273+'RevRun Fcst'!I282 -> 4726.25992 | F65: ='RevRun Fcst'!J273+'RevRun Fcst'!J282 -> 3795.9608 | G65: ='RevRun Fcst'!K273+'RevRun Fcst'!K282 -> 2838.00496 | H65: ='RevRun Fcst'!L273+'RevRun Fcst'!L282 -> 2247.79232 | I65: ='RevRun Fcst'!M273+'RevRun Fcst'!M282 -> 1520.20784 | J65: ='RevRun Fcst'!N273+'RevRun Fcst'!N282 -> 1348.49304 | K65: ='RevRun Fcst'!O273+'RevRun Fcst'!O282 -> 921.78936 | L65: ='RevRun Fcst'!P273+'RevRun Fcst'!P282 -> 2020.15624 | M65: ='RevRun Fcst'!Q273+'RevRun Fcst'!Q282 -> 3326.4044 | N65: ='RevRun Fcst'!R273+'RevRun Fcst'!R282 -> 4008.40088 | O65: ='RevRun Fcst'!S273+'RevRun Fcst'!S282 -> 4985.19976 | P65: =SUM(D65:O65) -> 36137.6076 | Q65: 61
A66: I-C (Total Revenue) (Yearly) | D66: =ROUND(D41*$P66/$P41,0) -> 7528 | E66: 7606 | F66: 7676 | G66: 10316 | H66: 4589 | I66: 3465 | J66: 11239 | K66: 8747 | L66: 4927 | M66: 6828 | N66: 8566 | O66: =P66-SUM(D66:N66) -> 8408.93488 | P66: ='RevRun Fcst'!T300+'RevRun Fcst'!T314 -> 89895.93488 | Q66: 62
Q67: 63
A68: I-T Gas Cost (Rate Effective ) | D68: 0 | E68: =+D68 -> 0 | F68: 0 | G68: 0 | H68: 0 | I68: 0 | J68: 0 | K68: 0 | L68: 0 | M68: 0 | N68: 0 | O68: 0 | Q68: 64
A69: I-C Gas Cost (Rate Effective ) | D69: 0 | E69: 0 | F69: 0 | G69: 0 | H69: 0 | I69: 0 | J69: 0 | K69: 0 | L69: 0 | M69: 0 | N69: 0 | O69: 0 | Q69: 65
Q70: 66
Q71: 67
D72: ALLOCATION BASES | Q72: 68
D73: DEMAND | G73: OTHER COST | Q73: 69
A74: Utah Peak Day Demand | D74: =+D76-D75 -> 1242197 | E74: =D74/D76 -> 0.9693577034 | G74: Utah Sales | H74: =+P20 -> 119940402 | I74: =H74/H76 -> 0.9697143867 | Q74: 70
A75: Wyoming Peak Day Demand | D75: ='Other Inputs'!E168 -> 39267 | E75: =1-E74 -> 0.03064229662 | G75: Wyoming Sales | H75: =+P39 -> 3745916 | I75: =1-I74 -> 0.03028561332 | Q75: 71
A76: Peak Day Demand | D76: ='Other Inputs'!E169 -> 1281464 | E76: =ROUND(D76/D$76,4) -> 1 | G76: Total Sales | H76: =+H74+H75 -> 123686318 | I76: =ROUND(H76/H$76,4) -> 1 | Q76: 72
Q77: 73
Q78: 74
D79: Financial Report Information (Latest 12 Months of Actual Expenses and 13 Months of Rate Base) | Q79: 75
D80: Actual | E80: Actual | F80: Actual | G80: Actual | H80: Actual | I80: Actual | J80: Actual | K80: Actual | L80: Actual | M80: Actual | N80: Actual | O80: Actual | Q80: 76
A81: Accounts | D81: =+Expenses!D3 -> 2022-12-31 | E81: =+Expenses!E3 -> 2023-01-31 | F81: =+Expenses!F3 -> 2023-02-28 | G81: =+Expenses!G3 -> 2023-03-31 | H81: =+Expenses!H3 -> 2023-04-30 | I81: =+Expenses!I3 -> 2023-05-31 | J81: =+Expenses!J3 -> 2023-06-30 | K81: =+Expenses!K3 -> 2023-07-31 | L81: =+Expenses!L3 -> 2023-08-31 | M81: =+Expenses!M3 -> 2023-09-30 | N81: =+Expenses!N3 -> 2023-10-31 | O81: =+Expenses!O3 -> 2023-11-30 | P81: =Expenses!P3 -> 2023-11-30 | Q81: 77
A82: EXPENSES | Q82: 78
B83: Gas Use In Dth (Acct 810 & 812) | D83: 0 | E83: 0 | F83: 0 | G83: 0 | H83: 0 | I83: 0 | J83: 0 | K83: 0 | L83: 0 | M83: 0 | N83: 0 | O83: 0 | P83: 0 | Q83: 79
Q84: 80
B85: Other Revenue (Yearly) | Q85: 81
B86: Sales for Resale (account 483) | D86: =Expenses!D13 -> 111701.27 | E86: =Expenses!E13 -> 116652.96 | F86: =Expenses!F13 -> 44862.85 | G86: =Expenses!G13 -> 97483.61 | H86: =Expenses!H13 -> -30997.77 | I86: =Expenses!I13 -> 4411.07 | J86: =Expenses!J13 -> 7672.14 | K86: =Expenses!K13 -> -5189.67 | L86: =Expenses!L13 -> 135039.94 | M86: =Expenses!M13 -> 37244.56 | N86: =Expenses!N13 -> -3237.05 | O86: =Expenses!O13 -> -2371.98 | P86: =Expenses!P13 -> 513271.93 | Q86: 82
B87: Incidental Plant Prod Sales (Acct 490) | D87: =Expenses!D14 -> 658047.02 | E87: =Expenses!E14 -> 633862 | F87: =Expenses!F14 -> 503598.14 | G87: =Expenses!G14 -> 642145.09 | H87: =Expenses!H14 -> 648533.82 | I87: =Expenses!I14 -> 599054.32 | J87: =Expenses!J14 -> 716804.16 | K87: =Expenses!K14 -> 578173.08 | L87: =Expenses!L14 -> 602314.92 | M87: =Expenses!M14 -> 568496.17 | N87: =Expenses!N14 -> 505419.85 | O87: =Expenses!O14 -> 576647.08 | P87: =Expenses!P14 -> 7233095.65 | Q87: 83
B88: Gas Processed by Others (account 491) | D88: =Expenses!D22 -> 0 | E88: =Expenses!E22 -> 0 | F88: =Expenses!F22 -> 0 | G88: =Expenses!G22 -> 0 | H88: =Expenses!H22 -> 0 | I88: =Expenses!I22 -> 0 | J88: =Expenses!J22 -> 0 | K88: =Expenses!K22 -> 0 | L88: =Expenses!L22 -> 0 | M88: =Expenses!M22 -> 0 | N88: =Expenses!N22 -> 0 | O88: =Expenses!O22 -> 0 | P88: =Expenses!P22 -> 0 | Q88: 84
B89: Gasoline - Oil Sales (account 492) | D89: =Expenses!D15 -> 270050.02 | E89: =Expenses!E15 -> 248608.48 | F89: =Expenses!F15 -> 186001.41 | G89: =Expenses!G15 -> 264910.51 | H89: =Expenses!H15 -> 132739.77 | I89: =Expenses!I15 -> 245876.23 | J89: =Expenses!J15 -> 176439.24 | K89: =Expenses!K15 -> 199727.27 | L89: =Expenses!L15 -> 209628.43 | M89: =Expenses!M15 -> 212679.17 | N89: =Expenses!N15 -> 265233.67 | O89: =Expenses!O15 -> 154150.88 | P89: =Expenses!P15 -> 2566045.08 | Q89: 85
B90: Gasoline - Oil Cost (account 758.001) | D90: =-Expenses!D18 -> 0 | E90: =-Expenses!E18 -> 0 | F90: =-Expenses!F18 -> 0 | G90: =-Expenses!G18 -> 0 | H90: =-Expenses!H18 -> 0 | I90: =-Expenses!I18 -> 0 | J90: =-Expenses!J18 -> 0 | K90: =-Expenses!K18 -> 0 | L90: =-Expenses!L18 -> 0 | M90: =-Expenses!M18 -> 0 | N90: =-Expenses!N18 -> 0 | O90: =-Expenses!O18 -> 0 | P90: =-Expenses!P18 -> 0 | Q90: 86
Q91: 87
Q92: 88
B93: Overriding Royalty (account 495-1) | D93: =Expenses!D16 -> 1322085.7 | E93: =Expenses!E16 -> 853324.77 | F93: =Expenses!F16 -> 1893848.46 | G93: =Expenses!G16 -> 2030905.18 | H93: =Expenses!H16 -> 5474406.2 | I93: =Expenses!I16 -> 1611880.84 | J93: =Expenses!J16 -> 838353.67 | K93: =Expenses!K16 -> 640468.23 | L93: =Expenses!L16 -> 547873.44 | M93: =Expenses!M16 -> 462065.74 | N93: =Expenses!N16 -> 647057.14 | O93: =Expenses!O16 -> 713964.83 | P93: =Expenses!P16 -> 17036234.2 | Q93: 89
B94: Wexpro Revenue Sharing (account 495-2) | D94: =Expenses!D17 -> 134071 | E94: =Expenses!E17 -> 192539 | F94: =Expenses!F17 -> 135933 | G94: =Expenses!G17 -> 153877 | H94: =Expenses!H17 -> 113785 | I94: =Expenses!I17 -> 127491 | J94: =Expenses!J17 -> 110418 | K94: =Expenses!K17 -> 159998 | L94: =Expenses!L17 -> 149727 | M94: =Expenses!M17 -> 245223 | N94: =Expenses!N17 -> 157152 | O94: =Expenses!O17 -> 181601 | P94: =Expenses!P17 -> 1861815 | Q94: 90
P95: Page 2 of 6 | Q95: 91
C96: Actual | D96: Actual | E96: Actual | F96: Actual | G96: Actual | H96: Actual | I96: Actual | J96: Actual | K96: Actual | L96: Actual | M96: Actual | N96: Actual | O96: Actual | P96: 13-Month | Q96: 92
A97: Accounts | C97: ='Rate Base'!D4 -> 2022-11-30 | D97: ='Rate Base'!E4 -> 2022-12-31 | E97: ='Rate Base'!F4 -> 2023-01-31 | F97: ='Rate Base'!G4 -> 2023-02-28 | G97: ='Rate Base'!H4 -> 2023-03-31 | H97: ='Rate Base'!I4 -> 2023-04-30 | I97: ='Rate Base'!J4 -> 2023-05-31 | J97: ='Rate Base'!K4 -> 2023-06-30 | K97: ='Rate Base'!L4 -> 2023-07-31 | L97: ='Rate Base'!M4 -> 2023-08-31 | M97: ='Rate Base'!N4 -> 2023-09-30 | N97: ='Rate Base'!O4 -> 2023-10-31 | O97: ='Rate Base'!P4 -> 2023-11-30 | P97: Average | Q97: 93
A98: RATE BASE - PRODUCTION | Q98: 94
B99: Acct 164 (Working Gas) - Production | C99: ='Rate Base'!D11 -> 54725203.51 | D99: ='Rate Base'!E11 -> 48124018.51 | E99: ='Rate Base'!F11 -> 38171290.14 | F99: ='Rate Base'!G11 -> 25855834.76 | G99: ='Rate Base'!H11 -> 15888859.86 | H99: ='Rate Base'!I11 -> 7968756.59 | I99: ='Rate Base'!J11 -> 12876982.57 | J99: ='Rate Base'!K11 -> 19959087.44 | K99: ='Rate Base'!L11 -> 29582847.76 | L99: ='Rate Base'!M11 -> 35365075.83 | M99: ='Rate Base'!N11 -> 41333952.83 | N99: ='Rate Base'!O11 -> 47096570.81 | O99: ='Rate Base'!P11 -> 46172201.98 | P99: =(((+C99+O99)/2)+SUM(D99:N99))/12 -> 31055998.32 | Q99: 95
B100: Acct 164 (Working Gas LNG) - Production | C100: ='Rate Base'!D12 -> 128654.34 | D100: ='Rate Base'!E12 -> 1512116.55 | E100: ='Rate Base'!F12 -> 2734947.77 | F100: ='Rate Base'!G12 -> 2488759.29 | G100: ='Rate Base'!H12 -> 2390666.52 | H100: ='Rate Base'!I12 -> 2523294.88 | I100: ='Rate Base'!J12 -> 2424454.43 | J100: ='Rate Base'!K12 -> 2392122.95 | K100: ='Rate Base'!L12 -> 2746647.6 | L100: ='Rate Base'!M12 -> 3151056.46 | M100: ='Rate Base'!N12 -> 4014423.46 | N100: ='Rate Base'!O12 -> 4696793.74 | O100: ='Rate Base'!P12 -> 5584918.49 | P100: 2827672.505 | Q100: 96
B101: Acct 101 - Production | C101: ='Rate Base'!D5 -> 79968136 | D101: ='Rate Base'!E5 -> 79968136 | E101: ='Rate Base'!F5 -> 79968136 | F101: ='Rate Base'!G5 -> 79968136 | G101: ='Rate Base'!H5 -> 79968136 | H101: ='Rate Base'!I5 -> 79968136 | I101: ='Rate Base'!J5 -> 79968136 | J101: ='Rate Base'!K5 -> 79968136 | K101: ='Rate Base'!L5 -> 79968136 | L101: ='Rate Base'!M5 -> 79968136 | M101: ='Rate Base'!N5 -> 79968136 | N101: ='Rate Base'!O5 -> 79968136 | O101: ='Rate Base'!P5 -> 79968136 | P101: 79968136 | Q101: 97
B102: Acct 108 - Production | C102: ='Rate Base'!D7 -> -72525283 | D102: ='Rate Base'!E7 -> -72654580 | E102: ='Rate Base'!F7 -> -72717773 | F102: ='Rate Base'!G7 -> -72717773 | G102: ='Rate Base'!H7 -> -72717773 | H102: ='Rate Base'!I7 -> -72717773 | I102: ='Rate Base'!J7 -> -72885178 | J102: ='Rate Base'!K7 -> -72927865 | K102: ='Rate Base'!L7 -> -72970552 | L102: ='Rate Base'!M7 -> -73053003 | M102: ='Rate Base'!N7 -> -73093850 | N102: ='Rate Base'!O7 -> -73136726 | O102: ='Rate Base'!P7 -> -73136726 | P102: -72868654.21 | Q102: 98
B103: Acct 111 - Production | C103: ='Rate Base'!D9 -> -6150277 | D103: ='Rate Base'!E9 -> -6150277 | E103: ='Rate Base'!F9 -> -6150227 | F103: ='Rate Base'!G9 -> -6150227 | G103: ='Rate Base'!H9 -> -6150277 | H103: ='Rate Base'!I9 -> -6150277 | I103: ='Rate Base'!J9 -> -6150277 | J103: ='Rate Base'!K9 -> -6150277 | K103: ='Rate Base'!L9 -> -6150277 | L103: ='Rate Base'!M9 -> -6150277 | M103: ='Rate Base'!N9 -> -6150277 | N103: ='Rate Base'!O9 -> -6150277 | O103: ='Rate Base'!P9 -> -6150277 | P103: -6150268.667 | Q103: 99
B104: Acct 2550 - Production | C104: ='Rate Base'!D14 -> 0 | D104: ='Rate Base'!E14 -> 0 | E104: ='Rate Base'!F14 -> 0 | F104: ='Rate Base'!G14 -> 0 | G104: ='Rate Base'!H14 -> 0 | H104: ='Rate Base'!I14 -> 0 | I104: ='Rate Base'!J14 -> 0 | J104: ='Rate Base'!K14 -> 0 | K104: ='Rate Base'!L14 -> 0 | L104: ='Rate Base'!M14 -> 0 | M104: ='Rate Base'!N14 -> 0 | N104: ='Rate Base'!O14 -> 0 | O104: ='Rate Base'!P14 -> 0 | P104: 0 | Q104: 100
B105: Acct 2820 - Production | C105: ='Rate Base'!D16 -> -38356978 | D105: ='Rate Base'!E16 -> -43428098 | E105: ='Rate Base'!F16 -> -44252449 | F105: ='Rate Base'!G16 -> -44252449 | G105: ='Rate Base'!H16 -> -44252449 | H105: ='Rate Base'!I16 -> -44252449 | I105: ='Rate Base'!J16 -> -44335337 | J105: ='Rate Base'!K16 -> -45257455 | K105: ='Rate Base'!L16 -> -46173674 | L105: ='Rate Base'!M16 -> -48802819 | M105: ='Rate Base'!N16 -> -49825934 | N105: ='Rate Base'!O16 -> -50797293 | O105: ='Rate Base'!P16 -> -52128010 | P105: -45906075 | Q105: 101
B106: Acct 2821 - Production | C106: ='Rate Base'!D18 -> -700755 | D106: ='Rate Base'!E18 -> -700755 | E106: ='Rate Base'!F18 -> -700755 | F106: ='Rate Base'!G18 -> -700755 | G106: ='Rate Base'!H18 -> -700755 | H106: ='Rate Base'!I18 -> -700755 | I106: ='Rate Base'!J18 -> -700755 | J106: ='Rate Base'!K18 -> -700755 | K106: ='Rate Base'!L18 -> -700755 | L106: ='Rate Base'!M18 -> -700755 | M106: ='Rate Base'!N18 -> -700755 | N106: ='Rate Base'!O18 -> -700755 | O106: ='Rate Base'!P18 -> -700755 | P106: -700755 | Q106: 102
Q107: 103
D108: Production | H108: Acct 101 | I108: Acct 108 | J108: Acct 111 | K108: Acct 2550 | L108: Acct 2820 | M108: Acct 2821 | N108: Total | Q108: 104
B109: Depreciation - Acct 403 | D109: =Expenses!P8 -> 611443 | F109: Thirteen month average | H109: =P101 -> 79968136 | I109: =P102 -> -72868654.21 | J109: =P103 -> -6150268.667 | K109: =P104 -> 0 | L109: =P105 -> -45906075 | M109: =P106 -> -700755 | N109: =SUM(H109:M109) -> -45657616.87 | Q109: 105
B110: Amortization & Depletion - Acct 404 | D110: =Expenses!P10 -> 0 | F110: =CONCATENATE("Wexpro Red. @ ",-'Other Inputs'!E293*100," %") -> Wexpro Red. @ 6.3 % | H110: =H109*'Other Inputs'!$E$293 -> -5037992.568 | I110: =I109*'Other Inputs'!$E$293 -> 4590725.215 | J110: =J109*'Other Inputs'!$E$293 -> 387466.926 | N110: =SUM(H110:M110) -> -59800.42687 | Q110: 106
B111: Utah Pre-Tax Return on Production Assets | D111: =+N112 -> -3866774.093 | M111: =SUM(N109:N110) -> -45717417.3 | Q111: 107
B112: Utah Production Cost | D112: =SUM(D109:D111) -> -3255331.093 | M112: ="Utah Pre-Tax Rate of Return on Production Assets ("&'Other Inputs'!E296&")" -> Utah Pre-Tax Rate of Return on Production Assets (0.0845798892651739) | N112: =M111*'Other Inputs'!E296 -> -3866774.093 | Q112: 108
M113: ="Wyoming Pre-Tax Rate of Return on Production Assets ("&'Other Inputs'!E295&")" -> Wyoming Pre-Tax Rate of Return on Production Assets (0.0858508031717357) | N113: =M111*'Other Inputs'!E295 -> -3924876.994 | Q113: 109
Q114: 110
A115: TACTICAL PLAN INFORMATION (IRP) | P115: 12-Month | Q115: 111
D116: =D5 -> Feb24 | E116: =E5 -> Mar24 | F116: Apr24 | G116: May24 | H116: Jun24 | I116: Jul24 | J116: Aug24 | K116: Sep24 | L116: Oct24 | M116: Nov24 | N116: Dec24 | O116: Jan25 | P116: Total | Q116: 112
A117: COMPANY PRODUCTION | Q117: 113
B118: Prior Company | Q118: 114
B119: D24 Wells | Q119: 115
B120: Brady & Powel | Q120: 116
B121: Total Company Production Wexpro I & II | D121: ='Monthly Inputs'!G7+'Monthly Inputs'!G12 -> 4784353.722 | E121: ='Monthly Inputs'!H7+'Monthly Inputs'!H12 -> 4976704.27 | F121: ='Monthly Inputs'!I7+'Monthly Inputs'!I12 -> 4700447.58 | G121: ='Monthly Inputs'!J7+'Monthly Inputs'!J12 -> 4750998.741 | H121: ='Monthly Inputs'!K7+'Monthly Inputs'!K12 -> 4200208.355 | I121: ='Monthly Inputs'!L7+'Monthly Inputs'!L12 -> 4273470.383 | J121: ='Monthly Inputs'!M7+'Monthly Inputs'!M12 -> 4209893.693 | K121: ='Monthly Inputs'!N7+'Monthly Inputs'!N12 -> 4016496.249 | L121: ='Monthly Inputs'!O7+'Monthly Inputs'!O12 -> 4094267.439 | M121: ='Monthly Inputs'!P7+'Monthly Inputs'!P12 -> 4785366.269 | N121: ='Monthly Inputs'!Q7+'Monthly Inputs'!Q12 -> 4770519.519 | O121: ='Monthly Inputs'!R7+'Monthly Inputs'!R12 -> 4633685.02 | P121: =SUM(D121:O121) -> 54196411.24 | Q121: 117
Q122: 118
A123: STORAGE INJECTIONS | Q123: 119
B124: Chalk Creek | D124: ='Monthly Inputs'!G17 -> 44310 | E124: ='Monthly Inputs'!H17 -> 0 | F124: ='Monthly Inputs'!I17 -> 0 | G124: ='Monthly Inputs'!J17 -> 0 | H124: ='Monthly Inputs'!K17 -> 0 | I124: ='Monthly Inputs'!L17 -> 0 | J124: ='Monthly Inputs'!M17 -> 0 | K124: ='Monthly Inputs'!N17 -> 40000 | L124: ='Monthly Inputs'!O17 -> 114000 | M124: ='Monthly Inputs'!P17 -> 90000 | N124: ='Monthly Inputs'!Q17 -> 44900 | O124: ='Monthly Inputs'!R17 -> 0 | P124: =SUM(D124:O124) -> 333210 | Q124: 120
B125: Coalville | D125: ='Monthly Inputs'!G19 -> 170000 | E125: ='Monthly Inputs'!H19 -> 348750 | F125: ='Monthly Inputs'!I19 -> 0 | G125: ='Monthly Inputs'!J19 -> 0 | H125: ='Monthly Inputs'!K19 -> 0 | I125: ='Monthly Inputs'!L19 -> 0 | J125: ='Monthly Inputs'!M19 -> 0 | K125: ='Monthly Inputs'!N19 -> 42000 | L125: ='Monthly Inputs'!O19 -> 280800 | M125: ='Monthly Inputs'!P19 -> 37386 | N125: ='Monthly Inputs'!Q19 -> 0 | O125: ='Monthly Inputs'!R19 -> 0 | P125: =SUM(D125:O125) -> 878936 | Q125: 121
B126: Leroy | D126: ='Monthly Inputs'!G20 -> 146800 | E126: ='Monthly Inputs'!H20 -> 376152 | F126: ='Monthly Inputs'!I20 -> 0 | G126: ='Monthly Inputs'!J20 -> 0 | H126: ='Monthly Inputs'!K20 -> 0 | I126: ='Monthly Inputs'!L20 -> 0 | J126: ='Monthly Inputs'!M20 -> 0 | K126: ='Monthly Inputs'!N20 -> 47500 | L126: ='Monthly Inputs'!O20 -> 45000 | M126: ='Monthly Inputs'!P20 -> 300000 | N126: ='Monthly Inputs'!Q20 -> 50998 | O126: ='Monthly Inputs'!R20 -> 0 | P126: =SUM(D126:O126) -> 966450 | Q126: 122
B127: Spire | D127: ='Monthly Inputs'!G21 -> 0 | E127: ='Monthly Inputs'!H21 -> 0 | F127: ='Monthly Inputs'!I21 -> 0 | G127: ='Monthly Inputs'!J21 -> 0 | H127: ='Monthly Inputs'!K21 -> 341730 | I127: ='Monthly Inputs'!L21 -> 353120 | J127: ='Monthly Inputs'!M21 -> 353120 | K127: ='Monthly Inputs'!N21 -> 341730 | L127: ='Monthly Inputs'!O21 -> 353119 | M127: ='Monthly Inputs'!P21 -> 0 | N127: ='Monthly Inputs'!Q21 -> 0 | O127: ='Monthly Inputs'!R21 -> 0 | P127: =SUM(D127:O127) -> 1742819 | Q127: 123
B128: Total Peaking Storage | D128: =SUM(D124:D127) -> 361110 | E128: =SUM(E124:E127) -> 724902 | F128: 0 | G128: 0 | H128: 341730 | I128: 353120 | J128: 353120 | K128: 471230 | L128: 792919 | M128: 427386 | N128: 95898 | O128: =SUM(O124:O127) -> 0 | P128: =SUM(P124:P127) -> 3921415 | Q128: 124
B129: Clay Basin | D129: ='Monthly Inputs'!G18 -> 0 | E129: ='Monthly Inputs'!H18 -> 0 | F129: ='Monthly Inputs'!I18 -> 0 | G129: ='Monthly Inputs'!J18 -> 1358748 | H129: ='Monthly Inputs'!K18 -> 2340000 | I129: ='Monthly Inputs'!L18 -> 2418000 | J129: ='Monthly Inputs'!M18 -> 1901417 | K129: ='Monthly Inputs'!N18 -> 2340000 | L129: ='Monthly Inputs'!O18 -> 1836696 | M129: ='Monthly Inputs'!P18 -> 0 | N129: ='Monthly Inputs'!Q18 -> 0 | O129: ='Monthly Inputs'!R18 -> 0 | P129: =SUM(D129:O129) -> 12194861 | Q129: 125
B130: Total Storage Injections | D130: =SUM(D128:D129) -> 361110 | E130: =SUM(E128:E129) -> 724902 | F130: 0 | G130: 1358748 | H130: 2681730 | I130: 2771120 | J130: 2254537 | K130: 2811230 | L130: 2629615 | M130: 427386 | N130: 95898 | O130: 0 | P130: 16116276 | Q130: 126
A131: STORAGE WITHDRAWLS | Q131: 127
B132: Chalk Creek | D132: ='Monthly Inputs'!G25 -> 110250 | E132: ='Monthly Inputs'!H25 -> 98400 | F132: ='Monthly Inputs'!I25 -> 0 | G132: ='Monthly Inputs'!J25 -> 0 | H132: ='Monthly Inputs'!K25 -> 0 | I132: ='Monthly Inputs'!L25 -> 0 | J132: ='Monthly Inputs'!M25 -> 0 | K132: ='Monthly Inputs'!N25 -> 0 | L132: ='Monthly Inputs'!O25 -> 0 | M132: ='Monthly Inputs'!P25 -> 0 | N132: ='Monthly Inputs'!Q25 -> 45004 | O132: ='Monthly Inputs'!R25 -> 79556 | P132: =SUM(D132:O132) -> 333210 | Q132: 128
B133: Coalville | D133: ='Monthly Inputs'!G27 -> 468750 | E133: ='Monthly Inputs'!H27 -> 0 | F133: ='Monthly Inputs'!I27 -> 0 | G133: ='Monthly Inputs'!J27 -> 0 | H133: ='Monthly Inputs'!K27 -> 0 | I133: ='Monthly Inputs'!L27 -> 0 | J133: ='Monthly Inputs'!M27 -> 0 | K133: ='Monthly Inputs'!N27 -> 0 | L133: ='Monthly Inputs'!O27 -> 0 | M133: ='Monthly Inputs'!P27 -> 0 | N133: ='Monthly Inputs'!Q27 -> 60079 | O133: ='Monthly Inputs'!R27 -> 350107 | P133: =SUM(D133:O133) -> 878936 | Q133: 129
B134: Leroy | D134: ='Monthly Inputs'!G28 -> 496152 | E134: ='Monthly Inputs'!H28 -> 0 | F134: ='Monthly Inputs'!I28 -> 0 | G134: ='Monthly Inputs'!J28 -> 0 | H134: ='Monthly Inputs'!K28 -> 0 | I134: ='Monthly Inputs'!L28 -> 0 | J134: ='Monthly Inputs'!M28 -> 0 | K134: ='Monthly Inputs'!N28 -> 0 | L134: ='Monthly Inputs'!O28 -> 0 | M134: ='Monthly Inputs'!P28 -> 0 | N134: ='Monthly Inputs'!Q28 -> 78943 | O134: ='Monthly Inputs'!R28 -> 391355 | P134: =SUM(D134:O134) -> 966450 | Q134: 130
B135: Spire | D135: ='Monthly Inputs'!G29 -> 0 | E135: ='Monthly Inputs'!H29 -> 0 | F135: ='Monthly Inputs'!I29 -> 0 | G135: ='Monthly Inputs'!J29 -> 0 | H135: ='Monthly Inputs'!K29 -> 0 | I135: ='Monthly Inputs'!L29 -> 0 | J135: ='Monthly Inputs'!M29 -> 0 | K135: ='Monthly Inputs'!N29 -> 0 | L135: ='Monthly Inputs'!O29 -> 0 | M135: ='Monthly Inputs'!P29 -> 491400 | N135: ='Monthly Inputs'!Q29 -> 514600 | O135: ='Monthly Inputs'!R29 -> 514600 | P135: =SUM(D135:O135) -> 1520600 | Q135: 131
B136: Total Peaking Storage | D136: =SUM(D132:D135) -> 1075152 | E136: =SUM(E132:E135) -> 98400 | F136: 0 | G136: 0 | H136: 0 | I136: 0 | J136: 0 | K136: 0 | L136: 0 | M136: 491400 | N136: 698626 | O136: 1335618 | P136: 3699196 | Q136: 132
B137: Clay Basin | D137: ='Monthly Inputs'!G26 -> 585580 | E137: ='Monthly Inputs'!H26 -> 268380 | F137: ='Monthly Inputs'!I26 -> 0 | G137: ='Monthly Inputs'!J26 -> 0 | H137: ='Monthly Inputs'!K26 -> 0 | I137: ='Monthly Inputs'!L26 -> 0 | J137: ='Monthly Inputs'!M26 -> 0 | K137: ='Monthly Inputs'!N26 -> 0 | L137: ='Monthly Inputs'!O26 -> 0 | M137: ='Monthly Inputs'!P26 -> 4798645 | N137: ='Monthly Inputs'!Q26 -> 3414494 | O137: ='Monthly Inputs'!R26 -> 3410050 | P137: =SUM(D137:O137) -> 12477149 | Q137: 133
Q138: 134
B139: Total Storage Withdrawls | D139: =SUM(D136:D137) -> 1660732 | E139: =SUM(E136:E137) -> 366780 | F139: 0 | G139: 0 | H139: 0 | I139: 0 | J139: 0 | K139: 0 | L139: 0 | M139: =SUM(M136:M137) -> 5290045 | N139: 4113120 | O139: 4745668 | P139: 16176345 | Q139: 135
Q140: 136
A141: LNG | Q141: 137
B142: Injections | D142: =+'Monthly Inputs'!G33 -> 0 | E142: =+'Monthly Inputs'!H33 -> 0 | F142: =+'Monthly Inputs'!I33 -> 0 | G142: =+'Monthly Inputs'!J33 -> 0 | H142: =+'Monthly Inputs'!K33 -> 0 | I142: =+'Monthly Inputs'!L33 -> 0 | J142: =+'Monthly Inputs'!M33 -> 0 | K142: =+'Monthly Inputs'!N33 -> 9000 | L142: =+'Monthly Inputs'!O33 -> 227680 | M142: =+'Monthly Inputs'!P33 -> 10125 | N142: =+'Monthly Inputs'!Q33 -> 0 | O142: =+'Monthly Inputs'!R33 -> 0 | P142: =+'Monthly Inputs'!S33 -> 246805 | Q142: 138
B143: Withdrawals | D143: =+'Monthly Inputs'!G34 -> 19575 | E143: =+'Monthly Inputs'!H34 -> 20894 | F143: =+'Monthly Inputs'!I34 -> 20220 | G143: =+'Monthly Inputs'!J34 -> 20894 | H143: =+'Monthly Inputs'!K34 -> 20220 | I143: =+'Monthly Inputs'!L34 -> 20894 | J143: =+'Monthly Inputs'!M34 -> 20894 | K143: =+'Monthly Inputs'!N34 -> 20220 | L143: =+'Monthly Inputs'!O34 -> 20894 | M143: =+'Monthly Inputs'!P34 -> 20250 | N143: =+'Monthly Inputs'!Q34 -> 20925 | O143: =+'Monthly Inputs'!R34 -> 20925 | P143: =+'Monthly Inputs'!S34 -> 246805 | Q143: 139
Q144: 140
Q145: 141
A146: Gas Supply and Demand | D146: =D4 -> Forecast | E146: Forecast | F146: Forecast | G146: Forecast | H146: Forecast | I146: Forecast | J146: Forecast | K146: Forecast | L146: Forecast | M146: Forecast | N146: Forecast | O146: Forecast | P146: 12-Month | Q146: 142
A147: Demand | D147: =D5 -> Feb24 | E147: Mar24 | F147: Apr24 | G147: May24 | H147: Jun24 | I147: Jul24 | J147: Aug24 | K147: Sep24 | L147: Oct24 | M147: Nov24 | N147: Dec24 | O147: Jan25 | P147: Total | Q147: 143
Q148: 144
A149: Utah Sales | D149: =+D20 -> 17435441 | E149: 13686823 | F149: 9461719 | G149: 5671158 | H149: 3160663 | I149: 2708624 | J149: 2593558 | K149: 3014390 | L149: 7538968 | M149: 12987513 | N149: 20018948 | O149: 21662597 | P149: =SUM(D149:O149) -> 119940402 | Q149: 145
A150: Wyoming Sales | D150: =+D39 -> 539174 | E150: =+E39 -> 458279 | F150: 341556 | G150: 223690 | H150: 104588 | I150: 69447 | J150: 68493 | K150: 95091 | L150: 212286 | M150: 412187 | N150: 605713 | O150: 615412 | P150: =SUM(D150:O150) -> 3745916 | Q150: 146
A151: Total Sales | D151: =+D149+D150 -> 17974615 | E151: 14145102 | F151: 9803275 | G151: 5894848 | H151: 3265251 | I151: 2778071 | J151: 2662051 | K151: 3109481 | L151: 7751254 | M151: 13399700 | N151: 20624661 | O151: 22278009 | P151: 123686318 | Q151: 147
Q152: 148
A153: Distribution Use (Offices) | D153: =ROUND(O83,0) -> 0 | E153: =ROUND(D83,0) -> 0 | F153: 0 | G153: 0 | H153: 0 | I153: 0 | J153: 0 | K153: 0 | L153: 0 | M153: 0 | N153: 0 | O153: 0 | P153: =SUM(D153:O153) -> 0 | Q153: 149
A154: Distribution Lost and Unaccounted for | D154: =+D156-D151-D153 -> 122700 | E154: =+E156-E151-E153 -> 96558 | F154: 66920 | G154: 40240 | H154: 22290 | I154: 18964 | J154: 18172 | K154: 21226 | L154: 52912 | M154: 91470 | N154: 140790 | O154: =+O156-O151-O153 -> 152076 | P154: =SUM(D154:O154) -> 844318 | Q154: 150
Q155: 151
A156: Total City Gate | D156: =ROUND((D151+D153)/(1-'Other Inputs'!$E$180),0) -> 18097315 | E156: =ROUND((E151+E153)/(1-'Other Inputs'!$E$180),0) -> 14241660 | F156: =ROUND((F151+F153)/(1-'Other Inputs'!$E$180),0) -> 9870195 | G156: =ROUND((G151+G153)/(1-'Other Inputs'!$E$180),0) -> 5935088 | H156: =ROUND((H151+H153)/(1-'Other Inputs'!$E$180),0) -> 3287541 | I156: =ROUND((I151+I153)/(1-'Other Inputs'!$E$180),0) -> 2797035 | J156: =ROUND((J151+J153)/(1-'Other Inputs'!$E$180),0) -> 2680223 | K156: =ROUND((K151+K153)/(1-'Other Inputs'!$E$180),0) -> 3130707 | L156: =ROUND((L151+L153)/(1-'Other Inputs'!$E$180),0) -> 7804166 | M156: =ROUND((M151+M153)/(1-'Other Inputs'!$E$180),0) -> 13491170 | N156: =ROUND((N151+N153)/(1-'Other Inputs'!$E$180),0) -> 20765451 | O156: =ROUND((O151+O153)/(1-'Other Inputs'!$E$180),0) -> 22430085 | P156: =SUM(D156:O156) -> 124530636 | Q156: 152
Q157: 153
A158: Peaking Injection | D158: =+D128 -> 361110 | E158: 724902 | F158: 0 | G158: 0 | H158: 341730 | I158: 353120 | J158: 353120 | K158: 471230 | L158: 792919 | M158: 427386 | N158: 95898 | O158: 0 | P158: =SUM(D158:O158) -> 3921415 | Q158: 154
A159: Clay Basin Injection | D159: =+D129 -> 0 | E159: 0 | F159: 0 | G159: 1358748 | H159: 2340000 | I159: 2418000 | J159: 1901417 | K159: 2340000 | L159: 1836696 | M159: 0 | N159: 0 | O159: 0 | P159: =SUM(D159:O159) -> 12194861 | Q159: 155
A160: Storage Lost & Unaccounted For | D160: =-'Monthly Inputs'!G46 -> 6611.846 | E160: =-'Monthly Inputs'!H46 -> 14441.7438 | F160: =-'Monthly Inputs'!I46 -> 0 | G160: =-'Monthly Inputs'!J46 -> 13245.79972 | H160: =-'Monthly Inputs'!K46 -> 22811.56722 | I160: =-'Monthly Inputs'!L46 -> 23571.95279 | J160: =-'Monthly Inputs'!M46 -> 18536.02637 | K160: =-'Monthly Inputs'!N46 -> 25199.46722 | L160: =-'Monthly Inputs'!O46 -> 23616.25157 | M160: =-'Monthly Inputs'!P46 -> 10496.6442 | N160: =-'Monthly Inputs'!Q46 -> 2154.8812 | O160: =-'Monthly Inputs'!R46 -> 0 | P160: =SUM(D160:O160) -> 160686.1801 | Q160: 156
A161: Total Demand | D161: =SUM(D156:D160) -> 18465036.85 | E161: =SUM(E156:E160) -> 14981003.74 | F161: 9870195 | G161: 7307081.8 | H161: =SUM(H156:H160) -> 5992082.567 | I161: 5591726.953 | J161: 4953296.026 | K161: 5967136.467 | L161: =SUM(L156:L160) -> 10457397.25 | M161: 13929052.64 | N161: 20863503.88 | O161: =SUM(O156:O160) -> 22430085 | P161: =SUM(D161:O161) -> 140807598.2 | Q161: 157
Q162: 158
D163: Forecast | E163: Forecast | F163: Forecast | G163: Forecast | H163: Forecast | I163: Forecast | J163: Forecast | K163: Forecast | L163: Forecast | M163: Forecast | N163: Forecast | O163: Forecast | P163: 12-Month | Q163: 159
A164: Supply | D164: =D5 -> Feb24 | E164: Mar24 | F164: Apr24 | G164: May24 | H164: Jun24 | I164: Jul24 | J164: Aug24 | K164: Sep24 | L164: Oct24 | M164: Nov24 | N164: Dec24 | O164: Jan25 | P164: Total | Q164: 160
A165: Company Production | D165: =+D121 -> 4784353.722 | E165: 4976704.27 | F165: 4700447.58 | G165: 4750998.741 | H165: 4200208.355 | I165: 4273470.383 | J165: 4209893.693 | K165: 4016496.249 | L165: 4094267.439 | M165: 4785366.269 | N165: 4770519.519 | O165: 4633685.02 | P165: =SUM(D165:O165) -> 54196411.24 | Q165: 161
A166: Co Prod Lost & Unaccounted For | D166: =ROUND(D165*(-'Other Inputs'!$E$184-'Other Inputs'!$E$183),0) -> -234433 | E166: =ROUND(E165*(-'Other Inputs'!$E$184-'Other Inputs'!$E$183),0) -> -243859 | F166: =ROUND(F165*(-'Other Inputs'!$E$184-'Other Inputs'!$E$183),0) -> -230322 | G166: =ROUND(G165*(-'Other Inputs'!$E$184-'Other Inputs'!$E$183),0) -> -232799 | H166: =ROUND(H165*(-'Other Inputs'!$E$184-'Other Inputs'!$E$183),0) -> -205810 | I166: =ROUND(I165*(-'Other Inputs'!$E$184-'Other Inputs'!$E$183),0) -> -209400 | J166: =ROUND(J165*(-'Other Inputs'!$E$184-'Other Inputs'!$E$183),0) -> -206285 | K166: =ROUND(K165*(-'Other Inputs'!$E$184-'Other Inputs'!$E$183),0) -> -196808 | L166: =ROUND(L165*(-'Other Inputs'!$E$184-'Other Inputs'!$E$183),0) -> -200619 | M166: =ROUND(M165*(-'Other Inputs'!$E$184-'Other Inputs'!$E$183),0) -> -234483 | N166: =ROUND(N165*(-'Other Inputs'!$E$184-'Other Inputs'!$E$183),0) -> -233755 | O166: =ROUND(O165*(-'Other Inputs'!$E$184-'Other Inputs'!$E$183),0) -> -227051 | P166: =SUM(D166:O166) -> -2655624 | Q166: 162
A167: Company Production @ City Gate | D167: =SUM(D165:D166) -> 4549920.722 | E167: =SUM(E165:E166) -> 4732845.27 | F167: 4470125.58 | G167: 4518199.741 | H167: 3994398.355 | I167: 4064070.383 | J167: 4003608.693 | K167: 3819688.249 | L167: 3893648.439 | M167: 4550883.269 | N167: 4536764.519 | O167: 4406634.02 | P167: =SUM(D167:O167) -> 51540787.24 | Q167: 163
Q168: 164
A169: Peaking Withdrawal | D169: =+D136 -> 1075152 | E169: 98400 | F169: 0 | G169: 0 | H169: 0 | I169: 0 | J169: 0 | K169: 0 | L169: 0 | M169: 491400 | N169: 698626 | O169: 1335618 | P169: =SUM(D169:O169) -> 3699196 | Q169: 165
A170: Clay Basin Withdrawal | D170: =+D137 -> 585580 | E170: 268380 | F170: 0 | G170: 0 | H170: 0 | I170: 0 | J170: 0 | K170: 0 | L170: 0 | M170: 4798645 | N170: 3414494 | O170: 3410050 | P170: =SUM(D170:O170) -> 12477149 | Q170: 166
A171: LNG Withdrawal | D171: =+D143 -> 19575 | E171: =+E143 -> 20894 | F171: 20220 | G171: 20894 | H171: 20220 | I171: 20894 | J171: 20894 | K171: 20220 | L171: 20894 | M171: 20250 | N171: 20925 | O171: 20925 | P171: =SUM(D171:O171) -> 246805 | Q171: 167
A172: Williams Transportation Loss on Storage | D172: ='Monthly Inputs'!G62+'Monthly Inputs'!G54 -> -32192.05455 | E172: ='Monthly Inputs'!H62+'Monthly Inputs'!H54 -> -5996.885106 | F172: ='Monthly Inputs'!I62+'Monthly Inputs'!I54 -> 0 | G172: ='Monthly Inputs'!J62+'Monthly Inputs'!J54 -> 0 | H172: ='Monthly Inputs'!K62+'Monthly Inputs'!K54 -> 0 | I172: ='Monthly Inputs'!L62+'Monthly Inputs'!L54 -> 0 | J172: ='Monthly Inputs'!M62+'Monthly Inputs'!M54 -> 0 | K172: ='Monthly Inputs'!N62+'Monthly Inputs'!N54 -> 0 | L172: ='Monthly Inputs'!O62+'Monthly Inputs'!O54 -> 0 | M172: ='Monthly Inputs'!P62+'Monthly Inputs'!P54 -> -63439.69526 | N172: ='Monthly Inputs'!Q62+'Monthly Inputs'!Q54 -> -51033.35906 | O172: ='Monthly Inputs'!R62+'Monthly Inputs'!R54 -> -65645.48803 | P172: =SUM(D172:O172) -> -218307.482 | Q172: 168
A173: Storage Lost & Unaccounted For | D173: ='Monthly Inputs'!G46 -> -6611.846 | E173: ='Monthly Inputs'!H46 -> -14441.7438 | F173: ='Monthly Inputs'!I46 -> 0 | G173: ='Monthly Inputs'!J46 -> -13245.79972 | H173: ='Monthly Inputs'!K46 -> -22811.56722 | I173: ='Monthly Inputs'!L46 -> -23571.95279 | J173: ='Monthly Inputs'!M46 -> -18536.02637 | K173: ='Monthly Inputs'!N46 -> -25199.46722 | L173: ='Monthly Inputs'!O46 -> -23616.25157 | M173: ='Monthly Inputs'!P46 -> -10496.6442 | N173: ='Monthly Inputs'!Q46 -> -2154.8812 | O173: ='Monthly Inputs'!R46 -> 0 | P173: =SUM(D173:O173) -> -160686.1801 | Q173: 169
A174: Storage Supply @ City Gate | D174: =SUM(D169:D173) -> 1641503.099 | E174: =SUM(E169:E173) -> 367235.3711 | F174: 20220 | G174: 7648.200283 | H174: -2591.56722 | I174: -2677.952794 | J174: 2357.973629 | K174: -4979.46722 | L174: -2722.251567 | M174: 5236358.661 | N174: 4080856.76 | O174: 4700947.512 | P174: 16044156.34 | Q174: 170
Q175: 171
A176: Gas Purchased @ City Gate | D176: =D161-D167-D174-D160 -> 12267001.18 | E176: =E161-E167-E174-E160 -> 9866481.359 | F176: 5379849.42 | G176: 2767988.058 | H176: 1977464.212 | I176: 1506762.57 | J176: 928793.3332 | K176: 2127228.218 | L176: =L161-L167-L174-L160 -> 6542854.813 | M176: 4131314.07 | N176: 12243727.72 | O176: 13322503.47 | P176: =SUM(D176:O176) -> 73061968.42 | Q176: 172
A177: Gas Reimbursement | D177: =+D178-D176 -> 111405.8215 | E177: =+E178-E176 -> 89604.64113 | F177: 48858.57976 | G177: 25137.94178 | H177: 17958.78775 | I177: 13684.42989 | J177: 8434.66676 | K177: 19318.78173 | L177: =+L178-L176 -> 59420.18694 | M177: 37519.92981 | N177: 111194.2789 | O177: 120991.5319 | P177: =SUM(D177:O177) -> 663529.5779 | Q177: 173
A178: Gas Purchased - Dth ( /.98) | D178: =ROUND(D176/(1-'Other Inputs'!$E$183),0) -> 12378407 | E178: =ROUND(E176/(1-'Other Inputs'!$E$183),0) -> 9956086 | F178: =ROUND(F176/(1-'Other Inputs'!$E$183),0) -> 5428708 | G178: =ROUND(G176/(1-'Other Inputs'!$E$183),0) -> 2793126 | H178: =ROUND(H176/(1-'Other Inputs'!$E$183),0) -> 1995423 | I178: =ROUND(I176/(1-'Other Inputs'!$E$183),0) -> 1520447 | J178: =ROUND(J176/(1-'Other Inputs'!$E$183),0) -> 937228 | K178: =ROUND(K176/(1-'Other Inputs'!$E$183),0) -> 2146547 | L178: =ROUND(L176/(1-'Other Inputs'!$E$183),0) -> 6602275 | M178: =ROUND(M176/(1-'Other Inputs'!$E$183),0) -> 4168834 | N178: =ROUND(N176/(1-'Other Inputs'!$E$183),0) -> 12354922 | O178: =ROUND(O176/(1-'Other Inputs'!$E$183),0) -> 13443495 | P178: =SUM(D178:O178) -> 73725498 | Q178: 174
Q179: 175
Q180: 176
Q181: 177
Q182: 178
A183: Transported Volumes - total | D183: =+D167+D176+D139+D172 -> 18445461.85 | E183: =+E167+E176+E139+E172 -> 14960109.74 | F183: =+F167+F176+F139+F172 -> 9849975 | G183: 7286187.8 | H183: =+H167+H176+H139+H172 -> 5971862.567 | I183: 5570832.953 | J183: 4932402.026 | K183: 5946916.467 | L183: 10436503.25 | M183: 13908802.64 | N183: 20842578.88 | O183: 22409160 | P183: =+P167+P176+P139+P172 -> 140560793.2 | Q183: 179
A184: Kern transported volumes | D184: =HLOOKUP(MONTH(D5),kernrivertrans,6,FALSE) -> 3581150.899 | E184: 2673293.824 | F184: 765572.695 | G184: 791091.7849 | H184: 765572.695 | I184: 791091.7849 | J184: 791091.7849 | K184: 765572.695 | L184: 791091.7849 | M184: 2587058.54 | N184: 3828126.823 | O184: 3828126.823 | Q184: 180
A185: Storage Fuel % | C185: =(P160-P173)/(P169+P170+P158+P159) -> 0.009951882202 | Q185: 181
Q186: 182
A187: Company Production as % of Total Supply / Demand | D187: =D165/(D178+D165) -> 0.2787636441 | E187: 0.3332735664 | F187: =F165/(F178+F165) -> 0.4640512768 | G187: 0.6297614242 | H187: =H165/(H178+H165) -> 0.6779306441 | I187: 0.7375787572 | J187: 0.8179122127 | K187: 0.6517066467 | L187: 0.3827655022 | M187: 0.5344269868 | N187: 0.2785633009 | O187: =O165/(O178+O165) -> 0.2563278683 | P187: =P165/(P178+P165) -> 0.4236679359 | Q187: 183
Q188: 184
A189: Peak Hour Service | D189: =IF(OR(D6=11,D6=12,D6=1,D6=2),'Other Inputs'!D$20*16*'Other Inputs'!$F$21,0)+IF(OR(D6=11,D6=12,D6=1,D6=2),'Other Inputs'!$D$23*16*'Other Inputs'!$F$24,0) -> 557534.7578 | E189: =IF(OR(E6=11,E6=12,E6=1,E6=2),'Other Inputs'!E$20*16*'Other Inputs'!$F$21,0)+IF(OR(E6=11,E6=12,E6=1,E6=2),'Other Inputs'!$D$23*16*'Other Inputs'!$F$24,0) -> 0 | F189: =IF(OR(F6=11,F6=12,F6=1,F6=2),'Other Inputs'!F$20*31*'Other Inputs'!$F$21,0)+IF(OR(F6=11,F6=12,F6=1,F6=2),'Other Inputs'!$D$23*31*'Other Inputs'!$F$24,0) -> 0 | G189: =IF(OR(G6=11,G6=12,G6=1,G6=2),'Other Inputs'!$D$20*16*'Other Inputs'!$F$21,0)+IF(OR(G6=11,G6=12,G6=1,G6=2),'Other Inputs'!$D$23*16*'Other Inputs'!$F$24,0) -> 0 | H189: =IF(OR(H6=11,H6=12,H6=1,H6=2),'Other Inputs'!$D$20*31*'Other Inputs'!$F$21,0)+IF(OR(H6=11,H6=12,H6=1,H6=2),'Other Inputs'!$D$23*31*'Other Inputs'!$F$24,0) -> 0 | I189: =IF(OR(I6=11,I6=12,I6=1,I6=2),'Other Inputs'!$D$20*31*'Other Inputs'!$F$21,0)+IF(OR(I6=11,I6=12,I6=1,I6=2),'Other Inputs'!$D$23*31*'Other Inputs'!$F$24,0) -> 0 | J189: =IF(OR(J6=11,J6=12,J6=1,J6=2),'Other Inputs'!$D$20*14*'Other Inputs'!$F$21,0)+IF(OR(J6=11,J6=12,J6=1,J6=2),'Other Inputs'!$D$23*14*'Other Inputs'!$F$24,0) -> 0 | K189: =IF(OR(K6=11,K6=12,K6=1,K6=2),'Other Inputs'!#REF!*16*'Other Inputs'!$F$21,0)+IF(OR(K6=11,K6=12,K6=1,K6=2),'Other Inputs'!$D$23*16*'Other Inputs'!$F$24,0) -> 0 | L189: =IF(OR(L6=11,L6=12,L6=1,L6=2),'Other Inputs'!J$20*16*'Other Inputs'!$F$21,0)+IF(OR(L6=11,L6=12,L6=1,L6=2),'Other Inputs'!$D$23*16*'Other Inputs'!$F$24,0) -> 0 | M189: =16*'Other Inputs'!D20*'Other Inputs'!F21+16*'Other Inputs'!D23*'Other Inputs'!F24 -> 557534.7578 | N189: =31*'Other Inputs'!D20*'Other Inputs'!F21+31*'Other Inputs'!D23*'Other Inputs'!F24 -> 1080223.593 | O189: =31*'Other Inputs'!D20*'Other Inputs'!F21+31*'Other Inputs'!D23*'Other Inputs'!F24 -> 1080223.593 | P189: =SUM(D189:O189) -> 3275516.702 | Q189: 185
Q190: 186
A191: PURCHASES BREAKDOWN | Q191: 187
A192: Spot Market Purchases | D192: ='Monthly Inputs'!G77 -> 6971241 | E192: ='Monthly Inputs'!H77 -> 619755 | F192: ='Monthly Inputs'!I77 -> 530286 | G192: ='Monthly Inputs'!J77 -> 1271426 | H192: ='Monthly Inputs'!K77 -> 8732721 | I192: ='Monthly Inputs'!L77 -> 4825150 | J192: ='Monthly Inputs'!M77 -> 3597915 | K192: ='Monthly Inputs'!N77 -> 917119 | L192: ='Monthly Inputs'!O77 -> 308463 | M192: ='Monthly Inputs'!P77 -> 167903.9 | N192: ='Monthly Inputs'!Q77 -> 920846 | O192: ='Monthly Inputs'!R77 -> 4894842 | P192: =SUM(D192:O192) -> 33757667.9 | Q192: 188
A193: Spot Market Purchases Cost | D193: ='Monthly Inputs'!G78 -> 58279574.76 | E193: ='Monthly Inputs'!H78 -> 5924857.8 | F193: ='Monthly Inputs'!I78 -> 5281648.56 | G193: ='Monthly Inputs'!J78 -> 11391976.96 | H193: ='Monthly Inputs'!K78 -> 58945866.75 | I193: ='Monthly Inputs'!L78 -> 23450229 | J193: ='Monthly Inputs'!M78 -> 15686909.4 | K193: ='Monthly Inputs'!N78 -> 4062837.17 | L193: ='Monthly Inputs'!O78 -> 1443606.84 | M193: ='Monthly Inputs'!P78 -> 790827.369 | N193: ='Monthly Inputs'!Q78 -> 4042513.94 | O193: ='Monthly Inputs'!R78 -> 21047820.6 | P193: =SUM(D193:O193) -> 210348669.1 | Q193: 189
Q194: 190
A195: Contract Purchases (Dth) | D195: ='Monthly Inputs'!G86+'Monthly Inputs'!G90 -> 270000 | E195: ='Monthly Inputs'!H86+'Monthly Inputs'!H90 -> 6479000 | F195: ='Monthly Inputs'!I86+'Monthly Inputs'!I90 -> 6479000 | G195: ='Monthly Inputs'!J86+'Monthly Inputs'!J90 -> 5852000 | H195: ='Monthly Inputs'!K86+'Monthly Inputs'!K90 -> 279000 | I195: ='Monthly Inputs'!L86+'Monthly Inputs'!L90 -> 0 | J195: ='Monthly Inputs'!M86+'Monthly Inputs'!M90 -> 0 | K195: ='Monthly Inputs'!N86+'Monthly Inputs'!N90 -> 0 | L195: ='Monthly Inputs'!O86+'Monthly Inputs'!O90 -> 0 | M195: ='Monthly Inputs'!P86+'Monthly Inputs'!P90 -> 0 | N195: ='Monthly Inputs'!Q86+'Monthly Inputs'!Q90 -> 0 | O195: ='Monthly Inputs'!R86+'Monthly Inputs'!R90 -> 0 | P195: =SUM(D195:O195) -> 19359000 | Q195: 191
A196: Contract Purchases Cost Including Stabalization Costs | D196: ='Monthly Inputs'!G87+'Monthly Inputs'!G88+'Monthly Inputs'!G91 -> 2321000.337 | E196: ='Monthly Inputs'!H87+'Monthly Inputs'!H88+'Monthly Inputs'!H91 -> 59270880.03 | F196: ='Monthly Inputs'!I87+'Monthly Inputs'!I88+'Monthly Inputs'!I91 -> 61596987.56 | G196: ='Monthly Inputs'!J87+'Monthly Inputs'!J88+'Monthly Inputs'!J91 -> 51107987.88 | H196: ='Monthly Inputs'!K87+'Monthly Inputs'!K88+'Monthly Inputs'!K91 -> 1935943.235 | I196: ='Monthly Inputs'!L87+'Monthly Inputs'!L88+'Monthly Inputs'!L91 -> 0 | J196: ='Monthly Inputs'!M87+'Monthly Inputs'!M88+'Monthly Inputs'!M91 -> 0 | K196: ='Monthly Inputs'!N87+'Monthly Inputs'!N88+'Monthly Inputs'!N91 -> 0 | L196: ='Monthly Inputs'!O87+'Monthly Inputs'!O88+'Monthly Inputs'!O91 -> 0 | M196: ='Monthly Inputs'!P87+'Monthly Inputs'!P88+'Monthly Inputs'!P91 -> 0 | N196: ='Monthly Inputs'!Q87+'Monthly Inputs'!Q88+'Monthly Inputs'!Q91 -> 0 | O196: ='Monthly Inputs'!R87+'Monthly Inputs'!R88+'Monthly Inputs'!R91 -> 0 | P196: =SUM(D196:O196) -> 176232799 | Q196: 192
Q197: 193
A198: Peak Purchases (Dth) | D198: ='Monthly Inputs'!G83 -> 1000000 | E198: ='Monthly Inputs'!H83 -> 4000000 | F198: ='Monthly Inputs'!I83 -> 5000000 | G198: ='Monthly Inputs'!J83 -> 3000000 | H198: ='Monthly Inputs'!K83 -> 0 | I198: ='Monthly Inputs'!L83 -> 0 | J198: ='Monthly Inputs'!M83 -> 0 | K198: ='Monthly Inputs'!N83 -> 0 | L198: ='Monthly Inputs'!O83 -> 0 | M198: ='Monthly Inputs'!P83 -> 0 | N198: ='Monthly Inputs'!Q83 -> 0 | O198: ='Monthly Inputs'!R83 -> 0 | P198: =SUM(D198:O198) -> 13000000 | Q198: 194
A199: Peak Purchases Cost | D199: ='Monthly Inputs'!G84 -> 9208929.664 | E199: ='Monthly Inputs'!H84 -> 42095767.59 | F199: ='Monthly Inputs'!I84 -> 54811396.54 | G199: ='Monthly Inputs'!J84 -> 29599307.34 | H199: ='Monthly Inputs'!K84 -> 0 | I199: ='Monthly Inputs'!L84 -> 0 | J199: ='Monthly Inputs'!M84 -> 0 | K199: ='Monthly Inputs'!N84 -> 0 | L199: ='Monthly Inputs'!O84 -> 0 | M199: ='Monthly Inputs'!P84 -> 0 | N199: ='Monthly Inputs'!Q84 -> 0 | O199: ='Monthly Inputs'!R84 -> 0 | P199: =SUM(D199:O199) -> 135715401.1 | Q199: 195
Q200: 196
A201: Future Purchases | D201: =+D178-D192-D195-D198 -> 4137166 | E201: -1142669 | F201: -6580578 | G201: -7330300 | H201: -7016298 | I201: -3304703 | J201: -2660687 | K201: 1229428 | L201: 6293812 | M201: 4000930.1 | N201: 11434076 | O201: 8548653 | P201: =SUM(D201:O201) -> 7608830.1 | Q201: 197
... 65 more rows

Sheet Utah Summary-by class
A1: UTAH SUMMARY
B2: NOT AN EXHIBIT !!!
R3: Sub Total
C4: COMMODITY | K4: SNG | R4: TOTAL
C5: Current | D5: Proposed | E5: Current | F5: Proposed | G5: Revenue | H5: % | K5: Current | L5: Proposed | M5: Current | N5: Proposed | O5: Revenue | P5: % | R5: Revenue | S5: %
A6: RATE | B6: Dth Sales | C6: Rates | D6: Rates | E6: Revenue | F6: Revenue | G6: Difference | H6: Change | J6: Dth Sales | K6: Rates | L6: Rates | M6: Revenue | N6: Revenue | O6: Difference | P6: Change | R6: Difference | S6: Change
A8: GS (W) | B8: =Calculations!$P$52 -> 84199933 | C8: ='Ut 1.5 p1'!$H$32 -> 8.54883 | D8: =ROUND('Ut 1.5 p1'!$F$32,5) -> 8.54883 | E8: =ROUND(B8*C8,0) -> 719810913 | F8: =ROUND(B8*D8,0) -> 719810913 | G8: =(F8-E8) -> 0 | J8: =Calculations!$P$52 -> 84199933 | K8: ='Other Inputs'!G90 -> 0.9468 | L8: ='Ut 1.5 p6'!E36 -> 0.75356 | M8: =ROUND(B8*K8,0) -> 79720497 | N8: =B8*L8 -> 63449701.51 | O8: =(N8-M8) -> -16270795.49 | P8: =IF(O8=0,0,O8/M8) -> -0.2040980187 | R8: =G8+O8 -> -16270795.49
A9: GS (S) | B9: =Calculations!$P$53 -> 32520345 | C9: ='Ut 1.5 p1'!$H$32 -> 8.54883 | D9: =D8 -> 8.54883 | E9: =ROUND(B9*C9,0) -> 278010901 | F9: =ROUND(B9*D9,0) -> 278010901 | G9: =(F9-E9) -> 0 | J9: =Calculations!$P$53 -> 32520345 | K9: ='Other Inputs'!G91 -> 0.39825 | L9: ='Ut 1.5 p6'!E32 -> 0.33008 | M9: =ROUND(B9*K9,0) -> 12951227 | N9: =B9*L9 -> 10734315.48 | O9: =(N9-M9) -> -2216911.522 | P9: =IF(O9=0,0,O9/M9) -> -0.1711738604 | R9: =G9+O9 -> -2216911.522
A10: Total | B10: =SUM(B8:B9) -> 116720278 | E10: =SUM(E8:E9) -> 997821814 | F10: =SUM(F8:F9) -> 997821814 | G10: =SUM(G8:G9) -> 0 | H10: =IF(G10=0,0,G10/E10) -> 0 | J10: =SUM(J8:J9) -> 116720278 | M10: =SUM(M8:M9) -> 92671724 | N10: =SUM(N8:N9) -> 74184016.99 | O10: =SUM(O8:O9) -> -18487707.01 | P10: =IF(O10=0,0,O10/M10) -> -0.199496742 | R10: =SUM(R8:R9) -> -18487707.01 | S10: =IF(R10=0,0,R10/(E10+M10)) -> -0.01695352276
A13: FS (W) | B13: =Calculations!$P$58 -> 1326084 | C13: ='Ut 1.5 p1'!$H$32 -> 8.54883 | D13: =D8 -> 8.54883 | E13: =ROUND(B13*C13,0) -> 11336467 | F13: =ROUND(B13*D13,0) -> 11336467 | G13: =(F13-E13) -> 0 | J13: =Calculations!$P$58 -> 1326084 | K13: ='Other Inputs'!G93 -> 0.93299 | L13: ='Ut 1.5 p6'!E44 -> 0.68112 | M13: =ROUND(B13*K13,0) -> 1237223 | N13: =B13*L13 -> 903222.3341 | O13: =(N13-M13) -> -334000.6659 | P13: =IF(O13=0,0,O13/M13) -> -0.2699599554 | R13: =G13+O13 -> -334000.6659
A14: FS (S) | B14: =Calculations!$P$59 -> 1346453 | C14: ='Ut 1.5 p1'!$H$32 -> 8.54883 | D14: =D9 -> 8.54883 | E14: =ROUND(B14*C14,0) -> 11510598 | F14: =ROUND(B14*D14,0) -> 11510598 | G14: =(F14-E14) -> 0 | J14: =Calculations!$P$59 -> 1346453 | K14: ='Other Inputs'!G94 -> 0.77862 | L14: ='Ut 1.5 p6'!E40 -> 0.5854 | M14: =ROUND(B14*K14,0) -> 1048375 | N14: =B14*L14 -> 788213.5862 | O14: =(N14-M14) -> -260161.4138 | P14: =IF(O14=0,0,O14/M14) -> -0.2481568273 | R14: =G14+O14 -> -260161.4138
A15: Total | B15: =SUM(B13:B14) -> 2672537 | E15: =SUM(E13:E14) -> 22847065 | F15: =SUM(F13:F14) -> 22847065 | G15: =SUM(G13:G14) -> 0 | H15: =IF(G15=0,0,G15/E15) -> 0 | J15: =SUM(J13:J14) -> 2672537 | M15: =SUM(M13:M14) -> 2285598 | N15: =SUM(N13:N14) -> 1691435.92 | O15: =SUM(O13:O14) -> -594162.0797 | P15: =IF(O15=0,0,O15/M15) -> -0.2599591353 | R15: =SUM(R13:R14) -> -594162.0797 | S15: =IF(R15=0,0,R15/(E15+M15)) -> -0.02364103158
A18: NGV | B18: =Calculations!$P$12 -> 259153 | C18: ='Ut 1.5 p6'!D25 -> 8.05166 | D18: ='Ut 1.5 p6'!E25 -> 8.05166 | E18: =ROUND(B18*C18,0) -> 2086612 | F18: =ROUND(B18*D18,0) -> 2086612 | G18: =(F18-E18) -> 0 | H18: =IF(G18=0,0,G18/E18) -> 0 | J18: =Calculations!$P$12 -> 259153 | K18: ='Other Inputs'!G96 -> 0.70443 | L18: ='Ut 1.5 p6'!E60 -> 0.70633 | M18: =ROUND(B18*K18,0) -> 182555 | N18: =ROUND(B18*L18,0) -> 183048 | O18: =(N18-M18) -> 493 | P18: =IF(O18=0,0,O18/M18) -> 0.002700555997 | R18: =G18+O18 -> 493 | S18: =IF(R18=0,0,R18/(E18+M18)) -> 0.0002172603427
A21: IS | B21: =Calculations!$P$17 -> 288434 | C21: ='Ut 1.5 p1'!H39 -> 8.53262 | D21: ='Ut 1.5 p6'!E19 -> 8.53262 | E21: =ROUND(B21*C21,0) -> 2461098 | F21: =ROUND(B21*D21,0) -> 2461098 | G21: =(F21-E21) -> 0 | H21: =IF(G21=0,0,G21/E21) -> 0 | J21: =Calculations!$P$17 -> 288434 | K21: ='Other Inputs'!G98 -> 0.17938 | L21: ='Ut 1.5 p6'!E46 -> 0.17949 | M21: =ROUND(B21*K21,0) -> 51739 | N21: =ROUND(B21*L21,0) -> 51771 | O21: =(N21-M21) -> 32 | P21: =IF(O21=0,0,O21/M21) -> 0.0006184889542 | R21: =G21+O21 -> 32 | S21: =IF(R21=0,0,R21/(E21+M21)) -> 1.273461032e-05
A23: TSF | B23: ='Ut 1.5 p3'!$F$18 -> 219939 | J23: ='Ut 1.5 p3'!$F$18 -> 219939 | K23: ='Ut 1.5 p6'!D50 -> 2.15694 | L23: ='Ut 1.5 p6'!E50 -> 1.56507 | M23: =ROUND(B23*K23,0) -> 474395 | N23: =ROUND(B23*L23,0) -> 344220 | O23: =(N23-M23) -> -130175 | P23: =IF(O23=0,0,O23/M23) -> -0.2744021332 | R23: =G23+O23 -> -130175 | S23: =IF(R23=0,0,R23/(E23+M23)) -> -0.2744021332
A25: TBF | B25: ='Ut 1.5 p3'!$G$18 -> 64500 | J25: ='Ut 1.5 p3'!$G$18 -> 64500 | K25: ='Ut 1.5 p6'!D55 -> 1.43699 | L25: ='Ut 1.5 p6'!E55 -> 1.07011 | M25: =ROUND(B25*K25,0) -> 92686 | N25: =ROUND(B25*L25,0) -> 69022 | O25: =(N25-M25) -> -23664 | P25: =IF(O25=0,0,O25/M25) -> -0.2553136396 | R25: =G25+O25 -> -23664 | S25: =IF(R25=0,0,R25/(E25+M25)) -> -0.2553136396
B26: - | E26: - | F26: - | G26: - | J26: - | M26: ------------------- | N26: ------------------- | O26: ------------------- | R26: -------------------
B27: =B10+B15+B18+B21 -> 119940402 | E27: =E10+E15+E18+E21 -> 1025216589 | F27: =F10+F15+F18+F21 -> 1025216589 | G27: =G10+G15+G18+G21 -> 0 | H27: =IF(G27=0,0,G27/E27) -> 0 | J27: =J10+J15+J18+J21 -> 119940402 | M27: =M10+M15+M18+M21+M23+M25 -> 95758697 | N27: =N10+N15+N18+N21+N23+N25 -> 76523513.91 | O27: =O10+O15+O18+O21+O23+O25 -> -19235183.09 | P27: =IF(O27=0,0,O27/M27) -> -0.2008713954 | R27: =R10+R15+R18+R21+R23+R25 -> -19235183.09 | S27: =IF(R27=0,0,R27/(E27+M27)) -> -0.01715932843
G28: =IF(G27>0,"Commodity Increase","Commodity Decrease") -> Commodity Decrease | O28: =IF(O27>0,"Increase to SNG","Decrease to SNG") -> Decrease to SNG
B29: NOT AN EXHIBIT !!! | J29: NOT AN EXHIBIT !!!
G30: =ROUND(G27,-3) -> 0 | O30: =ROUND(O27,-3) -> -19235000 | R30: =ROUND(R27,-3) -> -19235000
B31: =B27 -> 119940402 | G31: Rounded | J31: =J27 -> 119940402 | O31: Rounded | R31: Rounded

Sheet Model Checks
B2: Model Checks
D6: Total of all Checks
D7: =ABS(SUM(D10:D1993)) -> 0.2772239149
B9: Forecasted Demand
C10: Utah | D10: =Calculations!P25-'RevRun Fcst'!T205 -> 0
C11: Wyoming | D11: =Calculations!P44-'RevRun Fcst'!T329 -> 0
C12: Total System | D12: =Calculations!P47-'RevRun Fcst'!T370 -> 0
B13: Forecasted Utah Demand Check by Month
C14: 1 | D14: =Calculations!D25-'RevRun Fcst'!H205 -> 0
C15: 2 | D15: =Calculations!E25-'RevRun Fcst'!I205 -> 0
C16: 3 | D16: =Calculations!F25-'RevRun Fcst'!J205 -> 0
C17: 4 | D17: =Calculations!G25-'RevRun Fcst'!K205 -> 0
C18: 5 | D18: =Calculations!H25-'RevRun Fcst'!L205 -> 0
C19: 6 | D19: =Calculations!I25-'RevRun Fcst'!M205 -> 0
C20: 7 | D20: =Calculations!J25-'RevRun Fcst'!N205 -> 0
C21: 8 | D21: =Calculations!K25-'RevRun Fcst'!O205 -> 0
C22: 9 | D22: =Calculations!L25-'RevRun Fcst'!P205 -> 0
C23: 10 | D23: =Calculations!M25-'RevRun Fcst'!Q205 -> 0
C24: 11 | D24: =Calculations!N25-'RevRun Fcst'!R205 -> 0
C25: 12 | D25: =Calculations!O25-'RevRun Fcst'!S205 -> 0
C26: Wyoming I-2 and I-4 Revenues | D26: =('RevRun Fcst'!T273+'RevRun Fcst'!T282)-Calculations!P65 -> 0
C27: System Sales Volumes | D27: =Calculations!H76-'RevRun Fcst'!T368 -> 0
C28: Utah Sales Volumes | D28: =Calculations!P20-'Utah Summary-by class'!B27 -> 0
B29: Company Production | D29: =Calculations!P121-'Monthly Inputs'!S7-'Monthly Inputs'!S12 -> 0
B30: Injections | D30: ='Monthly Inputs'!S22-SUM('Monthly Inputs'!S16:S21) -> 0
B31: Withdrawls | D31: ='Monthly Inputs'!S30-SUM('Monthly Inputs'!S25:S29) -> 0
B32: Injections & Withdrawls | D32: =SUM('Ut 1.4 p2'!D23:D28)-'Monthly Inputs'!S22-'Monthly Inputs'!S30 -> 0
B33: Injections | D33: =Calculations!P130-'Monthly Inputs'!S22 -> 0
B34: Withdrawls | D34: =Calculations!P139-'Monthly Inputs'!S30 -> 0
B35: Sales for Resale | D35: =Expenses!P13-Calculations!P86 -> 0
B36: Incidental Plant Prod Sales | D36: =Expenses!P14-Calculations!P87 -> 0
B37: Incidental Gas & Oil Sales | D37: =Expenses!P15-Calculations!P89 -> 0
B38: Gasoline and Oil Costs | D38: =Expenses!P18+Calculations!P90 -> 0
B39: Wexpro Revenue Sharing | D39: =Expenses!P17-Calculations!P94 -> 0
B40: Storage Gas | D40: ='Rate Base'!Q11-Calculations!P99 -> 0
B41: 101 Production | D41: ='Rate Base'!Q5-Calculations!P101 -> 0
B42: 108 Production | D42: ='Rate Base'!Q7-Calculations!P102 -> 0
B43: 111 Production | D43: ='Rate Base'!Q9-Calculations!P103 -> 0
B44: 255 Production | D44: ='Rate Base'!Q14-Calculations!P104 -> 0
B45: 282 Production | D45: ='Rate Base'!Q16-Calculations!P105 -> 0
B46: 282.1 Production | D46: ='Rate Base'!Q18-Calculations!P106 -> 0
B47: Production Rate Base | D47: =SUM(Calculations!P99:P106)-'Rate Base'!Q20 -> 0
B48: Purchased Gas Cost | D48: =('Ut 1.2 p4'!E25-Calculations!P207)*0 -> 0
B49: Working Gas Rate Base | D49: =(Calculations!P99-'Ut 1.2 p5'!E43)*0 -> 0
B50: Allocations | D50: ='Ut 1.1 p2'!F48-'Ut 1.1 p2'!G48-'Ut 1.1 p2'!H48+'Ut 1.1 p2'!H46 -> 1.490116119e-08
B52: System Sales | D52: 0
B53: Lost & Unaccounted For | D53: 0.2898854166
B54: Supply / Demand | D54: 0
B55: System Sales | D55: 0
B56: SNG Revenue | D56: ='SDR#4'!G23+'SDR#4'!G33-'Utah Summary-by class'!M27 -> 0.8270400017
B57: Utah Sales | D57: ='SDR#3'!D36-'SDR#4'!E23 -> 0
B58: Utah Sales | D58: ='SDR#2'!G78-'Ut 1.1 p2'!H48 -> -0.8397015184
B59: Seasonal Volumes | D59: =Calculations!P52+Calculations!P53-Calculations!P7-Calculations!P8 -> 0
B60: Seasonal Volumes | D60: =Calculations!P55+Calculations!P56-Calculations!P9 -> 0
B61: Seasonal Volumes | D61: =Calculations!P58+Calculations!P59-Calculations!P10 -> 0

Sheet Royalty Detail
D4: Test-Year Cost of Dominion Energy's Production
D5: November 2022 through October 2023
B7: WEXPRO I
B8: (A) | C8: (B) | D8: (C) | E8: (D) | F8: (E) | G8: (F) | H8: (G) | I8: (H)
F9: Base Year | G9: Market | H9: Royalty | I9: Test-Year
B10: Field Name | C10: Well Name | D10: Formation | E10: Price $ | F10: Dth | G10: Value $ | H10: Rate % | I10: Royalty $
A11: 1 | B11: ACE UNIT (CO) | C11: ACE UNIT 10 FT UN | D11: MESAVERDE | E11: 6.250360983 | F11: 32962 | G11: 206024.3987 | H11: 0.1268519763 | I11: 26134.60215
A12: 2 | C12: ACE UNIT 11 FT UN | D12: FORT UNION | E12: 6.250360983 | F12: 7404 | G12: 46277.67272 | H12: 0.1268519763 | I12: 5870.414244
A13: 3 | C13: ACE UNIT 12 FT UN | D13: FORT UNION | E13: 6.250360983 | F13: 66495 | G13: 415617.7536 | H13: 0.1371675 | I13: 57009.24822
A14: 4 | C14: ACE UNIT 13 FT UN | D14: FORT UNION | E14: 6.250360983 | F14: 29052 | G14: 181585.4873 | H14: 0.1268519763 | I14: 23034.47793
A15: 5 | C15: ACE UNIT 2 FT UN | D15: FORT UNION | E15: 6.250360983 | F15: 8099 | G15: 50621.6736 | H15: 0.1268519763 | I15: 6421.459341
A16: 6 | B16: BIRCH CR (WY) | C16: BIRCH CREEK UNIT 1 BR | D16: BEAR RIVER | E16: 6.250360983 | F16: 6468 | G16: 40427.33484 | H16: 0.1329769324 | I16: 5375.902973
A17: 7 | C17: BIRCH CREEK UNIT 1 BR - D24 | D17: BEAR RIVER | E17: 6.250360983 | F17: 1929 | G17: 12056.94634 | H17: 0.1329769324 | I17: 1603.295738
A18: 8 | C18: BIRCH CREEK UNIT 1 FR | D18: FRONTIER | E18: 6.250360983 | F18: 6465 | G18: 40408.58376 | H18: 0.1329769324 | I18: 5373.409511
A19: 9 | C19: BIRCH CREEK UNIT 1 FR - D24 | D19: FRONTIER | E19: 6.250360983 | F19: 1928 | G19: 12050.69598 | H19: 0.1329769324 | I19: 1602.464584
A20: 10 | C20: BIRCH CREEK UNIT 100 FR | D20: FRONTIER | E20: 6.250360983 | F20: 5619 | G20: 35120.77837 | H20: 0.1329769324 | I20: 4670.253371
A21: 11 | C21: BIRCH CREEK UNIT 101 BR | D21: BEAR RIVER | E21: 6.250360983 | F21: 642 | G21: 4012.731751 | H21: 0.1329769324 | I21: 533.6007589
A22: 12 | C22: BIRCH CREEK UNIT 101 FR | D22: FRONTIER | E22: 6.250360983 | F22: 12174 | G22: 76091.89461 | H22: 0.1329769324 | I22: 10118.46673
A23: 13 | C23: BIRCH CREEK UNIT 103 BR | D23: BEAR RIVER | E23: 6.250360983 | F23: 683 | G23: 4268.996552 | H23: 0.1329769324 | I23: 567.6780659
A24: 14 | C24: BIRCH CREEK UNIT 103 FR | D24: FRONTIER | E24: 6.250360983 | F24: 6154 | G24: 38464.72149 | H24: 0.1329769324 | I24: 5114.92067
A25: 15 | C25: BIRCH CREEK UNIT 104 BR | D25: BEAR RIVER | E25: 6.250360983 | F25: 3192 | G25: 19951.15226 | H25: 0.1329769324 | I25: 2653.043026
A26: 16 | C26: BIRCH CREEK UNIT 104 FR | D26: FRONTIER | E26: 6.250360983 | F26: 13614 | G26: 85092.41443 | H26: 0.1329769324 | I26: 11315.32824
A27: 17 | C27: BIRCH CREEK UNIT 105 BR | D27: BEAR RIVER | E27: 6.250360983 | F27: 7273 | G27: 45458.87543 | H27: 0.1329769324 | I27: 6044.981806
A28: 18 | C28: BIRCH CREEK UNIT 105 FR | D28: FRONTIER | E28: 6.250360983 | F28: 8199 | G28: 51246.7097 | H28: 0.1329769324 | I28: 6814.630253
A29: 19 | C29: BIRCH CREEK UNIT 106 BR | D29: BEAR RIVER | E29: 6.250360983 | F29: 5031 | G29: 31445.56611 | H29: 0.1329769324 | I29: 4181.534919
A30: 20 | C30: BIRCH CREEK UNIT 106 FR | D30: FRONTIER | E30: 6.250360983 | F30: 17839 | G30: 111500.1896 | H30: 0.1329769324 | I30: 14826.95317
A31: 21 | C31: BIRCH CREEK UNIT 107 BR | D31: BEAR RIVER | E31: 6.250360983 | F31: 2301 | G31: 14382.08062 | H31: 0.1329769324 | I31: 1912.484963
A32: 22 | C32: BIRCH CREEK UNIT 107 FR | D32: FRONTIER | E32: 6.250360983 | F32: 2210 | G32: 13813.29777 | H32: 0.1329769324 | I32: 1836.849964
A33: 23 | C33: BIRCH CREEK UNIT 108 BR | D33: BEAR RIVER | E33: 6.250360983 | F33: 1739 | G33: 10869.37775 | H33: 0.1329769324 | I33: 1445.37651
A34: 24 | C34: BIRCH CREEK UNIT 108 FR | D34: FRONTIER | E34: 6.250360983 | F34: 8496 | G34: 53103.06692 | H34: 0.1329769324 | I34: 7061.48294
A35: 25 | C35: BIRCH CREEK UNIT 109 BAX | D35: BAXTER | E35: 6.250360983 | F35: 2658 | G35: 16613.45949 | H35: 0.13375 | I35: 2222.050207
A36: 26 | C36: BIRCH CREEK UNIT 109 BR | D36: BEAR RIVER | E36: 6.250360983 | F36: 6385 | G36: 39908.55488 | H36: 0.1329769324 | I36: 5306.917205
A37: 27 | C37: BIRCH CREEK UNIT 109 FR | D37: FRONTIER | E37: 6.250360983 | F37: 5811 | G37: 36320.84767 | H37: 0.1329769324 | I37: 4829.834907
A38: 28 | C38: BIRCH CREEK UNIT 110 BR | D38: BEAR RIVER | E38: 6.250360983 | F38: 10836 | G38: 67728.91162 | H38: 0.1329769324 | I38: 9006.382903
A39: 29 | C39: BIRCH CREEK UNIT 110 FR | D39: FRONTIER | E39: 6.250360983 | F39: 10003 | G39: 62522.36092 | H39: 0.1329769324 | I39: 8314.031762
A40: 30 | C40: BIRCH CREEK UNIT 111 BR | D40: BEAR RIVER | E40: 6.250360983 | F40: 9820 | G40: 61378.54486 | H40: 0.1329769324 | I40: 8161.930611
A41: 31 | C41: BIRCH CREEK UNIT 111 FR | D41: FRONTIER | E41: 6.250360983 | F41: 3631 | G41: 22695.06073 | H41: 0.1329769324 | I41: 3017.919557
A42: 32 | C42: BIRCH CREEK UNIT 112 BR | D42: BEAR RIVER | E42: 6.250360983 | F42: 5690 | G42: 35564.554 | H42: 0.1329769324 | I42: 4729.265293
A43: 33 | C43: BIRCH CREEK UNIT 112 FR | D43: FRONTIER | E43: 6.250360983 | F43: 15392 | G43: 96205.55626 | H43: 0.1329769324 | I43: 12793.11975
A44: 34 | C44: BIRCH CREEK UNIT 113 BR | D44: BEAR RIVER | E44: 6.250360983 | F44: 13538 | G44: 84617.38699 | H44: 0.1329769324 | I44: 11252.16055
A45: 35 | C45: BIRCH CREEK UNIT 113 FR | D45: FRONTIER | E45: 6.250360983 | F45: 4045 | G45: 25282.71018 | H45: 0.1329769324 | I45: 3362.017243
A46: 36 | C46: BIRCH CREEK UNIT 114 BR | D46: BEAR RIVER | E46: 6.250360983 | F46: 7852 | G46: 49077.83444 | H46: 0.1329769324 | I46: 6526.219874
A47: 37 | C47: BIRCH CREEK UNIT 114 FR | D47: FRONTIER | E47: 6.250360983 | F47: 1837 | G47: 11481.91313 | H47: 0.1329769324 | I47: 1526.829586
A48: 38 | C48: BIRCH CREEK UNIT 115 BR | D48: BEAR RIVER | E48: 6.250360983 | F48: 3547 | G48: 22170.03041 | H48: 0.1329769324 | I48: 2948.102635
A49: 39 | C49: BIRCH CREEK UNIT 115 FR | D49: FRONTIER | E49: 6.250360983 | F49: 11886 | G49: 74291.79065 | H49: 0.1329769324 | I49: 9879.094424
A50: 40 | C50: BIRCH CREEK UNIT 116 BR | D50: BEAR RIVER | E50: 6.250360983 | F50: 10846 | G50: 67791.41523 | H50: 0.1329769324 | I50: 9014.694441
A51: 41 | C51: BIRCH CREEK UNIT 116 FR | D51: FRONTIER | E51: 6.250360983 | F51: 3815 | G51: 23845.12715 | H51: 0.1329769324 | I51: 3170.851862
A52: 42 | C52: BIRCH CREEK UNIT 117 BAX | D52: BAXTER | E52: 6.250360983 | F52: 920 | G52: 5750.332105 | H52: 0.13375 | I52: 769.106919
A53: 43 | C53: BIRCH CREEK UNIT 117 BR | D53: BEAR RIVER | E53: 6.250360983 | F53: 607 | G53: 3793.969117 | H53: 0.1329769324 | I53: 504.5103749
A54: 44 | C54: BIRCH CREEK UNIT 117 FR | D54: FRONTIER | E54: 6.250360983 | F54: 6129 | G54: 38308.46247 | H54: 0.1329769324 | I54: 5094.141824
A55: 45 | C55: BIRCH CREEK UNIT 118 BR | D55: BEAR RIVER | E55: 6.250360983 | F55: 1157 | G55: 7231.667658 | H55: 0.1329769324 | I55: 961.6449814
A56: 46 | C56: BIRCH CREEK UNIT 118 FR | D56: FRONTIER | E56: 6.250360983 | F56: 10416 | G56: 65103.76 | H56: 0.1329769324 | I56: 8657.298294
A57: 47 | C57: BIRCH CREEK UNIT 119 BR | D57: BEAR RIVER | E57: 6.250360983 | F57: 3841 | G57: 24007.63654 | H57: 0.1329769324 | I57: 3192.461861
A58: 48 | C58: BIRCH CREEK UNIT 119 FR | D58: FRONTIER | E58: 6.250360983 | F58: 15364 | G58: 96030.54615 | H58: 0.1329769324 | I58: 12769.84745
A59: 49 | C59: BIRCH CREEK UNIT 121 BR | D59: BEAR RIVER | E59: 6.250360983 | F59: 15885 | G59: 99286.98422 | H59: 0.1329769324 | I59: 13202.87859
A60: 50 | C60: BIRCH CREEK UNIT 121 FR | D60: FRONTIER | E60: 6.250360983 | F60: 3252 | G60: 20326.17392 | H60: 0.1329769324 | I60: 2702.912255
A61: 51 | C61: BIRCH CREEK UNIT 122 BR | D61: BEAR RIVER | E61: 6.250360983 | F61: 3036 | G61: 18976.09595 | H61: 0.1329769324 | I61: 2523.383028
A62: 52 | C62: BIRCH CREEK UNIT 122 FR | D62: FRONTIER | E62: 6.250360983 | F62: 10445 | G62: 65285.02047 | H62: 0.1329769324 | I62: 8681.401755
A63: 53 | C63: BIRCH CREEK UNIT 123 BR | D63: BEAR RIVER | E63: 6.250360983 | F63: 4231 | G63: 26445.27732 | H63: 0.1329769324 | I63: 3516.611855
A64: 54 | C64: BIRCH CREEK UNIT 123 FR | D64: FRONTIER | E64: 6.250360983 | F64: 12683 | G64: 79273.32835 | H64: 0.1329769324 | I64: 10541.52403
A65: 55 | C65: BIRCH CREEK UNIT 124 BR | D65: BEAR RIVER | E65: 6.250360983 | F65: 3891 | G65: 24320.15459 | H65: 0.1329769324 | I65: 3234.019553
A66: 56 | C66: BIRCH CREEK UNIT 124 FR | D66: FRONTIER | E66: 6.250360983 | F66: 15552 | G66: 97205.61401 | H66: 0.1329769324 | I66: 12926.10437
A67: 57 | C67: BIRCH CREEK UNIT 126 BR | D67: BEAR RIVER | E67: 6.250360983 | F67: 6918 | G67: 43239.99728 | H67: 0.1329769324 | I67: 5749.922196
A68: 58 | C68: BIRCH CREEK UNIT 126 FR | D68: FRONTIER | E68: 6.250360983 | F68: 10375 | G68: 64847.4952 | H68: 0.1329769324 | I68: 8623.220987
A69: 59 | C69: BIRCH CREEK UNIT 127 BR | D69: DAKOTA | E69: 6.250360983 | F69: 3897 | G69: 24357.65675 | H69: 0.1329769324 | I69: 3239.006476
A70: 60 | C70: BIRCH CREEK UNIT 127 FR | D70: FRONTIER | E70: 6.250360983 | F70: 974 | G70: 6087.851598 | H70: 0.1329769324 | I70: 809.5438305
A71: 61 | C71: BIRCH CREEK UNIT 128 FR | D71: FRONTIER | E71: 6.250360983 | F71: 19972 | G71: 124832.2096 | H71: 0.1329769324 | I71: 16599.80429
A72: 62 | C72: BIRCH CREEK UNIT 129 BR | D72: BEAR RIVER | E72: 6.250360983 | F72: 522 | G72: 3262.688433 | H72: 0.1329769324 | I72: 433.8622993
A73: 63 | C73: BIRCH CREEK UNIT 129 FR | D73: FRONTIER | E73: 6.250360983 | F73: 9875 | G73: 61722.31471 | H73: 0.1329769324 | I73: 8207.644072
A74: 64 | C74: BIRCH CREEK UNIT 130 BR | D74: BEAR RIVER | E74: 6.250360983 | F74: 9166 | G74: 57290.80877 | H74: 0.1329769324 | I74: 7618.356006
A75: 65 | C75: BIRCH CREEK UNIT 130 FR | D75: FRONTIER | E75: 6.250360983 | F75: 11206 | G75: 70041.54518 | H75: 0.1329769324 | I75: 9313.90982
A76: 66 | C76: BIRCH CREEK UNIT 131 FR | D76: FRONTIER | E76: 6.250360983 | F76: 12922 | G76: 80767.16463 | H76: 0.1329769324 | I76: 10740.16979
A77: 67 | C77: BIRCH CREEK UNIT 132 BR | D77: BEAR RIVER | E77: 6.250360983 | F77: 2270 | G77: 14188.31943 | H77: 0.1329769324 | I77: 1886.719194
A78: 68 | C78: BIRCH CREEK UNIT 132 FR | D78: FRONTIER | E78: 6.250360983 | F78: 12843 | G78: 80273.38611 | H78: 0.1329769324 | I78: 10674.50864
A79: 69 | C79: BIRCH CREEK UNIT 133 BR | D79: BEAR RIVER | E79: 6.250360983 | F79: 4693 | G79: 29332.9441 | H79: 0.1329769324 | I79: 3900.604925
A80: 70 | C80: BIRCH CREEK UNIT 133 FR | D80: FRONTIER | E80: 6.250360983 | F80: 18776 | G80: 117356.7778 | H80: 0.1329769324 | I80: 15605.74431
A81: 71 | C81: BIRCH CREEK UNIT 134 BR | D81: BEAR RIVER | E81: 6.250360983 | F81: 12576 | G81: 78604.53973 | H81: 0.1329769324 | I81: 10452.59057
A82: 72 | C82: BIRCH CREEK UNIT 134 FR | D82: FRONTIER | E82: 6.250360983 | F82: 17372 | G82: 108581.271 | H82: 0.1329769324 | I82: 14438.80434
A83: 73 | C83: BIRCH CREEK UNIT 137 BR | D83: BEAR RIVER | E83: 6.250360983 | F83: 5538 | G83: 34614.49913 | H83: 0.1329769324 | I83: 4602.929911
A84: 74 | C84: BIRCH CREEK UNIT 137 FR | D84: FRONTIER | E84: 6.250360983 | F84: 9044 | G84: 56528.26473 | H84: 0.1329769324 | I84: 7516.955239
A85: 75 | C85: BIRCH CREEK UNIT 138 FR | D85: FRONTIER | E85: 6.250360983 | F85: 16136 | G85: 100855.8248 | H85: 0.1329769324 | I85: 13411.4982
A86: 76 | C86: BIRCH CREEK UNIT 139 BR | D86: BEAR RIVER | E86: 6.250360983 | F86: 6863 | G86: 42896.22743 | H86: 0.1329769324 | I86: 5704.208736
A87: 77 | C87: BIRCH CREEK UNIT 13A BR | D87: BEAR RIVER | E87: 6.250360983 | F87: 7101 | G87: 44383.81334 | H87: 0.1329769324 | I87: 5902.023347
A88: 78 | C88: BIRCH CREEK UNIT 13A FR | D88: FRONTIER | E88: 6.250360983 | F88: 7099 | G88: 44371.31262 | H88: 0.1329769324 | I88: 5900.36104
A89: 79 | C89: BIRCH CREEK UNIT 140 BR | D89: BEAR RIVER | E89: 6.250360983 | F89: 2962 | G89: 18513.56923 | H89: 0.1329769324 | I89: 2461.877645
A90: 80 | C90: BIRCH CREEK UNIT 140 FR | D90: FRONTIER | E90: 6.250360983 | F90: 16803 | G90: 105024.8156 | H90: 0.1329769324 | I90: 13965.87781
A91: 81 | C91: BIRCH CREEK UNIT 141 BR | D91: BEAR RIVER | E91: 6.250360983 | F91: 13275 | G91: 82973.54205 | H91: 0.1329769324 | I91: 11033.56709
A92: 82 | C92: BIRCH CREEK UNIT 141 FR | D92: FRONTIER | E92: 6.250360983 | F92: 4421 | G92: 27632.84591 | H92: 0.1329769324 | I92: 3674.531083
A93: 83 | C93: BIRCH CREEK UNIT 142 BR | D93: BEAR RIVER | E93: 6.250360983 | F93: 3038 | G93: 18988.59667 | H93: 0.1329769324 | I93: 2525.045336
A94: 84 | C94: BIRCH CREEK UNIT 142 FR | D94: FRONTIER | E94: 6.250360983 | F94: 7085 | G94: 44283.80757 | H94: 0.1329769324 | I94: 5888.724886
A95: 85 | C95: BIRCH CREEK UNIT 144 BR | D95: BEAR RIVER | E95: 6.250360983 | F95: 804 | G95: 5025.290231 | H95: 0.1329769324 | I95: 668.2476794
A96: 86 | C96: BIRCH CREEK UNIT 144 FR | D96: FRONTIER | E96: 6.250360983 | F96: 12587 | G96: 78673.2937 | H96: 0.1329769324 | I96: 10461.73326
A97: 87 | C97: BIRCH CREEK UNIT 145 BR | D97: BEAR RIVER | E97: 6.250360983 | F97: 1327 | G97: 8294.229025 | H97: 0.1329769324 | I97: 1102.941133
A98: 88 | C98: BIRCH CREEK UNIT 145 FR | D98: FRONTIER | E98: 6.250360983 | F98: 9725 | G98: 60784.76056 | H98: 0.1329769324 | I98: 8082.970997
A99: 89 | C99: BIRCH CREEK UNIT 146 BR | D99: BEAR RIVER | E99: 6.250360983 | F99: 11809 | G99: 73810.51285 | H99: 0.1329769324 | I99: 9815.095579
A100: 90 | C100: BIRCH CREEK UNIT 146 FR | D100: FRONTIER | E100: 6.250360983 | F100: 3934 | G100: 24588.92011 | H100: 0.1329769324 | I100: 3269.759167
A101: 91 | C101: BIRCH CREEK UNIT 148 BR | D101: BEAR RIVER | E101: 6.250360983 | F101: 214 | G101: 1337.57725 | H101: 0.1329769324 | I101: 177.8669196
A102: 92 | C102: BIRCH CREEK UNIT 148 FR | D102: FRONTIER | E102: 6.250360983 | F102: 20813 | G102: 130088.7631 | H102: 0.1329769324 | I102: 17298.80467
A103: 93 | C103: BIRCH CREEK UNIT 149 BR | D103: BEAR RIVER | E103: 6.250360983 | F103: 4662 | G103: 29139.1829 | H103: 0.1329769324 | I103: 3874.839156
A104: 94 | C104: BIRCH CREEK UNIT 149 FR | D104: FRONTIER | E104: 6.250360983 | F104: 16530 | G104: 103318.4671 | H104: 0.1329769324 | I104: 13738.97281
A105: 95 | C105: BIRCH CREEK UNIT 15 BR | D105: LANCE | E105: 6.250360983 | F105: 306 | G105: 1912.610461 | H105: 0.1329769324 | I105: 254.333072
A106: 96 | C106: BIRCH CREEK UNIT 15 FR | D106: LANCE | E106: 6.250360983 | F106: 911 | G106: 5694.078856 | H106: 0.1329769324 | I106: 757.1811392
A107: 97 | C107: BIRCH CREEK UNIT 151 BR | D107: BEAR RIVER | E107: 6.250360983 | F107: 5108 | G107: 31926.8439 | H107: 0.1329769324 | I107: 4245.533764
A108: 98 | C108: BIRCH CREEK UNIT 151 FR | D108: FRONTIER | E108: 6.250360983 | F108: 7055 | G108: 44096.29674 | H108: 0.1329769324 | I108: 5863.790271
A109: 99 | C109: BIRCH CREEK UNIT 153 ALMY | D109: ALMY | E109: 6.250360983 | F109: 999 | G109: 6244.110622 | H109: 0.13375 | I109: 835.1497958
A110: 100 | C110: BIRCH CREEK UNIT 164 FR | D110: FRONTIER | E110: 6.250360983 | F110: 16625 | G110: 103912.2513 | H110: 0.1329769324 | I110: 13817.93242
A111: 101 | C111: BIRCH CREEK UNIT 166 BR | D111: BEAR RIVER | E111: 6.250360983 | F111: 6098 | G111: 38114.70128 | H111: 0.1329769324 | I111: 5068.376056
A112: 102 | C112: BIRCH CREEK UNIT 166 FR | D112: FRONTIER | E112: 6.250360983 | F112: 1526 | G112: 9538.050861 | H112: 0.1329769324 | I112: 1268.340745
A113: 103 | C113: BIRCH CREEK UNIT 167 BR | D113: BEAR RIVER | E113: 6.250360983 | F113: 2079 | G113: 12994.50048 | H113: 0.1329769324 | I113: 1727.968813
A114: 104 | C114: BIRCH CREEK UNIT 167 FR | D114: FRONTIER | E114: 6.250360983 | F114: 8333 | G114: 52084.25807 | H114: 0.1329769324 | I114: 6926.004866
A115: 105 | C115: BIRCH CREEK UNIT 168 BR | D115: BEAR RIVER | E115: 6.250360983 | F115: 680 | G115: 4250.245469 | H115: 0.1329769324 | I115: 565.1846044
A116: 106 | C116: BIRCH CREEK UNIT 168 RECOM BAX | D116: BAXTER | E116: 6.250360983 | F116: 1155 | G116: 7219.166936 | H116: 0.13375 | I116: 965.5635777
A117: 107 | C117: BIRCH CREEK UNIT 168 RECOM FR | D117: FRONTIER | E117: 6.250360983 | F117: 2776 | G117: 17351.00209 | H117: 0.1329769324 | I117: 2307.283032
A118: 108 | C118: BIRCH CREEK UNIT 169 BR | D118: BEAR RIVER | E118: 6.250360983 | F118: 3139 | G118: 19619.88313 | H118: 0.1329769324 | I118: 2608.991873
A119: 109 | C119: BIRCH CREEK UNIT 169 FR | D119: FRONTIER | E119: 6.250360983 | F119: 12561 | G119: 78510.78431 | H119: 0.1329769324 | I119: 10440.12326
A120: 110 | C120: BIRCH CREEK UNIT 173 BR | D120: BEAR RIVER | E120: 6.250360983 | F120: 6387 | G120: 39921.0556 | H120: 0.1329769324 | I120: 5308.579513
A121: 111 | C121: BIRCH CREEK UNIT 173 FR | D121: FRONTIER | E121: 6.250360983 | F121: 18172 | G121: 113581.5598 | H121: 0.1329769324 | I121: 15103.7274
A122: 112 | C122: BIRCH CREEK UNIT 174 BR | D122: BEAR RIVER | E122: 6.250360983 | F122: 10199 | G122: 63747.43167 | H122: 0.1329769324 | I122: 8476.937913
A123: 113 | C123: BIRCH CREEK UNIT 174 FR | D123: FRONTIER | E123: 6.250360983 | F123: 10085 | G123: 63034.89052 | H123: 0.1329769324 | I123: 8382.186376
A124: 114 | C124: BIRCH CREEK UNIT 177 BR | D124: BEAR RIVER | E124: 6.250360983 | F124: 3226 | G124: 20163.66453 | H124: 0.1329769324 | I124: 2681.302256
A125: 115 | C125: BIRCH CREEK UNIT 177 FR | D125: FRONTIER | E125: 6.250360983 | F125: 12920 | G125: 80754.66391 | H125: 0.1329769324 | I125: 10738.50748
A126: 116 | C126: BIRCH CREEK UNIT 178 BR | D126: BEAR RIVER | E126: 6.250360983 | F126: 4846 | G126: 30289.24933 | H126: 0.1329769324 | I126: 4027.771461
A127: 117 | C127: BIRCH CREEK UNIT 178 FR | D127: FRONTIER | E127: 6.250360983 | F127: 19394 | G127: 121219.5009 | H127: 0.1329769324 | I127: 16119.39738
A128: 118 | C128: BIRCH CREEK UNIT 179 BR | D128: BEAR RIVER | E128: 6.250360983 | F128: 4308 | G128: 26926.55512 | H128: 0.1329769324 | I128: 3580.6107
A129: 119 | C129: BIRCH CREEK UNIT 179 FR | D129: FRONTIER | E129: 6.250360983 | F129: 2868 | G129: 17926.0353 | H129: 0.1329769324 | I129: 2383.749185
A130: 120 | C130: BIRCH CREEK UNIT 180 FR | D130: FRONTIER | E130: 6.250360983 | F130: 10227 | G130: 63922.44178 | H130: 0.1329769324 | I130: 8500.21022
A131: 121 | C131: BIRCH CREEK UNIT 181 BR | D131: BEAR RIVER | E131: 6.250360983 | F131: 2654 | G131: 16588.45805 | H131: 0.1329769324 | I131: 2205.882265
A132: 122 | C132: BIRCH CREEK UNIT 181 FR | D132: FRONTIER | E132: 6.250360983 | F132: 10596 | G132: 66228.82498 | H132: 0.1329769324 | I132: 8806.905983
A133: 123 | C133: BIRCH CREEK UNIT 182 BR | D133: BEAR RIVER | E133: 6.250360983 | F133: 3466 | G133: 21663.75117 | H133: 0.1329769324 | I133: 2880.779175
A134: 124 | C134: BIRCH CREEK UNIT 182 FR | D134: FRONTIER | E134: 6.250360983 | F134: 5199 | G134: 32495.62675 | H134: 0.1329769324 | I134: 4321.168763
A135: 125 | C135: BIRCH CREEK UNIT 183 BR | D135: BEAR RIVER | E135: 6.250360983 | F135: 6652 | G135: 41577.40126 | H135: 0.1329769324 | I135: 5528.835278
A136: 126 | C136: BIRCH CREEK UNIT 183 FR | D136: FRONTIER | E136: 6.250360983 | F136: 9977 | G136: 62359.85153 | H136: 0.1329769324 | I136: 8292.421763
A137: 127 | C137: BIRCH CREEK UNIT 184 BR | D137: BEAR RIVER | E137: 6.250360983 | F137: 1861 | G137: 11631.92179 | H137: 0.1329769324 | I137: 1546.777278
A138: 128 | C138: BIRCH CREEK UNIT 184 FR | D138: FRONTIER | E138: 6.250360983 | F138: 16800 | G138: 105006.0645 | H138: 0.1329769324 | I138: 13963.38435
A139: 129 | C139: BIRCH CREEK UNIT 185 BR | D139: BEAR RIVER | E139: 6.250360983 | F139: 5433 | G139: 33958.21122 | H139: 0.1329769324 | I139: 4515.658759
A140: 130 | C140: BIRCH CREEK UNIT 185 FR | D140: FRONTIER | E140: 6.250360983 | F140: 12675 | G140: 79223.32546 | H140: 0.1329769324 | I140: 10534.8748
A141: 131 | C141: BIRCH CREEK UNIT 187 BR | D141: BEAR RIVER | E141: 6.250360983 | F141: 6806 | G141: 42539.95685 | H141: 0.1329769324 | I141: 5656.832967
A142: 132 | C142: BIRCH CREEK UNIT 187 FR | D142: FRONTIER | E142: 6.250360983 | F142: 12092 | G142: 75579.36501 | H142: 0.1329769324 | I142: 10050.31211
A143: 133 | C143: BIRCH CREEK UNIT 188 FR | D143: FRONTIER | E143: 6.250360983 | F143: 20795 | G143: 129976.2567 | H143: 0.1329769324 | I143: 17283.8439
A144: 134 | C144: BIRCH CREEK UNIT 189 BR | D144: BEAR RIVER | E144: 6.250360983 | F144: 6597 | G144: 41233.63141 | H144: 0.1329769324 | I144: 5483.121817
A145: 135 | C145: BIRCH CREEK UNIT 189 FR | D145: FRONTIER | E145: 6.250360983 | F145: 9497 | G145: 59359.67826 | H145: 0.1329769324 | I145: 7893.467924
A146: 136 | C146: BIRCH CREEK UNIT 190 BR | D146: BEAR RIVER | E146: 6.250360983 | F146: 2075 | G146: 12969.49904 | H146: 0.1329769324 | I146: 1724.644197
A147: 137 | C147: BIRCH CREEK UNIT 190 FR | D147: FRONTIER | E147: 6.250360983 | F147: 18666 | G147: 116669.2381 | H147: 0.1329769324 | I147: 15514.31739
A148: 138 | C148: BIRCH CREEK UNIT 191 BR | D148: BEAR RIVER | E148: 6.250360983 | F148: 2898 | G148: 18113.54613 | H148: 0.1329769324 | I148: 2408.6838
A149: 139 | C149: BIRCH CREEK UNIT 191 FR | D149: FRONTIER | E149: 6.250360983 | F149: 12371 | G149: 77323.21573 | H149: 0.1329769324 | I149: 10282.20403
A150: 140 | C150: BIRCH CREEK UNIT 192 BR | D150: BEAR RIVER | E150: 6.250360983 | F150: 1507 | G150: 9419.294002 | H150: 0.1329769324 | I150: 1252.548822
A151: 141 | C151: BIRCH CREEK UNIT 192 FR | D151: FRONTIER | E151: 6.250360983 | F151: 23636 | G151: 147733.5322 | H151: 0.1329769324 | I151: 19645.15193
A152: 142 | C152: BIRCH CREEK UNIT 193 BR | D152: BEAR RIVER | E152: 6.250360983 | F152: 681 | G152: 4256.49583 | H152: 0.1329769324 | I152: 566.0157583
A153: 143 | C153: BIRCH CREEK UNIT 193 FR | D153: FRONTIER | E153: 6.250360983 | F153: 12965 | G153: 81035.93015 | H153: 0.1329769324 | I153: 10775.90941
A154: 144 | C154: BIRCH CREEK UNIT 194 BR | D154: BEAR RIVER | E154: 6.250360983 | F154: 1360 | G154: 8500.490937 | H154: 0.1329769324 | I154: 1130.369209
A155: 145 | C155: BIRCH CREEK UNIT 194 FR | D155: FRONTIER | E155: 6.250360983 | F155: 21346 | G155: 133420.2056 | H155: 0.1329769324 | I155: 17741.80966
A156: 146 | C156: BIRCH CREEK UNIT 195 BR | D156: BEAR RIVER | E156: 6.250360983 | F156: 3383 | G156: 21144.97121 | H156: 0.1329769324 | I156: 2811.793407
A157: 147 | C157: BIRCH CREEK UNIT 195 FR | D157: FRONTIER | E157: 6.250360983 | F157: 24820 | G157: 155133.9596 | H157: 0.1329769324 | I157: 20629.23806
A158: 148 | C158: BIRCH CREEK UNIT 196 BR | D158: BEAR RIVER | E158: 6.250360983 | F158: 350 | G158: 2187.626344 | H158: 0.1329769324 | I158: 290.9038405
A159: 149 | C159: BIRCH CREEK UNIT 196 FR | D159: FRONTIER | E159: 6.250360983 | F159: 17188 | G159: 107431.2046 | H159: 0.1329769324 | I159: 14285.87203
A160: 150 | C160: BIRCH CREEK UNIT 198 BR | D160: BEAR RIVER | E160: 6.250360983 | F160: 3186 | G160: 19913.65009 | H160: 0.1329769324 | I160: 2648.056103
A161: 151 | C161: BIRCH CREEK UNIT 198 FR | D161: FRONTIER | E161: 6.250360983 | F161: 1877 | G161: 11731.92757 | H161: 0.1329769324 | I161: 1560.075739
A162: 152 | C162: BIRCH CREEK UNIT 199 BR | D162: BEAR RIVER | E162: 6.250360983 | F162: 1266 | G162: 7912.957005 | H162: 0.1329769324 | I162: 1052.240749
A163: 153 | C163: BIRCH CREEK UNIT 199 FR | D163: FRONTIER | E163: 6.250360983 | F163: 12856 | G163: 80354.6408 | H163: 0.1329769324 | I163: 10685.31364
A164: 154 | C164: BIRCH CREEK UNIT 2 BR | D164: BEAR RIVER | E164: 6.250360983 | F164: 3118 | G164: 19488.62555 | H164: 0.1329769324 | I164: 2591.537642
A165: 155 | C165: BIRCH CREEK UNIT 2 FR | D165: FRONTIER | E165: 6.250360983 | F165: 5089 | G165: 31808.08704 | H165: 0.1329769324 | I165: 4229.741841
A166: 156 | C166: BIRCH CREEK UNIT 200 BR | D166: BEAR RIVER | E166: 6.250360983 | F166: 2678 | G166: 16738.46671 | H166: 0.1329769324 | I166: 2225.829957
A167: 157 | C167: BIRCH CREEK UNIT 200 FR | D167: FRONTIER | E167: 6.250360983 | F167: 8035 | G167: 50221.6505 | H167: 0.1329769324 | I167: 6678.321025
A168: 158 | C168: BIRCH CREEK UNIT 201-25 BR | D168: BEAR RIVER | E168: 6.250360983 | F168: 2516 | G168: 15725.90823 | H168: 0.1329769324 | I168: 2091.183036
A169: 159 | C169: BIRCH CREEK UNIT 201-25 FR | D169: FRONTIER | E169: 6.250360983 | F169: 5879 | G169: 36745.87222 | H169: 0.1329769324 | I169: 4886.353367
A170: 160 | C170: BIRCH CREEK UNIT 202-25 BR | D170: BEAR RIVER | E170: 6.250360983 | F170: 4398 | G170: 27489.08761 | H170: 0.1329769324 | I170: 3655.414545
A171: 161 | C171: BIRCH CREEK UNIT 202-25 FR | D171: FRONTIER | E171: 6.250360983 | F171: 10267 | G171: 64172.45622 | H171: 0.1329769324 | I171: 8533.456373
A172: 162 | C172: BIRCH CREEK UNIT 203-25 BR | D172: BEAR RIVER | E172: 6.250360983 | F172: 6436 | G172: 40227.32329 | H172: 0.1329769324 | I172: 5349.30605
A173: 163 | C173: BIRCH CREEK UNIT 203-25 FR | D173: FRONTIER | E173: 6.250360983 | F173: 15024 | G173: 93905.42341 | H173: 0.1329769324 | I173: 12487.25514
A174: 164 | C174: BIRCH CREEK UNIT 26 FR | D174: FRONTIER | E174: 6.250360983 | F174: 8747 | G174: 54671.90752 | H174: 0.1329769324 | I174: 7270.102552
A175: 165 | C175: BIRCH CREEK UNIT 3 FFR | D175: 1ST FRONTIER | E175: 6.250360983 | F175: 15925 | G175: 99536.99866 | H175: 0.1329769324 | I175: 13236.12474
A176: 166 | C176: BIRCH CREEK UNIT 43A BR | D176: BEAR RIVER | E176: 6.250360983 | F176: 1049 | G176: 6556.628672 | H176: 0.1329769324 | I176: 871.8803677
A177: 167 | C177: BIRCH CREEK UNIT 43A FR | D177: FRONTIER | E177: 6.250360983 | F177: 9415 | G177: 58847.14866 | H177: 0.1329769324 | I177: 7825.31331
A178: 168 | C178: BIRCH CREEK UNIT 5 2ND FR | D178: FRONTIER | E178: 6.250360983 | F178: 2588 | G178: 16175.93423 | H178: 0.1329769324 | I178: 2151.026112
A179: 169 | C179: BIRCH CREEK UNIT 5 FR | D179: FORT UNION | E179: 6.250360983 | F179: 2803 | G179: 17519.76184 | H179: 0.1329769324 | I179: 2329.724186
A180: 170 | C180: BIRCH CREEK UNIT 56 2ND FR | D180: FRONTIER | E180: 6.250360983 | F180: 5095 | G180: 31845.58921 | H180: 0.1329769324 | I180: 4234.728764
A181: 171 | C181: BIRCH CREEK UNIT 6 FR | D181: FRONTIER | E181: 6.250360983 | F181: 9766 | G181: 61041.02536 | H181: 0.1329769324 | I181: 8117.048304
A182: 172 | C182: BIRCH CREEK UNIT 61 BR | D182: BEAR RIVER | E182: 6.250360983 | F182: 1461 | G182: 9131.777397 | H182: 0.1329769324 | I182: 1214.315746
A183: 173 | C183: BIRCH CREEK UNIT 61 FR | D183: FRONTIER | E183: 6.250360983 | F183: 5822 | G183: 36389.60165 | H183: 0.1329769324 | I183: 4838.977599
A184: 174 | C184: BIRCH CREEK UNIT 7 FR | D184: FRONTIER | E184: 6.250360983 | F184: 4794 | G184: 29964.23055 | H184: 0.1329769324 | I184: 3984.551461
A185: 175 | C185: BIRCH CREEK UNIT 8 FR | D185: FRONTIER | E185: 6.250360983 | F185: 15655 | G185: 97849.4012 | H185: 0.1329769324 | I185: 13011.71321
A186: 176 | C186: BIRCH CREEK UNIT 87 2ND FR | D186: FRONTIER | E186: 6.250360983 | F186: 6233 | G186: 38958.50001 | H186: 0.1329769324 | I186: 5180.581823
A187: 177 | C187: BIRCH CREEK UNIT 87 BR | D187: BEAR RIVER | E187: 6.250360983 | F187: 686 | G187: 4287.747635 | H187: 0.1329769324 | I187: 570.1715274
A188: 178 | C188: BIRCH CREEK UNIT 87 BR RECOMP | D188: BEAR RIVER | E188: 6.250360983 | F188: 1594 | G188: 9963.075408 | H188: 0.1329769324 | I188: 1324.859205
A189: 179 | C189: BIRCH CREEK UNIT 87 FR | D189: FRONTIER | E189: 6.250360983 | F189: 2672 | G189: 16700.96455 | H189: 0.1329769324 | I189: 2220.843034
A190: 180 | C190: BIRCH CREEK UNIT 91 BR | D190: BEAR RIVER | E190: 6.250360983 | F190: 1376 | G190: 8600.496713 | H190: 0.1329769324 | I190: 1143.66767
A191: 181 | C191: BIRCH CREEK UNIT 91 FR | D191: FRONTIER | E191: 6.250360983 | F191: 12419 | G191: 77623.23305 | H191: 0.1329769324 | I191: 10322.09942
A192: 182 | C192: BIRCH CREEK UNIT 92 BR | D192: BEAR RIVER | E192: 6.250360983 | F192: 1777 | G192: 11106.89147 | H192: 0.1329769324 | I192: 1476.960356
A193: 183 | C193: BIRCH CREEK UNIT 92 FR | D193: FRONTIER | E193: 6.250360983 | F193: 5447 | G193: 34045.71628 | H193: 0.1329769324 | I193: 4527.294912
A194: 184 | C194: BIRCH CREEK UNIT 931 BR | D194: BEAR RIVER | E194: 6.250360983 | F194: 1894 | G194: 11838.1837 | H194: 0.1329769324 | I194: 1574.205354
A195: 185 | C195: BIRCH CREEK UNIT 931 FR | D195: FRONTIER | E195: 6.250360983 | F195: 14599 | G195: 91249.02 | H195: 0.1329769324 | I195: 12134.01477
A196: 186 | C196: BIRCH CREEK UNIT 94 BR | D196: BEAR RIVER | E196: 6.250360983 | F196: 111 | G196: 693.7900692 | H196: 0.1329769324 | I196: 92.25807514
A197: 187 | C197: BIRCH CREEK UNIT 94 FR | D197: FRONTIER | E197: 6.250360983 | F197: 16110 | G197: 100693.3154 | H197: 0.1329769324 | I197: 13389.8882
A198: 188 | C198: BIRCH CREEK UNIT 95 BR | D198: BEAR RIVER | E198: 6.250360983 | F198: 847 | G198: 5294.055753 | H198: 0.1329769324 | I198: 703.9872941
A199: 189 | C199: BIRCH CREEK UNIT 95 FR | D199: FRONTIER | E199: 6.250360983 | F199: 11587 | G199: 72422.93271 | H199: 0.1329769324 | I199: 9630.579429
A200: 190 | C200: BIRCH CREEK UNIT 96 BR | D200: BEAR RIVER | E200: 6.250360983 | F200: 2838 | G200: 17738.52447 | H200: 0.1329769324 | I200: 2358.81457
A201: 191 | C201: BIRCH CREEK UNIT 96 FR | D201: FRONTIER | E201: 6.250360983 | F201: 18478 | G201: 115494.1703 | H201: 0.1329769324 | I201: 15358.06047
A202: 192 | C202: BIRCH CREEK UNIT 97 BR | D202: BEAR RIVER | E202: 6.250360983 | F202: 8610 | G202: 53815.60807 | H202: 0.1329769324 | I202: 7156.234477
A203: 193 | C203: BIRCH CREEK UNIT 97 FR | D203: FRONTIER | E203: 6.250360983 | F203: 13189 | G203: 82436.01101 | H203: 0.1329769324 | I203: 10962.08786
A204: 194 | C204: BIRCH CREEK UNIT 98 BR | D204: BEAR RIVER | E204: 6.250360983 | F204: 1045 | G204: 6531.627228 | H204: 0.1329769324 | I204: 868.5557524
... 1483 more rows

Sheet SDR#1
E1: Dominion Energy Utah
E2: Docket No. 23-057-03
B4: Standard Data Request #1
B5: Summary of Sources of Supply and Demand
A8: 1 | B8: DEMAND | C8: Total | D8: Utah | E8: Wyoming
A10: =A8+1 -> 2 | B10: SALES IN DTHS | C10: =D10+E10 -> 118552357 | D10: 114834120 | E10: 3718237
A11: =A10+1 -> 3 | B11: DIST. CO. USE & | C11: 0
A12: =A11+1 -> 4 | B12: DIST. LOST & UNACCT. (0.49%) | C12: 666433
A15: =A12+1 -> 5 | B15: TOTAL | C15: =SUM(C10:C12) -> 119218790
A19: =A15+1 -> 6 | B19: SUPPLY | C19: Total | D19: Utah | E19: Wyoming
A21: =A19+1 -> 7 | B21: COMPANY PRODUCTION | C21: 58444351.95 | D21: =$D$10/$C$10*C21 -> 56611322.58 | E21: =$E$10/$C$10*C21 -> 1833029.367
A22: =A21+1 -> 8 | B22: GAS REIMBURSEMENT | C22: -2951439.773 | D22: -2858871.79 | E22: -92567.98301
A25: =A22+1 -> 9 | B25: CONTRACT GAS | C25: 67933164 | D25: =$D$10/$C$10*C25 -> 65802530.66 | E25: =$E$10/$C$10*C25 -> 2130633.336
A26: =A25+1 -> 10 | B26: GAS REIMBURSEMENT | C26: -713298.222 | D26: -690926.572 | E26: -22371.65003
A28: =A26+1 -> 11 | B28: STORAGE
A29: =A28+1 -> 12 | B29: INJECTIONS | C29: -15007402 | D29: =$D$10/$C$10*C29 -> -14536714.8 | E29: =$E$10/$C$10*C29 -> -470687.2035
A30: =A29+1 -> 13 | B30: WITHDRAWALS | C30: 11703439 | D30: =$D$10/$C$10*C30 -> 11336376.2 | E30: =$E$10/$C$10*C30 -> 367062.7984
A31: =A30+1 -> 14 | B31: NET (INJECTIONS) WITHDRAWALS | C31: =C29+C30 -> -3303963 | D31: =D29+D30 -> -3200338.595 | E31: =E29+E30 -> -103624.4051
A33: =A31+1 -> 15 | B33: Storage Fuel | C33: -374974.9982 | D33: =D10/C10*C33 -> -363214.4061 | E33: =E10/C10*C33 -> -11760.59209
A34: =A33+1 -> 16 | B34: LNG WITHDRAWALS | C34: 184950 | D34: =C34 -> 184950 | E34: 0
A37: =A34+1 -> 17 | B37: TOTAL SUPPLY | C37: =C21+C22+C25+C26+C29+C30+C33+C34 -> 119218790 | D37: =SUM(D21:D30)+D33+D34 -> 115485451.9 | E37: =SUM(E21:E30)+E33 -> 3733338.072
A39: =A37+1 -> 18 | B39: Company Use & Loss % | C39: =(+C37-C10)/C37 -> 0.005589999307 | D39: =(+D37-D10)/D37 -> 0.005639947458 | E39: =(+E37-E10)/E37 -> 0.004044924984
B42: Difference | C42: =C15-C37 -> 0.04677927494

Sheet SDR#2
H1: ='Control Panel'!E37 -> Dominion Energy Utah
H2: ='Control Panel'!E38 -> Docket No. 23-057-25
A5: Standard Data Request #2
A6: Supplier Non-Gas Costs
B8: (A) | C8: (B) | D8: (C) | E8: (D) | F8: (E) | G8: (F) | T8: withdraw
A9: I. Transportation (QPC T-1) | C9: Volume (Dth) | G9: Utah Total | J9: Utah gas | K9: Utah Co. | L9: Utah gas | M9: Wyo gas | N9: Wyo Co. | O9: Wyo gas | Q9: @city gate | R9: @city gate | T9: loss | U9: Kern River | X9: Overthrust
B10: Month | C10: Utah | D10: Wyoming | E10: $/dth | F10: Demand | G10: b*d+e*(Ut %) | J10: purchased | K10: production | L10: withdrawn | M10: purchased | N10: production | O10: withdrawn | P10: Total | Q10: purchased | R10: co production | S10: withdrawls | T10: =-Calculations!P172/Calculations!P139 -> 0.01349547639 | U10: Transportation | X10: Transportation
B12: =+'Ut Storage'!B11 -> Feb24 | C12: =J12+K12+L12-((T12+$B$54*U12)+(X12))*$J$39 -> 14183403.97 | D12: =M12+N12+O12-((T12+$B$54*U12)+(X12))*$K$39 -> 442968.6658 | E12: ='Other Inputs'!$F$46 -> 0.00267 | F12: =('Other Inputs'!$D$28)*('Other Inputs'!$F$28)-('Other Inputs'!$E$271/12)+('Other Inputs'!$D$35*'Other Inputs'!$F$35) -> 4084809.412 | G12: =(+C12)*E12+F12*$J$33/$L$33 -> 3997511.159 | J12: =Q12*$J$39 -> 11895487.52 | K12: =R12*$J$39 -> 4412123.582 | L12: =S12*$J$39 -> 1610435.713 | M12: =Q12-J12 -> 371513.6543 | N12: =R12-K12 -> 137797.1396 | O12: =S12-L12 -> 50296.28718 | P12: =SUM(J12:O12)-U12 -> 13582163.9 | Q12: =Calculations!D176 -> 12267001.18 | R12: =Calculations!D167 -> 4549920.722 | S12: =Calculations!D169+Calculations!D170 -> 1660732 | T12: =S12*$T$10 -> 22412.36949 | U12: =V12*W12 -> 4895490 | V12: =Calculations!D255 -> 168810 | W12: =Calculations!D254 -> 29 | X12: =+W12*$D$39 -> 247718 | Y12: =B12 -> Feb24
B13: =+'Ut Storage'!B12 -> Mar24 | C13: 11658935.16 | D13: 364125.7744 | E13: ='Other Inputs'!$F$46 -> 0.00267 | F13: =('Other Inputs'!$D$28)*('Other Inputs'!$F$28)-('Other Inputs'!$E$271/12)+('Other Inputs'!$D$35*'Other Inputs'!$F$35) -> 4084809.412 | G13: =(+C13)*E13+F13*$J$33/$L$33 -> 3990770.828 | J13: =Q13*$J$39 -> 9567668.92 | K13: =R13*$J$39 -> 4589508.148 | L13: 355671.8427 | M13: 298812.4393 | N13: 143337.1218 | O13: 11108.15725 | P13: =SUM(J13:O13)-U13 -> 11311671.63 | Q13: =Calculations!E176 -> 9866481.359 | R13: =Calculations!E167 -> 4732845.27 | S13: =Calculations!E169+Calculations!E170 -> 366780 | T13: =S13*$T$10 -> 4949.87083 | U13: =V13*W13 -> 3654435 | V13: =Calculations!E255 -> 117885 | W13: =Calculations!E254 -> 31 | X13: =+W13*$D$39 -> 264802 | Y13: Mar24
B14: =+'Ut Storage'!B13 -> Apr24 | C14: 8560776.601 | D14: 267365.7042 | E14: ='Other Inputs'!$F$46 -> 0.00267 | F14: =('Other Inputs'!$D$28)*('Other Inputs'!$F$28)-('Other Inputs'!$E$271/12)+('Other Inputs'!$D$35*'Other Inputs'!$F$35) -> 4084809.412 | G14: 3982498.744 | J14: =Q14*$J$39 -> 5216917.381 | K14: 4334745.085 | L14: 0 | M14: 162932.0393 | N14: 135380.4948 | O14: 0 | P14: 8803425 | Q14: =Calculations!F176 -> 5379849.42 | R14: =Calculations!F167 -> 4470125.58 | S14: =Calculations!F169+Calculations!F170 -> 0 | T14: =S14*$T$10 -> 0 | U14: =V14*W14 -> 1046550 | V14: =Calculations!F255 -> 34885 | W14: =Calculations!F254 -> 30 | X14: =+W14*$D$39 -> 256260 | Y14: Apr24
B15: =+'Ut Storage'!B14 -> May24 | C15: 6041605.739 | D15: 188688.2754 | E15: ='Other Inputs'!$F$46 -> 0.00267 | F15: =('Other Inputs'!$D$28)*('Other Inputs'!$F$28)-('Other Inputs'!$E$271/12)+('Other Inputs'!$D$35*'Other Inputs'!$F$35) -> 4084809.412 | G15: 3975772.558 | J15: =Q15*$J$39 -> 2684157.842 | K15: 4381363.291 | L15: 0 | M15: 83830.21601 | N15: 136836.4503 | O15: 0 | P15: 6204752.8 | Q15: =Calculations!G176 -> 2767988.058 | R15: =Calculations!G167 -> 4518199.741 | S15: =Calculations!G169+Calculations!G170 -> 0 | T15: 0 | U15: 1081435 | V15: =Calculations!G255 -> 34885 | W15: =Calculations!G254 -> 31 | X15: 264802 | Y15: May24
B16: =+'Ut Storage'!B15 -> Jun24 | C16: 4800115.182 | D16: 149914.6906 | E16: ='Other Inputs'!$F$46 -> 0.00267 | F16: =('Other Inputs'!$D$28)*('Other Inputs'!$F$28)-('Other Inputs'!$E$271/12)+('Other Inputs'!$D$35*'Other Inputs'!$F$35) -> 4084809.412 | G16: 3972457.778 | J16: 1917575.496 | K16: 3873425.551 | L16: 0 | M16: 59888.71649 | N16: 120972.804 | O16: 0 | P16: 4925312.567 | Q16: =Calculations!H176 -> 1977464.212 | R16: =Calculations!H167 -> 3994398.355 | S16: =Calculations!H169+Calculations!H170 -> 0 | T16: 0 | U16: 1046550 | V16: =Calculations!H255 -> 34885 | W16: =Calculations!H254 -> 30 | X16: 256260 | Y16: Jun24
B17: =+'Ut Storage'!B16 -> Jul24 | C17: 4378201.466 | D17: 136737.7018 | E17: ='Other Inputs'!$F$46 -> 0.00267 | F17: =('Other Inputs'!$D$28)*('Other Inputs'!$F$28)-('Other Inputs'!$E$271/12)+('Other Inputs'!$D$35*'Other Inputs'!$F$35) -> 4084809.412 | G17: 3971331.269 | J17: 1461129.342 | K17: 3940987.519 | L17: 0 | M17: 45633.22856 | N17: 123082.8641 | O17: 0 | P17: 4489397.953 | Q17: =Calculations!I176 -> 1506762.57 | R17: =Calculations!I167 -> 4064070.383 | S17: =Calculations!I169+Calculations!I170 -> 0 | T17: =S17*$T$10 -> 0 | U17: 1081435 | V17: =Calculations!I255 -> 34885 | W17: =Calculations!I254 -> 31 | X17: 264802 | Y17: Jul24
B18: =+'Ut Storage'!B17 -> Aug24 | C18: 3759105.812 | D18: 117402.4296 | E18: ='Other Inputs'!$F$46 -> 0.00267 | F18: =('Other Inputs'!$D$28)*('Other Inputs'!$F$28)-('Other Inputs'!$E$271/12)+('Other Inputs'!$D$35*'Other Inputs'!$F$35) -> 4084809.412 | G18: 3969678.283 | J18: 900664.2575 | K18: 3882356.948 | L18: 0 | M18: 28129.07575 | N18: 121251.7448 | O18: 0 | P18: 3850967.026 | Q18: =Calculations!J176 -> 928793.3332 | R18: =Calculations!J167 -> 4003608.693 | S18: =Calculations!J169+Calculations!J170 -> 0 | T18: 0 | U18: 1081435 | V18: =Calculations!J255 -> 34885 | W18: =Calculations!J254 -> 31 | X18: 264802 | Y18: Aug24
B19: =+'Ut Storage'!B18 -> Sep24 | C19: 4775924.589 | D19: 149159.1827 | E19: ='Other Inputs'!$F$46 -> 0.00267 | F19: =('Other Inputs'!$D$28)*('Other Inputs'!$F$28)-('Other Inputs'!$E$271/12)+('Other Inputs'!$D$35*'Other Inputs'!$F$35) -> 4084809.412 | G19: 3972393.189 | J19: 2062803.807 | K19: 3704006.648 | L19: 0 | M19: 64424.41126 | N19: 115681.6013 | O19: 0 | P19: 4900366.467 | Q19: =Calculations!K176 -> 2127228.218 | R19: =Calculations!K167 -> 3819688.249 | S19: =Calculations!K169+Calculations!K170 -> 0 | T19: 0 | U19: 1046550 | V19: =Calculations!K255 -> 34885 | W19: =Calculations!K254 -> 30 | X19: 256260 | Y19: Sep24
B20: =+'Ut Storage'!B19 -> Oct24 | C20: 9096511.956 | D20: 284097.511 | E20: ='Other Inputs'!$F$46 -> 0.00267 | F20: =('Other Inputs'!$D$28)*('Other Inputs'!$F$28)-('Other Inputs'!$E$271/12)+('Other Inputs'!$D$35*'Other Inputs'!$F$35) -> 4084809.412 | G20: 3983929.158 | J20: 6344700.442 | K20: 3775726.907 | L20: 0 | M20: 198154.3709 | N20: 117921.531 | O20: 0 | P20: 9355068.252 | Q20: =Calculations!L176 -> 6542854.813 | R20: =Calculations!L167 -> 3893648.439 | S20: =Calculations!L169+Calculations!L170 -> 0 | T20: 0 | U20: 1081435 | V20: =Calculations!L255 -> 34885 | W20: =Calculations!L254 -> 31 | X20: 264802 | Y20: Oct24
B21: =+'Ut Storage'!B20 -> Nov24 | C21: 10722647.98 | D21: 334884.1421 | E21: ='Other Inputs'!$F$46 -> 0.00267 | F21: =('Other Inputs'!$D$28)*('Other Inputs'!$F$28)-('Other Inputs'!$E$271/12)+('Other Inputs'!$D$35*'Other Inputs'!$F$35) -> 4084809.412 | G21: 3988270.941 | J21: 4006194.69 | K21: 4413056.978 | L21: 5129832.743 | M21: 125119.3804 | N21: 137826.291 | O21: 160212.2573 | P21: 10435692.34 | Q21: =Calculations!M176 -> 4131314.07 | R21: =Calculations!M167 -> 4550883.269 | S21: =Calculations!M169+Calculations!M170 -> 5290045 | T21: 71391.67739 | U21: 3536550 | V21: =Calculations!M255 -> 117885 | W21: =Calculations!M254 -> 30 | X21: 256260 | Y21: Nov24
B22: =+'Ut Storage'!B21 -> Dec24 | C22: 16238037.01 | D22: 507137.8921 | E22: ='Other Inputs'!$F$46 -> 0.00267 | F22: =('Other Inputs'!$D$28)*('Other Inputs'!$F$28)-('Other Inputs'!$E$271/12)+('Other Inputs'!$D$35*'Other Inputs'!$F$35) -> 4084809.412 | G22: 4002997.029 | J22: 11872918.92 | K22: 4399365.823 | L22: 3988551.638 | M22: 370808.8034 | N22: 137398.696 | O22: 124568.3619 | P22: 15660502.24 | Q22: =Calculations!N176 -> 12243727.72 | R22: =Calculations!N167 -> 4536764.519 | S22: =Calculations!N169+Calculations!N170 -> 4113120 | T22: 55508.51384 | U22: 5233110 | V22: =Calculations!N255 -> 168810 | W22: =Calculations!N254 -> 31 | X22: 264802 | Y22: Dec24
B23: =+'Ut Storage'!B22 -> Jan25 | C23: 17763064.85 | D23: 554766.7652 | E23: ='Other Inputs'!$F$46 -> 0.00267 | F23: =('Other Inputs'!$D$28)*('Other Inputs'!$F$28)-('Other Inputs'!$E$271/12)+('Other Inputs'!$D$35*'Other Inputs'!$F$35) -> 4084809.412 | G23: 4007068.854 | J23: 12919023.28 | K23: 4273176.406 | L23: 4601942.534 | M23: 403480.1885 | N23: 133457.614 | O23: 143725.466 | P23: 17241695.49 | Q23: =Calculations!O176 -> 13322503.47 | R23: =Calculations!O167 -> 4406634.02 | S23: =Calculations!O169+Calculations!O170 -> 4745668 | T23: 64045.05044 | U23: 5233110 | V23: =Calculations!O255 -> 168810 | W23: =Calculations!O254 -> 31 | X23: 264802 | Y23: Jan25
C26: =SUM(C12:C23) -> 111978330.3 | D26: =SUM(D12:D23) -> 3497248.735 | G26: =SUM(G12:G23) -> 47814679.79 | J26: =SUM(J12:J25) -> 70849241.9 | K26: 49979842.89 | L26: 15686434.47 | M26: 2212726.524 | N26: 1560944.353 | O26: 489910.5296 | P26: =SUM(P12:P23) -> 110761015.7 | Q26: 73061968.42 | R26: 51540787.24 | S26: 16176345 | T26: 218307.482 | U26: 30018085
C29: Months | F29: System | G29: Utah | J29: Allocation Factors
C30: or Days | D30: Dth | E30: Rate | F30: Total | G30: Total
J31: Peak Demand Allocation Base
A32: II. Transportation (ML 104 demand) | C32: ='Other Inputs'!E29 -> 12 | D32: ='Other Inputs'!D29 -> 30000 | E32: ='Other Inputs'!F29 -> 5.28804 | F32: =C32*D32*E32 -> 1903694.4 | G32: =F32*J34 -> 1845360.832 | J32: Utah | K32: Wyo | L32: Total
J33: ='Other Inputs'!E167 -> 1242197 | K33: ='Other Inputs'!E168 -> 39267 | L33: =J33+K33 -> 1281464
A34: III. Transportation (TL 112 demand) | C34: ='Other Inputs'!E30 -> 12 | D34: ='Other Inputs'!D30 -> 12000 | E34: ='Other Inputs'!F30 -> 5.28804 | F34: =C34*D34*E34 -> 761477.76 | G34: =F34*J34 -> 738144.3326 | J34: =J33/L33 -> 0.9693577034 | K34: =K33/L33 -> 0.03064229662
C35: ='Other Inputs'!E31 -> 5 | D35: ='Other Inputs'!D31 -> 75000 | E35: ='Other Inputs'!F31 -> 6.80887 | F35: =C35*D35*E35 -> 2553326.25 | G35: =F35*J34 -> 2475086.47
J36: Dth Sales Allocation Base
A37: III. Transportation (Hyrum) | C37: =+'Other Inputs'!E32 -> 12 | D37: ='Other Inputs'!D32 -> 100000 | E37: ='Other Inputs'!F32 -> 5.28804 | F37: =C37*D37*E37 -> 6345648 | G37: =F37*J34 -> 6151202.772 | J37: Utah | K37: Wyo | L37: Total
J38: =Calculations!P20 -> 119940402 | K38: =Calculations!P39 -> 3745916 | L38: =J38+K38 -> 123686318
A39: IV. Transportation (Overthrust Pipeline) | C39: ='Other Inputs'!E38 -> 2 | D39: ='Other Inputs'!D38 -> 8542 | E39: ='Other Inputs'!F38 -> 1.62 | F39: =C39*D39*E39 -> 27676.08 | G39: =F39*J34 -> 26828.02135 | J39: =J38/L38 -> 0.9697143867 | K39: =K38/L38 -> 0.03028561332
C40: =29+31 -> 60 | D40: ='Other Inputs'!D38 -> 8542 | E40: ='Other Inputs'!F39 -> 0.00167 | F40: =C40*D40*E40 -> 855.9084 | G40: =F40*J39 -> 829.9866892
A42: IV. Transportation (Overthrust Pipeline) | C42: =+'Other Inputs'!E40 -> 10 | D42: =+'Other Inputs'!D40 -> 8542 | E42: =+'Other Inputs'!F40 -> 1.505 | F42: =C42*D42*E42 -> 128557.1 | G42: =F42*J34 -> 124617.8152
C43: =30+31+30+31+31+30+31+30+31+31 -> 306 | D43: =+'Other Inputs'!D40 -> 8542 | E43: =+'Other Inputs'!F41 -> 0.0012 | F43: =C43*D43*E43 -> 3136.6224 | G43: =F43*J39 -> 3041.627867
A45: IV. Transportation (KR 2003 Expansion) | C45: ='Other Inputs'!E61 -> 12 | D45: ='Other Inputs'!D61 -> 33000 | E45: ='Other Inputs'!F61 -> 5.4778 | F45: =C45*D45*E45 -> 2169208.8
C46: ='Other Inputs'!E62 -> 5 | D46: ='Other Inputs'!D62 -> 50000 | E46: ='Other Inputs'!F62 -> 5.45984 | F46: =C46*D46*E46 -> 1364960 | G46: =(F45+F46+F47)*J34 -> 3546519.782
C47: ='Other Inputs'!E63 -> 12 | D47: ='Other Inputs'!D63 -> 1885 | E47: ='Other Inputs'!F63 -> 5.5022 | F47: =C47*D47*E47 -> 124459.764
A49: V. Transportation (KR #20024) | C49: =+'Other Inputs'!E71 -> 5 | D49: =+'Other Inputs'!D71 -> 27000 | E49: =+'Other Inputs'!F71 -> 8.816 | F49: =C49*D49*E49 -> 1190160 | G49: =F49*J34 -> 1153690.764
A51: VI. Transportation (KR #20017) | C51: =+'Other Inputs'!E67 -> 3 | D51: =+'Other Inputs'!D67 -> 56925 | E51: =+'Other Inputs'!F67 -> 8.796666667 | F51: =C51*D51*E51 -> 1502250.75 | G51: =F51*J34 -> 1456218.337
C52: =+'Other Inputs'!E69 -> 2 | D52: =+'Other Inputs'!D69 -> 6000 | E52: =+'Other Inputs'!F69 -> 8.845 | F52: =C52*D52*E52 -> 106140 | G52: =F52*J34 -> 102887.6266
A54: VIII. Trans (KR 2003 Expansion) | B54: ='Other Inputs'!C76 -> 0.7315204195 | C54: ='Other Inputs'!E75 -> 366 | D54: ='Other Inputs'!D75 -> 34885 | E54: ='Other Inputs'!F75 -> 0.0044 | F54: =B54*C54*D54*E54 -> 41095.94227
B55: ='Other Inputs'!C75 -> 0.7315204195 | C55: ='Other Inputs'!E76 -> 152 | D55: ='Other Inputs'!D76 -> 50000 | E55: ='Other Inputs'!F76 -> 0.0044 | F55: =B55*C55*D55*E55 -> 24462.04283 | G55: =(F54+F55)*J39 -> 63572.52131
A57: IX. Transportation (KR #20024) | B57: =+'Other Inputs'!C82 -> 0.7315204195 | C57: =+'Other Inputs'!E82 -> 152 | D57: =+'Other Inputs'!D82 -> 27000 | E57: =+'Other Inputs'!F82 -> 0.0044 | F57: =B57*C57*D57*E57 -> 13209.50313 | G57: =+F57*J39 -> 12809.44522
A59: X. Trans (KR #20017) | B59: =+'Other Inputs'!C79 -> 0.7315204195 | C59: =+'Other Inputs'!E79 -> 91 | D59: =+'Other Inputs'!D79 -> 56925 | E59: =+'Other Inputs'!F79 -> 0.0044 | F59: =B59*C59*D59*E59 -> 16673.37667
B60: =+'Other Inputs'!C80 -> 0.7315204195 | C60: =+'Other Inputs'!E80 -> 61 | D60: =+'Other Inputs'!D80 -> 6000 | E60: =+'Other Inputs'!F80 -> 0.0044 | F60: =B60*C60*D60*E60 -> 1178.040484 | G60: =(F59+F60)*J39 -> 17310.77604
A62: XII. Other Trans | F62: ='Other Inputs'!$D$199 -> 2140764.013 | G62: =F62*$J$39 -> 2075929.662
A64: Storage Commodity | F64: =+'Ut 1.4 p2'!J29 -> 560200 | G64: =+F64*J39 -> 543233.9994
A65: Total ACA | D65: =+'Ut 1.4 p1'!F43 -> 140560793.2 | E65: =+'Ut 1.4 p1'!J43 -> 0.0014 | F65: =+D65*E65 -> 196785.1105 | G65: =+F65*J39 -> 190825.3527
A67: XIV. Storage Demand | C67: 12 | D67: ='Other Inputs'!E188 -> 184625 | E67: ='Other Inputs'!E14 -> 2.87375 | F67: =C67*D67*E67 -> 6366793.125
C68: =+'Ut 1.4 p2'!F17 -> 10 | D68: =+'Other Inputs'!E189 -> 2000000 | E68: =+'Other Inputs'!E15 -> 0.2 | F68: =C68*D68*E68 -> 4000000
C69: 12 | D69: ='Other Inputs'!E190 -> 111827 | E69: ='Other Inputs'!E16 -> 2.85338 | F69: =C69*D69*E69 -> 3829019.103
C70: 12 | D70: ='Other Inputs'!E191 -> 13419000 | E70: ='Other Inputs'!E17 -> 0.02378 | F70: =C70*D70*E70 -> 3829245.84 | G70: =SUM(F67:F70)*J34 -> 17472728.89
A72: XV. Peak Hour Service | C72: =+'Other Inputs'!E20 -> 3 | D72: =+'Other Inputs'!D20 -> 28752 | E72: =+'Other Inputs'!F20 -> 18.0596 | F72: =C72*D72*E72 -> 1557748.858 | G72: =F72*J34 -> 1510015.855
C73: =+'Other Inputs'!E23 -> 3 | D73: =+'Other Inputs'!D23 -> 74666.66667 | E73: =+'Other Inputs'!F23 -> 7.357482143 | F73: =C73*D73*E73 -> 1648076 | G73: =F73*J34 -> 1597575.166
A75: LNG Electric Costs | C75: 12 | F75: =+'Ut 1.4 p2'!K34 -> 2359692.58 | G75: =+F75 -> 2359692.58
A78: Total Supplier Non-Gas Costs | G78: =G26+G32+G34+G35+G46+G55+G62+G70++G49+G51+G52+G57+G60+G72+G73+G64+G65+G37+G39+G40+G75+G42+G43 -> 91282802.41

Sheet SDR#3
I1: ='Control Panel'!E37 -> Dominion Energy Utah
I2: ='Control Panel'!E38 -> Docket No. 23-057-25
C5: Standard Data Request #3
C6: Monthly Forecasted Sales
D8: Utah Sales | F8: Wyoming Sales | H8: System Total
C9: Month | D9: Dth | F9: Dth | H9: Dth
B11: 1 | C11: =Calculations!D147 -> Feb24 | D11: =Calculations!D20 -> 17435441 | F11: =Calculations!D39 -> 539174 | H11: =SUM(D11:F11) -> 17974615
B13: =B11+1 -> 2 | C13: =Calculations!E147 -> Mar24 | D13: =Calculations!E20 -> 13686823 | F13: =Calculations!E39 -> 458279 | H13: =SUM(D13:F13) -> 14145102
B15: =B13+1 -> 3 | C15: =Calculations!F147 -> Apr24 | D15: =Calculations!F20 -> 9461719 | F15: =Calculations!F39 -> 341556 | H15: 9803275
B17: =B15+1 -> 4 | C17: =Calculations!G147 -> May24 | D17: =Calculations!G20 -> 5671158 | F17: =Calculations!G39 -> 223690 | H17: 5894848
B19: =B17+1 -> 5 | C19: =Calculations!H147 -> Jun24 | D19: =Calculations!H20 -> 3160663 | F19: =Calculations!H39 -> 104588 | H19: 3265251
B21: =B19+1 -> 6 | C21: =Calculations!I147 -> Jul24 | D21: =Calculations!I20 -> 2708624 | F21: =Calculations!I39 -> 69447 | H21: 2778071
B23: =B21+1 -> 7 | C23: =Calculations!J147 -> Aug24 | D23: =Calculations!J20 -> 2593558 | F23: =Calculations!J39 -> 68493 | H23: 2662051
B25: =B23+1 -> 8 | C25: =Calculations!K147 -> Sep24 | D25: =Calculations!K20 -> 3014390 | F25: =Calculations!K39 -> 95091 | H25: 3109481
B27: =B25+1 -> 9 | C27: =Calculations!L147 -> Oct24 | D27: =Calculations!L20 -> 7538968 | F27: =Calculations!L39 -> 212286 | H27: 7751254
B29: =B27+1 -> 10 | C29: =Calculations!M147 -> Nov24 | D29: =Calculations!M20 -> 12987513 | F29: =Calculations!M39 -> 412187 | H29: 13399700
B31: =B29+1 -> 11 | C31: =Calculations!N147 -> Dec24 | D31: =Calculations!N20 -> 20018948 | F31: =Calculations!N39 -> 605713 | H31: 20624661
B33: =B31+1 -> 12 | C33: =Calculations!O147 -> Jan25 | D33: =Calculations!O20 -> 21662597 | F33: =Calculations!O39 -> 615412 | H33: 22278009
B36: =B33+1 -> 13 | C36: Total Sales (Dth) | D36: =SUM(D11:D33) -> 119940402 | F36: =SUM(F11:F33) -> 3745916 | H36: =SUM(H11:H33) -> 123686318

Sheet SDR#4
H1: ='Control Panel'!E37 -> Dominion Energy Utah
H2: ='Control Panel'!E38 -> Docket No. 23-057-25
C5: Standard Data Request #4
C6: Supplier Non-Gas Costs Recovered at Current Rates
C9: (A) | D9: (B) | E9: (C) | F9: (D) | G9: (E)
B10: 1 | C10: Rate Schedule | D10: Season | E10: Sales Dth | F10: SNG Rate | G10: SNG Revenue
B12: =B10+1 -> 2 | C12: GS | D12: winter | E12: ='Utah Summary-by class'!B8 -> 84199933 | F12: ='Utah Summary-by class'!K8 -> 0.9468 | G12: =E12*F12 -> 79720496.56
B13: =B12+1 -> 3 | D13: summer | E13: ='Utah Summary-by class'!B9 -> 32520345 | F13: ='Utah Summary-by class'!K9 -> 0.39825 | G13: =E13*F13 -> 12951227.4
B15: =B13+1 -> 4 | C15: FS | D15: winter | E15: ='Utah Summary-by class'!B13 -> 1326084 | F15: ='Utah Summary-by class'!K13 -> 0.93299 | G15: =E15*F15 -> 1237223.111
B16: =B15+1 -> 5 | D16: summer | E16: ='Utah Summary-by class'!B14 -> 1346453 | F16: ='Utah Summary-by class'!K14 -> 0.77862 | G16: =E16*F16 -> 1048375.235
B18: =B16+1 -> 6 | C18: NGV | D18: annual | E18: ='Utah Summary-by class'!B18 -> 259153 | F18: ='Utah Summary-by class'!K18 -> 0.70443 | G18: =E18*F18 -> 182555.1478
B20: =B18+1 -> 7 | C20: IS | D20: annual | E20: ='Utah Summary-by class'!B21 -> 288434 | F20: ='Utah Summary-by class'!K21 -> 0.17938 | G20: =E20*F20 -> 51739.29092
B23: =B20+1 -> 8 | C23: Total Supplier Non-Gas Costs | E23: =SUM(E12:E20) -> 119940402 | G23: =SUM(G12:G21) -> 95191616.75
C27: Rate Schedule | D27: Season | E27: Trans Dth | F27: SNG Rate | G27: SNG Revenue
B28: 9 | C28: TSF | D28: annual | E28: ='Utah Summary-by class'!B23 -> 219939 | F28: ='Utah Summary-by class'!K23 -> 2.15694 | G28: =E28*F28 -> 474395.2267
B30: 10 | C30: TBF | D30: annual | E30: ='Utah Summary-by class'!B25 -> 64500 | F30: ='Utah Summary-by class'!K25 -> 1.43699 | G30: =E30*F30 -> 92685.855
B33: 11 | C33: Total Supplier Non-Gas Costs | E33: =SUM(E28:E30) -> 284439 | G33: =SUM(G28:G30) -> 567081.0817

Sheet SDR#5
H1: Dominion Energy Utah
H2: Docket No. 23-057-03
B5: Standard Data Request #5
B6: RIN Proceeds
F8: Total | G8: Volumes | H8: Rate
A9: Total RIN Proceeds | F9: -96190.32947 | G9: 289772 | H9: -0.3319517741
B11: Month | C11: NGV Dths | D11: Rate | E11: Refund
B12: 2022-05-01 | C12: 16662.82 | D12: -0.37839 | E12: -6305.029798
B13: 2022-06-01 | C13: 17358.689 | D13: -0.37839 | E13: -6568.339056
B14: 2022-07-01 | C14: 17864.705 | D14: -0.37839 | E14: -6759.810005
C15: Estimated Dths | E15: -19633.17886
B17: 2022-05-01 | C17: 23490.523 | D17: -0.37839 | E17: -8888.578998
B18: 2022-06-01 | C18: 27400.37 | D18: -0.37839 | E18: -10368.026
B19: 2022-07-01 | C19: 21377.085 | D19: -0.37839 | E19: -8088.875193
C20: Actual Dths | E20: -27345.4802
A21: True up of Estimated Volumes | F21: -7712.301336
B23: Month | C23: NGV Dths | D23: Rate | E23: Refunded
B24: 2022-08-01 | C24: 20949.326 | D24: -0.3319517741 | E24: -6954.165931
A25: estimate | B25: 2022-09-01 | C25: 20224.652 | D25: -0.3319517741 | E25: -6713.609111
A26: estimate | B26: 2022-10-01 | C26: 17660.12 | D26: -0.3319517741 | E26: -5862.308164
D27: Expected Amortized Total | F27: -19530.08321
A29: Remaining to be Amortized | F29: =F9-F21-F27 -> -68947.94493
B31: Document No. | C31: Date | D31: RIN Proceed
B32: 1800000177 | C32: 2022-06-02 | D32: 12617.03
B33: 1800000178 | C33: 2022-06-02 | D33: 3740.35
B34: 1800000179 | C34: 2022-06-08 | D34: 7816.14
B35: 1800000180 | C35: 2022-06-08 | D35: 959.53
B36: 1800000181 | C36: 2022-06-08 | D36: 7141.44
B37: 1800000216 | C37: 2022-06-30 | D37: 1815.92
B38: 1800000217 | C38: 2022-06-30 | D38: 5773.71
B39: 1800000235 | C39: 2022-07-20 | D39: 16765.61
B40: 1400000890 | C40: 2022-07-25 | D40: -15917.11
B41: 1800000263 | C41: 2022-08-10 | D41: 4721.4
B42: 1800000264 | C42: 2022-08-10 | D42: 7954.22
B43: 1800000265 | C43: 2022-08-18 | D43: 12456.75
B44: 1800000266 | C44: 2022-08-18 | D44: 4577.25
A45: New RIN Proceeds | F45: 70422.24
A47: Total RIN Proceeds | F47: =F29-F45 -> -139370.1849 | G47: 289772 | H47: =F47/G47 -> -0.4809649826

Sheet Ut 1.1 p1
F1: ='Control Panel'!$E$37 -> Dominion Energy Utah
F2: ='Control Panel'!$E$38 -> Docket No. 23-057-25
F3: DEU Exhibit 1.1
F4: Page 1 of 2
B9: TABLE OF CONTENTS
B14: DEU Exhibit | D14: Description | E14: Type
B16: 1.1 | C16: Page 2 | D16: Test-Year Gas Cost Allocation | E16: Summary
B18: 1.2 | C18: Page 1 | D18: Test-Year Royalties & Company Production | E18: Commodity
C19: Page 2 | D19: Test-Year Other Revenues | E19: Commodity
C20: Page 3 | D20: Summary of Wexpro Test-Year Gas Costs and Revenue Credits | E20: Commodity
C21: Page 4 | D21: Test-Year Purchased Gas Costs | E21: Commodity
C22: Page 5 | D22: Test-Year Storage Gas & Working Gas Charges | E22: Commodity
C23: Page 6 | D23: Test-Year LNG Purchased Gas, Storage Gas & Working Gas Charges | E23: Commodity
B25: 1.3 | D25: Confidential Comparison of Natural Gas Price Forecasts | E25: Commodity
B27: 1.4 | C27: Page 1 | D27: Test-Year Transportation Charges | E27: SNG
C28: Page 2 | D28: Test-Year Storage Charges and LNG Electricity Costs | E28: SNG
C29: Page 3 | D29: Supplier Non-Gas Cost Class Allocation | E29: SNG
C30: Page 4 | D30: Supplier Non-Gas Cost Summary | E30: SNG
B32: 1.5 | C32: Page 1 | D32: Test-Year Gas Cost Change | E32: Commodity
C33: Page 2 | D33: Test-Year Supplier Non-Gas Cost Change | E33: SNG
C34: Page 3 | D34: Supplier Non-Gas Rate Calculation | E34: SNG
C35: Page 4 | D35: General Service Summer / Winter Differential | E35: SNG
C36: Page 5 | D36: Firm Service Summer / Winter Differential | E36: SNG
C37: Page 6 | D37: Summary of Rates | E37: Summary
B39: 1.6 | D39: Effect on GS Typical Customer 70 Dth | E39: Summary
B41: 1.7 | C41: Page1-8 | D41: Legislative Rate Schedules | E41: Summary
C42: Page 9-17 | D42: Proposed Rate Schedules | E42: Summary
B44: 1.8 | C44: Page1-8 | D44: Legislative Combined Rate Schedules | E44: Summary
C45: Page 9-17 | D45: Proposed Combined Rate Schedules | E45: Summary
B47: 1.9 | D47: Excel Pass Through Model

Sheet Ut 1.1 p2
I1: ='Control Panel'!$E$37 -> Dominion Energy Utah
I2: ='Control Panel'!$E$38 -> Docket No. 23-057-25
I3: DEU Exhibit 1.1
I4: Page 2 of 2
C8: TEST-YEAR GAS COST ALLOCATION
C11: (A) | E11: (B) | F11: (C) | G11: (D) | H11: (E)
E12: Allocation
E13: Factor | F13: System | G13: Wyoming | H13: Utah
B15: COMMODITY | E15: 1/
A16: 1 | C16: Dominion Energy Production (DEU Exhibit 1.2, p 1) | E16: 2 | F16: ='Ut 1.2 p3'!E15+'Ut 1.2 p3'!E28 -> 292835638 | G16: =CHOOSE($E16,G$57,G$60)*$F16 -> 9184400.309 | H16: 283651237.7
A17: =A16+1 -> 2 | C17: Other Revenue's Credit (DEU Exhibit 1.2, p 2) | E17: 2 | F17: ='Ut 1.2 p3'!E16+'Ut 1.2 p3'!E29+'Ut 1.2 p3'!E47 -> -39442063.18 | G17: -1237047.853 | H17: -38205015.33
A18: =A17+1 -> 3 | C18: Gathering (DEU Exhibit 1.2, p 3, ln 4) | D18: - Demand | E18: 1 | F18: ='Ut 1.2 p3'!E19 -> 2887809.099 | G18: 91248.51604 | H18: 2796560.583
A19: =A18+1 -> 4 | C19: Gathering (DEU Exhibit 1.2, p 3, lns 5, 6, 12) | D19: - Commodity | E19: 2 | F19: ='Ut 1.2 p3'!E21+'Ut 1.2 p3'!E20+'Ut 1.2 p3'!E32 -> 3492107.502 | G19: 109525.3072 | H19: 3382582.195
A20: =A19+1 -> 5 | C20: Net Cost of Dominion Energy Production | F20: =SUM(F16:F19) -> 259773491.5 | G20: =SUM(G16:G19) -> 8148126.28 | H20: =SUM(H16:H19) -> 251625365.2
A22: =A20+1 -> 6 | C22: Dominion Energy Contract Gas (DEU Exhibit 1.2, p 4) | E22: 2 | F22: ='Ut 1.2 p4'!E25 -> 533208247 | G22: =CHOOSE($E22,G$57,G$60)*$F22 -> 16723367.49 | H22: =CHOOSE($E22,H$57,H$60)*$F22 -> 516484879.5
A23: =A22+1 -> 7 | C23: LNG Purchased Gas (DEU Exhibit 1.2, p 6, ln 1) | E23: UT | F23: ='Ut 1.2 p6'!E17 -> 7575865.357 | G23: 0 | H23: =F23 -> 7575865.357
A25: 8 | C25: Injection / Withdrawal Adjustment (DEU Exhibit 1.2, p 5, ln 3) | E25: 2 | F25: ='Ut 1.2 p5'!E21 -> -16067484.03 | G25: =CHOOSE($E25,G$57,G$60)*$F25 -> -503935.2664 | H25: =CHOOSE($E25,H$57,H$60)*$F25 -> -15563548.76
A26: =A25+1 -> 9 | C26: LNG Injection / Withdrawal Adjustment (DEU Exhibit 1.2, p 6, ln 4) | E26: UT | F26: ='Ut 1.2 p6'!E26 -> -6262203.488 | G26: 0 | H26: =F26 -> -6262203.488
A28: 10 | C28: Working Gas Costs (DEU Exhibit 1.2, p 5, ln 17) | E28: 2 | F28: ='Ut 1.2 p5'!I43 -> 2346560.806 | G28: =CHOOSE($E28,G$57,G$60)*$F28 -> 73596.75872 | H28: =CHOOSE($E28,H$57,H$60)*$F28 -> 2272964.048
A29: =A28+1 -> 11 | C29: LNG Working Gas Costs (DEU Exhibit 1.2, p 6, ln 18) | E29: UT | F29: ='Ut 1.2 p6'!I48 -> 538347.2125 | G29: 0 | H29: =F29 -> 538347.2125
A32: =A29+1 -> 12 | C32: TOTAL COMMODITY | F32: =SUM(F20:F30) -> 781112824.3 | G32: =SUM(G20:G30) -> 24441155.26 | H32: =SUM(H20:H30) -> 756671669.1
B34: SNG | E34: 2/
A35: =A32+1 -> 13 | C35: Transportation (DEU Exhibit 1.4, p 1, ln 17) | D35: - Demand | E35: 1 | F35: ='Ut 1.4 p1'!M38 -> 67195272 | G35: =CHOOSE($E35,G$67,G$70)*$F35 -> 2059017.456 | H35: =CHOOSE($E35,H$67,H$70)*$F35 -> 65136254.54
A36: =A35+1 -> 14 | C36: Transportation (DEU Exhibit 1.4, p 1, ln 29) | D36: - Commodity | E36: 2 | F36: ='Ut 1.4 p1'!M59 -> 605717 | G36: =CHOOSE($E36,G$67,G$70)*$F36 -> 18344.51084 | H36: =CHOOSE($E36,H$67,H$70)*$F36 -> 587372.4892
A38: =A36+1 -> 15 | C38: Other Transportation (DEU Exhibit 1.4, p 1, ln 30) | E38: 2 | F38: ='Ut 1.4 p1'!M63 -> 2140764 | G38: =CHOOSE($E38,G$67,G$70)*$F38 -> 64834.35071 | H38: =CHOOSE($E38,H$67,H$70)*$F38 -> 2075929.649
A40: =A38+1 -> 16 | C40: Peak Hour Service (DEU Exhibit 1.4, p 1, ln 33) | E40: 1 | F40: ='Ut 1.4 p1'!L69+'Ut 1.4 p1'!L70 -> 3205825 | G40: =CHOOSE($E40,G$67,G$70)*$F40 -> 98233.84057 | H40: =CHOOSE($E40,H$67,H$70)*$F40 -> 3107591.159
A42: =A40+1 -> 17 | C42: Storage (DEU Exhibit 1.4, p 2, ln 5) | D42: - Demand | E42: 1 | F42: ='Ut 1.4 p2'!J20 -> 18025058 | G42: =CHOOSE($E42,G$67,G$70)*$F42 -> 552329.1739 | H42: =CHOOSE($E42,H$67,H$70)*$F42 -> 17472728.83
A43: =A42+1 -> 18 | C43: Storage (DEU Exhibit 1.4, p 2, ln 12) | D43: - Commodity | E43: 2 | F43: ='Ut 1.4 p2'!J29 -> 560200 | G43: =CHOOSE($E43,G$67,G$70)*$F43 -> 16966.00058 | H43: =CHOOSE($E43,H$67,H$70)*$F43 -> 543233.9994
A45: =A43+1 -> 19 | C45: LNG Electricity Costs (DEU Exhibit 1.4, p 2, ln 14) | E45: UT | F45: ='Ut 1.4 p2'!K34 -> 2359692.58 | G45: 0 | H45: =F45 -> 2359692.58
A48: =A45+1 -> 20 | C48: TOTAL SNG | F48: =SUM(F35:F45) -> 94092528.58 | G48: =SUM(G35:G45) -> 2809725.333 | H48: =SUM(H35:H45) -> 91282803.25
A51: =A48+1 -> 21 | C51: TOTAL GAS COST | F51: =F32+F48 -> 875205352.9 | G51: =G32+G48 -> 27250880.59 | H51: =H32+H48 -> 847954472.3
A54: 1/ | C54: Allocation Factors from Docket No. 23-057-07, DEU Exhibit 1.1U, Page 2 | F54: Total | G54: Wyoming | H54: Utah
C55: No change in commodity cost or allocation
C56: #1 Peak Day Demand | E56: Dth- | F56: 1245022 | G56: 39340 | H56: 1205682
E57: Percent- | F57: 1 | G57: 0.03159783522 | H57: 0.9684021648
C59: #2 Commodity Sales - All | E59: Dth- | F59: 118552357 | G59: 3718237 | H59: 114834120
E60: Percent- | F60: 1 | G60: 0.03136366998 | H60: 0.96863633
C62: #UT Utah Only | F62: 1 | G62: 0 | H62: 1
A64: 2/ | C64: Allocation Factors | F64: Total | G64: Wyoming | H64: Utah
C66: #1 Peak Day Demand | E66: Dth- | F66: =SUM(G66:H66) -> 1281464 | G66: ='Other Inputs'!$E$168 -> 39267 | H66: ='Other Inputs'!$E$167 -> 1242197
E67: Percent- | F67: =G67+H67 -> 1 | G67: =G66/F66 -> 0.03064229662 | H67: =H66/F66 -> 0.9693577034
C69: #2 Commodity Sales - All | E69: Dth- | F69: 123686318 | G69: 3745916 | H69: 119940402
E70: Percent- | F70: =G70+H70 -> 1 | G70: =G69/F69 -> 0.03028561332 | H70: =H69/F69 -> 0.9697143867
C72: #UT Utah Only | F72: =G72+H72 -> 1 | G72: 0 | H72: 1

Sheet Ut 1.2 p1
H1: Dominion Energy Utah
H2: ='Control Panel'!$E$38 -> Docket No. 23-057-25
H3: DEU Exhibit 1.2
H4: Page 1 of 6
C8: TEST-YEAR ROYALTIES & COMPANY PRODUCTION
B10: COMMODITY
C11: (A) | E11: (B) | G11: (C)
E12: Base Year | G12: Test-Year
E13: Dth | G13: Royalty $
B15: WEXPRO I
A16: =A15+1 -> 1 | C16: Royalties Based on Historical Production | E16: 41744996 | G16: =+'Royalty Detail'!I1414 -> 42581675.35
A18: =A16+1 -> 2 | C18: Test-Year Adjustment for IRP Production Forecast | E18: -511837.159 | G18: =G16/E16*E18 -> -522095.7198
A21: =A18+1 -> 3 | C21: Total Wexpro I Test-Year Royalties | G21: =G16+G18 -> 42059579.63
A23: =A21+1 -> 4 | C23: Wexpro I Operator Service Fee | G23: ='Monthly Inputs'!S103 -> 180114962.4
A26: =A23+1 -> 5 | C26: Total Wexpro I Company Production (IRP Forecast) | E26: 41233158.84 | G26: =G21+G23 -> 222174542
B30: WEXPRO II
A31: =A26+1 -> 6 | C31: Royalties Based on Historical Production | E31: 14958729.23 | G31: =+'Royalty Detail'!I1686 -> 14215480.65
A33: =A31+1 -> 7 | C33: Test-Year Adjustment for IRP Production Forecast | E33: 2252463.873 | G33: =G31/E31*E33 -> 2140546.573
A36: =A33+1 -> 8 | C36: Total Wexpro II Test-Year Royalties | G36: =G31+G33 -> 16356027.22
A38: =A36+1 -> 9 | C38: Wexpro II Operator Service Fee | G38: ='Monthly Inputs'!S105 -> 54305068.81
A41: =A38+1 -> 10 | C41: Total Wexpro II Company Production (IRP Forecast) | E41: 17211193.11 | G41: =G36+G38 -> 70661096.03
B45: TOTAL WEXPRO
A46: =A41+1 -> 11 | C46: Total Wexpro Test-Year Royalties | G46: =G36+G21 -> 58415606.85
A48: =A46+1 -> 12 | C48: Total Wexpro Operator Service Fee | G48: =G38+G23 -> 234420031.2
A51: =A48+1 -> 13 | C51: Total Wexpro Company Production | E51: 58444351.95 | G51: =G46+G48 -> 292835638

Sheet Ut 1.2 p2
K1: ='Control Panel'!$E$37 -> Dominion Energy Utah
K2: ='Control Panel'!$E$38 -> Docket No. 23-057-25
K3: DEU Exhibit 1.2
K4: Page 2 of 6
D8: TEST-YEAR OTHER REVENUES 1/
B10: COMMODITY
C11: (A) | E11: (B) | F11: (C) | G11: (D)
C12: Account | G12: =Expenses!P2 -> 12 Months Ending
C13: Number | E13: Account Name | G13: ='Control Panel'!E12 -> 2025-01-31
C14: WEXPRO I
B15: 1 | D15: 483 | E15: Sales for Resale | H15: ='Other Inputs'!F223 -> 2608104.323
B17: =B15+1 -> 2 | D17: 490 | E17: Plant By-Product | H17: ='Other Inputs'!F224 -> 7054646.295
B19: =B17+1 -> 3 | D19: 492 | E19: Gasoline and Oil Sales | F19: ='Other Inputs'!F225 -> 800670.2243
B20: =B19+1 -> 4 | D20: 758-1 | E20: Gasoline and Oil Cost | F20: ='Other Inputs'!F229 -> -113163.6978
B21: =B20+1 -> 5 | E21: Net Gasoline and Oil Sales | H21: =F19+F20 -> 687506.5265
B23: =B21+1 -> 6 | D23: 495-1 | E23: Overriding Royalty Revenue | H23: ='Other Inputs'!F226 -> 13230202.85
B25: =B23+1 -> 7 | D25: 495-2 | E25: Oil Revenue Received from Wexpro | H25: ='Other Inputs'!F227 -> 2393370.967
B27: =B25+1 -> 8 | E27: 3rd Party & Liquids Credits from MLPX Acquisition | H27: ='Other Inputs'!F228 -> 4401796.663
B29: 9 | E29: EDIT Amortization | H29: ='Other Inputs'!F230 -> 4770564
B32: 10 | E32: Total Wexpro I | H32: =SUM(H15:H30) -> 35146191.62
C34: WEXPRO II
B35: =B32+1 -> 11 | D35: 483 | E35: Sales for Resale | H35: ='Other Inputs'!E246 -> 0
B37: =B35+1 -> 12 | D37: 490 | E37: Plant By-Product | H37: ='Other Inputs'!E247 -> 1987413.025
B39: =B37+1 -> 13 | D39: 492 | E39: Gasoline and Oil Sales | F39: ='Other Inputs'!E248 -> 1562109.906
B40: =B39+1 -> 14 | D40: 758-1 | E40: Gasoline and Oil Cost | F40: ='Other Inputs'!E251 -> -231586.5924
B41: =B40+1 -> 15 | E41: Net Gasoline and Oil Sales | H41: =F39+F40 -> 1330523.314
B43: =B41+1 -> 16 | D43: 495-1 | E43: Overriding Royalty Revenue | H43: ='Other Inputs'!E249 -> 0
B45: =B43+1 -> 17 | D45: 495-2 | E45: Oil Revenue Received from Wexpro | H45: ='Other Inputs'!E250 -> 881707.2207
B47: 18 | E47: EDIT Amortization | H47: ='Other Inputs'!F252 -> 96228
B50: 19 | E50: Total Wexpro II | H50: =SUM(H35:H48) -> 4295871.56
B52: =1+B50 -> 20 | E52: Sales of Cost-of-Service Gas | H52: ='Other Inputs'!E258 -> 0
B55: =B52+1 -> 21 | E55: Grand Total (Line 10 + Line 19 + Line 20) | H55: =H32+H50+H52 -> 39442063.18
B59: 1/ | D59: Forecasted 12-month test year.

Sheet Ut 1.2 p3
G1: ='Control Panel'!$E$37 -> Dominion Energy Utah
G2: ='Control Panel'!$E$38 -> Docket No. 23-057-25
G3: DEU Exhibit 1.2
G4: Page 3 of 6
B8: SUMMARY OF WEXPRO TEST-YEAR GAS COSTS AND REVENUES CREDITS
B10: COMMODITY
B11: (A) | E11: (B) | F11: (C) | G11: (D)
B12: Component | E12: Costs | F12: Dth 1/ | G12: $ per Dth
B14: WEXPRO I
A15: 1 | C15: Dominion Energy Production 2/ | E15: ='Other Inputs'!D216 -> 222174542
A16: =A15+1 -> 2 | C16: Wexpro I Revenue Sharing Credits 3/ | E16: =-'Ut 1.2 p2'!H32 -> -35146191.62
A17: =A16+1 -> 3 | D17: Net Dominion Energy Production Costs | E17: =E15+E16 -> 187028350.4 | F17: =F25 -> 39583832.49 | G17: =E17/F25 -> 4.724867165
A19: =A17+1 -> 4 | C19: Gathering Demand | E19: ='Other Inputs'!E205 -> 2887809.099
A20: =A19+1 -> 5 | C20: Gathering Commodity | E20: ='Other Inputs'!D205 -> 1925206.066
A21: =A20+1 -> 6 | C21: Gathering Other Charges | E21: =ROUND('Other Inputs'!D197,0) -> 1342285
A22: =A21+1 -> 7 | D22: Gathering | E22: =SUM(E19:E21) -> 6155300.164
A25: =A22+1 -> 8 | B25: Total Wexpro I Cost of Production | E25: =E17+E22 -> 193183650.6 | F25: 39583832.49 | G25: =E25/F25 -> 4.880367524
B27: WEXPRO II
A28: =A25+1 -> 9 | C28: Wexpro II Production 4/ | E28: ='Other Inputs'!D239 -> 70661096.03
A29: =A28+1 -> 10 | C29: Wexpro II Revenue Sharing Credits 5/ | E29: =-'Ut 1.2 p2'!H50 -> -4295871.56
A30: =A29+1 -> 11 | D30: Net Cost of Wexpro II Production | E30: =E28+E29 -> 66365224.47 | F30: =F35 -> 16522745.38 | G30: =E30/F35 -> 4.016597904
A32: =A30+1 -> 12 | D32: Gathering | E32: ='Other Inputs'!D208 -> 224616.4362
A35: =A32+1 -> 13 | B35: Total Wexpro II Cost of Production | E35: =SUM(E30:E32) -> 66589840.91 | F35: 16522745.38 | G35: =E35/F35 -> 4.030192282
B37: TOTAL WEXPRO
A38: =A35+1 -> 14 | C38: Total Wexpro Production | E38: =E15+E28 -> 292835638
A39: =A38+1 -> 15 | C39: Total Wexpro Revenue Sharing Credits | E39: =E16+E29 -> -39442063.18
A40: =A39+1 -> 16 | D40: Net Cost of Total Wexpro Production | E40: =E38+E39 -> 253393574.9 | F40: =F25+F35 -> 56106577.87 | G40: =E40/F45 -> 4.51628997
A42: =A40+1 -> 17 | D42: Total Wexpro Gathering | E42: =E22+E32 -> 6379916.601
A45: =A42+1 -> 18 | B45: Total Wexpro Cost of Production | E45: =SUM(E40:E42) -> 259773491.5 | F45: =F25+F35 -> 56106577.87 | G45: =E45/F45 -> 4.63000064
A47: =A45+1 -> 19 | B47: Sales of Cost-of-Service Gas 6/ | E47: =-'Other Inputs'!E258 -> 0 | F47: 0 | G47: ='Other Inputs'!G258 -> 0
A50: =A47+1 -> 20 | B50: Total Cost-of-Service Production | E50: =E25+E35+E47 -> 259773491.5 | F50: =F25+F35 -> 56106577.87 | G50: =E50/F50 -> 4.63000064
A54: 1/ | B54: Estimated into-pipe volumes used for Wexpro dths.
A55: 2/ | B55: DEU Exhibit 1.2, Page 1, Line 5.
A56: 3/ | B56: DEU Exhibit 1.2, Page 2, Line 10.
A57: 4/ | B57: DEU Exhibit 1.2, Page 1, Line 10.
A58: 5/ | B58: DEU Exhibit 1.2, Page 2, Line 19.
A59: 6/ | B59: DEU Exhibit 1.2, Page 2, Line 20.

Sheet Ut 1.2 p4
H1: ='Control Panel'!$E$37 -> Dominion Energy Utah
H2: ='Control Panel'!$E$38 -> Docket No. 23-057-25
H3: DEU Exhibit 1.2
H4: Page 4 of 6
A8: TEST-YEAR PURCHASED GAS COSTS
B10: COMMODITY
D11: (A) | E11: (B) | F11: (C) | G11: (D)
G12: Cost
C13: Component | E13: Total Cost | F13: Dth | G13: per Dth
B15: 1 | C15: Current Contracts | E15: =ROUND(Calculations!$P$196+Calculations!$P$199-E17-E16,0) -> 264909700
B16: 2 | C16: Fixed Price Contracts | E16: ='Monthly Inputs'!S91 -> 47038500
B17: 3 | C17: Stabilization Costs | E17: ='Monthly Inputs'!S88 -> 0
B18: =B16+1 -> 3 | D18: Total Current Contracts | E18: =E15+E16+E17 -> 311948200 | F18: =Calculations!$P$195+Calculations!$P$198 -> 32359000 | G18: =E18/F18 -> 9.640229921
B20: =B18+1 -> 4 | C20: Forecast Spot | E20: =ROUND(Calculations!P193,0) -> 210348669 | F20: =Calculations!$P$192 -> 33757667.9 | G20: =E20/F20 -> 6.23113746
B22: =B20+1 -> 5 | C22: Future Contracts | E22: 10911378 | F22: 1816496.1 | G22: 6.0068271
B25: =B22+1 -> 6 | C25: Total Gas Purchased | E25: =E18+E20+E22 -> 533208247 | F25: =F18+F20+F22 -> 67933164 | G25: =E25/F25 -> 7.849012406

Sheet Ut 1.2 p5
K1: ='Control Panel'!$E$37 -> Dominion Energy Utah
K2: ='Control Panel'!$E$38 -> Docket No. 23-057-25
K3: DEU Exhibit 1.2
K4: Page 5 of 6
B8: TEST-YEAR STORAGE GAS & WORKING GAS CHARGES
B10: COMMODITY
C11: (A) | E11: (B) | G11: (C) | I11: (D)
I12: Average
E13: Total Costs | G13: Dth | I13: Rate
B15: STORAGE GAS 1/
B17: 1 | C17: Withdrawals | E17: =G17*I17 -> 57180246.56 | G17: 11703439 | I17: 4.88576448
B18: 2 | C18: Injections | E18: =G18*I18 -> -73247730.58 | G18: -15007402 | I18: 4.88077354
B21: =B18+1 -> 3 | C21: Storage Adjustment | E21: =E17+E18 -> -16067484.03
B24: WORKING GAS CHARGES
D26: Month | E26: Amount | G26: Pre-Tax Return % | I26: Total
B28: =B21+1 -> 4 | D28: 2021-08-31 | E28: 35307557.59
B29: =B28+1 -> 5 | D29: 2021-09-30 | E29: 37462513.81
B30: 6 | D30: 2021-10-31 | E30: 49638760.36
B31: 7 | D31: 2021-11-30 | E31: 48688525.37
B32: 8 | D32: 2021-12-31 | E32: 44932895.7
B33: 9 | D33: 2021-01-31 | E33: 32520297.1
B34: 10 | D34: 2021-02-28 | E34: 24327140.39
B35: 11 | D35: 2021-03-31 | E35: 13377221.65
B36: 12 | D36: 2021-04-30 | E36: 4611532.51
B37: 13 | D37: 2022-05-31 | E37: 4273987.86
B38: 14 | D38: 2022-06-30 | E38: 9042867.91
B39: 15 | D39: 2022-07-31 | E39: 16864248.25
B40: =B39+1 -> 16 | D40: 2022-08-31 | E40: 25992902.78
B43: =B40+1 -> 17 | C43: 12-Month Average 2/ | E43: =(SUM(E29:E39)+E28/2+E40/2)/12 -> 26365851.76 | F43: x | G43: 0.089 | H43: = | I43: =E43*G43 -> 2346560.806
B48: 1/ | C48: Dominion Energy planned volumes.
B49: 2/ | C49: (1/2 of Line 4 + sum of Lines 5-15 + 1/2 of Line 16) / 12

Sheet Ut 1.2 p6
K1: ='Control Panel'!$E$37 -> Dominion Energy Utah
K2: ='Control Panel'!$E$38 -> Docket No. 23-057-25
K3: DEU Exhibit 1.2
K4: Page 6 of 6
B8: TEST-YEAR LNG PURCHASED GAS, STORAGE GAS & WORKING GAS CHARGES
B10: COMMODITY
C11: (A) | E11: (B) | G11: (C) | I11: (D)
I12: Average
E13: Total Costs | G13: Dth | I13: Rate
B15: LNG PURCHASED GAS 1/
B17: =B13+1 -> 1 | C17: Total Gas Purchased | E17: 7575865.357 | G17: 1048950 | I17: 7.222332196
B20: LNG STORAGE 1/
B22: =B17+1 -> 2 | C22: Withdrawals | E22: =G22*I22 -> 1336917.416 | G22: 184950 | I22: 7.228534284
B23: =B22+1 -> 3 | C23: Injections | E23: =G23*I23 -> -7599120.904 | G23: -1048950 | I23: 7.244502506
B26: =B23+1 -> 4 | C26: Storage Adjustment | E26: =E22+E23 -> -6262203.488
B29: WORKING LNG CHARGES
D31: Month | E31: Amount 2/ | G31: Pre-Tax Return % | I31: Total
B33: =B26+1 -> 5 | D33: Aug-22 | E33: 0
B34: =B33+1 -> 6 | D34: Sep-22 | E34: 456302.3845
B35: 7 | D35: Oct-22 | E35: 2170482.176
B36: 8 | D36: Nov-22 | E36: 4040202.491
B37: 9 | D37: Dec-22 | E37: 6275079.85
B38: 10 | D38: Jan-23 | E38: 8635621.719
B39: 11 | D39: Feb-23 | E39: 8912782.773
B40: =B39+1 -> 12 | D40: Mar-23 | E40: 7575865.357
B41: 13 | D41: Apr-23 | E41: 7575865.357
B42: 14 | D42: May-23 | E42: 7575865.357
B43: 15 | D43: Jun-23 | E43: 7575865.357
B44: 16 | D44: Jul-23 | E44: 7575865.357
B45: 17 | D45: Aug-23 | E45: 8432685.664
B48: =B45+1 -> 18 | C48: 12-Month Average 3/ | E48: =(SUM(E34:E44)+E33/2+E45/2)/12 -> 6048845.084 | F48: x | G48: 0.089 | H48: = | I48: =E48*G48 -> 538347.2125
B53: 1/ | C53: Dominion Energy planned volumes.
B54: 2/ | C54: Estimated monthly balance. When history established, balance updated for actuals.
B55: 3/ | C55: (1/2 of Line 5 + sum of Lines 6-16 + 1/2 of Line 17) / 12

Sheet Ut 1.3 Redacted
I1: REDACTED
P29: DEU Exhibit 1.3 | Q29: =CONCATENATE("Docket No. ",'Control Panel'!E10) -> Docket No. 23-057-25 | R29: Dominion Energy Utah

Sheet Ut 1.4 p1
N1: ='Control Panel'!$E$37 -> Dominion Energy Utah
N2: ='Control Panel'!$E$38 -> Docket No. 23-057-25
N3: DEU Exhibit 1.4
N4: Page 1 of 4
B8: TEST-YEAR TRANSPORTATION CHARGES
B10: SNG
B11: (A) | D11: (B) | F11: (C) | H11: (D) | J11: (E) | L11: (F) | M11: (G)
D12: Fctr | F12: Dth | H12: Months/Days | J12: Rate | M12: Total Costs
B14: TRANSPORTATION DEMAND
B16: Mountain West Pipeline (MWP) Demand
A17: 1 | B17: T-1 Transportation - Yearly | F17: ='Other Inputs'!D28+'Other Inputs'!D29+'Other Inputs'!D30 -> 840902 | G17: x | H17: ='Other Inputs'!E28 -> 12 | I17: x | J17: ='Other Inputs'!F28 -> 5.28804 | K17: = | L17: =ROUND(F17*H17*J17,0) -> 53360681
A18: =A17+1 -> 2 | B18: T-1 Transportation - Yearly | F18: ='Other Inputs'!D32 -> 100000 | G18: x | H18: ='Other Inputs'!E32 -> 12 | I18: x | J18: ='Other Inputs'!F32 -> 5.28804 | K18: = | L18: =ROUND(F18*H18*J18,0) -> 6345648
A19: =A18+1 -> 3 | B19: T-1 Transportation Nov-Mar | F19: ='Other Inputs'!D31 -> 75000 | G19: x | H19: ='Other Inputs'!E31 -> 5 | I19: x | J19: ='Other Inputs'!F31 -> 6.80887 | K19: = | L19: =ROUND(F19*H19*J19,0) -> 2553326
A20: =A19+1 -> 4 | B20: No-Notice Transportation | F20: ='Other Inputs'!D35 -> 203542 | G20: x | H20: ='Other Inputs'!E35 -> 12 | I20: x | J20: ='Other Inputs'!F35 -> 0.86753 | K20: = | L20: =ROUND(F20*H20*J20,0) -> 2118945
A21: =A20+1 -> 5 | B21: Capacity Release Credits | L21: =-ROUND('Other Inputs'!E271,0) -> -3796741
A22: =A21+1 -> 6 | C22: Total | L22: =SUM(L17:L21) -> 60581859
B24: Mountain West Overthrust Pipeline (MWOP) Demand
A25: =A22+1 -> 7 | B25: February - March | F25: ='Other Inputs'!D38 -> 8542 | G25: x | H25: ='Other Inputs'!E38 -> 2 | I25: x | J25: ='Other Inputs'!F38 -> 1.62 | K25: = | L25: =ROUND(F25*H25*J25,0) -> 27676
A26: 8 | B26: April - January | F26: ='Other Inputs'!D40 -> 8542 | G26: x | H26: ='Other Inputs'!E40 -> 10 | I26: x | J26: ='Other Inputs'!F40 -> 1.505 | K26: = | L26: =ROUND(F26*H26*J26,0) -> 128557
A27: 9 | C27: Total | L27: =SUM(L25:L26) -> 156233
B29: Kern River Demand
A30: 10 | B30: January - December | F30: ='Other Inputs'!D63 -> 1885 | G30: x | H30: ='Other Inputs'!E63 -> 12 | I30: x | J30: ='Other Inputs'!F63 -> 5.5022 | K30: = | L30: =ROUND(F30*H30*J30,0) -> 124460
A31: =A30+1 -> 11 | B31: January - December | F31: ='Other Inputs'!D61 -> 33000 | G31: x | H31: ='Other Inputs'!E61 -> 12 | I31: x | J31: ='Other Inputs'!F61 -> 5.4778 | K31: = | L31: 2169209
A32: =A31+1 -> 12 | B32: November - March | F32: ='Other Inputs'!D62 -> 50000 | G32: x | H32: ='Other Inputs'!E62 -> 5 | I32: x | J32: ='Other Inputs'!F62 -> 5.45984 | K32: = | L32: 1364960
A33: 13 | B33: December - February | F33: ='Other Inputs'!D67 -> 56925 | G33: x | H33: ='Other Inputs'!E67 -> 3 | I33: x | J33: ='Other Inputs'!F67 -> 8.796666667 | K33: = | L33: 1502251
A34: 14 | B34: November & March | F34: ='Other Inputs'!D69 -> 6000 | G34: x | H34: ='Other Inputs'!E69 -> 2 | I34: x | J34: ='Other Inputs'!F69 -> 8.845 | K34: = | L34: 106140
A35: 15 | B35: November - March | F35: ='Other Inputs'!D71 -> 27000 | G35: x | H35: ='Other Inputs'!E71 -> 5 | I35: x | J35: ='Other Inputs'!F71 -> 8.816 | K35: = | L35: 1190160
A36: 16 | C36: Total | L36: =SUM(L30:L35) -> 6457180
A38: =A36+1 -> 17 | B38: Total Transportation Demand (SNG) | M38: =L22+L27+L36 -> 67195272
B41: TRANSPORTATION COMMODITY
A43: =A38+1 -> 18 | B43: Total ACA | F43: =Calculations!$P$183 -> 140560793.2 | I43: x | J43: ='Other Inputs'!F47 -> 0.0014 | K43: = | L43: =ROUND(F43*J43,0) -> 196785
A45: =A43+1 -> 19 | B45: MWP Commodity | F45: ='Ut 1.4 p1'!F43-(D52*F52*H52)-(D53*F53*H53)-(D54*F54*H54)-(D55*F55*H55)-(D56*F56*H56)-F47-F48 -> 115475579 | I45: x | J45: ='Other Inputs'!F46 -> 0.00267 | K45: = | L45: =ROUND(F45*J45,0) -> 308320
A47: =A45+1 -> 20 | B47: MWOP (Feb-Mar) | F47: ='Other Inputs'!D38*(29+31) -> 512520 | I47: x | J47: ='Other Inputs'!F39 -> 0.00167 | K47: = | L47: =ROUND(F47*J47,0) -> 856
A48: 21 | B48: MWOP Commodity (Apr-Jan) | F48: ='Other Inputs'!D40*(30+31+30+31+31+30+31+30+31+31) -> 2613852 | I48: x | J48: ='Other Inputs'!F41 -> 0.0012 | K48: = | L48: =ROUND(F48*J48,0) -> 3137
A49: 22 | C49: Total | L49: =SUM(L47:L48) -> 3993
B51: Kern River Commodity
A52: 23 | B52: January - December | D52: ='Other Inputs'!C75 -> 0.7315204195 | E52: x | F52: ='Other Inputs'!D75 -> 34885 | G52: x | H52: ='Other Inputs'!E75 -> 366 | I52: x | J52: ='Other Inputs'!F75 -> 0.0044 | K52: = | L52: =ROUND(D52*F52*H52*J52,0) -> 41096
A53: =A52+1 -> 24 | B53: November - March | D53: ='Other Inputs'!C76 -> 0.7315204195 | E53: x | F53: ='Other Inputs'!D76 -> 50000 | G53: x | H53: ='Other Inputs'!E76 -> 152 | I53: x | J53: ='Other Inputs'!F76 -> 0.0044 | K53: = | L53: =ROUND(D53*F53*H53*J53,0) -> 24462
A54: =A53+1 -> 25 | B54: November & March | D54: ='Other Inputs'!C80 -> 0.7315204195 | E54: x | F54: ='Other Inputs'!D80 -> 6000 | G54: x | H54: ='Other Inputs'!E80 -> 61 | I54: x | J54: ='Other Inputs'!F80 -> 0.0044 | K54: = | L54: =ROUND(D54*F54*H54*J54,0) -> 1178
A55: =A54+1 -> 26 | B55: December - February | D55: ='Other Inputs'!C79 -> 0.7315204195 | E55: x | F55: ='Other Inputs'!D79 -> 56925 | G55: x | H55: ='Other Inputs'!E79 -> 91 | I55: x | J55: ='Other Inputs'!F79 -> 0.0044 | K55: = | L55: =ROUND(D55*F55*H55*J55,0) -> 16673
A56: =A55+1 -> 27 | B56: November - March | D56: ='Other Inputs'!C80 -> 0.7315204195 | E56: x | F56: ='Other Inputs'!D82 -> 27000 | G56: x | H56: ='Other Inputs'!E82 -> 152 | I56: x | J56: ='Other Inputs'!F82 -> 0.0044 | K56: = | L56: =ROUND(D56*F56*H56*J56,0) -> 13210
A57: =A56+1 -> 28 | C57: Total | L57: =SUM(L52:L56) -> 96619
A59: =A57+1 -> 29 | B59: Total Transportation Commodity | M59: =L57+L45+L43+L49 -> 605717
B62: OTHER CHARGES
A63: =A59+1 -> 30 | B63: Other Transportation Charges | M63: =ROUND('Other Inputs'!$D$199,0) -> 2140764
B68: PEAK HOUR SERVICE
A69: =A63+1 -> 31 | B69: Kern River: Mid Nov - Mid Feb | F69: ='Other Inputs'!D20 -> 28752 | G69: x | H69: ='Other Inputs'!E20 -> 3 | I69: x | J69: ='Other Inputs'!F20 -> 18.0596 | K69: = | L69: =ROUND(F69*H69*J69,0) -> 1557749
A70: =A69+1 -> 32 | B70: MWP: Mid Nov - Mid Feb | F70: ='Other Inputs'!D23 -> 74666.66667 | G70: x | H70: ='Other Inputs'!E23 -> 3 | I70: x | J70: ='Other Inputs'!F23 -> 7.357482143 | K70: = | L70: =ROUND(F70*H70*J70,0) -> 1648076
A71: =A70+1 -> 33 | C71: Total Peak Hour Service | M71: =SUM(L69:L70) -> 3205825
A74: =A71+1 -> 34 | B74: TOTAL TRANSPORTATION AND OTHER CHARGES | M74: =SUM(M13:M72) -> 73147578

Sheet Ut 1.4 p2
L1: ='Control Panel'!$E$37 -> Dominion Energy Utah
L2: ='Control Panel'!$E$38 -> Docket No. 23-057-25
L3: DEU Exhibit 1.4
L4: Page 2 of 4
B7: TEST-YEAR STORAGE CHARGES
B9: SNG
B10: (A) | D10: (B) | F10: (C) | H10: (D) | J10: (E) | K10: (F)
B12: STORAGE CHARGES
B14: Component | D14: Dth | F14: Months | H14: Rate | K14: Total Costs
B15: Storage Demand
A16: 1 | B16: Aquifer Peaking Demand | D16: ='Other Inputs'!E188 -> 184625 | E16: x | F16: 12 | G16: x | H16: ='Other Inputs'!E14 -> 2.87375 | I16: = | J16: =ROUND(D16*F16*H16,0) -> 6366793
A17: =A16+1 -> 2 | B17: Spire Demand | D17: ='Other Inputs'!E189 -> 2000000 | E17: x | F17: 10 | G17: x | H17: ='Other Inputs'!E15 -> 0.2 | I17: = | J17: =ROUND(D17*F17*H17,0) -> 4000000
A18: =A17+1 -> 3 | B18: Clay Basin Demand | D18: ='Other Inputs'!E190 -> 111827 | E18: x | F18: 12 | G18: x | H18: ='Other Inputs'!E16 -> 2.85338 | I18: = | J18: =ROUND(D18*F18*H18,0) -> 3829019
A19: =A18+1 -> 4 | B19: Clay Basin Capacity | D19: ='Other Inputs'!E191 -> 13419000 | E19: x | F19: 12 | G19: x | H19: ='Other Inputs'!E17 -> 0.02378 | I19: = | J19: =ROUND(D19*F19*H19,0) -> 3829246
A20: =A19+1 -> 5 | C20: Total Demand Charges | J20: =SUM(J16:J19) -> 18025058
B22: Storage Commodity 1/
A23: =A20+1 -> 6 | B23: Aquifer Peaking Injections | D23: =(+'Monthly Inputs'!S17+'Monthly Inputs'!S19+'Monthly Inputs'!S20) -> 2178596 | F23: x | H23: ='Other Inputs'!E6 -> 0.03872 | I23: = | J23: =ROUND(D23*H23,0) -> 84355
A24: =A23+1 -> 7 | B24: Aquifer Peaking Withdrawals | D24: =(+'Monthly Inputs'!S25+'Monthly Inputs'!S27+'Monthly Inputs'!S28) -> 2178596 | F24: x | H24: ='Other Inputs'!E7 -> 0.03872 | I24: = | J24: 84355
A25: 8 | B25: Spire Injections | D25: ='Monthly Inputs'!S21 -> 1742819 | F25: x | H25: ='Other Inputs'!E8 -> 0.015 | I25: = | J25: 26142
A26: 9 | B26: Spire Withdrawals | D26: ='Monthly Inputs'!S29 -> 1520600 | F26: x | H26: ='Other Inputs'!E9 -> 0.01 | I26: = | J26: 15206
A27: 10 | B27: Clay Basin Injections | D27: ='Monthly Inputs'!S18 -> 12194861 | F27: x | H27: ='Other Inputs'!E10 -> 0.01049 | I27: = | J27: 127924
A28: 11 | B28: Clay Basin Withdrawals | D28: ='Monthly Inputs'!S26 -> 12477149 | F28: x | H28: ='Other Inputs'!E11 -> 0.01781 | I28: = | J28: 222218
A29: 12 | C29: Total Commodity Charges | J29: =SUM(J23:J28) -> 560200
A31: =A29+1 -> 13 | B31: Total Storage Charges | K31: =J20+J29 -> 18585258
B33: LNG Storage Related Charges
A34: 14 | B34: Electricity Costs | K34: =Expenses!P24 -> 2359692.58
A39: 1/ | B39: Dominion Energy planned volumes.

Sheet Ut 1.4 p3
N1: ='Control Panel'!$E$37 -> Dominion Energy Utah
N2: ='Control Panel'!$E$38 -> Docket No. 23-057-25
N3: DEU Exhibit 1.4
N4: Page 3 of 4
B9: SUPPLIER NON-GAS COST CLASS ALLOCATION
A12: SNG | C12: (A) | D12: (B) | E12: (C) | F12: (D) | G12: (E) | H12: (F) | I12: (G) | J12: (H) | K12: (I) | L12: (J) | M12: (K) | N12: (L)
C13: Description | D13: Total UT & WY SNG | E13: Allocation Factor 1/ | F13: UT SNG | G13: COS Factor 2/ | H13: GS | I13: FS | J13: IS | K13: TSS TSM TSL | L13: TBF | M13: NGV | N13: UT SNG Total | O13: Check
B14: Transportation | O14: =N14-F14 -> 0
A15: 1 | C15: MWP T-1 Transportation: Yearly | D15: =+'Ut 1.4 p1'!$L$17+'Ut 1.4 p1'!$L$18 -> 59706329 | E15: 1 | F15: ='Ut 1.1 p2'!$H$67*$D15 -> 57876789.96 | G15: Firm Sales | H15: =$D$64*$F15 -> 56426835.27 | I15: =$E$64*$F15 -> 1304014.591 | J15: =$F$64*$F15 -> 0 | K15: =$G$64*$F15 -> 0 | L15: =$H$64*$F15 -> 0 | M15: =$I$64*$F15 -> 145940.091 | N15: =SUM(H15:M15) -> 57876789.96 | O15: =N15-F15 -> 0
A16: 2 | C16: MWP T-1 Transportation: November - March | D16: =+'Ut 1.4 p1'!$L$19 -> 2553326 | E16: 1 | F16: ='Ut 1.1 p2'!$H$67*$D16 -> 2475086.227 | G16: Firm Sales | H16: 2413079.284 | I16: 55765.85289 | J16: 0 | K16: 0 | L16: 0 | M16: 6241.090936 | N16: 2475086.227 | O16: 0
A17: 3 | C17: MWP No-Notice Transportation | D17: =+'Ut 1.4 p1'!$L$20 -> 2118945 | E17: 1 | F17: ='Ut 1.1 p2'!$H$67*$D17 -> 2054015.659 | G17: Firm Sales | H17: 2002557.559 | I17: 46278.76548 | J17: 0 | K17: 0 | L17: 0 | M17: 5179.334106 | N17: 2054015.659 | O17: 0
A18: 4 | C18: Capacity Release Credits | D18: =+'Ut 1.4 p1'!$L$21 -> -3796741 | E18: 1 | F18: ='Ut 1.1 p2'!$H$67*$D18 -> -3680400.136 | G18: Firm Sales | H18: -3588197.14 | I18: -82922.62722 | J18: 0 | K18: 0 | L18: 0 | M18: -9280.368368 | N18: -3680400.136 | O18: 0
A19: 5 | C19: MWOP: Feb-Mar | D19: =+'Ut 1.4 p1'!L25 -> 27676 | E19: 1 | F19: ='Ut 1.1 p2'!$H$67*$D19 -> 26827.9438 | G19: Firm Sales | H19: 26155.8384 | I19: 604.4569885 | J19: 0 | K19: 0 | L19: 0 | M19: 67.64840555 | N19: =SUM(H19:M19) -> 26827.9438 | O19: =N19-F19 -> 0
A20: 6 | C20: MWOP Transportation: Apr-Jan | D20: =+'Ut 1.4 p1'!L26 -> 128557 | E20: 1 | F20: ='Ut 1.1 p2'!$H$67*$D20 -> 124617.7183 | G20: Firm Sales | H20: 121495.7406 | I20: 2807.745956 | J20: 0 | K20: 0 | L20: 0 | M20: 314.2316835 | N20: =SUM(H20:M20) -> 124617.7183 | O20: =N20-F20 -> 0
A21: 7 | C21: Kern River Transportation: Yearly | D21: =+'Ut 1.4 p1'!$L$30+'Ut 1.4 p1'!L31 -> 2293669 | E21: 1 | F21: ='Ut 1.1 p2'!$H$67*$D21 -> 2223385.714 | G21: Firm Sales | H21: 2167684.482 | I21: 50094.82065 | J21: 0 | K21: 0 | L21: 0 | M21: 5606.411718 | N21: 2223385.714 | O21: 0
A22: 8 | C22: Kern River Transportation: November - March | D22: =+'Ut 1.4 p1'!$L$32+'Ut 1.4 p1'!$L$35 -> 2555120 | E22: 1 | F22: ='Ut 1.1 p2'!$H$67*$D22 -> 2476825.255 | G22: Firm Sales | H22: 2414774.744 | I22: 55805.0347 | J22: 0 | K22: 0 | L22: 0 | M22: 6245.476008 | N22: 2476825.255 | O22: 0
A23: 9 | C23: Kern River Transportation: December - February | D23: =+'Ut 1.4 p1'!$L$33 -> 1502251 | E23: 1 | F23: ='Ut 1.1 p2'!$H$67*$D23 -> 1456218.579 | G23: Firm Sales | H23: 1419736.754 | I23: 32809.87554 | J23: 0 | K23: 0 | L23: 0 | M23: 3671.94988 | N23: 1456218.579 | O23: 0
A24: 10 | C24: Kern River Transportation: November & March | D24: =+'Ut 1.4 p1'!$L$34 -> 106140 | E24: 1 | F24: ='Ut 1.1 p2'!$H$67*$D24 -> 102887.6266 | G24: Firm Sales | H24: 100310.0408 | I24: 2318.148026 | J24: 0 | K24: 0 | L24: 0 | M24: 259.4378438 | N24: 102887.6266 | O24: 0
A25: 11 | C25: ACA (FERC) | D25: =+'Ut 1.4 p1'!$L$43 -> 196785 | E25: 2 | F25: ='Ut 1.1 p2'!$H$70*$D25 -> 190825.2456 | G25: Firm Sales | H25: 186044.608 | I25: 4299.45933 | J25: 0 | K25: 0 | L25: 0 | M25: 481.1782707 | N25: 190825.2456 | O25: 0
A26: 12 | C26: MWP Commodity | D26: =+'Ut 1.4 p1'!$L$45 -> 308320 | E26: 2 | F26: ='Ut 1.1 p2'!$H$70*$D26 -> 298982.3397 | G26: Firm Sales | H26: 291492.1032 | I26: 6736.333057 | J26: 0 | K26: 0 | L26: 0 | M26: 753.9034195 | N26: 298982.3397 | O26: 0
A27: 13 | C27: MWOP Commodity | D27: =+'Ut 1.4 p1'!L47 -> 856 | E27: 2 | F27: ='Ut 1.1 p2'!$H$70*$D27 -> 830.075515 | G27: Firm Sales | H27: 809.2800998 | I27: 18.70232582 | J27: 0 | K27: 0 | L27: 0 | M27: 2.093089411 | N27: =SUM(H27:M27) -> 830.075515 | O27: =N27-F27 -> 0
A28: 14 | C28: MWOP Commodity | D28: =+'Ut 1.4 p1'!L48 -> 3137 | E28: 2 | F28: ='Ut 1.1 p2'!$H$70*$D28 -> 3041.994031 | G28: Firm Sales | H28: 2965.784665 | I28: 68.53878049 | J28: 0 | K28: 0 | L28: 0 | M28: 7.670585843 | N28: =SUM(H28:M28) -> 3041.994031 | O28: 0
A29: 15 | C29: Kern River Commodity | D29: =+'Ut 1.4 p1'!$L$57 -> 96619 | E29: 2 | F29: ='Ut 1.1 p2'!$H$70*$D29 -> 93692.83433 | G29: Firm Sales | H29: 91345.60042 | I29: 2110.98133 | J29: 0 | K29: 0 | L29: 0 | M29: 236.2525768 | N29: 93692.83433 | O29: 0
A30: 16 | C30: Other Transportation Charges | D30: =+'Ut 1.4 p1'!$M$63 -> 2140764 | E30: 2 | F30: ='Ut 1.1 p2'!$H$70*$D30 -> 2075929.649 | G30: Firm Sales | H30: 2023922.551 | I30: 46772.50681 | J30: 0 | K30: 0 | L30: 0 | M30: 5234.591658 | N30: 2075929.649 | O30: 0
A31: 17 | C31: Total Transportation | D31: =SUM(D15:D30) -> 69941753 | F31: =SUM(F15:F30) -> 67799556.68 | H31: =SUM(H15:H30) -> 66101012.5 | I31: 1527583.186 | J31: 0 | K31: 0 | L31: 0 | M31: 170960.9928 | N31: =SUM(N15:N30) -> 67799556.68 | O31: 0
B33: Peak Hour
A34: =+A31+1 -> 18 | C34: MWP Peak Hour Service | D34: =+'Ut 1.4 p1'!L70 -> 1648076 | E34: 1 | F34: ='Ut 1.1 p2'!$H$67*$D34 -> 1597575.166 | G34: Design Day | H34: =$D$63*$F34 -> 1302242.146 | I34: =$E$63*$F34 -> 16274.85871 | J34: =$F$63*$F34 -> 0 | K34: =$G$63*$F34 -> 207398.8194 | L34: =$H$63*$F34 -> 70593.32787 | M34: =$I$63*$F34 -> 1066.013974 | N34: =SUM(H34:M34) -> 1597575.166 | O34: =N34-F34 -> 0
A35: =+A34+1 -> 19 | C35: Kern River Peak Hour Service | D35: =+'Ut 1.4 p1'!L69 -> 1557749 | E35: 1 | F35: ='Ut 1.1 p2'!$H$67*$D35 -> 1510015.993 | G35: Design Day | H35: =$D$63*$F35 -> 1230869.451 | I35: =$E$63*$F35 -> 15382.87366 | J35: =$F$63*$F35 -> 0 | K35: =$G$63*$F35 -> 196031.7992 | L35: =$H$63*$F35 -> 66724.28085 | M35: =$I$63*$F35 -> 1007.588365 | N35: =SUM(H35:M35) -> 1510015.993 | O35: =N35-F35 -> 0
A36: =+A35+1 -> 20 | C36: Total Peak Hour | D36: =SUM(D34:D35) -> 3205825 | F36: =SUM(F34:F35) -> 3107591.159 | H36: =SUM(H34:H35) -> 2533111.597 | I36: 31657.73237 | J36: 0 | K36: 403430.6186 | L36: 137317.6087 | M36: 2073.602339 | N36: 3107591.159
B38: Storage
A39: =+A36+1 -> 21 | C39: Aquifer Peaking Storage Demand | D39: =+'Ut 1.4 p2'!$J$16 -> 6366793 | E39: 1 | F39: ='Ut 1.1 p2'!$H$67*$D39 -> 6171699.84 | G39: Firm Sales | H39: =$D$64*$F39 -> 6017083.714 | I39: =$E$64*$F39 -> 139053.7839 | J39: =$F$64*$F39 -> 0 | K39: =$G$64*$F39 -> 0 | L39: =$H$64*$F39 -> 0 | M39: =$I$64*$F39 -> 15562.34264 | N39: =SUM(H39:M39) -> 6171699.84 | O39: =N39-F39 -> 0
A40: =+A39+1 -> 22 | C40: Spire Storage Demand | D40: =+'Ut 1.4 p2'!$J$17 -> 4000000 | E40: 1 | F40: ='Ut 1.1 p2'!$H$67*$D40 -> 3877430.814 | G40: Firm Sales | H40: 3780291.719 | I40: 87361.90035 | J40: 0 | K40: 0 | L40: 0 | M40: 9777.194039 | N40: 3877430.814 | O40: 0
A41: =+A40+1 -> 23 | C41: Clay Basin Storage Demand | D41: =+'Ut 1.4 p2'!$J$18 -> 3829019 | E41: 1 | F41: ='Ut 1.1 p2'!$H$67*$D41 -> 3711689.064 | G41: Firm Sales | H41: 3618702.205 | I41: 83627.59408 | J41: 0 | K41: 0 | L41: 0 | M41: 9359.265435 | N41: 3711689.064 | O41: 0
A42: 24 | C42: Clay Basin Storage Capacity | D42: =+'Ut 1.4 p2'!$J$19 -> 3829246 | E42: 1 | F42: ='Ut 1.1 p2'!$H$67*$D42 -> 3711909.108 | G42: Firm Sales | H42: 3618916.736 | I42: 83632.55186 | J42: 0 | K42: 0 | L42: 0 | M42: 9359.820291 | N42: 3711909.108 | O42: 0
A43: 25 | C43: Aquifer Peaking Injections Storage Commodity | D43: =+'Ut 1.4 p2'!$J$23 -> 84355 | E43: 2 | F43: ='Ut 1.1 p2'!$H$70*$D43 -> 81800.25709 | G43: Firm Sales | H43: 79750.96123 | I43: 1843.031185 | J43: 0 | K43: 0 | L43: 0 | M43: 206.2646697 | N43: 81800.25709 | O43: 0
A44: 26 | C44: Aquifer Peaking Withdrawals Storage Commodity | D44: =+'Ut 1.4 p2'!$J$24 -> 84355 | E44: 2 | F44: ='Ut 1.1 p2'!$H$70*$D44 -> 81800.25709 | G44: Firm Sales | H44: 79750.96123 | I44: 1843.031185 | J44: 0 | K44: 0 | L44: 0 | M44: 206.2646697 | N44: 81800.25709 | O44: 0
A45: 27 | C45: Spire Injections Storage Commodity | D45: =+'Ut 1.4 p2'!$J$25 -> 26142 | E45: 2 | F45: ='Ut 1.1 p2'!$H$70*$D45 -> 25350.2735 | G45: Firm Sales | H45: 24715.18735 | I45: 571.1637869 | J45: 0 | K45: 0 | L45: 0 | M45: 63.92236376 | N45: 25350.2735 | O45: 0
A46: 28 | C46: Spire Withdrawals Storage Commodity | D46: =+'Ut 1.4 p2'!$J$26 -> 15206 | E46: 2 | F46: ='Ut 1.1 p2'!$H$70*$D46 -> 14745.47696 | G46: Firm Sales | H46: 14376.06682 | I46: 332.2284655 | J46: 0 | K46: 0 | L46: 0 | M46: 37.18167942 | N46: 14745.47696 | O46: 0
A47: 29 | C47: Clay Basin Injections Storage Commodity | D47: =+'Ut 1.4 p2'!$J$27 -> 127924 | E47: 2 | F47: ='Ut 1.1 p2'!$H$70*$D47 -> 124049.7432 | G47: Firm Sales | H47: 120941.9947 | I47: 2794.948982 | J47: 0 | K47: 0 | L47: 0 | M47: 312.7994974 | N47: 124049.7432 | O47: 0
A48: 30 | C48: Clay Basin Withdrawals Storage Commodity | D48: =+'Ut 1.4 p2'!$J$28 -> 222218 | E48: 2 | F48: ='Ut 1.1 p2'!$H$70*$D48 -> 215487.9916 | G48: Firm Sales | H48: 210089.4921 | I48: 4855.132522 | J48: 0 | K48: 0 | L48: 0 | M48: 543.3669891 | N48: 215487.9916 | O48: 0
A49: 31 | C49: Total Storage | D49: =SUM(D39:D48) -> 18585258 | F49: =SUM(F39:F48) -> 18015962.83 | H49: =SUM(H39:H48) -> 17564619.04 | I49: 405915.3663 | J49: 0 | K49: 0 | L49: 0 | M49: 45428.42227 | N49: 18015962.83 | O49: 0
A51: =+A49+1 -> 32 | B51: LNG Electricity | D51: =+'Ut 1.4 p2'!K34 -> 2359692.58 | E51: UT | F51: =+'Ut 1.1 p2'!H45 -> 2359692.58 | G51: GS & FS Only | H51: =$D$67*$F51 -> 2306392.246 | I51: =$E$67*$F51 -> 53300.33356 | J51: 0 | K51: 0 | L51: 0 | M51: 0 | N51: =SUM(H51:M51) -> 2359692.58 | O51: =N51-F51 -> 0
A54: =+A51+1 -> 33 | C54: Supplier Non-Gas Costs | D54: =+D31+D36+D49+D51 -> 94092528.58 | F54: =+F31+F36+F49+F51 -> 91282803.25 | H54: =+H31+H36+H49+H51 -> 88505135.38 | I54: 2018456.618 | J54: 0 | K54: 403430.6186 | L54: 137317.6087 | M54: 218463.0174 | N54: 91282803.25 | O54: =N54-F54 -> 0
H56: =H54/$F$54 -> 0.9695707432 | I56: =I54/$F$54 -> 0.02211212349 | J56: 0 | K56: 0.004419568684 | L56: 0.001504309726 | M56: 0.002393254914 | N56: 1
B60: 1/ | C60: Allocations Factors, DEU Exhibit 1.1 page 2, footnote 2/
B62: 2/ | C62: Cost-of-Service Allocation Factor Docket No. 22-057-03 | D62: GS | E62: FS | F62: IS | G62: TSF | H62: TBF | I62: NGV | J62: Total
C63: 210 Design Day | D63: =+'Other Inputs'!C314 -> 0.8151366983 | E63: =+'Other Inputs'!D314 -> 0.01018722565 | F63: =+'Other Inputs'!E314 -> 0 | G63: =+'Other Inputs'!F314 -> 0.1298210086 | H63: =+'Other Inputs'!G314 -> 0.04418779745 | I63: =+'Other Inputs'!H314 -> 0.0006672699957 | J63: =SUM(D63:I63) -> 1
C64: 240 Firm Sales | D64: =+'Other Inputs'!C315 -> 0.9749475622 | E64: =+'Other Inputs'!D315 -> 0.02253087277 | F64: =+'Other Inputs'!E315 -> 0 | G64: =+'Other Inputs'!F315 -> 0 | H64: =+'Other Inputs'!G315 -> 0 | I64: =+'Other Inputs'!H315 -> 0.002521565054 | J64: =SUM(D64:I64) -> 1
D66: GS | E66: FS | F66: Total
B67: 3/ | C67: GS & FS Only | D67: =D64/($D$64+$E$64) -> 0.9774121705 | E67: =E64/($D$64+$E$64) -> 0.02258782945 | F67: =SUM(D67:E67) -> 1

Sheet Ut 1.4 p4
I1: ='Control Panel'!$E$37 -> Dominion Energy Utah
I2: ='Control Panel'!$E$38 -> Docket No. 23-057-25
I3: DEU Exhibit 1.4
I4: Page 4 of 4
C6: SUPPLIER NON-GAS COST SUMMARY
A9: SNG | C9: (A) | D9: (B) | E9: (C) | F9: (D) | G9: (E) | H9: (F) | I9: (G)
B10: Description | C10: GS | D10: FS | E10: IS | F10: TSS TSM TSL | G10: TBF | H10: NGV | I10: Total
A13: 1 | B13: Transportation - Demand | C13: =SUM('Ut 1.4 p3'!H15:H24) -> 63504432.58 | D13: =SUM('Ut 1.4 p3'!I15:I24) -> 1467576.664 | E13: =SUM('Ut 1.4 p3'!J15:J24) -> 0 | F13: =SUM('Ut 1.4 p3'!K15:K24) -> 0 | G13: =SUM('Ut 1.4 p3'!L15:L24) -> 0 | H13: =SUM('Ut 1.4 p3'!M15:M24) -> 164245.3032 | I13: =SUM(C13:H13) -> 65136254.54
A14: =+A13+1 -> 2 | B14: Transportation - Commodity | C14: =SUM('Ut 1.4 p3'!H25:H29) -> 572657.3764 | D14: =SUM('Ut 1.4 p3'!I25:I29) -> 13234.01482 | E14: =SUM('Ut 1.4 p3'!J25:J29) -> 0 | F14: =SUM('Ut 1.4 p3'!K25:K29) -> 0 | G14: =SUM('Ut 1.4 p3'!L25:L29) -> 0 | H14: =SUM('Ut 1.4 p3'!M25:M29) -> 1481.097942 | I14: =SUM(C14:H14) -> 587372.4892
A16: =+A14+1 -> 3 | B16: Other Transportation | C16: =+'Ut 1.4 p3'!H30 -> 2023922.551 | D16: =+'Ut 1.4 p3'!I30 -> 46772.50681 | E16: =+'Ut 1.4 p3'!J30 -> 0 | F16: =+'Ut 1.4 p3'!K30 -> 0 | G16: =+'Ut 1.4 p3'!L30 -> 0 | H16: =+'Ut 1.4 p3'!M30 -> 5234.591658 | I16: =SUM(C16:H16) -> 2075929.649
A18: =+A16+1 -> 4 | B18: Peak Hour Service | C18: =SUM('Ut 1.4 p3'!H34:H35) -> 2533111.597 | D18: =SUM('Ut 1.4 p3'!I34:I35) -> 31657.73237 | E18: =SUM('Ut 1.4 p3'!J34:J35) -> 0 | F18: =SUM('Ut 1.4 p3'!K34:K35) -> 403430.6186 | G18: =SUM('Ut 1.4 p3'!L34:L35) -> 137317.6087 | H18: =SUM('Ut 1.4 p3'!M34:M35) -> 2073.602339 | I18: =SUM(C18:H19) -> 3107591.159
A19: 5 | B19: TBF Adjustment 1/ | C19: =+C18/($C$18+$D$18+$F$18+$H$18)*-$G$19 -> 46842.935 | D19: =+D18/($C$18+$D$18+$F$18+$H$18)*-$G$19 -> 585.4227272 | E19: =+E18/($C$18+$D$18+$F$18+$H$18)*$G$18 -> 0 | F19: =+F18/($C$18+$D$18+$F$18+$H$18)*-$G$19 -> 7460.340186 | G19: =+-G18*0.4 -> -54927.04349 | H19: =+H18/($C$18+$D$18+$F$18+$H$18)*-$G$19 -> 38.34557455 | I19: =SUM(C19:H19) -> 6.423306331e-12
A20: 6 | B20: Total Peak Hour Service | C20: =SUM(C18:C19) -> 2579954.532 | D20: 32243.15509 | E20: 0 | F20: 410890.9588 | G20: 82390.56523 | H20: 2111.947914 | I20: 3107591.159
A22: 7 | B22: Storage - Demand | C22: =SUM('Ut 1.4 p3'!H39:H42) -> 17034994.37 | D22: =SUM('Ut 1.4 p3'!I39:I42) -> 393675.8302 | E22: =SUM('Ut 1.4 p3'!J39:J42) -> 0 | F22: =SUM('Ut 1.4 p3'!K39:K42) -> 0 | G22: =SUM('Ut 1.4 p3'!L39:L42) -> 0 | H22: =SUM('Ut 1.4 p3'!M39:M42) -> 44058.62241 | I22: =SUM(C22:H22) -> 17472728.83
A23: 8 | B23: Storage - Commodity | C23: =SUM('Ut 1.4 p3'!H43:H48) -> 529624.6634 | D23: =SUM('Ut 1.4 p3'!I43:I48) -> 12239.53613 | E23: =SUM('Ut 1.4 p3'!J43:J48) -> 0 | F23: =SUM('Ut 1.4 p3'!K43:K48) -> 0 | G23: =SUM('Ut 1.4 p3'!L43:L48) -> 0 | H23: =SUM('Ut 1.4 p3'!M43:M48) -> 1369.799869 | I23: =SUM(C23:H23) -> 543233.9994
A24: 9 | B24: LNG Electricity | C24: =+'Ut 1.4 p3'!H51 -> 2306392.246 | D24: =+'Ut 1.4 p3'!I51 -> 53300.33356 | E24: =+'Ut 1.4 p3'!J51 -> 0 | F24: =+'Ut 1.4 p3'!K51 -> 0 | G24: =+'Ut 1.4 p3'!L51 -> 0 | H24: =+'Ut 1.4 p3'!M51 -> 0 | I24: =SUM(C24:H24) -> 2359692.58
A27: 10 | B27: Total SNG | C27: =SUM(C13:C14,C16,C20,C22:C24) -> 88551978.32 | D27: 2019042.041 | E27: 0 | F27: 410890.9588 | G27: 82390.56523 | H27: 218501.363 | I27: =SUM(C27:H27) -> 91282803.25
A30: =+A27+1 -> 11 | B30: Percent Allocated to Rate Classes | C30: =C27/$I$27 -> 0.9700839059 | D30: 0.02211853678 | E30: 0 | F30: 0.004501296456 | G30: 0.0009025858355 | H30: 0.002393674988 | I30: =SUM(C30:H30) -> 1
A35: 1/ | B35: Represents a 40% subsidy of costs to the TBF class, which is allocated to all other classes using the design day factor.

Sheet Ut 1.5 p1
J1: ='Control Panel'!$E$37 -> Dominion Energy Utah
J2: ='Control Panel'!$E$38 -> Docket No. 23-057-25
J3: DEU Exhibit 1.5
J4: Page 1 of 6
B8: TEST-YEAR GAS COST CHANGE
B10: COMMODITY
B11: (A) | C11: (B) | D11: (C) | F11: (D) | H11: (E) | J11: (F)
F12: Average Rate | H12: x Dth | I12: = | J12: Total
A13: 1 | B13: Commodity Portion of Test-Year Gas Cost 1/ | J13: ='Ut 1.1 p2'!H32-J14 -> 754819660
A14: =A13+1 -> 2 | B14: LNG Costs | J14: =+'Ut 1.1 p2'!H23+'Ut 1.1 p2'!H26+'Ut 1.1 p2'!H29 -> 1852009.081
A15: =A14+1 -> 3 | B15: 191 Account Balance for Commodity Costs 2/ | J15: =D59-D78 -> 225112298.5
A16: =A15+1 -> 4 | B16: Total | J16: =J13+J15+J14 -> 981783967.6
H18: Total
B19: Test-Year Sales from Docket No 23-057-03: | D19: Firm | F19: + Interruptible | H19: = Sales Dth
A21: =A16+1 -> 5 | B21: Utah | D21: 114563116 | F21: 271004 | H21: =D21+F21 -> 114834120
A22: =A21+1 -> 6 | B22: Wyoming | D22: 3573987 | F22: 144250 | H22: =D22+F22 -> 3718237
A23: =A22+1 -> 7 | B23: Total Dth | H23: =SUM(H21:H22) -> 118552357
F27: Current Case | H27: Prior Case
B28: COMMODITY RATES (GS, FS) | F28: ='Control Panel'!E10 -> 23-057-25 | H28: ='Control Panel'!E14 -> 23-057-03 | J28: Difference
A30: =A23+1 -> 8 | B30: Gas Cost (line 1/Total Sales Dth, line 4 + line 2/Total GS & FS Dths 3/) | F30: =ROUND((J13)/H21,5)+ROUND(J14/D70,5) -> 6.58934 | H30: ='Other Inputs'!F124 -> 6.58934 | J30: =F30-H30 -> 0
A31: =A30+1 -> 9 | B31: 191 Account Amortization (Commodity Portion) | F31: =H59 -> 1.95949 | H31: ='Other Inputs'!F125 -> 1.95949 | J31: =F31-H31 -> 0
A32: =A31+1 -> 10 | B32: Total Sales Unit Commodity Cost (Lines 8 + 9) | F32: =F30+F31 -> 8.54883 | H32: =H30+H31 -> 8.54883 | J32: =J30+J31 -> 0
F34: Current Case | H34: Prior Case
B35: COMMODITY RATES (IS) | F35: ='Control Panel'!E10 -> 23-057-25 | H35: ='Control Panel'!E14 -> 23-057-03 | J35: Difference
A37: =A32+1 -> 11 | B37: Gas Cost (line 1/Total Sales Dth, line 4) | F37: =ROUND((J13)/H21,5) -> 6.57313 | H37: ='Other Inputs'!F134 -> 6.57313 | J37: =F37-H37 -> 0
A38: =A37+1 -> 12 | B38: 191 Account Amortization (Commodity Portion) | F38: =H59 -> 1.95949 | H38: ='Other Inputs'!F125 -> 1.95949 | J38: =F38-H38 -> 0
A39: =A38+1 -> 13 | B39: Total Sales Unit Commodity Cost (Lines 11 + 12) | F39: =F37+F38 -> 8.53262 | H39: =H37+H38 -> 8.53262 | J39: =J37+J38 -> 0
F41: Current Case | H41: Prior Case
B42: COMMODITY RATES (NGV) | F42: ='Control Panel'!E10 -> 23-057-25 | H42: ='Control Panel'!E14 -> 23-057-03 | J42: Difference
A44: =A39+1 -> 14 | B44: Gas Cost (line 1/Total Sales Dth, line 4) | F44: =ROUND((J13)/H21,5) -> 6.57313 | H44: ='Other Inputs'!F134 -> 6.57313 | J44: =F44-H44 -> 0
A45: =A44+1 -> 15 | B45: 191 Account Amortization (Commodity Portion) | F45: =H59 -> 1.95949 | H45: ='Other Inputs'!F125 -> 1.95949 | J45: =F45-H45 -> 0
A46: =A45+1 -> 16 | B46: RIN Credit 4/ | F46: =H83 -> -0.48096 | H46: ='Other Inputs'!F135 -> -0.48096 | J46: =F46-H46 -> 0
A47: =A46+1 -> 17 | B47: Total Sales Unit Commodity Cost (Lines 14 + 15 + 16) | F47: =F44+F45+F46 -> 8.05166 | G47: =G44+G45+G46 -> 0 | H47: =H44+H45+H46 -> 8.05166 | I47: =I44+I45+I46 -> 0 | J47: =J44+J45+J46 -> 0
A52: 1/ | B52: DEU Exhibit 1.1, page 2, line 12, column E
A54: 2/ | B54: Amortization from Docket No. 23-057-03
B55: 191 Account (August 2022) actual | D55: 226125885
B56: Less: Supplier Non-Gas balance actual | D56: 1249147
B57: 191 Account Commodity Portion | D57: 224876738
B58: RIN Proceed 4/ | D58: -139370.1849
B59: 191 Account Commodity Amortization | D59: 225016108.2 | F59: 114834120 | H59: 1.95949
A61: 2/ | B61: 191 Account (November 2022) actual | D61: ='Other Inputs'!E158 -> 307662766
B62: Less: Supplier Non-Gas balance actual | D62: ='Other Inputs'!E159 -> -4134413
B63: 191 Account Commodity Portion | D63: =D61-D62 -> 311797179
B64: RIN Proceed 4/ | D64: =D77 -> -88478.02814
B65: 191 Account Commodity Amortization | D65: =(D63-D64) -> 311885657 | F65: =H21 -> 114834120 | H65: =ROUND(D65/F65,5) -> 2.71597
B66: See Application, paragraph 17.
A68: 3/ | B68: GS Dths | C68: 111684152
B69: FS Dths | C69: 2589192
B70: Total GS & FS Dths | D70: 114273344
A72: 4/ | B72: Prior RIN Proceeds, Docket No. 22-057-16 | D72: ='SDR#5'!F9 -> -96190.32947
B73: Expected amortized Balance | D73: =-'SDR#5'!F21+(-'SDR#5'!F39) -> 7712.301336
B74: Amount remaining to be amortized | D74: =SUM(D72:D73) -> -88478.02814
B76: New RIN Proceeds | D76: =-'SDR#5'!F58 -> 0
B77: Total RIN Proceeds | D77: =SUM(D74:D76) -> -88478.02814 | F77: =Calculations!$P$12 -> 259153 | H77: =ROUND(D77/F77,5) -> -0.34141
A78: 2/ | B78: RIN Proceeds from Docket No. 23-057-03 | D78: -96190.32947
B79: Expected amortized Balance | D79: 27242.38454
B80: Amount remaining to be amortized | D80: -68947.94493
B82: New RIN Proceeds | D82: -70422.24
B83: Total RIN Proceeds | D83: -139370.1849 | F83: 289772 | H83: -0.48096

Sheet Ut 1.5 p2
G1: ='Control Panel'!$E$37 -> Dominion Energy Utah
G2: ='Control Panel'!$E$38 -> Docket No. 23-057-25
G3: DEU Exhibit 1.5
G4: Page 2 of 6
C8: TEST-YEAR SUPPLIER NON-GAS COST CHANGE
B10: SNG
C11: (A) | D11: (B) | E11: (C) | F11: (D)
D12: Dth | E12: Average Rate | F12: Total
B15: 1 | C15: Supplier Non-Gas (SNG) Costs 1/ | F15: ='Ut 1.1 p2'!H48 -> 91282803.25
B16: =B15+1 -> 2 | C16: 191 Account Balance for SNG Costs 2/ | F16: ='Other Inputs'!F162 -> -14759603.29
B17: =1+B16 -> 3 | C17: SNG Total Costs Recovered for Test-Year 3/ | F17: =SUM(F15:F16) -> 76523199.96
B20: 4 | C20: Supplier Non-Gas Base Cost at Current Rates | F20: =F22-F21 -> 92535846.12
B21: 5 | C21: Amortization | F21: ='Other Inputs'!F163 -> 3222746
B22: 6 | C22: SNG Total Costs Recovered at Current Rates 3/ | F22: ='Other Inputs'!E150-(D30*('Other Inputs'!G98-'Other Inputs'!F151)) -> 95758592.12
B25: =1+B22 -> 7 | C25: SNG Costs Adjustment to Current Rates (Line 3 - Line 6) | F25: =F17-F22 -> -19235392.16
C29: Adjustment for SNG contributions from:
B30: 8 | C30: IS SNG current rate | D30: ='RevRun Fcst'!T102+'RevRun Fcst'!T93 -> 288434 | E30: ='Other Inputs'!E50 -> 0.17652 | F30: =D30*E30 -> 50914.36968
B31: 9 | C31: IS SNG new rate | D31: ='RevRun Fcst'!T102+'RevRun Fcst'!T93 -> 288434 | E31: ='Other Inputs'!F50 -> 0.17652 | F31: =D31*E31 -> 50914.36968
B35: 10 | C35: Percent Change to Amortization | F35: =((F16-F21)/F21)*100 -> -557.9822079 | G35: %
C36: (ln 2-ln 5)/ln 5
B40: 1/ | C40: DEU Exhibit 1.1, page 2, line 16, column E.
B42: 2/ | C42: Actual March 2023 SNG Balance | E42: ='Other Inputs'!D162 -> -28759603.29
C43: Expected March 2023 SNG Balance | E43: ='Other Inputs'!E162 -> -14000000
E44: ='Other Inputs'!F162 -> -14759603.29
B45: 2/ | C45: Spring Pass Through SNG Amortization From Docket No. 22-057-08 | E45: ='Other Inputs'!F162 -> -14759603.29
C46: Amortization will be adjusted in the next 2023 Pass Through
B48: 3/ | C48: ="Output of Revrun.Exe computer program dated "&'RevRun Fcst'!D4 -> Output of Revrun.Exe computer program dated 12/5/23

Sheet Ut 1.5 p3
I1: ='Control Panel'!$E$37 -> Dominion Energy Utah
I2: ='Control Panel'!$E$38 -> Docket No. 23-057-25
I3: DEU Exhibit 1.5
I4: Page 3 of 6
B7: SUPPLIER NON-GAS RATE CALCULATION
B9: SNG | C9: (A) | D9: (B) | E9: (C) | F9: (D) | G9: (G) | H9: (H) | I9: (I)
C10: GS | D10: FS | E10: IS 1/ | F10: TSS TSM TSL | G10: TBF | H10: NGV | I10: Total
A11: 1 | B11: Allocated SNG Costs | C11: =+'Ut 1.4 p4'!C27 -> 88551978.32 | D11: =+'Ut 1.4 p4'!D27 -> 2019042.041 | E11: =+'Ut 1.4 p4'!E27 -> 0 | F11: =+'Ut 1.4 p4'!F27 -> 410890.9588 | G11: =+'Ut 1.4 p4'!G27 -> 82390.56523 | H11: =+'Ut 1.4 p4'!H27 -> 218501.363 | I11: =SUM(C11:H11) -> 91282803.25
A12: =+A11+1 -> 2 | B12: IS SNG Revenue | C12: =-$E$12*'Ut 1.4 p4'!C30 -> -50222.232 | D12: =-$E$12*'Ut 1.4 p4'!D30 -> -1145.09918 | E12: =$E$17*E23 -> 51771.01866 | F12: =-$E$12*'Ut 1.4 p4'!F30 -> -233.0367028 | G12: =-$E$12*'Ut 1.4 p4'!G30 -> -46.72778813 | H12: =-$E$12*'Ut 1.4 p4'!H30 -> -123.9229925 | I12: =SUM(C12:H12) -> -4.305888979e-12
A13: 3 | B13: SNG Costs to Recover | C13: =+C11+C12 -> 88501756.09 | D13: 2017896.941 | E13: 51771.01866 | F13: 410657.9221 | G13: 82343.83745 | H13: 218377.44 | I13: =SUM(C13:H13) -> 91282803.25
A14: 4 | B14: Summer/Winter Differential | C14: ='Ut 1.5 p4'!C43 -> 0.50521 | D14: ='Ut 1.5 p5'!C44 -> 0.11419 | F14: 0 | G14: 0 | H14: 0
A15: 5 | B15: Summer Forecast Throughput 2024 | C15: =SUM('RevRun Fcst'!$J$21:$P$21) -> 32520345 | D15: =SUM('RevRun Fcst'!$J48:$P$48) -> 1346453 | E15: =SUM('RevRun Fcst'!$J$102:$P$102) -> 122365 | F15: =SUM('RevRun Fcst'!$J$165:$P$165)+SUM('RevRun Fcst'!$J$174:$P$174)+SUM('RevRun Fcst'!$J$183:$P$183) -> 24014198 | G15: =SUM('RevRun Fcst'!$J$129:P$129) -> 5994750 | H15: =SUM('RevRun Fcst'!$J$66:$P$66) -> 159917
A16: 6 | B16: Winter Forecast Throughput 2024-25 | C16: =SUM('RevRun Fcst'!$H$21:$I$21,'RevRun Fcst'!$Q$21:$S$21,) -> 84199933 | D16: =SUM('RevRun Fcst'!$H$48:$I$48,'RevRun Fcst'!$Q$48:$S$48) -> 1326084 | E16: =SUM('RevRun Fcst'!$H$102:$I$102,'RevRun Fcst'!$Q$102:$S$102) -> 166069 | F16: =SUM('RevRun Fcst'!$H$165:$I$165,'RevRun Fcst'!$Q$165:$S$165)+SUM('RevRun Fcst'!$H$174:$I$174,'RevRun Fcst'!$Q$174:$S$174)+SUM('RevRun Fcst'!$H$183:$I$183,'RevRun Fcst'!$Q$183:$S$183) -> 22567768 | G16: =SUM('RevRun Fcst'!$H$129:$I$129,'RevRun Fcst'!$Q$129:$S$129) -> 3822464 | H16: =SUM('RevRun Fcst'!$H$66:$I$66,'RevRun Fcst'!$Q$66:$S$66) -> 99236
A17: 7 | B17: Total Forecast Throughput 2024-25 | C17: =SUM(C15:C16) -> 116720278 | D17: 2672537 | E17: 288434 | F17: 46581966 | G17: 9817214 | H17: 259153
A18: 8 | B18: Forecast Demand Dth | C18: 0 | D18: 0 | F18: =+'Other Inputs'!D284 -> 219939 | G18: =+'Other Inputs'!D285 -> 64500 | H18: 0
A20: =A18+1 -> 9 | B20: Summer Base Rate | C20: =ROUND(C21-C14,5) -> 0.39379 | D20: =ROUND(D21-D14,5) -> 0.69839 | F20: 0 | G20: 0 | H20: 0
A21: =A20+1 -> 10 | B21: Winter Base Rate | C21: =ROUND((C13+C14*C15)/C17,5) -> 0.899 | D21: =ROUND((D13+D14*D15)/D17,5) -> 0.81258 | F21: 0 | G21: 0 | H21: 0
A23: =A21+1 -> 11 | B23: Year Round Base Rates | C23: 0 | D23: 0 | E23: =ROUND(C54,5) -> 0.17949 | F23: 0 | G23: 0 | H23: =ROUND(H13/H17,5) -> 0.84266
A25: =A23+1 -> 12 | B25: Annual Demand Rate | C25: 0 | D25: 0 | F25: =ROUND(F13/F18,5) -> 1.86714 | G25: =ROUND(G13/G18,5) -> 1.27665 | H25: 0
A26: =A25+1 -> 13 | B26: Monthly Demand Rate | C26: 0 | D26: 0 | F26: =ROUND(F25/12,5) -> 0.1556 | G26: =ROUND(G25/12,5) -> 0.10639 | H26: 0
A28: =A26+1 -> 14 | B28: Revenue Collected With Rate | C28: =C20*C15+C16*C21 -> 88501926.42 | D28: =D20*D15+D16*D21 -> 2017898.647 | E28: =+E17*E23 -> 51771.01866 | F28: =F25*F18 -> 410656.9045 | G28: =G25*G18 -> 82343.925 | H28: =H23*H17 -> 218377.867 | I28: =SUM(C28:H28) -> 91282974.79
A30: =+A28+1 -> 15 | B30: Amortization of Balance | C30: =+'Ut 1.5 p2'!$F$16*'Ut 1.4 p4'!C30 -> -14318053.61 | D30: =+'Ut 1.5 p2'!$F$16*'Ut 1.4 p4'!D30 -> -326460.8281 | E30: =+'Ut 1.5 p2'!$F$16*'Ut 1.4 p4'!E30 -> 0 | F30: =+'Ut 1.5 p2'!$F$16*'Ut 1.4 p4'!F30 -> -66437.34997 | G30: =+'Ut 1.5 p2'!$F$16*'Ut 1.4 p4'!G30 -> -13321.80886 | H30: =+'Ut 1.5 p2'!$F$16*'Ut 1.4 p4'!H30 -> -35329.69322
A31: =+A30+1 -> 16 | B31: Summer/Winter Differential | C31: =+'Ut 1.5 p4'!C49 -> -0.08173 | D31: =+'Ut 1.5 p5'!C50 -> -0.01847
A33: =+A31+1 -> 17 | B33: Summer Amortization Rate | C33: =+C34-C31 -> -0.06371123519 | D33: =+D34-D31 -> -0.1129892894 | E33: 0 | F33: 0 | G33: 0 | H33: 0
A34: =+A33+1 -> 18 | B34: Winter Amortization Rate | C34: =(C30+C31*C15)/C17 -> -0.1454412352 | D34: =(D30+D31*D15)/D17 -> -0.1314592894 | E34: 0 | F34: 0 | G34: 0 | H34: 0
A35: =+A34+1 -> 19 | B35: Annual Amortization Rate | C35: 0 | D35: 0 | E35: 0 | F35: =+F30/F18 -> -0.3020717107 | G35: =+G30/G18 -> -0.2065396723 | H35: =+H30/H17 -> -0.1363275487
A37: =+A35+1 -> 20 | B37: Amortization Collected With Rate | C37: =+C15*C33+C16*C34 -> -14318053.61 | D37: =+D15*D33+D16*D34 -> -326460.8281 | E37: 0 | F37: =+F35*F18 -> -66437.34997 | G37: =+G35*G18 -> -13321.80886 | H37: =+H35*H17 -> -35329.69322 | I37: =SUM(C37:H37) -> -14759603.29
A39: =+A37+1 -> 21 | B39: Summer Total Rate | C39: =+C20+C33 -> 0.3300787648 | D39: =+D20+D33 -> 0.5854007106
A40: =+A39+1 -> 22 | B40: Winter Total Rate | C40: =+C21+C34 -> 0.7535587648 | D40: =+D21+D34 -> 0.6811207106
A41: =+A40+1 -> 23 | B41: Annual Total Rate | E41: =+E23 -> 0.17949 | F41: =+F25+F35 -> 1.565068289 | G41: =+G25+G35 -> 1.070110328 | H41: =+H23+H35 -> 0.7063324513
A42: =+A41+1 -> 24 | B42: Monthly Total Rate | F42: =ROUND(F41/12,5) -> 0.13042 | G42: =ROUND(G41/12,5) -> 0.08918
A44: =+A42+1 -> 25 | B44: Summer Total Collected | C44: =+C15*C39 -> 10734275.31 | D44: =+D15*D39 -> 788214.5429
A45: =+A44+1 -> 26 | B45: Winter Total Collected | C45: =+C16*C40 -> 63449597.51 | D45: =+D16*D40 -> 903223.2763
A46: =+A45+1 -> 27 | B46: Annual Total Collected | E46: =+E41*E17 -> 51771.01866 | F46: =+F41*F18 -> 344219.5545 | G46: =+G41*G18 -> 69022.11614 | H46: =+H41*H17 -> 183048.1738
C47: =SUM(C44:C46) -> 74183872.82 | D47: 1691437.819 | E47: 51771.01866 | F47: 344219.5545 | G47: 69022.11614 | H47: 183048.1738 | I47: =SUM(C47:H47) -> 76523371.5
A51: 1/ | B51: ="Calculated by adding MWP T-2 and ACA rates, then adjusting for distr. loss of "&TEXT('Other Inputs'!E180,"0.000%") -> Calculated by adding MWP T-2 and ACA rates, then adjusting for distr. loss of 0.678%
B52: ="= ("&TEXT('Other Inputs'!$F$50,"$0.00000")&" + "&TEXT('Other Inputs'!$F$51,"$0.00000")&") / ( 1 - "&TEXT('Other Inputs'!$E$180,"0.00000")&" ) = "&TEXT(('Other Inputs'!F50+'Other Inputs'!F51)/(1-('Other Inputs'!$E$180)),("$0.00000")) -> = ($0.17652 + $0.00140) / ( 1 - 0.00678 ) = $0.17913
B53: ="IS Tariff rate has an adjustment for bad debt of "&TEXT('Other Inputs'!$E$299,"0.00%") -> IS Tariff rate has an adjustment for bad debt of 0.20%
B54: =" = "&TEXT((('Other Inputs'!$F$50+'Other Inputs'!$F$51)/(1-'Other Inputs'!$E$180)),"$0.00000")&" / ( 1 - "&TEXT('Other Inputs'!$E$299,"0.00000")&" ) = " -> = $0.17913 / ( 1 - 0.00200 ) = | C54: =+(('Other Inputs'!$F$50+'Other Inputs'!$F$51)/(1-'Other Inputs'!$E$180))/(1-('Other Inputs'!$E$299)) -> 0.1794935192
A56: 2/ | B56: Spring Pass Through SNG Amortization From Docket No. 20-057-07 (Lines 15-19)
B57: Amortization will be adjusted in the 2021 Spring Pass Through

Sheet Ut 1.5 p4
E1: ='Control Panel'!$E$37 -> Dominion Energy Utah
E2: ='Control Panel'!$E$38 -> Docket No. 23-057-25
E3: DEU Exhibit 1.5
E4: Page 4 of 6
A6: GENERAL SERVICE SUMMER / WINTER DIFFERENTIAL
A8: SNG | B8: (A) | C8: (B) | D8: (C) | E8: (D)
B9: Contract | C9: Allocated GS Costs | D9: Winter Allocation | E9: Summer Allocation
A10: 1 | B10: MWP T-1 Transportation: Yearly | C10: =+'Ut 1.4 p3'!H15 -> 56426835.27 | D10: =C10*D52 -> 40705315.57 | E10: =C10*$D$51 -> 15721519.7
A11: =A10+1 -> 2 | B11: MWP T-1 Transportation: November - March | C11: =+'Ut 1.4 p3'!H16 -> 2413079.284 | D11: =C11 -> 2413079.284 | E11: 0
A12: =A11+1 -> 3 | B12: MWP No-Notice Transportation | C12: =+'Ut 1.4 p3'!H17 -> 2002557.559 | D12: =C12*D52 -> 1444609.413 | E12: =C12*$D$51 -> 557948.146
A13: 4 | B13: Capacity Release Credits | C13: =+'Ut 1.4 p3'!H18 -> -3588197.14 | D13: =C13*$D$52 -> -2588461.611 | E13: =C13*$D$51 -> -999735.5296
A14: 5 | B14: MWOP: Feb-Mar | C14: =+'Ut 1.4 p3'!H19 -> 26155.8384 | D14: =C14*$D$52 -> 18868.35672 | E14: 7287.481689
A15: 6 | B15: MWOP Transportation: Apr-Jan | C15: =+'Ut 1.4 p3'!H20 -> 121495.7406 | D15: =C15*$D$52 -> 87644.86683 | E15: 33850.87381
A16: 7 | B16: Kern River Transportation: Yearly | C16: =+'Ut 1.4 p3'!H21 -> 2167684.482 | D16: =C16*$D$52 -> 1563729.039 | E16: 603955.4429
A17: 8 | B17: Kern River Transportation: November - March | C17: =+'Ut 1.4 p3'!H22 -> 2414774.744 | D17: =C17 -> 2414774.744 | E17: 0
A18: 9 | B18: Kern River Transportation: December - February | C18: =+'Ut 1.4 p3'!H23 -> 1419736.754 | D18: =C18 -> 1419736.754 | E18: 0
A19: 10 | B19: Kern River Transportation: November & March | C19: =+'Ut 1.4 p3'!H24 -> 100310.0408 | D19: =C19 -> 100310.0408 | E19: 0
A20: 11 | B20: ACA (FERC) | C20: =+'Ut 1.4 p3'!H25 -> 186044.608 | D20: =C20*$D$52 -> 134209.2719 | E20: 51835.33608
A21: 12 | B21: MWP Commodity | C21: =+'Ut 1.4 p3'!H26 -> 291492.1032 | D21: 210277.2199 | E21: 81214.88334
A22: 13 | B22: MWOP Commodity | C22: =+'Ut 1.4 p3'!H27 -> 809.2800998 | D22: 583.8002732 | E22: 225.4798266
A23: 14 | B23: MWOP Commodity | C23: =+'Ut 1.4 p3'!H28 -> 2965.784665 | D23: 2139.464319 | E23: 826.3203459
A24: 15 | B24: Kern River Commodity | C24: =+'Ut 1.4 p3'!H29 -> 91345.60042 | D24: 65895.09181 | E24: 25450.50861
A25: 16 | B25: Other Transportation Charges | C25: =+'Ut 1.4 p3'!H30 -> 2023922.551 | D25: 1460021.738 | E25: 563900.8126
A26: 17 | B26: MWP Peak Hour Service | C26: =+'Ut 1.4 p3'!H34 -> 1302242.146 | D26: =C26 -> 1302242.146 | E26: 0
A27: 18 | B27: Kern River Peak Hour Service | C27: =+'Ut 1.4 p3'!H35 -> 1230869.451 | D27: =C27 -> 1230869.451 | E27: 0
A28: 19 | B28: Aquifer Peaking Storage Demand | C28: =+'Ut 1.4 p3'!H39 -> 6017083.714 | D28: =C28*$D$52 -> 4340617.194 | E28: 1676466.52
A29: 20 | B29: Spire Storage Demand | C29: =+'Ut 1.4 p3'!H40 -> 3780291.719 | D29: 2727035.224 | E29: =C29*$D$51 -> 1053256.495
A30: 21 | B30: Clay Basin Storage Demand | C30: =+'Ut 1.4 p3'!H41 -> 3618702.205 | D30: 2610467.422 | E30: 1008234.783
A31: 22 | B31: Clay Basin Storage Capacity | C31: =+'Ut 1.4 p3'!H42 -> 3618916.736 | D31: 2610622.181 | E31: 1008294.555
A32: 23 | B32: Aquifer Peaking Injections Storage Commodity | C32: =+'Ut 1.4 p3'!H43 -> 79750.96123 | D32: 57530.92528 | E32: 22220.03595
A33: 24 | B33: Aquifer Peaking Withdrawals Storage Commodity | C33: =+'Ut 1.4 p3'!H44 -> 79750.96123 | D33: 57530.92528 | E33: 22220.03595
A34: 25 | B34: Spire Injections Storage Commodity | C34: =+'Ut 1.4 p3'!H45 -> 24715.18735 | D34: 17829.09666 | E34: 6886.090686
A35: 26 | B35: Spire Withdrawals Storage Commodity | C35: =+'Ut 1.4 p3'!H46 -> 14376.06682 | D35: 10370.63896 | E35: 4005.427855
A36: 27 | B36: Clay Basin Injections Storage Commodity | C36: =+'Ut 1.4 p3'!H47 -> 120941.9947 | D36: 87245.40437 | E36: 33696.59035
A37: =A36+1 -> 28 | B37: Clay Basin Withdrawals Storage Commodity | C37: =+'Ut 1.4 p3'!H48 -> 210089.4921 | D37: 151554.8237 | E37: 58534.66835
A38: 29 | B38: LNG Electricity | C38: =+'Ut 1.4 p3'!H51 -> 2306392.246 | D38: =+(SUM(Expenses!$D$24:$G$24,Expenses!$O$24)*'Ut 1.4 p3'!D67) -> 865304.5584 | E38: =+SUM(Expenses!$H$24:$N$24)*'Ut 1.4 p3'!D67 -> 1441087.688
A39: =+A38+1 -> 30 | B39: Utah SNG Costs | C39: =SUM(C10:C38) -> 88505135.38 | D39: =SUM(D10:D38) -> 65521953.04 | E39: 22983182.35
A41: =A39+1 -> 31 | B41: Winter SNG - Summer SNG | C41: =D39-E39 -> 42538770.69
A42: =A41+1 -> 32 | B42: Winter Dth | C42: =C52 -> 84199933
A43: =A42+1 -> 33 | B43: Seasonal Cost Differential | C43: =ROUND(C41/C42,5) -> 0.50521
A45: =+A43+1 -> 34 | B45: SNG Amortization | C45: =+'Ut 1.5 p3'!C30 -> -14318053.61 | D45: =+C45*D39/C39 -> -10599914.14 | E45: =+C45*E39/C39 -> -3718139.467
A47: =+A45+1 -> 35 | B47: Winter SNG - Summer SNG Amortization | C47: =+D45-E45 -> -6881774.672
A48: =+A47+1 -> 36 | B48: Winter Dth | C48: =+C52 -> 84199933
A49: =+A48+1 -> 37 | B49: Seasonal Cost Differential | C49: =ROUND(C47/C48,5) -> -0.08173
A51: =+A49+1 -> 38 | B51: 2024 Forecast GS Summer Usage | C51: =+'Ut 1.5 p3'!C15 -> 32520345 | D51: =C51/(C51+C52) -> 0.2786177823
A52: =A51+1 -> 39 | B52: 2024-25 Forecast GS Winter Usage | C52: =+'Ut 1.5 p3'!C16 -> 84199933 | D52: =C52/(C52+C51) -> 0.7213822177

Sheet Ut 1.5 p5
E1: ='Control Panel'!$E$37 -> Dominion Energy Utah
E2: ='Control Panel'!$E$38 -> Docket No. 23-057-25
E3: DEU Exhibit 1.5
E4: Page 5 of 6
A7: FIRM SALES SUMMER / WINTER DIFFERENTIAL
A9: SNG | B9: (A) | C9: (B) | D9: (C) | E9: (D)
B10: Contract | C10: Allocated FS Costs | D10: Winter Allocation | E10: Summer Allocation
A11: 1 | B11: MWP T-1 Transportation: Yearly | C11: =+'Ut 1.4 p3'!I15 -> 1304014.591 | D11: =C11*D54 -> 647037.9587 | E11: =C11*$D$53 -> 656976.6324
A12: =A11+1 -> 2 | B12: MWP T-1 Transportation: November - March | C12: =+'Ut 1.4 p3'!I16 -> 55765.85289 | D12: =C12 -> 55765.85289 | E12: 0
A13: =A12+1 -> 3 | B13: MWP No-Notice Transportation | C13: =+'Ut 1.4 p3'!I17 -> 46278.76548 | D13: =C13*D54 -> 22963.02369 | E13: =C13*$D$53 -> 23315.74179
A14: 4 | B14: Capacity Release Credits | C14: =+'Ut 1.4 p3'!I18 -> -82922.62722 | D14: =C14*$D$54 -> -41145.31219 | E14: =C14*$D$53 -> -41777.31503
A15: 5 | B15: MWOP: Feb-Mar | C15: =+'Ut 1.4 p3'!I19 -> 604.4569885 | D15: =C15*$D$54 -> 299.9250305 | E15: =C15*$D$53 -> 304.531958
A16: 6 | B16: MWOP Transportation: Apr-Jan | C16: =+'Ut 1.4 p3'!I20 -> 2807.745956 | D16: =C16*$D$54 -> 1393.173224 | E16: =C16*$D$53 -> 1414.572732
A17: 7 | B17: Kern River Transportation: Yearly | C17: =+'Ut 1.4 p3'!I21 -> 50094.82065 | D17: =C17*$D$54 -> 24856.50906 | E17: =C17*$D$53 -> 25238.31159
A18: 8 | B18: Kern River Transportation: November - March | C18: =+'Ut 1.4 p3'!I22 -> 55805.0347 | D18: =C18 -> 55805.0347 | E18: 0
A19: 9 | B19: Kern River Transportation: December - February | C19: =+'Ut 1.4 p3'!I23 -> 32809.87554 | D19: =C19 -> 32809.87554 | E19: 0
A20: 10 | B20: Kern River Transportation: November & March | C20: =+'Ut 1.4 p3'!I24 -> 2318.148026 | D20: =C20 -> 2318.148026 | E20: 0
A21: 11 | B21: ACA (FERC) | C21: =+'Ut 1.4 p3'!I25 -> 4299.45933 | D21: =C21*$D$54 -> 2133.345292 | E21: =C21*$D$53 -> 2166.114038
A22: 12 | B22: MWP Commodity | C22: =+'Ut 1.4 p3'!I26 -> 6736.333057 | D22: =C22*$D$54 -> 3342.495721 | E22: =C22*$D$53 -> 3393.837337
A23: 13 | B23: MWOP Commodity | C23: =+'Ut 1.4 p3'!I27 -> 18.70232582 | D23: =C23*$D$54 -> 9.279892115 | E23: =C23*$D$53 -> 9.422433706
A24: 14 | B24: MWOP Commodity | C24: =+'Ut 1.4 p3'!I28 -> 68.53878049 | D24: =C24*$D$54 -> 34.00820276 | E24: =C24*$D$53 -> 34.53057773
A25: 15 | B25: Kern River Commodity | C25: =+'Ut 1.4 p3'!I29 -> 2110.98133 | D25: =C25*$D$54 -> 1047.44614 | E25: =C25*$D$53 -> 1063.535189
A26: 16 | B26: Other Transportation Charges | C26: =+'Ut 1.4 p3'!I30 -> 46772.50681 | D26: =C26*$D$54 -> 23208.01281 | E26: =C26*$D$53 -> 23564.49401
A27: 17 | B27: MWP Peak Hour Service | C27: =+'Ut 1.4 p3'!I34 -> 16274.85871 | D27: =C27 -> 16274.85871 | E27: 0
A28: 18 | B28: Kern River Peak Hour Service | C28: =+'Ut 1.4 p3'!I35 -> 15382.87366 | D28: =C28 -> 15382.87366 | E28: 0
A29: 19 | B29: Aquifer Peaking Storage Demand | C29: =+'Ut 1.4 p3'!I39 -> 139053.7839 | D29: =C29*$D$54 -> 68996.986 | E29: =C29*$D$53 -> 70056.7979
A30: 20 | B30: Spire Storage Demand | C30: =+'Ut 1.4 p3'!I40 -> 87361.90035 | D30: 43348.03157 | E30: 44013.86877
A31: 21 | B31: Clay Basin Storage Demand | C31: =+'Ut 1.4 p3'!I41 -> 83627.59408 | D31: 41495.10913 | E31: 42132.48495
A32: 22 | B32: Clay Basin Storage Capacity | C32: =+'Ut 1.4 p3'!I42 -> 83632.55186 | D32: 41497.56913 | E32: 42134.98274
A33: 23 | B33: Aquifer Peaking Injections Storage Commodity | C33: =+'Ut 1.4 p3'!I43 -> 1843.031185 | D33: 914.4921722 | E33: 928.5390131
A34: 24 | B34: Aquifer Peaking Withdrawals Storage Commodity | C34: =+'Ut 1.4 p3'!I44 -> 1843.031185 | D34: 914.4921722 | E34: 928.5390131
A35: 25 | B35: Spire Injections Storage Commodity | C35: =+'Ut 1.4 p3'!I45 -> 571.1637869 | D35: 283.4053034 | E35: 287.7584836
A36: 26 | B36: Spire Withdrawals Storage Commodity | C36: =+'Ut 1.4 p3'!I46 -> 332.2284655 | D36: 164.848177 | E36: 167.3802885
A37: 27 | B37: Clay Basin Injections Storage Commodity | C37: =+'Ut 1.4 p3'!I47 -> 2794.948982 | D37: 1386.823503 | E37: 1408.125478
A38: 28 | B38: Clay Basin Withdrawals Storage Commodity | C38: =+'Ut 1.4 p3'!I48 -> 4855.132522 | D38: =C38*$D$54 -> 2409.064329 | E38: 2446.068193
A39: 29 | B39: LNG Electricity | C39: =+'Ut 1.4 p3'!I51 -> 53300.33356 | D39: =+(SUM(Expenses!$D$24:$G$24,Expenses!$O$24)*'Ut 1.4 p3'!E67) -> 19997.04156 | E39: =+SUM(Expenses!$H$24:$N$24)*'Ut 1.4 p3'!E67 -> 33303.29201
A40: 30 | B40: Utah SNG Costs | C40: =SUM(C11:C39) -> 2018456.618 | D40: =SUM(D11:D39) -> 1084944.372 | E40: 933512.2458
A42: =A40+1 -> 31 | B42: Winter SNG - Summer SNG | C42: =D40-E40 -> 151432.1263
A43: =A42+1 -> 32 | B43: Winter Dth | C43: =C54 -> 1326084
A44: =A43+1 -> 33 | B44: Seasonal Cost Differential | C44: =ROUND(C42/C43,5) -> 0.11419
A46: =+A44+1 -> 34 | B46: SNG Amortization | C46: =+'Ut 1.5 p3'!D30 -> -326460.8281 | D46: =+C46*D40/C40 -> -175476.5671 | E46: =+C46*E40/C40 -> -150984.261
A48: =+A46+1 -> 35 | B48: Winter SNG - Summer SNG Amortization | C48: =+D46-E46 -> -24492.30611
A49: =+A48+1 -> 36 | B49: Winter Dth | C49: =+C54 -> 1326084
A50: =+A49+1 -> 37 | B50: Seasonal Cost Differential | C50: =ROUND(C48/C49,5) -> -0.01847
A53: =+A50+1 -> 38 | B53: 2024 Forecast FS Summer Usage | C53: =+'Ut 1.5 p3'!D15 -> 1346453 | D53: =C53/(C53+C54) -> 0.5038107985
A54: =+A53+1 -> 39 | B54: 2024-25 Forecast FS Winter Usage | C54: =+'Ut 1.5 p3'!D16 -> 1326084 | D54: =C54/(C54+C53) -> 0.4961892015

Sheet Ut 1.5 p6
G1: ='Control Panel'!$E$37 -> Dominion Energy Utah
G2: ='Control Panel'!$E$38 -> Docket No. 23-057-25
G3: DEU Exhibit 1.5
G4: Page 6 of 6
C7: SUMMARY OF RATES
B9: COMMODITY | D9: (A) | E9: (B)
B10: Class | C10: Description | D10: Current | E10: Proposed
B11: GS, FS
A12: 1 | C12: Base Gas Cost | D12: =+'Other Inputs'!F124 -> 6.58934 | E12: =+'Ut 1.5 p1'!F30 -> 6.58934
A13: 2 | C13: 191 Amortization | D13: =+'Other Inputs'!F125 -> 1.95949 | E13: =+'Ut 1.5 p1'!F31 -> 1.95949
A14: 3 | C14: Commodity Rate | D14: =+D12+D13 -> 8.54883 | E14: =+E12+E13 -> 8.54883
B16: IS
A17: =+A14+1 -> 4 | C17: Base Gas Cost | D17: ='Other Inputs'!F134 -> 6.57313 | E17: =+'Ut 1.5 p1'!F37 -> 6.57313
A18: =+A17+1 -> 5 | C18: 191 Amortization | D18: =+'Other Inputs'!F125 -> 1.95949 | E18: =+'Ut 1.5 p1'!F38 -> 1.95949
A19: =+A18+1 -> 6 | C19: Commodity Rate | D19: =+D17+D18 -> 8.53262 | E19: =+E17+E18 -> 8.53262
B21: NGV
A22: =+A19+1 -> 7 | C22: Base Gas Cost | D22: ='Other Inputs'!F134 -> 6.57313 | E22: =+'Ut 1.5 p1'!F37 -> 6.57313
A23: =+A22+1 -> 8 | C23: 191 Amortization | D23: =+'Other Inputs'!F125 -> 1.95949 | E23: =+'Ut 1.5 p1'!F31 -> 1.95949
A24: =+A23+1 -> 9 | C24: RIN Credit | D24: =+'Other Inputs'!F135 -> -0.48096 | E24: =+'Ut 1.5 p1'!F46 -> -0.48096
A25: 10 | C25: Commodity Rate | D25: =+D22+D23+D24 -> 8.05166 | E25: =+E22+E23+E24 -> 8.05166
B28: SNG
B29: Class | C29: Description | D29: Current | E29: Proposed
A30: =+A25+1 -> 11 | B30: GS | C30: Base SNG Summer | D30: =+'Other Inputs'!E91 -> 0.38433 | E30: =ROUND('Ut 1.5 p3'!C20,5) -> 0.39379
A31: =+A30+1 -> 12 | C31: SNG Amortization | D31: =+'Other Inputs'!F91 -> 0.01392 | E31: =ROUND('Ut 1.5 p3'!C33,5) -> -0.06371
A32: =+A31+1 -> 13 | C32: SNG Summer Rate | D32: =+D30+D31 -> 0.39825 | E32: =+E30+E31 -> 0.33008
A34: =+A32+1 -> 14 | C34: Base SNG Winter | D34: =+'Other Inputs'!E90 -> 0.91359 | E34: =ROUND('Ut 1.5 p3'!C21,5) -> 0.899
A35: =+A34+1 -> 15 | C35: SNG Amortization | D35: =+'Other Inputs'!F90 -> 0.03321 | E35: =ROUND('Ut 1.5 p3'!C34,5) -> -0.14544
A36: =+A35+1 -> 16 | C36: SNG Winter Rate | D36: =+D34+D35 -> 0.9468 | E36: =+E34+E35 -> 0.75356
A38: =+A36+1 -> 17 | B38: FS | C38: Base SNG Summer | D38: =+'Other Inputs'!E94 -> 0.75121 | E38: =ROUND('Ut 1.5 p3'!D20,5) -> 0.69839
A39: =+A38+1 -> 18 | C39: SNG Amortization | D39: =+'Other Inputs'!F94 -> 0.02741 | E39: =ROUND('Ut 1.5 p3'!D33,5) -> -0.11299
A40: =+A39+1 -> 19 | C40: SNG Summer Rate | D40: =+D38+D39 -> 0.77862 | E40: =+E38+E39 -> 0.5854
A42: =+A40+1 -> 20 | C42: Base SNG Winter | D42: =+'Other Inputs'!E93 -> 0.90016 | E42: =ROUND('Ut 1.5 p3'!D21,5) -> 0.81258
A43: =+A42+1 -> 21 | C43: SNG Amortization | D43: =+'Other Inputs'!F93 -> 0.03283 | E43: =ROUND('Ut 1.5 p3'!D34,5) -> -0.13146
A44: =+A43+1 -> 22 | C44: SNG Winter Rate | D44: =+D42+D43 -> 0.93299 | E44: =+E42+E43 -> 0.68112
A46: =+A44+1 -> 23 | B46: IS | C46: SNG Rate | D46: =+'Other Inputs'!E98 -> 0.17938 | E46: =ROUND('Ut 1.5 p3'!E23,5) -> 0.17949
A48: =+A46+1 -> 24 | B48: TSS TSM TSL | C48: Base SNG Annual Demand | D48: =+'Other Inputs'!F137 -> 2.08116 | E48: =ROUND('Ut 1.5 p3'!F25,5) -> 1.86714
A49: =+A48+1 -> 25 | C49: SNG Amortization | D49: =+'Other Inputs'!F138 -> 0.07578 | E49: =ROUND('Ut 1.5 p3'!F35,5) -> -0.30207
A50: =+A49+1 -> 26 | C50: SNG Adder Annual | D50: =+D48+D49 -> 2.15694 | E50: =+E48+E49 -> 1.56507
A51: =+A50+1 -> 27 | C51: SNG Adder Monthly | D51: =+ROUND(D50/12,5) -> 0.17975 | E51: =+ROUND(E50/12,5) -> 0.13042
A53: =+A51+1 -> 28 | B53: TBF | C53: Base SNG Annual Demand | D53: ='Other Inputs'!F142 -> 1.3865 | E53: =ROUND('Ut 1.5 p3'!G25,5) -> 1.27665
A54: =+A53+1 -> 29 | C54: SNG Amortization | D54: ='Other Inputs'!F143 -> 0.05049 | E54: =ROUND('Ut 1.5 p3'!G35,5) -> -0.20654
A55: =+A54+1 -> 30 | C55: SNG Adder Annual | D55: =+D53+D54 -> 1.43699 | E55: =+E53+E54 -> 1.07011
A56: =+A55+1 -> 31 | C56: SNG Adder Monthly | D56: =+ROUND(D55/12,5) -> 0.11975 | E56: =+ROUND(E55/12,5) -> 0.08918
A58: =+A56+1 -> 32 | B58: NGV | C58: Base SNG | D58: =+'Other Inputs'!E96 -> 0.67962 | E58: =ROUND('Ut 1.5 p3'!H23,5) -> 0.84266
A59: =+A58+1 -> 33 | C59: SNG Amortization | D59: =+'Other Inputs'!F96 -> 0.02481 | E59: =ROUND('Ut 1.5 p3'!H35,5) -> -0.13633
A60: =+A59+1 -> 34 | C60: SNG Rate | D60: =+D58+D59 -> 0.70443 | E60: =+E58+E59 -> 0.70633

Sheet Ut 1.6
L1: ='Control Panel'!$E$37 -> Dominion Energy Utah
L2: ='Control Panel'!$E$38 -> Docket No. 23-057-25
L3: DEU Exhibit 1.6
C7: EFFECT ON GS TYPICAL CUSTOMER
C8: 70 DTHS - ANNUAL CONSUMPTION
C11: (A) | D11: (B) | E11: (C) | F11: (D) | H11: (E) | J11: (F)
F12: Billed at Current | H12: Billed at
C13: Rate | E13: Usage | F13: Rates Effective | H13: Proposed Rates
C14: Schedule | D14: Month | E14: In Dth | F14: ='Ut 1.6 Source'!H2 -> 2024-01-01 | H14: ='Control Panel'!E10 -> 23-057-25 | J14: Change
B16: 1 | C16: GS | D16: Jan | E16: ='Monthly Inputs'!G112 -> 13 | F16: =ROUND((+E16*'Other Inputs'!$G$104)+'Other Inputs'!$G$106,2) -> 172.04 | H16: =ROUND((+E16*'Ut 1.6 Source'!$F$16)+'Ut 1.6 Source'!$C$18,2) -> 169.53 | J16: =H16-F16 -> -2.51
B17: =B16+1 -> 2 | D17: Feb | E17: ='Monthly Inputs'!G113 -> 10.9 | F17: =ROUND((+E17*'Other Inputs'!$G$104)+'Other Inputs'!$G$106,2) -> 145.34 | H17: =ROUND((+E17*'Ut 1.6 Source'!$F$16)+'Ut 1.6 Source'!$C$18,2) -> 143.23 | J17: -2.11
B18: =B17+1 -> 3 | D18: Mar | E18: ='Monthly Inputs'!G114 -> 8.8 | F18: =ROUND((+E18*'Other Inputs'!$G$104)+'Other Inputs'!$G$106,2) -> 118.64 | H18: =ROUND((+E18*'Ut 1.6 Source'!$F$16)+'Ut 1.6 Source'!$C$18,2) -> 116.94 | J18: -1.7
B19: 4 | D19: Apr | E19: ='Monthly Inputs'!G115 -> 7.3 | F19: =ROUND((+E19*'Other Inputs'!$G$102)+'Other Inputs'!$G$106,2) -> 91.47 | H19: =ROUND((+E19*'Ut 1.6 Source'!$C$16)+'Ut 1.6 Source'!$C$18,2) -> 90.97 | J19: -0.5
B20: 5 | D20: May | E20: ='Monthly Inputs'!G116 -> 3.8 | F20: =ROUND((+E20*'Other Inputs'!$G$102)+'Other Inputs'!$G$106,2) -> 50.85 | H20: =ROUND((+E20*'Ut 1.6 Source'!$C$16)+'Ut 1.6 Source'!$C$18,2) -> 50.59 | J20: -0.26
B21: 6 | D21: Jun | E21: ='Monthly Inputs'!G117 -> 2.7 | F21: =ROUND((+E21*'Other Inputs'!$G$102)+'Other Inputs'!$G$106,2) -> 38.08 | H21: =ROUND((+E21*'Ut 1.6 Source'!$C$16)+'Ut 1.6 Source'!$C$18,2) -> 37.9 | J21: -0.18
B22: 7 | D22: Jul | E22: ='Monthly Inputs'!G118 -> 1.8 | F22: =ROUND((+E22*'Other Inputs'!$G$102)+'Other Inputs'!$G$106,2) -> 27.64 | H22: =ROUND((+E22*'Ut 1.6 Source'!$C$16)+'Ut 1.6 Source'!$C$18,2) -> 27.52 | J22: -0.12
B23: 8 | D23: Aug | E23: ='Monthly Inputs'!G119 -> 1.6 | F23: =ROUND((+E23*'Other Inputs'!$G$102)+'Other Inputs'!$G$106,2) -> 25.32 | H23: =ROUND((+E23*'Ut 1.6 Source'!$C$16)+'Ut 1.6 Source'!$C$18,2) -> 25.21 | J23: -0.11
B24: 9 | D24: Sep | E24: ='Monthly Inputs'!G120 -> 1.8 | F24: =ROUND((+E24*'Other Inputs'!$G$102)+'Other Inputs'!$G$106,2) -> 27.64 | H24: =ROUND((+E24*'Ut 1.6 Source'!$C$16)+'Ut 1.6 Source'!$C$18,2) -> 27.52 | J24: -0.12
B25: 10 | D25: Oct | E25: ='Monthly Inputs'!G121 -> 2.7 | F25: =ROUND((+E25*'Other Inputs'!$G$102)+'Other Inputs'!$G$106,2) -> 38.08 | H25: =ROUND((+E25*'Ut 1.6 Source'!$C$16)+'Ut 1.6 Source'!$C$18,2) -> 37.9 | J25: -0.18
B26: 11 | D26: Nov | E26: ='Monthly Inputs'!G122 -> 5.5 | F26: =ROUND((+E26*'Other Inputs'!$G$104)+'Other Inputs'!$G$106,2) -> 76.68 | H26: =ROUND((+E26*'Ut 1.6 Source'!$F$16)+'Ut 1.6 Source'!$C$18,2) -> 75.62 | J26: -1.06
B27: 12 | D27: Dec | E27: ='Monthly Inputs'!G123 -> 10.1 | F27: =ROUND((+E27*'Other Inputs'!$G$104)+'Other Inputs'!$G$106,2) -> 135.17 | H27: =ROUND((+E27*'Ut 1.6 Source'!$F$16)+'Ut 1.6 Source'!$C$18,2) -> 133.22 | J27: -1.95
B30: =B27+1 -> 13 | D30: Total | E30: =SUM(E16:E27) -> 70 | F30: =SUM(F16:F27) -> 946.95 | H30: =SUM(H16:H27) -> 936.15 | J30: =H30-F30 -> -10.8
B32: =B30+1 -> 14 | H32: Percent Change: | J32: =ROUND(J30/F30,4)*100 -> -1.14 | K32: %

Sheet Ut 1.7 p1
F1: ='Control Panel'!E37 -> Dominion Energy Utah
F2: ='Control Panel'!E38 -> Docket No. 23-057-25
F3: DEU Exhibit 1.7
F4: Page 1 of 17
A15: DOMINION ENERGY UTAH
A16: 333 South State Street
A17: P.O. Box 45433
A18: Salt Lake City, Utah 84145-0433
A29: LEGISLATIVE/PROPOSED RATE SCHEDULES
A31: P.S.C. Utah No. 600
A32: Affecting GS, FS, NGV, IS, TBF, TSS, TSM, and TSL Rate Schedules
A33: and Classes of Service In
A34: Dominion Energy
A35: Utah Service Area
A37: Tariff Section 2.02, 2.03, 2.04, 4.02, 5,02, 5.04, 5.05, 5.06
A39: Date Issued: December 29, 2023
A40: To Become Effective: February 1, 2024

Sheet LEG - PR
A2: LEGISLATIVE TARIFF
A3: SHEETS
A6: PROPOSED TARIFF
A7: SHEETS

Sheet Ut 1.8 p1
F1: ='Control Panel'!E37 -> Dominion Energy Utah
F2: ='Control Panel'!E38 -> Docket No. 23-057-25
F3: DEU Exhibit 1.8
F4: Page 1 of 17
A15: DOMINION ENERGY UTAH
A16: 333 South State Street
A17: P.O. Box 45433
A18: Salt Lake City, Utah 84145-0433
A29: LEGISLATIVE/PROPOSED COMBINED RATE SCHEDULES
A31: P.S.C. Utah No. 600
A32: Affecting GS, FS, NGV, IS, TBF, TSS, TSM, and TSL Rate Schedules
A33: and Classes of Service In
A34: Dominion Energy
A35: Utah Service Area
A37: Tariff Section 2.02, 2.03, 2.04, 4.02, 5,02, 5.04, 5.05, 5.06
A39: Date Issued: December 29, 2023
A40: To Become Effective: February 1, 2024

Sheet Ut 1.6 Source
A1: SUMMARY OF PROPOSED RATES
G2: Current Rates Effective | H2: 2024-01-01
A3: UTAH RATE CLASSES | C3: Rates per Dth Used Each Month
C4: All Season Rates or Summer Rates: Apr. 1 - Oct. 31 | F4: Winter Rates: Nov. 1 - Mar. 31
A5: UT GS | C5: First 45 Dth | D5: All Over 45 Dth | F5: First 45 Dth | G5: All Over 45 Dth
B6: Distribution Non-Gas Cost | C6: 2.65544 | D6: 1.38725 | F6: 3.25401 | G6: 1.98582
B7: CET Amortization | C7: -0.18679 | D7: -0.09758 | F7: -0.2289 | G7: -0.13969
B8: DSM Amortization | C8: 0.15907 | D8: 0.15907 | F8: 0.15907 | G8: 0.15907
B9: Energy Assistance | C9: 0.01176 | D9: 0.01176 | F9: 0.01176 | G9: 0.01176
B10: Infrastructure Rate Adjustment | C10: 0.01491 | D10: 0.00779 | F10: 0.01827 | G10: 0.01115
B11: Rural Expansion Rate Adjustment | C11: 0 | D11: 0 | F11: 0 | G11: 0
B12: STEP Surcharge | C12: 0.00346 | D12: 0.00132 | F12: 0.00471 | G12: 0.00257
B13: Supplier Non-Gas Cost | C13: =+'Ut 1.5 p6'!E32 -> 0.33008 | D13: =C13 -> 0.33008 | F13: =+'Ut 1.5 p6'!E36 -> 0.75356 | G13: =F13 -> 0.75356
B14: Commodity Cost | C14: =('Ut 1.5 p1'!$F$32) -> 8.54883 | D14: =C14 -> 8.54883 | F14: =D14 -> 8.54883 | G14: =F14 -> 8.54883
B16: Total Rate | C16: =SUM(C6:C15) -> 11.53676 | D16: =SUM(D6:D15) -> 10.34852 | F16: =SUM(F6:F15) -> 12.52131 | G16: =SUM(G6:G15) -> 11.33307
B18: BSF Category 1 | C18: 6.75
B19: BSF Category 2 | C19: 18.25
B20: BSF Category 3 | C20: 63.5
B21: BSF Category 4 | C21: 420.25
A24: UT FS | C24: First 200 Dth | D24: Next 1,800 Dth | E24: All Over 2,000 Dth | F24: First 200 Dth | G24: Next 1,800 Dth | H24: All Over 2,000 Dth
B25: Distribution Non-Gas Cost | C25: 1.57367 | D25: 1.05207 | E25: 0.503 | F25: 2.05177 | G25: 1.53017 | H25: 0.9811
B26: Energy Assistance | C26: 0.00882 | D26: 0.00882 | E26: 0.00882 | F26: 0.00882 | G26: 0.00882 | H26: 0.00882
B27: Infrastructure Rate Adjustment | C27: 0.00704 | D27: 0.00471 | E27: 0.00225 | F27: 0.00918 | G27: 0.00685 | H27: 0.00439
B28: Rural Expansion Rate Adjustment | C28: 0 | D28: 0 | E28: 0 | F28: 0 | G28: 0 | H28: 0
B29: STEP Surcharge | C29: 0.00162 | D29: 0.00085 | E29: 3e-05 | F29: 0.00246 | G29: 0.00168 | H29: 0.00086
B30: Supplier Non-Gas Cost | C30: =+'Ut 1.5 p6'!E40 -> 0.5854 | D30: =C30 -> 0.5854 | E30: =D30 -> 0.5854 | F30: =+'Ut 1.5 p6'!E44 -> 0.68112 | G30: =F30 -> 0.68112 | H30: =G30 -> 0.68112
B31: Commodity Cost | C31: =('Ut 1.5 p1'!$F$32) -> 8.54883 | D31: =C31 -> 8.54883 | E31: =D31 -> 8.54883 | F31: =E31 -> 8.54883 | G31: =F31 -> 8.54883 | H31: =G31 -> 8.54883
B33: Total Rate | C33: =SUM(C25:C32) -> 10.72538 | D33: =SUM(D25:D32) -> 10.20068 | E33: =SUM(E25:E32) -> 9.64833 | F33: 11.30218 | G33: 10.77747 | H33: 10.22512
B35: BSF Category 1 | C35: =C18 -> 6.75
B36: BSF Category 2 | C36: =C19 -> 18.25
B37: BSF Category 3 | C37: =C20 -> 63.5
B38: BSF Category 4 | C38: =C21 -> 420.25
A41: UT Future Rate Class
C42: First 10,000 Dth | D42: All Over 10,000 Dth
B43: Distribution Non-Gas Cost
B44: Supplier Non-Gas Cost
B45: Commodity Cost
B47: Total Rate | C47: =SUM(C43:C46) -> 0 | D47: =SUM(D43:D46) -> 0
B49: Minimum Yearly Distribution Non-Gas Charge | D49: =ROUND(((10000*C43))*12,-2) -> 0
B52: BSF Category 1 | C52: =C18 -> 6.75
B53: BSF Category 2 | C53: =C19 -> 18.25
B54: BSF Category 3 | C54: =C20 -> 63.5
B55: BSF Category 4 | C55: =C21 -> 420.25
A59: UT NGV
B60: Distribution Non-Gas Cost | C60: 10.35287
B61: Energy Assistance | C61: 0.01477
B62: Infrastructure Rate Adjustment | C62: 0.04966
B63: Rural Expansion Rate Adjustment | C63: 0
B64: STEP Surcharge | C64: 0.01374
B65: Supplier Non-Gas Cost | C65: =+'Ut 1.5 p6'!E60 -> 0.70633
B66: Commodity Cost | C66: ='Ut 1.5 p6'!E25 -> 8.05166
B68: Total Rate | C68: =SUM(C60:C67) -> 19.18903
A71: UT IS | C71: First 2,000 Dth | D71: Next 18,000 Dth | E71: All Over 20,000
B72: Distribution Non-Gas Cost | C72: 0.84853 | D72: 0.10056 | E72: 0.04583
B73: Energy Assistance | C73: 0.00838 | D73: 0.00838 | E73: 0.00838
B74: Infrastructure Rate Adjustment | C74: 0.00445 | D74: 0.00053 | E74: 0.00024
B75: Rural Expansion Rate Adjustment | C75: 0 | D75: 0 | E75: 0
B76: STEP Surcharge | C76: 0.0012 | D76: 0.00018 | E76: 0.00011
B77: Supplier Non-Gas Cost | C77: =+'Ut 1.5 p6'!E46 -> 0.17949 | D77: =C77 -> 0.17949 | E77: =D77 -> 0.17949
B78: Commodity Cost | C78: =+'Ut 1.5 p6'!E19 -> 8.53262 | D78: =+'Ut 1.5 p6'!E19 -> 8.53262 | E78: =+'Ut 1.5 p6'!E19 -> 8.53262
B80: Total Rate | C80: =SUM(C72:C78) -> 9.57467 | D80: =SUM(D72:D78) -> 8.82176 | E80: =SUM(E72:E78) -> 8.76667
B82: BSF Category 1 | C82: =C18 -> 6.75
B83: BSF Category 2 | C83: =C19 -> 18.25
B84: BSF Category 3 | C84: =C20 -> 63.5
B85: BSF Category 4 | C85: =C21 -> 420.25

Sheet Ut Storage
A1: Storage Injection / Withdrawal adjustment
C3: (A) | D3: (B) | E3: (C) | F3: (D) | G3: (E) | H3: (F) | I3: (G) | K3: (H) | L3: (I) | M3: (J)
G4: Injections | I4: (J) / (C)
E5: Storage | G5: ------------------------------------------------------------- | I5: Storage | M5: Storage
C6: Injection Dth | D6: Withdrawal Dth | E6: Inventory Dth | F6: % that is | G6: Co. Prod. | H6: Purchased | I6: Inventory | M6: Inventory
A7: Line | B7: Month | C7: Per IRPs | D7: Per IRPs | E7: Balance | F7: Co. Prod. (1) | G7: $/Dth (2) | H7: $/Dth (3) | I7: Average $/Dth | K7: Injection (4) | L7: Withdrawal (5) | M7: Balance
B8: =+Expenses!P3 -> 2023-11-30 | E8: =-1*'Other Inputs'!D265 -> 13225135 | I8: =M8/E8 -> 3.491246175 | M8: ='Other Inputs'!E265 -> 46172201.98
B9: ='Monthly Inputs'!E3 -> Dec23 | C9: ='Monthly Inputs'!E22 -> 50998 | D9: =-'Monthly Inputs'!E30 -> -4086000 | E9: =E8+C9+D9 -> 9190133 | F9: =F21 -> 0.2785633009 | G9: ='Other Inputs'!F121 -> 4.54359 | H9: ='Monthly Inputs'!E73 -> 7.68 | I9: =M9/E9 -> 3.509642175 | K9: =(+F9*C9*G9)+((1-F9)*C9*H9) -> 347108.2625 | L9: =D9*I8 -> -14265231.87 | M9: =M8+L9+K9 -> 32254078.37
B10: ='Monthly Inputs'!F3 -> Jan24 | C10: ='Monthly Inputs'!F22 -> 59000 | D10: =-'Monthly Inputs'!F30 -> -4290534 | E10: =E9+C10+D10 -> 4958599 | F10: =F22 -> 0.2563278683 | G10: =G9 -> 4.54359 | H10: ='Monthly Inputs'!F73 -> 7.56 | I10: 3.54863563 | K10: =(+F10*C10*G10)+((1-F10)*C10*H10) -> 400421.7932 | L10: =D10*I9 -> -15058239.08 | M10: =M9+L10+K10 -> 17596261.09
A11: 1. | B11: ='Monthly Inputs'!G3 -> Feb24 | C11: ='Monthly Inputs'!G22 -> 361110 | D11: =-'Monthly Inputs'!G30 -> -1660732 | E11: =E10+C11+D11 -> 3658977 | F11: =Calculations!D187 -> 0.2787636441 | G11: ='Ut 1.2 p3'!$G$50 -> 4.63000064 | H11: =Calculations!D210 -> 8.44042 | I11: 3.9265825 | K11: 2664346.718 | L11: =D11*I10 -> -5893332.747 | M11: =M10+L11+K11 -> 14367275.06
A12: 2. | B12: ='Monthly Inputs'!H3 -> Mar24 | C12: ='Monthly Inputs'!H22 -> 724902 | D12: =-'Monthly Inputs'!H30 -> -366780 | E12: =E11+C12+D12 -> 4017099 | F12: =Calculations!E187 -> 0.3332735664 | G12: ='Ut 1.2 p3'!$G$50 -> 4.63000064 | H12: =Calculations!E210 -> 9.67697 | I12: 4.660735845 | K12: 5795554.173 | L12: =D12*I11 -> -1440191.929 | M12: =M11+L12+K12 -> 18722637.3
A13: 3. | B13: ='Monthly Inputs'!I3 -> Apr24 | C13: ='Monthly Inputs'!I22 -> 0 | D13: =-'Monthly Inputs'!I30 -> 0 | E13: =E12+C13+D13 -> 4017099 | F13: =Calculations!F187 -> 0.4640512768 | G13: ='Ut 1.2 p3'!$G$50 -> 4.63000064 | H13: =Calculations!F210 -> 10.31845 | I13: 4.660735845 | K13: 0 | L13: =D13*I12 -> 0 | M13: 18722637.3
A14: 4. | B14: ='Monthly Inputs'!J3 -> May24 | C14: ='Monthly Inputs'!J22 -> 1358748 | D14: =-'Monthly Inputs'!J30 -> 0 | E14: 5375847 | F14: =Calculations!G187 -> 0.6297614242 | G14: ='Ut 1.2 p3'!$G$50 -> 4.63000064 | H14: =Calculations!G210 -> 9.40637 | I14: =M14/E14 -> 5.099930522 | K14: 8693808.895 | L14: =D14*I13 -> 0 | M14: 27416446.2
A15: 5. | B15: ='Monthly Inputs'!K3 -> Jun24 | C15: ='Monthly Inputs'!K22 -> 2681730 | D15: =-'Monthly Inputs'!K30 -> 0 | E15: 8057577 | F15: =Calculations!H187 -> 0.6779306441 | G15: ='Ut 1.2 p3'!$G$50 -> 4.63000064 | H15: =Calculations!H210 -> 6.70608 | I15: 5.166065915 | K15: 14209527.7 | L15: 0 | M15: 41625973.9
A16: 6. | B16: ='Monthly Inputs'!L3 -> Jul24 | C16: ='Monthly Inputs'!L22 -> 2771120 | D16: =-'Monthly Inputs'!L30 -> 0 | E16: =E15+C16+D16 -> 10828697 | F16: =Calculations!I187 -> 0.7375787572 | G16: ='Ut 1.2 p3'!$G$50 -> 4.63000064 | H16: =Calculations!I210 -> 4.81653 | I16: =M16/E16 -> 5.04141039 | K16: 12965931.67 | L16: 0 | M16: 54591905.56
A17: 7. | B17: ='Monthly Inputs'!M3 -> Aug24 | C17: ='Monthly Inputs'!M22 -> 2254537 | D17: =-'Monthly Inputs'!M30 -> 0 | E17: 13083234 | F17: =Calculations!J187 -> 0.8179122127 | G17: ='Ut 1.2 p3'!$G$50 -> 4.63000064 | H17: =Calculations!J210 -> 4.30322 | I17: =M17/E17 -> 4.960261517 | K17: 10304356.57 | L17: 0 | M17: 64896262.13
A18: 8. | B18: ='Monthly Inputs'!N3 -> Sep24 | C18: ='Monthly Inputs'!N22 -> 2811230 | D18: =-'Monthly Inputs'!N30 -> 0 | E18: 15894464 | F18: =Calculations!K187 -> 0.6517066467 | G18: ='Ut 1.2 p3'!$G$50 -> 4.63000064 | H18: =Calculations!K210 -> 4.44146 | I18: 4.890234268 | K18: 12831390.39 | L18: =D18*I17 -> 0 | M18: 77727652.52
A19: 9. | B19: ='Monthly Inputs'!O3 -> Oct24 | C19: ='Monthly Inputs'!O22 -> 2629615 | D19: =-'Monthly Inputs'!O30 -> 0 | E19: 18524079 | F19: =Calculations!L187 -> 0.3827655022 | G19: ='Ut 1.2 p3'!$G$50 -> 4.63000064 | H19: =Calculations!L210 -> 4.69907 | I19: 4.859344283 | K19: 12287224.86 | L19: 0 | M19: =M18+L19+K19 -> 90014877.38
A20: 10. | B20: ='Monthly Inputs'!P3 -> Nov24 | C20: ='Monthly Inputs'!P22 -> 427386 | D20: =-'Monthly Inputs'!P30 -> -5290045 | E20: 13661420 | F20: =Calculations!M187 -> 0.5344269868 | G20: ='Ut 1.2 p3'!$G$50 -> 4.63000064 | H20: =Calculations!M210 -> 4.72919 | I20: 4.853614159 | K20: 1998534.092 | L20: -25706149.93 | M20: =M19+L20+K20 -> 66307261.55
A21: 11. | B21: ='Monthly Inputs'!Q3 -> Dec24 | C21: ='Monthly Inputs'!Q22 -> 95898 | D21: =-'Monthly Inputs'!Q30 -> -4113120 | E21: 9644198 | F21: =Calculations!N187 -> 0.2785633009 | G21: ='Ut 1.2 p3'!$G$50 -> 4.63000064 | H21: =Calculations!N210 -> 4.40851 | I21: 4.849801735 | K21: 428684.1184 | L21: -19963497.47 | M21: =M20+L21+K21 -> 46772448.19
A22: 12. | B22: ='Monthly Inputs'!R3 -> Jan25 | C22: ='Monthly Inputs'!R22 -> 0 | D22: =-'Monthly Inputs'!R30 -> -4745668 | E22: 4898530 | F22: =Calculations!O187 -> 0.2563278683 | G22: ='Ut 1.2 p3'!$G$50 -> 4.63000064 | H22: =Calculations!O210 -> 4.31272 | I22: 4.849801735 | K22: 0 | L22: -23015548.9 | M22: =M21+L22+K22 -> 23756899.29
M25: Inj./With. Adj.
A26: 14. | B26: Total | C26: =SUM(C11:C22) -> 16116276 | D26: =SUM(D11:D22) -> -16176345 | K26: =SUM(K11:K22) -> 82179359.18 | L26: =SUM(L11:L22) -> -76018720.97 | M26: =L26+K26 -> 6160638.209
A27: 15. | B27: Average $ /Dth | K27: =K26/C26 -> 5.099153128 | L27: =L26/D26 -> 4.699375599
A31: ___________________________________________________________________

Sheet LNG Storage
A1: Storage Injection / Withdrawal LNG adjustment
C3: (A) | D3: (B) | E3: (C) | F3: (D) | G3: (E) | H3: (F) | I3: (G) | K3: (H) | L3: (I) | M3: (J)
G4: Injections | I4: (J) / (C)
E5: Storage | G5: ------------------------------------------------------------- | I5: Storage | M5: Storage
C6: Injection Dth | D6: Withdrawal Dth | E6: Inventory Dth | F6: % that is | G6: Co. Prod. | H6: Purchased | I6: Inventory | M6: Inventory
A7: Line | B7: Month | C7: Per IRPs | D7: Per IRPs | E7: Balance | F7: Co. Prod. (1) | G7: $/Dth (2) | H7: $/Dth (3) | I7: Average $/Dth | K7: Injection (4) | L7: Withdrawal (5) | M7: Balance
B8: =+Expenses!P3 -> 2023-11-30 | E8: =-'Other Inputs'!D266 -> 1012398 | I8: =IFERROR(M8/E8,0) -> 5.516524618 | M8: ='Other Inputs'!E266 -> 5584918.49
B9: ='Monthly Inputs'!E3 -> Dec23 | C9: ='Monthly Inputs'!E$33 -> 0 | D9: =-'Monthly Inputs'!$E$34 -> 0 | E9: =E8+C9+D9 -> 1012398 | F9: =F21 -> 0.2785633009 | G9: ='Other Inputs'!F121 -> 4.54359 | H9: ='Monthly Inputs'!E73 -> 7.68 | I9: =IFERROR(M9/E9,0) -> 5.516524618 | K9: =(+F9*C9*G9)+((1-F9)*C9*H9) -> 0 | L9: =D9*I8 -> 0 | M9: =M8+L9+K9 -> 5584918.49
B10: ='Monthly Inputs'!F3 -> Jan24 | C10: ='Monthly Inputs'!F$33 -> 0 | D10: =-'Monthly Inputs'!$F$34 -> 0 | E10: =E9+C10+D10 -> 1012398 | F10: =F22 -> 0.2563278683 | G10: =G9 -> 4.54359 | H10: ='Monthly Inputs'!F73 -> 7.56 | I10: =IFERROR(M10/E10,0) -> 5.516524618 | K10: =(+F10*C10*G10)+((1-F10)*C10*H10) -> 0 | L10: =D10*I9 -> 0 | M10: =M9+L10+K10 -> 5584918.49
A11: 1. | B11: ='Monthly Inputs'!G3 -> Feb24 | C11: ='Monthly Inputs'!G$33 -> 0 | D11: =-'Monthly Inputs'!$G$34 -> -19575 | E11: =E10+C11+D11 -> 992823 | F11: =Calculations!D187 -> 0.2787636441 | G11: ='Ut 1.2 p3'!$G$50 -> 4.63000064 | H11: =Calculations!D210 -> 8.44042 | I11: 5.516524618 | K11: 0 | L11: =D11*I10 -> -107985.9694 | M11: =M10+L11+K11 -> 5476932.521
A12: 2. | B12: ='Monthly Inputs'!H3 -> Mar24 | C12: ='Monthly Inputs'!H$33 -> 0 | D12: =-'Monthly Inputs'!$H$34 -> -20894 | E12: =E11+C12+D12 -> 971929 | F12: =Calculations!E187 -> 0.3332735664 | G12: ='Ut 1.2 p3'!$G$50 -> 4.63000064 | H12: =Calculations!E210 -> 9.67697 | I12: 5.516524618 | K12: 0 | L12: =D12*I11 -> -115262.2654 | M12: =M11+L12+K12 -> 5361670.255
A13: 3. | B13: ='Monthly Inputs'!I3 -> Apr24 | C13: ='Monthly Inputs'!I$33 -> 0 | D13: =-'Monthly Inputs'!$I$34 -> -20220 | E13: =E12+C13+D13 -> 951709 | F13: =Calculations!F187 -> 0.4640512768 | G13: ='Ut 1.2 p3'!$G$50 -> 4.63000064 | H13: =Calculations!F210 -> 10.31845 | I13: 5.516524618 | K13: =(+F13*C13*G13)+((1-F13)*C13*H13) -> 0 | L13: =D13*I12 -> -111544.1278 | M13: =M12+L13+K13 -> 5250126.127
A14: 4. | B14: ='Monthly Inputs'!J3 -> May24 | C14: ='Monthly Inputs'!J$33 -> 0 | D14: =-'Monthly Inputs'!$J$34 -> -20894 | E14: 930815 | F14: =Calculations!G187 -> 0.6297614242 | G14: ='Ut 1.2 p3'!$G$50 -> 4.63000064 | H14: =Calculations!G210 -> 9.40637 | I14: 5.516524618 | K14: 0 | L14: =D14*I13 -> -115262.2654 | M14: 5134863.862
A15: 5. | B15: ='Monthly Inputs'!K3 -> Jun24 | C15: ='Monthly Inputs'!K$33 -> 0 | D15: =-'Monthly Inputs'!$K$34 -> -20220 | E15: 910595 | F15: =Calculations!H187 -> 0.6779306441 | G15: ='Ut 1.2 p3'!$G$50 -> 4.63000064 | H15: =Calculations!H210 -> 6.70608 | I15: 5.516524618 | K15: 0 | L15: -111544.1278 | M15: 5023319.734
A16: 6. | B16: ='Monthly Inputs'!L3 -> Jul24 | C16: ='Monthly Inputs'!L$33 -> 0 | D16: =-'Monthly Inputs'!$L$34 -> -20894 | E16: =E15+C16+D16 -> 889701 | F16: =Calculations!I187 -> 0.7375787572 | G16: ='Ut 1.2 p3'!$G$50 -> 4.63000064 | H16: =Calculations!I210 -> 4.81653 | I16: 5.516524618 | K16: 0 | L16: -115262.2654 | M16: 4908057.469
A17: 7. | B17: ='Monthly Inputs'!M3 -> Aug24 | C17: ='Monthly Inputs'!M$33 -> 0 | D17: =-'Monthly Inputs'!$M$34 -> -20894 | E17: 868807 | F17: =Calculations!J187 -> 0.8179122127 | G17: ='Ut 1.2 p3'!$G$50 -> 4.63000064 | H17: =Calculations!J210 -> 4.30322 | I17: 5.516524618 | K17: 0 | L17: =D17*I16 -> -115262.2654 | M17: 4792795.204
A18: 8. | B18: ='Monthly Inputs'!N3 -> Sep24 | C18: ='Monthly Inputs'!N$33 -> 9000 | D18: =-'Monthly Inputs'!$N$34 -> -20220 | E18: 857587 | F18: =Calculations!K187 -> 0.6517066467 | G18: ='Ut 1.2 p3'!$G$50 -> 4.63000064 | H18: =Calculations!K210 -> 4.44146 | I18: 5.506531786 | K18: 41078.9987 | L18: =D18*I17 -> -111544.1278 | M18: 4722330.075
A19: 9. | B19: ='Monthly Inputs'!O3 -> Oct24 | C19: ='Monthly Inputs'!O$33 -> 227680 | D19: =-'Monthly Inputs'!$O$34 -> -20894 | E19: 1064373 | F19: =Calculations!L187 -> 0.3827655022 | G19: ='Ut 1.2 p3'!$G$50 -> 4.63000064 | H19: =Calculations!L210 -> 4.69907 | I19: 5.32815244 | K19: 1063864.998 | L19: -115053.4751 | M19: =M18+L19+K19 -> 5671141.597
A20: 10. | B20: ='Monthly Inputs'!P3 -> Nov24 | C20: ='Monthly Inputs'!P$33 -> 10125 | D20: =-'Monthly Inputs'!$P$34 -> -20250 | E20: 1054248 | F20: =Calculations!M187 -> 0.5344269868 | G20: ='Ut 1.2 p3'!$G$50 -> 4.63000064 | H20: =Calculations!M210 -> 4.72919 | I20: 5.3218909 | K20: 47346.32786 | L20: -107895.0869 | M20: =M19+L20+K20 -> 5610592.838
A21: 11. | B21: ='Monthly Inputs'!Q3 -> Dec24 | C21: ='Monthly Inputs'!Q$33 -> 0 | D21: =-'Monthly Inputs'!$Q$34 -> -20925 | E21: 1033323 | F21: =Calculations!N187 -> 0.2785633009 | G21: ='Ut 1.2 p3'!$G$50 -> 4.63000064 | H21: =Calculations!N210 -> 4.40851 | I21: 5.3218909 | K21: 0 | L21: -111360.5671 | M21: =M20+L21+K21 -> 5499232.271
A22: 12. | B22: ='Monthly Inputs'!R3 -> Jan25 | C22: ='Monthly Inputs'!R$33 -> 0 | D22: =-'Monthly Inputs'!$R$34 -> -20925 | E22: 1012398 | F22: =Calculations!O187 -> 0.2563278683 | G22: ='Ut 1.2 p3'!$G$50 -> 4.63000064 | H22: =Calculations!O210 -> 4.31272 | I22: 5.3218909 | K22: 0 | L22: -111360.5671 | M22: =M21+L22+K22 -> 5387871.704
M25: Inj./With. Adj.
A26: 14. | B26: Total | C26: =SUM(C11:C22) -> 246805 | D26: =SUM(D11:D22) -> -246805 | K26: =SUM(K11:K22) -> 1152290.324 | L26: =SUM(L11:L22) -> -1349337.11 | M26: =L26+K26 -> -197046.7862
A27: 15. | B27: Average $ /Dth | K27: =K26/C26 -> 4.66882893 | L27: =IFERROR(L26/D26,0) -> 5.467219507
A31: ___________________________________________________________________

Sheet WEXPRO Royalty Detail
A1: MLPX Gathered | B1: 8823036 | C1: Adjusted test year-> | D1: -0.01226104223 | E1: 8714856.383 | H1: MLPX Gathered | I1: 7506496 | J1: Adjusted test year-> | K1: 0.1505785577 | L1: 8636813.341
A2: Birch Creek | B2: 1455044 | C2: Adjusted test year-> | D2: -0.01226104223 | E2: 1437203.644 | H2: Birch Creek | I2: 0
A3: Other | B3: 0 | H3: Other | I3: 476796
A4: Wexpro | B4: 13377982 | H4: Wexpro | I4: 5109249
A5: MLPX-Acquired | B5: 18088934 | H5: MLPX-Acquired | I5: 0
C7: WEXPRO I | J7: WEXPRO II
A8: Input Operator Service Fee > | C8: =+'Monthly Inputs'!S103 -> 180114962.4 | H8: Input Operator Service Fee > | J8: =+'Monthly Inputs'!S105 -> 54305068.81
A11: \/ | C11: 2022-08-31 | J11: =+C11 -> 2022-08-31
A12: \/ | B12: Company | C12: Average Index | D12: Church Buttes | H12: \/ | I12: Company | J12: Average Index | K12: Church Buttes
A13: \/ | B13: Production | C13: Spot Prices | D13: & Canyon Cr | H13: \/ | I13: Production | J13: Spot Prices | K13: & Canyon Cr
A14: January | B14: 3637668.792 | C14: 9.96 | D14: =C14+0.1 -> 10.06 | E14: =B14*D14 -> 36594948.05 | H14: January | I14: 1604873.31 | J14: 9.96 | K14: =J14+0.1 -> 10.06 | L14: =I14*K14 -> 16145025.49
A15: February | B15: 3208435.457 | C15: 8.96 | D15: 9.06 | E15: 29068425.24 | H15: February | I15: 1405522.77 | J15: 8.96 | K15: 9.06 | L15: 12734036.3
A16: March | B16: 3483614.068 | C16: 6.75 | D16: 6.85 | E16: 23862756.37 | H16: March | I16: 1482584.896 | J16: 6.75 | K16: 6.85 | L16: 10155706.54
A17: April | B17: 3312333.997 | C17: 4.86 | D17: 4.96 | E17: 16429176.62 | H17: April | I17: 1396381.179 | J17: 4.86 | K17: 4.96 | L17: 6926050.646
A18: May | B18: 3364720.318 | C18: 4.36 | D18: 4.46 | E18: 15006652.62 | H18: May | I18: 1395650.069 | J18: 4.36 | K18: 4.46 | L18: 6224599.308
A19: June | B19: 3203188.194 | C19: 4.43 | D19: 4.53 | E19: 14510442.52 | H19: June | I19: 1318926.861 | J19: 4.43 | K19: 4.53 | L19: 5974738.682
A20: July | B20: 3348338.543 | C20: 4.68 | D20: 4.78 | E20: 16005058.24 | H20: July | I20: 1323770.523 | J20: 4.68 | K20: 4.78 | L20: 6327623.101
A21: August | B21: 3489884.148 | C21: 4.71 | D21: 4.81 | E21: 16786342.75 | H21: August | I21: 1294059.026 | J21: 4.71 | K21: 4.81 | L21: =I21*K21 -> 6224423.913
A22: September | B22: 3315189.947 | C22: 4.39 | D22: 4.49 | E22: 14885202.86 | H22: September | I22: 1250191.988 | J22: 4.39 | K22: 4.49 | L22: =I22*K22 -> 5613362.026
A23: October | B23: 3357249.339 | C23: 4.3 | D23: 4.4 | E23: 14771897.09 | H23: October | I23: 1260935.002 | J23: 4.3 | K23: 4.4 | L23: =I23*K23 -> 5548114.01
A24: November | B24: 3769367.893 | C24: 8.36 | D24: 8.46 | E24: 31888852.37 | H24: November | I24: 1782012.617 | J24: 8.36 | K24: =J24+0.1 -> 8.46 | L24: =I24*K24 -> 15075826.74
A25: December | B25: 3743168.145 | C25: 9.56 | D25: 9.66 | E25: 36159004.28 | H25: December | I25: 1696284.865 | J25: 9.56 | K25: =J25+0.1 -> 9.66 | L25: =I25*K25 -> 16386111.8
B27: =SUM(B14:B25) -> 41233158.84 | C27: CANYON CREEK | D27: =E27/B27 -> 6.450360983 | E27: =SUM(E14:E25) -> 265968759 | I27: =SUM(I14:I25) -> 17211193.11 | J27: CANYON CREEK | K27: =L27/I27 -> 6.584994884 | L27: =SUM(L14:L25) -> 113335618.6
C28: CHURCH BUTTES | J28: CHURCH BUTTES
C29: All Others -> | D29: =D27-0.2 -> 6.250360983 | J29: All Others -> | K29: =K27-0.2 -> 6.384994884

Sheet Expenses
P1: Historical
P2: 12 Months Ending
A3: FERC Acct | B3: Description | D3: 2022-12-31 | E3: 2023-01-31 | F3: 2023-02-28 | G3: 2023-03-31 | H3: 2023-04-30 | I3: 2023-05-31 | J3: 2023-06-30 | K3: 2023-07-31 | L3: 2023-08-31 | M3: 2023-09-30 | N3: 2023-10-31 | O3: 2023-11-30 | P3: =+O3 -> 2023-11-30
A5: OTHER UTILITY OPERATING EXPENSES
A7: Depreciation, Amortization, & Other Taxes
A8: 403 | B8: Depreciation Expense | C8: Production | O8: 611443 | P8: =O8 -> 611443
A10: 404 | B10: Amortization and Depletion | C10: Production | D10: 0 | E10: 0 | F10: 0 | G10: 0 | H10: 0 | I10: 0 | J10: 0 | K10: 0 | L10: 0 | M10: 0 | N10: 0 | O10: 0 | P10: 0
A13: 483 | B13: Sales for Resale | D13: 111701.27 | E13: 116652.96 | F13: 44862.85 | G13: 97483.61 | H13: -30997.77 | I13: 4411.07 | J13: 7672.14 | K13: -5189.67 | L13: 135039.94 | M13: 37244.56 | N13: -3237.05 | O13: -2371.98 | P13: =SUM(D13:O13) -> 513271.93
A14: 490 | B14: Incidental Plant Prod Sales | D14: 658047.02 | E14: 633862 | F14: 503598.14 | G14: 642145.09 | H14: 648533.82 | I14: 599054.32 | J14: 716804.16 | K14: 578173.08 | L14: 602314.92 | M14: 568496.17 | N14: 505419.85 | O14: 576647.08 | P14: 7233095.65
A15: 492 | B15: Incidental Gasoline_Oil Sales | D15: 270050.02 | E15: 248608.48 | F15: 186001.41 | G15: 264910.51 | H15: 132739.77 | I15: 245876.23 | J15: 176439.24 | K15: 199727.27 | L15: 209628.43 | M15: 212679.17 | N15: 265233.67 | O15: 154150.88 | P15: 2566045.08
A16: 4951 | B16: Overriding Royalty Revenue from Celsius | D16: 1322085.7 | E16: 853324.77 | F16: 1893848.46 | G16: 2030905.18 | H16: 5474406.2 | I16: 1611880.84 | J16: 838353.67 | K16: 640468.23 | L16: 547873.44 | M16: 462065.74 | N16: 647057.14 | O16: 713964.83 | P16: 17036234.2
A17: 4952 | B17: Oil Revenue Received from Wexpro | D17: 134071 | E17: 192539 | F17: 135933 | G17: 153877 | H17: 113785 | I17: 127491 | J17: 110418 | K17: 159998 | L17: 149727 | M17: 245223 | N17: 157152 | O17: 181601 | P17: 1861815
A18: 758001 | B18: Gas Well Royalities - Other | D18: 0 | E18: 0 | F18: 0 | G18: 0 | H18: 0 | I18: 0 | J18: 0 | K18: 0 | L18: 0 | M18: 0 | N18: 0 | O18: 0 | P18: 0
A21: Other Operating Revenues
A22: 491 | B22: Revenue fr Natural Gas Processed by Others | D22: 0 | E22: 0 | F22: 0 | G22: 0 | H22: 0 | I22: 0 | J22: 0 | K22: 0 | L22: 0 | M22: 0 | N22: 0 | O22: 0 | P22: 0
B24: * LNG Electric Costs | D24: 107454.19 | E24: 211035.38 | F24: 267249.87 | G24: 0 | H24: 180466.44 | I24: -149991.85 | J24: 119755.08 | K24: 0 | L24: 257540.84 | M24: 249991.31 | N24: 816629.16 | O24: 299562.16 | P24: =SUM(D24:O24) -> 2359692.58
O25: *
C28: * | D28: Estimated electric costs, November invoiced hasn't been received

Sheet Rate Base
Q1: Historical
Q2: 13-Month Avg
Q3: Period Ended
A4: FERC Acct | B4: Description | D4: 2022-11-30 | E4: 2022-12-31 | F4: 2023-01-31 | G4: 2023-02-28 | H4: 2023-03-31 | I4: 2023-04-30 | J4: 2023-05-31 | K4: 2023-06-30 | L4: 2023-07-31 | M4: 2023-08-31 | N4: 2023-09-30 | O4: 2023-10-31 | P4: 2023-11-30 | Q4: =+P4 -> 2023-11-30
A5: 101 | B5: Gas Plant in Service | C5: Production | D5: 79968136 | E5: 79968136 | F5: 79968136 | G5: 79968136 | H5: 79968136 | I5: 79968136 | J5: 79968136 | K5: 79968136 | L5: 79968136 | M5: 79968136 | N5: 79968136 | O5: 79968136 | P5: 79968136 | Q5: =((D5/2)+SUM(E5:O5)+(P5/2))/12 -> 79968136
A7: 108 | B7: Accum Prov for Depreciation of Gas Plant in Service | C7: Production | D7: -72525283 | E7: -72654580 | F7: -72717773 | G7: -72717773 | H7: -72717773 | I7: -72717773 | J7: -72885178 | K7: -72927865 | L7: -72970552 | M7: -73053003 | N7: -73093850 | O7: -73136726 | P7: -73136726 | Q7: =((D7/2)+SUM(E7:O7)+(P7/2))/12 -> -72868654.21
A9: 111 | B9: Accum Prov for Amortization of Gas Plant in Service | C9: Production | D9: -6150277 | E9: -6150277 | F9: -6150227 | G9: -6150227 | H9: -6150277 | I9: -6150277 | J9: -6150277 | K9: -6150277 | L9: -6150277 | M9: -6150277 | N9: -6150277 | O9: -6150277 | P9: -6150277 | Q9: =((D9/2)+SUM(E9:O9)+(P9/2))/12 -> -6150268.667
A11: 1641 | B11: Gas Stored Underground | C11: Production | D11: 54725203.51 | E11: 48124018.51 | F11: 38171290.14 | G11: 25855834.76 | H11: 15888859.86 | I11: 7968756.59 | J11: 12876982.57 | K11: 19959087.44 | L11: 29582847.76 | M11: 35365075.83 | N11: 41333952.83 | O11: 47096570.81 | P11: 46172201.98 | Q11: =((D11/2)+SUM(E11:O11)+(P11/2))/12 -> 31055998.32
A12: 1641 | B12: LNG Stored* | C12: Production | D12: 128654.34 | E12: 1512116.55 | F12: 2734947.77 | G12: 2488759.29 | H12: 2390666.52 | I12: 2523294.88 | J12: 2424454.43 | K12: 2392122.95 | L12: 2746647.6 | M12: 3151056.46 | N12: 4014423.46 | O12: 4696793.74 | P12: 5584918.49 | Q12: =((D12/2)+SUM(E12:O12)+(P12/2))/12 -> 2827672.505
A14: 255 | B14: Deferred Investment Tax Credits | C14: Production | D14: 0 | E14: 0 | F14: 0 | G14: 0 | H14: 0 | I14: 0 | J14: 0 | K14: 0 | L14: 0 | M14: 0 | N14: 0 | O14: 0 | P14: 0 | Q14: =((D14/2)+SUM(E14:O14)+(P14/2))/12 -> 0
A16: 282000 | B16: Accum Deferred Income Taxes - Federal | C16: Production | D16: -38356978 | E16: -43428098 | F16: -44252449 | G16: -44252449 | H16: -44252449 | I16: -44252449 | J16: -44335337 | K16: -45257455 | L16: -46173674 | M16: -48802819 | N16: -49825934 | O16: -50797293 | P16: -52128010 | Q16: =((D16/2)+SUM(E16:O16)+(P16/2))/12 -> -45906075
A18: 282100 | B18: Accum Deferred Income Taxes - State | C18: Production | D18: -700755 | E18: -700755 | F18: -700755 | G18: -700755 | H18: -700755 | I18: -700755 | J18: -700755 | K18: -700755 | L18: -700755 | M18: -700755 | N18: -700755 | O18: -700755 | P18: -700755 | Q18: =((D18/2)+SUM(E18:O18)+(P18/2))/12 -> -700755
A20: RATE BASE (W/O Working Cap. Cash) | C20: Production | D20: =+D5+D7+D9+D11+D14+D16+D18+D12 -> 17088700.85 | E20: 6670561.06 | F20: -2946830.09 | G20: -15508473.95 | H20: -25573591.62 | I20: -33361066.53 | J20: =+J5+J7+J9+J11+J14+J16+J18+J12 -> -28801974 | K20: -22717005.61 | L20: -13697626.64 | M20: -10222585.71 | N20: -4454303.71 | O20: 976449.55 | P20: -390511.53 | Q20: =((D20/2)+SUM(E20:O20)+(P20/2))/12 -> -11773946.05
A22: 1641 | B22: Gas Stored Underground (DTH) | C22: Total (DTH) | D22: -11445057 | E22: -8822146 | F22: -5593880 | G22: -3234343 | H22: -1777618 | I22: -1145186 | J22: -3439633 | K22: -5884102 | L22: -8266923 | M22: -10439206 | N22: -12173420 | O22: -13693049 | P22: -13225135 | Q22: =((D22/2)+SUM(E22:O22)+(P22/2))/12 -> -7233716.833
A23: 1641 | B23: LNG Stored (DTH) | C23: Total (DTH) | D23: -18765 | E23: -107314 | F23: -168002 | G23: -143787 | H23: -130324 | I23: -153099 | J23: =-'LNG Storage'!$E$18 -> -857587 | K23: -117078 | L23: -216200 | M23: -358101 | N23: -620608 | O23: -793155 | P23: -1012398 | Q23: =((D23/2)+SUM(E23:O23)+(P23/2))/12 -> -348403.0417

Sheet RevRun Fcst
D3: TEMPERATURE ADJUSTED INPUT DATA FROM REVRUN SYSTEM
D4: 12/5/23
T7: 12-Month
B8: Rate Class | D8: Description | H8: Feb24 | I8: Mar24 | J8: Apr24 | K8: May24 | L8: Jun24 | M8: Jul24 | N8: Aug24 | O8: Sep24 | P8: Oct24 | Q8: Nov24 | R8: Dec24 | S8: Jan25 | T8: Jan25
B10: UTILITY OPERATING REVENUE
B11: TARIFF DTH SALES AND REVENUE
A13: 13 | B13: Utah | G13: 1 | H13: 2 | I13: 3 | J13: 4 | K13: 5 | L13: 6 | M13: 7 | N13: 8 | O13: 9 | P13: 10 | Q13: 11 | R13: 12 | S13: 1
A14: 14 | C14: GS | D14: Distribution Non-Gas Rev | G14: 2 | H14: 60101984.86 | I14: 49223486.36 | J14: 31295120.2 | K14: 22184337.13 | L14: 16018309.9 | M14: 14966239.97 | N14: 14676790.96 | O14: 15679374.91 | P14: 26596891.25 | Q14: 47469068.9 | R14: 67732844.57 | S14: 72343851.94 | T14: 438288301
A15: 15 | G15: 3
A16: 16 | D16: Supplier Non-Gas Revenue | G16: 4 | H16: 16190945.6 | I16: 12659970.51 | J16: 3664488.215 | K16: 2167918.081 | L16: 1170823.936 | M16: 1001507.152 | N16: 954358.7333 | O16: 1111661.509 | P16: 2880469.768 | Q16: 12064610.36 | R16: 18643852.55 | S16: 20161117.54 | T16: 92671723.96
A17: 17 | G17: 5
A18: 18 | D18: Commodity Revenue | G18: 6 | H18: 146191002.8 | I18: 114309184.3 | J18: 78661862.62 | K18: 46536505.03 | L18: 25132893.39 | M18: 21498341.22 | N18: 20486253.78 | O18: 23862913.4 | P18: 61832131.5 | Q18: 108933568.9 | R18: 168338747.4 | S18: 182038409.9 | T18: 997821814.2
A19: 19 | D19: Total Revenue | G19: 7 | H19: 222483933.3 | I19: 176192641.2 | J19: 113621471 | K19: 70888760.24 | L19: 42322027.23 | M19: 37466088.34 | N19: 36117403.48 | O19: 40653949.82 | P19: 91309492.52 | Q19: 168467248.1 | R19: 254715444.5 | S19: 274543379.3 | T19: 1528781839
A20: 20 | D20: # of Customers | G20: 8 | H20: 1169849 | I20: 1171930 | J20: 1174018 | K20: 1175195 | L20: 1177284 | M20: 1178040 | N20: 1178805 | O20: 1181379 | P20: 1181284 | Q20: 1184210 | R20: 1187874 | S20: 1191529 | T20: 1179283.083
A21: 21 | D21: Total Dth | G21: 9 | H21: 17100703 | I21: 13371325 | J21: 9201477 | K21: 5443611 | L21: 2939922 | M21: 2514770 | N21: 2396381 | O21: 2791366 | P21: 7232818 | Q21: 12742512 | R21: 19691437 | S21: 21293956 | T21: 116720278
A22: 22 | G22: 10
A23: 23 | C23: GS-C | D23: Distribution Non-Gas Rev | G23: 11 | T23: 0
A24: 24 | G24: 12
A25: 25 | D25: Supplier Non-Gas Revenue | G25: 13 | T25: 0
A26: 26 | G26: 14
A27: 27 | D27: Commodity Revenue | G27: 15 | T27: 0
A28: 28 | D28: Total Revenue | G28: 16 | T28: 0
A29: 29 | D29: # of Customers | G29: 17
A30: 30 | D30: Total Dth | G30: 18 | T30: 0
A31: 31 | G31: 19
A32: 32 | C32: GSS | D32: Distribution Non-Gas Rev | G32: 20 | H32: 0 | I32: 0 | J32: 0 | K32: 0 | L32: 0 | M32: 0 | N32: 0 | O32: 0 | P32: 0 | Q32: 0 | R32: 0 | S32: 0 | T32: 0
A33: 33 | G33: 21 | H33: 0 | I33: 0 | J33: 0 | K33: 0 | L33: 0 | M33: 0 | N33: 0 | O33: 0 | P33: 0 | Q33: 0 | R33: 0 | S33: 0
A34: 34 | D34: Supplier Non-Gas Revenue | G34: 22 | H34: 0 | I34: 0 | J34: 0 | K34: 0 | L34: 0 | M34: 0 | N34: 0 | O34: 0 | P34: 0 | Q34: 0 | R34: 0 | S34: 0 | T34: 0
A35: 35 | G35: 23 | H35: 0 | I35: 0 | J35: 0 | K35: 0 | L35: 0 | M35: 0 | N35: 0 | O35: 0 | P35: 0 | Q35: 0 | R35: 0 | S35: 0
A36: 36 | D36: Commodity Revenue | G36: 24 | H36: 0 | I36: 0 | J36: 0 | K36: 0 | L36: 0 | M36: 0 | N36: 0 | O36: 0 | P36: 0 | Q36: 0 | R36: 0 | S36: 0 | T36: 0
A37: 37 | D37: Total Revenue | G37: 25 | H37: 0 | I37: 0 | J37: 0 | K37: 0 | L37: 0 | M37: 0 | N37: 0 | O37: 0 | P37: 0 | Q37: 0 | R37: 0 | S37: 0 | T37: 0
A38: 38 | D38: # of Customers | G38: 26 | H38: 0 | I38: 0 | J38: 0 | K38: 0 | L38: 0 | M38: 0 | N38: 0 | O38: 0 | P38: 0 | Q38: 0 | R38: 0 | S38: 0 | T38: 0
A39: 39 | D39: Total Dth | G39: 27 | H39: 0 | I39: 0 | J39: 0 | K39: 0 | L39: 0 | M39: 0 | N39: 0 | O39: 0 | P39: 0 | Q39: 0 | R39: 0 | S39: 0 | T39: 0
A40: 40 | G40: 28
A41: 41 | C41: F-S | D41: Distribution Non-Gas Rev | G41: 29 | H41: 487596.7516 | I41: 457157.6338 | J41: 271420.339 | K41: 246872.9372 | L41: 237248.6309 | M41: 221251.7507 | N41: 221160.3956 | O41: 241164.1662 | P41: 342388.0756 | Q41: 353192.5148 | R41: 477469.4411 | S41: 528869.1632 | T41: 4085791.8
A42: 42 | G42: 30
A43: 43 | D43: Supplier Non-Gas Revenue | G43: 31 | H43: 263301.9069 | I43: 244045.9263 | J43: 163038.3563 | K43: 144223.004 | L43: 138968.0976 | M43: 124147.8445 | N43: 128232.485 | O43: 142454.758 | P43: 207310.6895 | Q43: 182030.081 | R43: 256800.8326 | S43: 291042.4985 | T43: 2285596.48
A44: 44 | G44: 32
A45: 45 | D45: Commodity Revenue | G45: 33 | H45: 2412590.961 | I45: 2236151.658 | J45: 1790073.709 | K45: 1583491.232 | L45: 1525795.178 | M45: 1363076.748 | N45: 1407923.91 | O45: 1564076.839 | P45: 2276160.183 | Q45: 1667910.928 | R45: 2353022.713 | S45: 2666773.323 | T45: 22847047.38
A46: 46 | D46: Total Revenue | G46: 34 | H46: 3163489.619 | I46: 2937355.218 | J46: 2224532.404 | K46: 1974587.173 | L46: 1902011.907 | M46: 1708476.343 | N46: 1757316.791 | O46: 1947695.763 | P46: 2825858.948 | Q46: 2203133.524 | R46: 3087292.987 | S46: 3486684.985 | T46: 29218435.66
A47: 47 | D47: # of Customers | G47: 35 | H47: 479 | I47: 479 | J47: 479 | K47: 479 | L47: 479 | M47: 479 | N47: 479 | O47: 479 | P47: 479 | Q47: 479 | R47: 479 | S47: 479 | T47: 479
A48: 48 | D48: Total Dth | G48: 36 | H48: 282213 | I48: 261575 | J48: 209394 | K48: 185229 | L48: 178479 | M48: 159446 | N48: 164693 | O48: 182958 | P48: 266254 | Q48: 195104 | R48: 275246 | S48: 311946 | T48: 2672537
A49: 49 | G49: 37
A50: 50 | C50: F-3 | D50: Distribution Non-Gas Rev | G50: 38 | H50: 0 | I50: 0 | J50: 0 | K50: 0 | L50: 0 | M50: 0 | N50: 0 | O50: 0 | P50: 0 | Q50: 0 | R50: 0 | S50: 0 | T50: 0
A51: 51 | D51: Supplier Non-Gas Revenue | G51: 39
A52: 52 | D52: Supplier Non-Gas Demand Revenue | G52: 40 | H52: 0 | I52: 0 | J52: 0 | K52: 0 | L52: 0 | M52: 0 | N52: 0 | O52: 0 | P52: 0 | Q52: 0 | R52: 0 | S52: 0 | T52: 0
A53: 53 | D53: Commodity Tariff Revenue | G53: 41
A54: 54 | D54: Commodity Demand Revenue | G54: 42 | H54: 0 | I54: 0 | J54: 0 | K54: 0 | L54: 0 | M54: 0 | N54: 0 | O54: 0 | P54: 0 | Q54: 0 | R54: 0 | S54: 0 | T54: 0
A55: 55 | D55: Total Revenue | G55: 43 | H55: 0 | I55: 0 | J55: 0 | K55: 0 | L55: 0 | M55: 0 | N55: 0 | O55: 0 | P55: 0 | Q55: 0 | R55: 0 | S55: 0 | T55: 0
A56: 56 | D56: # of Customers | G56: 44 | H56: 0 | I56: 0 | J56: 0 | K56: 0 | L56: 0 | M56: 0 | N56: 0 | O56: 0 | P56: 0 | Q56: 0 | R56: 0 | S56: 0 | T56: 0
A57: 57 | D57: Total Sales Dth | G57: 45 | H57: 0 | I57: 0 | J57: 0 | K57: 0 | L57: 0 | M57: 0 | N57: 0 | O57: 0 | P57: 0 | Q57: 0 | R57: 0 | S57: 0 | T57: 0
A58: 58 | G58: 46
A59: 59 | C59: NGV | D59: Distribution Non-Gas Rev | G59: 47 | H59: 205387.5523 | I59: 234774.6996 | J59: 229802.2902 | K59: 220533.636 | L59: 284852.479 | M59: 221553.0839 | N59: 216944.7631 | O59: 272421.4556 | P59: 217433.6821 | Q59: 232610.9733 | R59: 194080.0022 | S59: 165452.2396 | T59: 2695846.857
A60: 60 | G60: 48
A61: 61 | D61: Supplier Non-Gas Revenue | G61: 49 | H61: 13908.26592 | I61: 15898.28067 | J61: 15561.56313 | K61: 14933.916 | L61: 19289.40669 | M61: 15002.95014 | N61: 14690.88765 | O61: 18447.61284 | P61: 14723.99586 | Q61: 15751.75923 | R61: 13142.55051 | S61: 11203.95915 | T61: 182555.1478
A62: 62 | G62: 50
A63: 63 | D63: Commodity Revenue | G63: 51 | H63: 158971.975 | I63: 181717.9145 | J63: 177869.2211 | K63: 170695.192 | L63: 220478.6058 | M63: 171484.2547 | N63: 167917.3693 | O63: 210856.8721 | P63: 168295.7973 | Q63: 180043.1693 | R63: 150219.8206 | S63: 128061.6523 | T63: 2086611.844
A64: 64 | D64: Total Revenue | G64: 52 | H64: 378267.7933 | I64: 432390.8948 | J64: 423233.0744 | K64: 406162.744 | L64: 524620.4915 | M64: 408040.2888 | N64: 399553.0201 | O64: 501725.9406 | P64: 400453.4752 | Q64: 428405.9018 | R64: 357442.3733 | S64: 304717.8511 | T64: 4965013.849
A65: 65 | D65: # of Customers | G65: 53 | H65: 1 | I65: 1 | J65: 1 | K65: 1 | L65: 1 | M65: 1 | N65: 1 | O65: 1 | P65: 1 | Q65: 1 | R65: 1 | S65: 1 | T65: 1
A66: 66 | D66: Total Dth | G66: 54 | H66: 19744 | I66: 22569 | J66: 22091 | K66: 21200 | L66: 27383 | M66: 21298 | N66: 20855 | O66: 26188 | P66: 20902 | Q66: 22361 | R66: 18657 | S66: 15905 | T66: 259153
A67: 67 | G67: 55
A68: 68 | C68: F-4 | D68: Distribution Non-Gas Rev | G68: 56 | H68: 0 | I68: 0 | J68: 0 | K68: 0 | L68: 0 | M68: 0 | N68: 0 | O68: 0 | P68: 0 | Q68: 0 | R68: 0 | S68: 0 | T68: 0
A69: 69 | G69: 57
A70: 70 | D70: Supplier Non-Gas Revenue | G70: 58 | H70: 0 | I70: 0 | J70: 0 | K70: 0 | L70: 0 | M70: 0 | N70: 0 | O70: 0 | P70: 0 | Q70: 0 | R70: 0 | S70: 0 | T70: 0
A71: 71 | G71: 59
A72: 72 | D72: Commodity Revenue | G72: 60 | H72: 0 | I72: 0 | J72: 0 | K72: 0 | L72: 0 | M72: 0 | N72: 0 | O72: 0 | P72: 0 | Q72: 0 | R72: 0 | S72: 0 | T72: 0
A73: 73 | D73: Total Revenue | G73: 61 | H73: 0 | I73: 0 | J73: 0 | K73: 0 | L73: 0 | M73: 0 | N73: 0 | O73: 0 | P73: 0 | Q73: 0 | R73: 0 | S73: 0 | T73: 0
A74: 74 | D74: # of Customers | G74: 62 | H74: 0 | I74: 0 | J74: 0 | K74: 0 | L74: 0 | M74: 0 | N74: 0 | O74: 0 | P74: 0 | Q74: 0 | R74: 0 | S74: 0 | T74: 0
A75: 75 | D75: Total Dth | G75: 63 | H75: 0 | I75: 0 | J75: 0 | K75: 0 | L75: 0 | M75: 0 | N75: 0 | O75: 0 | P75: 0 | Q75: 0 | R75: 0 | S75: 0 | T75: 0
A76: 76 | G76: 64
A77: 77 | C77: I-2 | D77: Distribution Non-Gas Rev | G77: 65 | H77: 0 | I77: 0 | J77: 0 | K77: 0 | L77: 0 | M77: 0 | N77: 0 | O77: 0 | P77: 0 | Q77: 0 | R77: 0 | S77: 0 | T77: 0
A78: 78 | G78: 66
A79: 79 | D79: Supplier Non-Gas Revenue | G79: 67 | H79: 0 | I79: 0 | J79: 0 | K79: 0 | L79: 0 | M79: 0 | N79: 0 | O79: 0 | P79: 0 | Q79: 0 | R79: 0 | S79: 0 | T79: 0
A80: 80 | G80: 68
A81: 81 | D81: Commodity Revenue | G81: 69 | H81: 0 | I81: 0 | J81: 0 | K81: 0 | L81: 0 | M81: 0 | N81: 0 | O81: 0 | P81: 0 | Q81: 0 | R81: 0 | S81: 0 | T81: 0
A82: 82 | D82: Total Revenue | G82: 70 | H82: 0 | I82: 0 | J82: 0 | K82: 0 | L82: 0 | M82: 0 | N82: 0 | O82: 0 | P82: 0 | Q82: 0 | R82: 0 | S82: 0 | T82: 0
A83: 83 | D83: # of Customers | G83: 71
A84: 84 | D84: Total Dth | G84: 72 | H84: 0 | I84: 0 | J84: 0 | K84: 0 | L84: 0 | M84: 0 | N84: 0 | O84: 0 | P84: 0 | Q84: 0 | R84: 0 | S84: 0 | T84: 0
A85: 85 | G85: 73
A86: 104 | C86: ISE | D86: Distribution Non-Gas Rev | G86: 74 | H86: 0 | I86: 0 | J86: 0 | K86: 0 | L86: 0 | M86: 0 | N86: 0 | O86: 0 | P86: 0 | Q86: 0 | R86: 0 | S86: 0 | T86: 0
A87: 105 | G87: 75
A88: 106 | D88: Supplier Non-Gas Revenue | G88: 76 | H88: 0 | I88: 0 | J88: 0 | K88: 0 | L88: 0 | M88: 0 | N88: 0 | O88: 0 | P88: 0 | Q88: 0 | R88: 0 | S88: 0 | T88: 0
A89: 107 | G89: 77
A90: 108 | D90: Commodity Revenue | G90: 78 | H90: 0 | I90: 0 | J90: 0 | K90: 0 | L90: 0 | M90: 0 | N90: 0 | O90: 0 | P90: 0 | Q90: 0 | R90: 0 | S90: 0 | T90: 0
A91: 109 | D91: Total Revenue | G91: 79 | H91: 0 | I91: 0 | J91: 0 | K91: 0 | L91: 0 | M91: 0 | N91: 0 | O91: 0 | P91: 0 | Q91: 0 | R91: 0 | S91: 0 | T91: 0
A92: 110 | D92: # of Customers | G92: 80 | H92: 0 | I92: 0 | J92: 0 | K92: 0 | L92: 0 | M92: 0 | N92: 0 | O92: 0 | P92: 0 | Q92: 0 | R92: 0 | S92: 0 | T92: 0
A93: 111 | D93: Total Dth | G93: 81 | H93: 0 | I93: 0 | J93: 0 | K93: 0 | L93: 0 | M93: 0 | N93: 0 | O93: 0 | P93: 0 | Q93: 0 | R93: 0 | S93: 0 | T93: 0
A94: 112 | G94: 82
A95: 86 | C95: IS | D95: Distribution Non-Gas Rev | G95: 83 | H95: 23449.79548 | I95: 23134.10913 | J95: 22961.05331 | K95: 19647.4386 | L95: 15991.13273 | M95: 14723.5678 | N95: 13460.30442 | O95: 15378.65644 | P95: 18613.16334 | Q95: 21982.72349 | R95: 24173.2553 | S95: 25523.35238 | T95: 239038.5524
A96: 87 | G96: 84
A97: 88 | D97: Supplier Non-Gas Revenue | G97: 85 | H97: 5880.25578 | I97: 5624.28052 | J97: 5158.43066 | K97: 3788.14684 | L97: 2668.99502 | M97: 2351.6718 | N97: 2086.01002 | O97: 2489.43564 | P97: 3407.14372 | Q97: 4939.40768 | R97: 6028.60304 | S97: 7316.9102 | T97: 51739.29092
A98: 89 | G98: 86
A99: 90 | D99: Commodity Revenue | G99: 87 | H99: 279707.8162 | I99: 267531.7675 | J99: 245372.5533 | K99: 180191.8692 | L99: 126956.853 | M99: 111862.6482 | N99: 99225.83798 | O99: 118415.7004 | P99: 162068.5843 | Q99: 234954.2243 | R99: 286764.293 | S99: 348045.5698 | T99: 2461097.717
A100: 91 | D100: Total Revenue | G100: 88 | H100: 309037.8675 | I100: 296290.1571 | J100: 273492.0373 | K100: 203627.4546 | L100: 145616.9807 | M100: 128937.8878 | N100: 114772.1524 | O100: 136283.7924 | P100: 184088.8913 | Q100: 261876.3555 | R100: 316966.1513 | S100: 380885.8324 | T100: 2751875.56
A101: 92 | D101: # of Customers | G101: 89 | H101: 18 | I101: 18 | J101: 18 | K101: 18 | L101: 18 | M101: 18 | N101: 18 | O101: 18 | P101: 18 | Q101: 18 | R101: 18 | S101: 18 | T101: 18
A102: 93 | D102: Total Dth | G102: 90 | H102: 32781 | I102: 31354 | J102: 28757 | K102: 21118 | L102: 14879 | M102: 13110 | N102: 11629 | O102: 13878 | P102: 18994 | Q102: 27536 | R102: 33608 | S102: 40790 | T102: 288434
A103: 94 | G103: 91
A104: 95 | C104: IS-2 | D104: Distribution Non-Gas Rev | G104: 92 | H104: 0 | I104: 0 | J104: 0 | K104: 0 | L104: 0 | M104: 0 | N104: 0 | O104: 0 | P104: 0 | Q104: 0 | R104: 0 | S104: 0 | T104: 0
A105: 96 | G105: 93
A106: 97 | D106: Supplier Non-Gas Revenue | G106: 94 | H106: 0 | I106: 0 | J106: 0 | K106: 0 | L106: 0 | M106: 0 | N106: 0 | O106: 0 | P106: 0 | Q106: 0 | R106: 0 | S106: 0 | T106: 0
A107: 98 | G107: 95
A108: 99 | D108: Commodity Revenue | G108: 96 | H108: 0 | I108: 0 | J108: 0 | K108: 0 | L108: 0 | M108: 0 | N108: 0 | O108: 0 | P108: 0 | Q108: 0 | R108: 0 | S108: 0 | T108: 0
A109: 100 | D109: Total Revenue | G109: 97 | H109: 0 | I109: 0 | J109: 0 | K109: 0 | L109: 0 | M109: 0 | N109: 0 | O109: 0 | P109: 0 | Q109: 0 | R109: 0 | S109: 0 | T109: 0
A110: 101 | D110: # of Customers | G110: 98 | H110: 0 | I110: 0 | J110: 0 | K110: 0 | L110: 0 | M110: 0 | N110: 0 | O110: 0 | P110: 0 | Q110: 0 | R110: 0 | S110: 0 | T110: 0
A111: 102 | D111: Total Dth | G111: 99 | H111: 0 | I111: 0 | J111: 0 | K111: 0 | L111: 0 | M111: 0 | N111: 0 | O111: 0 | P111: 0 | Q111: 0 | R111: 0 | S111: 0 | T111: 0
A112: 103 | G112: 100 | H112: 0 | I112: 0 | J112: 0 | K112: 0 | L112: 0 | M112: 0 | N112: 0 | O112: 0 | P112: 0 | Q112: 0 | R112: 0 | S112: 0
A113: 113 | C113: FT-1L | D113: Distribution Non-Gas Rev | G113: 101 | H113: 0 | I113: 0 | J113: 0 | K113: 0 | L113: 0 | M113: 0 | N113: 0 | O113: 0 | P113: 0 | Q113: 0 | R113: 0 | S113: 0 | T113: 0
A114: 114 | G114: 102 | H114: 0 | I114: 0 | J114: 0 | K114: 0 | L114: 0 | M114: 0 | N114: 0 | O114: 0 | P114: 0 | Q114: 0 | R114: 0 | S114: 0
A115: 115 | D115: Supplier Non-Gas Revenue | G115: 103 | H115: 0 | I115: 0 | J115: 0 | K115: 0 | L115: 0 | M115: 0 | N115: 0 | O115: 0 | P115: 0 | Q115: 0 | R115: 0 | S115: 0 | T115: 0
A116: 116 | G116: 104 | H116: 0 | I116: 0 | J116: 0 | K116: 0 | L116: 0 | M116: 0 | N116: 0 | O116: 0 | P116: 0 | Q116: 0 | R116: 0 | S116: 0
A117: 117 | D117: Commodity Revenue | G117: 105 | H117: 0 | I117: 0 | J117: 0 | K117: 0 | L117: 0 | M117: 0 | N117: 0 | O117: 0 | P117: 0 | Q117: 0 | R117: 0 | S117: 0 | T117: 0
A118: 118 | D118: Total Revenue | G118: 106 | H118: 0 | I118: 0 | J118: 0 | K118: 0 | L118: 0 | M118: 0 | N118: 0 | O118: 0 | P118: 0 | Q118: 0 | R118: 0 | S118: 0 | T118: 0
A119: 119 | D119: # of Customers | G119: 107 | H119: 0 | I119: 0 | J119: 0 | K119: 0 | L119: 0 | M119: 0 | N119: 0 | O119: 0 | P119: 0 | Q119: 0 | R119: 0 | S119: 0 | T119: 0
A120: 120 | D120: Total Dth | G120: 108 | H120: 0 | I120: 0 | J120: 0 | K120: 0 | L120: 0 | M120: 0 | N120: 0 | O120: 0 | P120: 0 | Q120: 0 | R120: 0 | S120: 0 | T120: 0
A121: 121 | G121: 109
A122: 122 | C122: FT-1 | D122: Distribution Non-Gas Rev | G122: 110 | H122: 458780.4119 | I122: 482032.4168 | J122: 464463.2569 | K122: 465327.2993 | L122: 530866.835 | M122: 615106.8578 | N122: 611036.3732 | O122: 503500.1799 | P122: 494564.3611 | Q122: 483162.3025 | R122: 525336.8651 | S122: 482705.6836 | T122: 6116882.843
A123: 123 | G123: 111
A124: 124 | D124: Supplier Non-Gas Revenue | G124: 112 | H124: 7723.82125 | I124: 7723.82125 | J124: 7723.82125 | K124: 7723.82125 | L124: 7723.82125 | M124: 7723.82125 | N124: 7723.82125 | O124: 7723.82125 | P124: 7723.82125 | Q124: 7723.82125 | R124: 7723.82125 | S124: 7723.82125 | T124: 92685.855
A125: 125 | G125: 113
A126: 126 | D126: Commodity Revenue | G126: 114 | H126: 0 | I126: 0 | J126: 0 | K126: 0 | L126: 0 | M126: 0 | N126: 0 | O126: 0 | P126: 0 | Q126: 0 | R126: 0 | S126: 0 | T126: 0
A127: 127 | D127: Total Revenue | G127: 115 | H127: 466504.2332 | I127: 489756.2381 | J127: 472187.0781 | K127: 473051.1206 | L127: 538590.6562 | M127: 622830.6791 | N127: 618760.1944 | O127: 511224.0011 | P127: 502288.1823 | Q127: 490886.1237 | R127: 533060.6864 | S127: 490429.5049 | T127: 6209568.698
A128: 128 | D128: # of Customers | G128: 116 | H128: 11 | I128: 11 | J128: 11 | K128: 11 | L128: 11 | M128: 11 | N128: 11 | O128: 11 | P128: 11 | Q128: 11 | R128: 11 | S128: 11 | T128: 11
A129: 129 | D129: Total Dth | G129: 117 | H129: 704319 | I129: 764178 | J129: 720082 | K129: 708789 | L129: 865156 | M129: 1082568 | N129: 1069808 | O129: 787577 | P129: 760770 | Q129: 747922 | R129: 843858 | S129: 762187 | T129: 9817214
A130: 130 | G130: 118
A131: 131 | C131: FT-2 | D131: Distribution Non-Gas Rev | G131: 119 | H131: 0 | I131: 0 | J131: 0 | K131: 0 | L131: 0 | M131: 0 | N131: 0 | O131: 0 | P131: 0 | Q131: 0 | R131: 0 | S131: 0 | T131: 0
A132: 132 | G132: 120 | H132: 0 | I132: 0 | J132: 0 | K132: 0 | L132: 0 | M132: 0 | N132: 0 | O132: 0 | P132: 0 | Q132: 0 | R132: 0 | S132: 0
A133: 133 | D133: Supplier Non-Gas Revenue | G133: 121 | H133: 0 | I133: 0 | J133: 0 | K133: 0 | L133: 0 | M133: 0 | N133: 0 | O133: 0 | P133: 0 | Q133: 0 | R133: 0 | S133: 0 | T133: 0
A134: 134 | G134: 122 | H134: 0 | I134: 0 | J134: 0 | K134: 0 | L134: 0 | M134: 0 | N134: 0 | O134: 0 | P134: 0 | Q134: 0 | R134: 0 | S134: 0
A135: 135 | D135: Commodity Revenue | G135: 123 | H135: 0 | I135: 0 | J135: 0 | K135: 0 | L135: 0 | M135: 0 | N135: 0 | O135: 0 | P135: 0 | Q135: 0 | R135: 0 | S135: 0 | T135: 0
A136: 136 | D136: Total Revenue | G136: 124 | H136: 0 | I136: 0 | J136: 0 | K136: 0 | L136: 0 | M136: 0 | N136: 0 | O136: 0 | P136: 0 | Q136: 0 | R136: 0 | S136: 0 | T136: 0
A137: 137 | D137: # of Customers | G137: 125 | H137: 0 | I137: 0 | J137: 0 | K137: 0 | L137: 0 | M137: 0 | N137: 0 | O137: 0 | P137: 0 | Q137: 0 | R137: 0 | S137: 0 | T137: 0
A138: 138 | D138: Total Dth | G138: 126 | H138: 0 | I138: 0 | J138: 0 | K138: 0 | L138: 0 | M138: 0 | N138: 0 | O138: 0 | P138: 0 | Q138: 0 | R138: 0 | S138: 0 | T138: 0
A139: 139 | G139: 127
A140: 140 | C140: MT | D140: Distribution Non-Gas Rev | G140: 128 | H140: 3911.19644 | I140: 2971.25484 | J140: 1808.07711 | K140: 1248.6311 | L140: 747.93144 | M140: 718.10637 | N140: 742.5087 | O140: 790.40957 | P140: 1248.6311 | Q140: 3208.95161 | R140: 5519.94264 | S140: 4762.56662 | T140: 27678.20754
A141: 141 | G141: 129
A142: 142 | D142: Supplier Non-Gas Revenue | G142: 130 | H142: 0 | I142: 0 | J142: 0 | K142: 0 | L142: 0 | M142: 0 | N142: 0 | O142: 0 | P142: 0 | Q142: 0 | R142: 0 | S142: 0 | T142: 0
A143: 143 | G143: 131
A144: 144 | D144: Commodity Revenue | G144: 132 | H144: 0 | I144: 0 | J144: 0 | K144: 0 | L144: 0 | M144: 0 | N144: 0 | O144: 0 | P144: 0 | Q144: 0 | R144: 0 | S144: 0 | T144: 0
A145: 145 | D145: Total Revenue | G145: 133 | H145: 3911.19644 | I145: 2971.25484 | J145: 1808.07711 | K145: 1248.6311 | L145: 747.93144 | M145: 718.10637 | N145: 742.5087 | O145: 790.40957 | P145: 1248.6311 | Q145: 3208.95161 | R145: 5519.94264 | S145: 4762.56662 | T145: 27678.20754
A146: 146 | D146: # of Customers | G146: 134 | H146: 1 | I146: 1 | J146: 1 | K146: 1 | L146: 1 | M146: 1 | N146: 1 | O146: 1 | P146: 1 | Q146: 1 | R146: 1 | S146: 1 | T146: 1
A147: 147 | D147: Total Dth | G147: 135 | H147: 4036 | I147: 2996 | J147: 1709 | K147: 1090 | L147: 536 | M147: 503 | N147: 530 | O147: 583 | P147: 1090 | Q147: 3259 | R147: 5816 | S147: 4978 | T147: 27126
A148: 148 | G148: 136
A149: 149 | C149: FT-E | D149: Distribution Non-Gas Rev | G149: 137 | H149: 186677 | I149: 186677 | J149: 186677 | K149: 186677 | L149: 186677 | M149: 186677 | N149: 186677 | O149: 186677 | P149: 186677 | Q149: 186677 | R149: 186677 | S149: 186677 | T149: 2240124
A150: 150 | G150: 138
A151: 151 | D151: Supplier Non-Gas Revenue | G151: 139 | H151: 0 | I151: 0 | J151: 0 | K151: 0 | L151: 0 | M151: 0 | N151: 0 | O151: 0 | P151: 0 | Q151: 0 | R151: 0 | S151: 0 | T151: 0
A152: 152 | G152: 140
A153: 153 | D153: Commodity Revenue | G153: 141 | H153: 0 | I153: 0 | J153: 0 | K153: 0 | L153: 0 | M153: 0 | N153: 0 | O153: 0 | P153: 0 | Q153: 0 | R153: 0 | S153: 0 | T153: 0
A154: 154 | D154: Total Revenue | G154: 142 | H154: 186677 | I154: 186677 | J154: 186677 | K154: 186677 | L154: 186677 | M154: 186677 | N154: 186677 | O154: 186677 | P154: 186677 | Q154: 186677 | R154: 186677 | S154: 186677 | T154: 2240124
A155: 155 | D155: # of Customers | G155: 143 | H155: 2 | I155: 2 | J155: 2 | K155: 2 | L155: 2 | M155: 2 | N155: 2 | O155: 2 | P155: 2 | Q155: 2 | R155: 2 | S155: 2 | T155: 2
A156: 156 | D156: Total Dth | G156: 144 | H156: 4051340 | I156: 3279492 | J156: 3350173 | K156: 3558744 | L156: 3879817 | M156: 4262387 | N156: 4205692 | O156: 3965944 | P156: 3841781 | Q156: 4274141 | R156: 4737253 | S156: 4650337 | T156: 48057101
A157: 157 | G157: 145
A158: 158 | C158: TSS | D158: Distribution Non-Gas Rev | G158: 146 | H158: 1350051.375 | I158: 1247370.368 | J158: 1086627.658 | K158: 913544.3856 | L158: 763606.222 | M158: 707631.5608 | N158: 738308.2664 | O158: 764546.2179 | P158: 998887.3511 | Q158: 1265853.718 | R158: 1426870 | S158: 1440916.934 | T158: 12704214.06
A159: 159 | G159: 147
A160: 160 | D160: Supplier Non-Gas Revenue | G160: 148 | H160: 11051.80107 | I160: 11051.80107 | J160: 11051.80107 | K160: 11051.80107 | L160: 11051.80107 | M160: 11051.80107 | N160: 11051.80107 | O160: 11051.80107 | P160: 11051.80107 | Q160: 11051.80107 | R160: 11051.80107 | S160: 11051.80107 | T160: 132621.6128
A161: 161 | G161: 149
A162: 162 | D162: Commodity Revenue | G162: 150 | H162: 0 | I162: 0 | J162: 0 | K162: 0 | L162: 0 | M162: 0 | N162: 0 | O162: 0 | P162: 0 | Q162: 0 | R162: 0 | S162: 0 | T162: 0
A163: 163 | D163: Total Revenue | G163: 151 | H163: 1361103.176 | I163: 1258422.169 | J163: 1097679.459 | K163: 924596.1866 | L163: 774658.0231 | M163: 718683.3619 | N163: 749360.0675 | O163: 775598.0189 | P163: 1009939.152 | Q163: 1276905.519 | R163: 1437921.801 | S163: 1451968.735 | T163: 12836835.67
A164: 164 | D164: # of Customers | G164: 152 | H164: 833 | I164: 833 | J164: 833 | K164: 833 | L164: 833 | M164: 833 | N164: 833 | O164: 833 | P164: 833 | Q164: 833 | R164: 833 | S164: 833 | T164: 833
A165: 165 | D165: Total Dth | G165: 153 | H165: 920738 | I165: 787151 | J165: 591934 | K165: 404392 | L165: 264025 | M165: 210032 | N165: 239826 | O165: 259826 | P165: 493293 | Q165: 807415 | R165: 1033439 | S165: 1054076 | T165: 7066147
A166: 166 | G166: 154
A167: 167 | C167: TSM | D167: Distribution Non-Gas Rev | G167: 155 | H167: 1330958.667 | I167: 1332998.666 | J167: 1258491.202 | K167: 1180725.2 | L167: 1145102.769 | M167: 1194780.673 | N167: 1227964.467 | O167: 1141118.582 | P167: 1236817.957 | Q167: 1364488.925 | R167: 1420767.859 | S167: 1423208.987 | T167: 15257423.95
A168: 168 | G168: 156
A169: 169 | D169: Supplier Non-Gas Revenue | G169: 157 | H169: 13300.77051 | I169: 13300.77051 | J169: 13300.77051 | K169: 13300.77051 | L169: 13300.77051 | M169: 13300.77051 | N169: 13300.77051 | O169: 13300.77051 | P169: 13300.77051 | Q169: 13300.77051 | R169: 13300.77051 | S169: 13300.77051 | T169: 159609.2461
A170: 170 | G170: 158
A171: 171 | D171: Commodity Revenue | G171: 159 | H171: 0 | I171: 0 | J171: 0 | K171: 0 | L171: 0 | M171: 0 | N171: 0 | O171: 0 | P171: 0 | Q171: 0 | R171: 0 | S171: 0 | T171: 0
A172: 172 | D172: Total Revenue | G172: 160 | H172: 1344259.438 | I172: 1346299.436 | J172: 1271791.973 | K172: 1194025.97 | L172: 1158403.54 | M172: 1208081.443 | N172: 1241265.238 | O172: 1154419.353 | P172: 1250118.728 | Q172: 1377789.695 | R172: 1434068.629 | S172: 1436509.757 | T172: 15417033.2
A173: 173 | D173: # of Customers | G173: 161 | H173: 245 | I173: 245 | J173: 245 | K173: 245 | L173: 245 | M173: 245 | N173: 245 | O173: 245 | P173: 245 | Q173: 245 | R173: 245 | S173: 245 | T173: 245
A174: 174 | D174: Total Dth | G174: 162 | H174: 1452019 | I174: 1441127 | J174: 1290315 | K174: 1169667 | L174: 1108329 | M174: 1167845 | N174: 1231691 | O174: 1094190 | P174: 1252241 | Q174: 1472965 | R174: 1586951 | S174: 1622824 | T174: 15890164
A175: 175 | G175: 163
A176: 176 | C176: TSL | D176: Distribution Non-Gas Rev | G176: 164 | H176: 1394582.21 | I176: 1412203.26 | J176: 1330195.319 | K176: 1340205.787 | L176: 1364847.7 | M176: 1394010.658 | N176: 1363458.64 | O176: 1290482.157 | P176: 1260572.928 | Q176: 1358843.438 | R176: 1439643.404 | S176: 1544583.918 | T176: 16493629.42
A177: 177 | G177: 165
A178: 178 | D178: Supplier Non-Gas Revenue | G178: 166 | H178: 15180.36398 | I178: 15180.36398 | J178: 15180.36398 | K178: 15180.36398 | L178: 15180.36398 | M178: 15180.36398 | N178: 15180.36398 | O178: 15180.36398 | P178: 15180.36398 | Q178: 15180.36398 | R178: 15180.36398 | S178: 15180.36398 | T178: 182164.3677
A179: 179 | G179: 167
A180: 180 | D180: Commodity Revenue | G180: 168 | H180: 0 | I180: 0 | J180: 0 | K180: 0 | L180: 0 | M180: 0 | N180: 0 | O180: 0 | P180: 0 | Q180: 0 | R180: 0 | S180: 0 | T180: 0
A181: 181 | D181: Total Revenue | G181: 169 | H181: 1409762.573 | I181: 1427383.624 | J181: 1345375.683 | K181: 1355386.151 | L181: 1380028.064 | M181: 1409191.022 | N181: 1378639.004 | O181: 1305662.52 | P181: 1275753.292 | Q181: 1374023.802 | R181: 1454823.768 | S181: 1559764.282 | T181: 16675793.78
A182: 182 | D182: # of Customers | G182: 170 | H182: 31 | I182: 31 | J182: 31 | K182: 31 | L182: 31 | M182: 31 | N182: 31 | O182: 31 | P182: 31 | Q182: 31 | R182: 31 | S182: 31 | T182: 31
A183: 183 | D183: Total Dth | G183: 171 | H183: 2009845 | I183: 2050480 | J183: 1895142 | K183: 1921890 | L183: 1950404 | M183: 2008830 | N183: 1932230 | O183: 1793961 | P183: 1734135 | Q183: 1925302 | R183: 2082093 | S183: 2321343 | T183: 23625655
A184: 184 | G184: 172
A185: 185 | C185: E-1 | D185: Distribution Non-Gas Rev | G185: 173
A186: 186 | G186: 174
A187: 187 | D187: Supplier Non-Gas Revenue | G187: 175
A188: 188 | G188: 176
A189: 189 | D189: Commodity Revenue | G189: 177
A190: 190 | D190: Total Revenue | G190: 178
A191: 191 | D191: # of Customers | G191: 179
A192: 192 | D192: Total Dth | G192: 180
A193: 193 | G193: 181
A194: 194 | C194: CET | D194: Distribution Non-Gas Revenue | G194: 182
A195: 195 | C195: DSM | D195: Distribution Non-Gas Rev | G195: 183
A196: 196 | G196: 184 | T196: 0
A197: 197 | C197: Utah Totals | G197: 185
A198: 198 | D198: Distribution Non-Gas Rev | G198: 186 | H198: 65543379.82 | I198: 54602805.77 | J198: 36147566.39 | K198: 26759119.45 | L198: 20548250.6 | M198: 19522693.23 | N198: 19256543.68 | O198: 20095453.74 | P198: 31354094.4 | Q198: 52739089.44 | R198: 73433382.34 | S198: 78146551.78 | T198: 498148930.6
A199: 199 | D199: Supplier Non-Gas Revenue | G199: 187 | H199: 16521292.79 | I199: 12972795.75 | J199: 3895503.322 | K199: 2378119.904 | L199: 1379007.193 | M199: 1190266.376 | N199: 1146624.873 | O199: 1322310.073 | P199: 3153168.354 | Q199: 12314588.37 | R199: 18967081.29 | S199: 20517937.67 | T199: 95758695.96
A200: 200 | D200: Commodity Revenue | G200: 188 | H200: 149042273.6 | I200: 116994585.6 | J200: 80875178.11 | K200: 48470883.32 | L200: 27006124.03 | M200: 23144764.87 | N200: 22161320.9 | O200: 25756262.81 | P200: 64438656.07 | Q200: 111016477.2 | R200: 171128754.2 | S200: 185181290.4 | T200: 1025216571
A201: 201 | D201: Total Utah Revenue | G201: 189 | H201: 231106946.2 | I201: 184570187.2 | J201: 120918247.8 | K201: 77608122.67 | L201: 48933381.82 | M201: 43857724.47 | N201: 42564489.45 | O201: 47174026.62 | P201: 98945918.82 | Q201: 176070155 | R201: 263529217.8 | S201: 283845779.9 | T201: 1619124198
A202: 202 | D202: # of Customers | G202: 190 | H202: 1171470 | I202: 1173551 | J202: 1175639 | K202: 1176816 | L202: 1178905 | M202: 1179661 | N202: 1180426 | O202: 1183000 | P202: 1182905 | Q202: 1185831 | R202: 1189495 | S202: 1193150 | T202: 1180904.083
A203: 203 | D203: Sales Dth | G203: 191 | H203: 17435441 | I203: 13686823 | J203: 9461719 | K203: 5671158 | L203: 3160663 | M203: 2708624 | N203: 2593558 | O203: 3014390 | P203: 7538968 | Q203: 12987513 | R203: 20018948 | S203: 21662597 | T203: 119940402
A204: 204 | D204: Transportation Dth | G204: 192 | H204: 9142297 | I204: 8325424 | J204: 7849355 | K204: 7764572 | L204: 8068267 | M204: 8732165 | N204: 8679777 | O204: 7902081 | P204: 8083310 | Q204: 9231004 | R204: 10289410 | S204: 10415745 | T204: 104483407
A205: 205 | D205: Total Utah Dth | G205: 193 | H205: 26577738 | I205: 22012247 | J205: 17311074 | K205: 13435730 | L205: 11228930 | M205: 11440789 | N205: 11273335 | O205: 10916471 | P205: 15622278 | Q205: 22218517 | R205: 30308358 | S205: 32078342 | T205: 224423809
A206: 206 | G206: 194
... 213 more rows
